Workbook

Sheet часть 1 (hidden)
O1: Приложение
O2: к постановлению Правительства Тверской области Тверской области от 24.02.2016 № 82-пп
O3: от №
A6: Краткосрочный план
A7: реализации в 2016 году региональной программы по проведению капитального ремонта общего имущества
A8: в многоквартирных домах на территории Тверской области на 2014-2043 годы
A10: I. Перечень многоквартирных домов, которые подлежат капитальному ремонту
A11: № п/п | B11: Адрес многоквартирного дома (далее - МКД) | C11: Год | E11: Материал стен | F11: Количество этажей | G11: Количество подъездов | H11: Общая площадь МКД, всего | I11: Площадь помещений МКД: | K11: Количество жителей, зарегистрированных в МКД на дату утверждения краткосрочного плана | L11: Стоимость капитального ремонта: | Q11: Удельная стоимость капитального ремонта 1 кв. м общей площади помещений МКД | R11: Предельная стоимость капитального ремонта 1 кв. м общей площади помещений МКД | S11: Плановая дата завершения работ
C12: ввода в эксплуатацию | D12: завершения последнего капитального ремонта | I12: всего: | J12: в том числе жилых помещений, находящихся в собственности граждан | L12: всего: | M12: в том числе
M13: за счет средств областного бюджета Тверской области | N13: за счет средств местного бюджета | O13: за счет средств собственников помещений в МКД | P13: за счет привлеченных средств
H14: кв. м | I14: кв. м | J14: кв. м | K14: чел. | L14: руб. | M14: руб. | N14: руб. | O14: руб. | P14: руб. | Q14: руб/кв. м | R14: руб/кв. м
A15: 1 | B15: 2 | C15: 3 | D15: 4 | E15: 5 | F15: 6 | G15: 7 | H15: 8 | I15: 9 | J15: 10 | K15: 11 | L15: 12 | M15: 13 | N15: 14 | O15: 15 | P15: 16 | Q15: 17 | R15: 18 | S15: 19
B16: Итого по Тверской области | H16: =H18+H521 -> 479,481.47 | I16: 398,294.75 | J16: 358,677.09 | K16: 15,980 | L16: 699,893,215.89 | M16: 0.00 | N16: 8,635,753.96 | O16: 691,001,542.93 | P16: =P188+P205+P207+P231+P244+P260+P269+P281++P284+P303+P307+P320+P324+P331+P338+P352+P363+P376+P384+P429+P434+P445+P424+P449+P460+P469+P476+P479+P485+P496+P503+P536+P19+P515 -> 255,919.00 | Q16: Х | R16: Х | S16: Х
A17: Формирование фонда капитального ремонта многоквартирного дома на счете некоммерческой организации - Фонд капитального ремонта многоквартирных домов Тверской области (далее - региональный оператор)
B18: Всего по Тверской области | H18: =H19+H188+H205+H207+H231+H244+H260+H269+H281+H284+H303+H307+H320+H324+H331+H338+H352+H363+H376+H384+H424+H429+H434+H445+H449+H466+H460+H469+H476+H479+H485+H491+H496+H503+H515 -> 426,694.57 | I18: 351,421.05 | J18: 312,616.09 | K18: 14,351 | L18: 692,506,037.25 | M18: 0.00 | N18: 7,269,861.96 | O18: 684,980,256.29 | P18: =P19+P188+P205+P207+P231+P244+P260+P269+P281+P284+P303+P307+P320+P324+P331+P338+P352+P363+P376+P384+P424+P429+P434+P445+P449+P466+P460+P469+P476+P479+P485+P496+P503+P515 -> 255,919.00 | Q18: Х | R18: Х | S18: Х
B19: Итого по город Тверь | H19: =SUM(H20:H187) -> 0.00 | I19: =SUM(I20:I187) -> 0.00 | J19: =SUM(J20:J187) -> 0.00 | K19: =SUM(K20:K187) -> 0 | L19: 336,230,870.63 | M19: =SUM(M20:M187) -> 0.00 | N19: 0.00 | O19: =SUM(O20:O187) -> 336,230,870.63 | P19: 0.00 | Q19: Х | R19: Х | S19: Х
A20: 1 | B20: б-р Гусева, д. 25 | C20: 1975 | E20: Панельные | F20: 5 | G20: 10 | L20: 5,982,216.00 | M20: 0.00 | N20: 0.00 | O20: =L20 -> 5,982,216.00 | P20: 0.00 | Q20: =L20/I20 ->  | S20: 2017-12-31
A21: =A20+1 -> 2 | B21: б-р Гусева, д. 39 | C21: 1978 | E21: Панельные | F21: 9 | G21: 5 | L21: 9,379,653.00 | M21: 0.00 | N21: 0.00 | O21: 9,379,653.00 | P21: 0.00 | S21: 2017-12-31
A22: =A21+1 -> 3 | B22: б-р Гусева, д. 41 | C22: 1982 | E22: Панельные | F22: 9 | G22: 2 | L22: 3,763,756.00 | M22: 0.00 | N22: 0.00 | O22: 3,763,756.00 | P22: 0.00 | S22: 2017-12-31
A23: 4 | B23: б-р Гусева, д. 45, корп. 1 | C23: 1982 | E23: Панельные | F23: 9 | G23: 1 | L23: 1,095,812.00 | M23: 0.00 | N23: 0.00 | O23: 1,095,812.00 | P23: 0.00 | S23: 2017-12-31
A24: 5 | B24: б-р Гусева, д. 9 | C24: 1976 | E24: Панельные | F24: 9 | G24: 3 | L24: 5,619,141.00 | M24: 0.00 | N24: 0.00 | O24: 5,619,141.00 | P24: 0.00 | S24: 2017-12-31
A25: 6 | B25: б-р Ногина, д. 2 | C25: 1982 | E25: Панельные | F25: 9 | G25: 2 | L25: 3,748,388.00 | M25: 0.00 | N25: 0.00 | O25: 3,748,388.00 | P25: 0.00 | S25: 2017-12-31
A26: 7 | B26: б-р Ногина, д. 4 | C26: 1981 | E26: Панельные | F26: 9 | G26: 8 | L26: 15,157,748.00 | M26: 0.00 | N26: 0.00 | O26: 15,157,748.00 | P26: 0.00 | S26: 2017-12-31
A27: 8 | B27: б-р Профсоюзов, д. 21 | C27: 1954 | E27: Каменные, кирпичные | F27: 2 | G27: 2 | L27: 1,030,213.00 | M27: 0.00 | N27: 0.00 | O27: 1,030,213.00 | P27: 0.00 | S27: 2017-12-31
A28: 9 | B28: б-р Радищева, д. 26 | C28: 1860 | E28: Каменные, кирпичные | F28: 3 | G28: 1 | L28: 530,465.00 | M28: 0.00 | N28: 0.00 | O28: 530,465.00 | P28: 0.00 | S28: 2017-12-31
A29: 10 | B29: б-р Цанова, д. 10 | C29: 1958 | E29: Каменные, кирпичные | F29: 2 | G29: 2 | L29: 1,983,854.00 | M29: 0.00 | N29: 0.00 | O29: 1,983,854.00 | P29: 0.00 | S29: 2017-12-31
A30: 11 | B30: наб. Афанасия Никитина, д. 24 | C30: 1961 | E30: Каменные, кирпичные | F30: 5 | G30: 2 | L30: 1,206,304.00 | M30: 0.00 | N30: 0.00 | O30: 1,206,304.00 | P30: 0.00 | S30: 2017-12-31
A31: 12 | B31: наб. Афанасия Никитина, д. 24А | C31: 1961 | E31: Каменные, кирпичные | F31: 5 | G31: 3 | L31: 402,530.20 | M31: 0.00 | N31: 0.00 | O31: 402,530.20 | P31: 0.00 | S31: 2017-12-31
A32: 13 | B32: наб. Мигаловская, д. 10А | C32: 1967 | E32: Каменные, кирпичные | F32: 5 | G32: 8 | L32: 2,861,497.00 | M32: 0.00 | N32: 0.00 | O32: 2,861,497.00 | P32: 0.00 | S32: 2017-12-31
A33: 14 | B33: п. Литвинки, д. 27 | C33: 1974 | E33: Панельные | F33: 5 | G33: 4 | L33: 1,535,065.47 | M33: 0.00 | N33: 0.00 | O33: 1,535,065.47 | P33: 0.00 | S33: 2017-12-31
A34: 15 | B34: п. Химинститута, д. 13 | C34: 1966 | E34: Панельные | F34: 5 | G34: 4 | L34: 930,534.00 | M34: 0.00 | N34: 0.00 | O34: 930,534.00 | P34: 0.00 | S34: 2017-12-31
A35: 16 | B35: п. Химинститута, д. 20 | C35: 1970 | E35: Панельные | F35: 5 | G35: 4 | L35: 662,518.00 | M35: 0.00 | N35: 0.00 | O35: 662,518.00 | P35: 0.00 | S35: 2017-12-31
A36: 17 | B36: п. Химинститута, д. 32 | C36: 1979 | E36: Каменные, кирпичные | F36: 5 | G36: 4 | L36: 2,346,663.00 | M36: 0.00 | N36: 0.00 | O36: 2,346,663.00 | P36: 0.00 | S36: 2017-12-31
A37: 18 | B37: п. Химинститута, д. 38 | C37: 1972 | E37: Панельные | F37: 5 | G37: 4 | L37: 727,019.00 | M37: 0.00 | N37: 0.00 | O37: 727,019.00 | P37: 0.00 | S37: 2017-12-31
A38: 19 | B38: п. Химинститута, д. 7 | C38: 1963 | E38: Каменные, кирпичные | F38: 4 | G38: 3 | L38: 538,121.00 | M38: 0.00 | N38: 0.00 | O38: 538,121.00 | P38: 0.00 | S38: 2017-12-31
A39: 20 | B39: п. Химинститута, д. 9 | C39: 1963 | E39: Каменные, кирпичные | F39: 4 | G39: 3 | L39: 1,756,852.00 | M39: 0.00 | N39: 0.00 | O39: 1,756,852.00 | P39: 0.00 | S39: 2017-12-31
A40: 21 | B40: пер. Артиллерийский, д. 12 | C40: 1974 | E40: Панельные | F40: 5 | G40: 4 | L40: 676,398.28 | M40: 0.00 | N40: 0.00 | O40: 676,398.28 | P40: 0.00 | S40: 2017-12-31
A41: 22 | B41: пер. Коллективный, д. 6 | C41: 1951 | E41: Каменные, кирпичные | F41: 2 | G41: 1 | L41: 766,539.00 | M41: 0.00 | N41: 0.00 | O41: 766,539.00 | P41: 0.00 | S41: 2017-12-31
A42: 23 | B42: пер. Никитина, д. 5 | C42: 1983 | E42: Каменные, кирпичные | F42: 9 | G42: 2 | L42: 1,186,114.00 | M42: 0.00 | N42: 0.00 | O42: 1,186,114.00 | P42: 0.00 | S42: 2017-12-31
A43: 24 | B43: пер. Перекопский, д. 11А | C43: 1958 | E43: Каменные, кирпичные | F43: 3 | G43: 2 | L43: 178,272.59 | M43: 0.00 | N43: 0.00 | O43: 178,272.59 | P43: 0.00 | S43: 2017-12-31
A44: 25 | B44: пер. Перекопский, д. 15 | C44: 1963 | E44: Каменные, кирпичные | F44: 4 | G44: 2 | L44: 1,087,116.00 | M44: 0.00 | N44: 0.00 | O44: 1,087,116.00 | P44: 0.00 | S44: 2017-12-31
A45: 26 | B45: пер. Смоленский, д. 8, корп. 1 | C45: 1984 | E45: Каменные, кирпичные | F45: 9 | G45: 2 | L45: 1,411,363.00 | M45: 0.00 | N45: 0.00 | O45: 1,411,363.00 | P45: 0.00 | S45: 2017-12-31
A46: 27 | B46: пер. Университетский, д. 3 | C46: 1964 | E46: Каменные, кирпичные | F46: 4 | G46: 2 | L46: 1,136,666.00 | M46: 0.00 | N46: 0.00 | O46: 1,136,666.00 | P46: 0.00 | S46: 2017-12-31
A47: 28 | B47: пр-кт 50 лет Октября, д. 2/19 | C47: 1959 | E47: Каменные, кирпичные | F47: 4 | G47: 6 | L47: 1,385,674.00 | M47: 0.00 | N47: 0.00 | O47: 1,385,674.00 | P47: 0.00 | S47: 2017-12-31
A48: 29 | B48: пр-кт Калинина, д. 9 | C48: 1937 | E48: Каменные, кирпичные | F48: 4 | G48: 9 | L48: 4,619,990.00 | M48: 0.00 | N48: 0.00 | O48: 4,619,990.00 | P48: 0.00 | S48: 2017-12-31
A49: 30 | B49: пр-кт Ленина, д. 14, корп. 2 | C49: 1960 | E49: Каменные, кирпичные | F49: 4 | G49: 3 | L49: 1,865,304.00 | M49: 0.00 | N49: 0.00 | O49: 1,865,304.00 | P49: 0.00 | S49: 2017-12-31
A50: 31 | B50: пр-кт Ленина, д. 40 | C50: 1961 | E50: Каменные, кирпичные | F50: 5 | G50: 4 | L50: 1,870,910.00 | M50: 0.00 | N50: 0.00 | O50: 1,870,910.00 | P50: 0.00 | S50: 2017-12-31
A51: 32 | B51: пр-кт Ленина, д. 43 | C51: 1960 | E51: Каменные, кирпичные | F51: 5 | G51: 4 | L51: 1,533,757.00 | M51: 0.00 | N51: 0.00 | O51: 1,533,757.00 | P51: 0.00 | S51: 2017-12-31
A52: 33 | B52: пр-кт Ленина, д. 43А | C52: 1960 | E52: Каменные, кирпичные | F52: 5 | G52: 4 | L52: 939,858.00 | M52: 0.00 | N52: 0.00 | O52: =L52 -> 939,858.00 | P52: 0.00 | Q52: =L52/I52 ->  | S52: 2017-12-31
A53: 34 | B53: пр-кт Октябрьский, д. 69 | C53: 1973 | E53: Панельные | F53: 5 | G53: 6 | L53: 2,368,392.00 | M53: 0.00 | N53: 0.00 | O53: 2,368,392.00 | P53: 0.00 | S53: 2017-12-31
A54: 35 | B54: пр-кт Победы, д. 28, корп. 1 | C54: 1961 | E54: Каменные, кирпичные | F54: 5 | G54: 2 | L54: 2,433,930.91 | M54: 0.00 | N54: 0.00 | O54: 2,433,930.91 | P54: 0.00 | S54: 2017-12-31
A55: 36 | B55: пр-кт Победы, д. 2А | C55: 1964 | E55: Каменные, кирпичные | F55: 5 | G55: 4 | L55: 1,721,850.00 | M55: 0.00 | N55: 0.00 | O55: 1,721,850.00 | P55: 0.00 | S55: 2017-12-31
A56: 37 | B56: пр-кт Победы, д. 32/3 | C56: 1957 | E56: Каменные, кирпичные | F56: 4 | G56: 4 | L56: 814,117.00 | M56: 0.00 | N56: 0.00 | O56: 814,117.00 | P56: 0.00 | S56: 2017-12-31
A57: 38 | B57: пр-кт Победы, д. 36/46 | C57: 1957 | E57: Каменные, кирпичные | F57: 4 | G57: 4 | L57: 3,045,081.00 | M57: 0.00 | N57: 0.00 | O57: 3,045,081.00 | P57: 0.00 | S57: 2017-12-31
A58: 39 | B58: пр-кт Победы, д. 38/45 | C58: 1954 | E58: Каменные, кирпичные | F58: 3 | G58: 3 | L58: 2,244,806.00 | M58: 0.00 | N58: 0.00 | O58: 2,244,806.00 | P58: 0.00 | S58: 2017-12-31
A59: 40 | B59: пр-кт Победы, д. 4А | C59: 1963 | E59: Каменные, кирпичные | F59: 4 | G59: 2 | L59: 1,361,273.00 | M59: 0.00 | N59: 0.00 | O59: 1,361,273.00 | P59: 0.00 | S59: 2017-12-31
A60: 41 | B60: пр-кт Победы, д. 22/15 | C60: 1959 | E60: Каменные, кирпичные | F60: 4 | G60: 4 | L60: 2,421,596.00 | M60: 0.00 | N60: 0.00 | O60: 2,421,596.00 | P60: 0.00 | S60: 2017-12-31
A61: 42 | B61: пр-кт Чайковского, д. 24/2Б | C61: 1967 | E61: Каменные, кирпичные | F61: 6 | G61: 5 | L61: 2,056,315.00 | M61: 0.00 | N61: 0.00 | O61: 2,056,315.00 | P61: 0.00 | S61: 2017-12-31
A62: 43 | B62: пр-кт Чайковского, д. 37 | C62: 1975 | E62: Каменные, кирпичные | F62: 9 | G62: 5 | L62: 9,473,593.00 | M62: 0.00 | N62: 0.00 | O62: 9,473,593.00 | P62: 0.00 | S62: 2017-12-31
A63: 44 | B63: проезд Зеленый, д. 47, корп. 1 | C63: 1968 | E63: Каменные, кирпичные | F63: 5 | G63: 6 | L63: 4,441,828.00 | M63: 0.00 | N63: 0.00 | O63: 4,441,828.00 | P63: 0.00 | S63: 2017-12-31
A64: 45 | B64: проезд Зеленый, д. 47, корп. 2 | C64: 1977 | E64: Панельные | F64: 5 | G64: 8 | L64: 3,051,089.00 | M64: 0.00 | N64: 0.00 | O64: 3,051,089.00 | P64: 0.00 | S64: 2017-12-31
A65: 46 | B65: проезд Карпинского 1-й, д. 2/60 | C65: 1956 | E65: Каменные, кирпичные | F65: 2 | G65: 2 | L65: 869,749.00 | M65: 0.00 | N65: 0.00 | O65: 869,749.00 | P65: 0.00 | S65: 2017-12-31
A66: 47 | B66: проезд Карпинского 1-й, д. 4 | C66: 1956 | E66: Каменные, кирпичные | F66: 2 | G66: 2 | L66: 869,880.00 | M66: 0.00 | N66: 0.00 | O66: 869,880.00 | P66: 0.00 | S66: 2017-12-31
A67: 48 | B67: проезд Розы Люксембург 1-й, д. 6 | C67: 1959 | E67: Каменные, кирпичные | F67: 2 | G67: 2 | L67: 172,302.00 | M67: 0.00 | N67: 0.00 | O67: 172,302.00 | P67: 0.00 | S67: 2017-12-31
A68: 49 | B68: тер. Двор Пролетарки, д. 119 | C68: 1910 | E68: Каменные, кирпичные | F68: 4 | G68: 1 | L68: 3,706,393.00 | M68: 0.00 | N68: 0.00 | O68: 3,706,393.00 | P68: 0.00 | S68: 2017-12-31
A69: 50 | B69: тер. Двор Пролетарки, д. 43 | C69: 1914 | E69: Каменные, кирпичные | F69: 4 | G69: 5 | L69: 698,585.00 | M69: 0.00 | N69: 0.00 | O69: 698,585.00 | P69: 0.00 | S69: 2017-12-31
A70: 51 | B70: тер. Товарный двор, д. 483А | C70: до 1917 | E70: Каменные, кирпичные | F70: 2 | G70: 3 | L70: 951,740.00 | M70: 0.00 | N70: 0.00 | O70: 951,740.00 | P70: 0.00 | S70: 2017-12-31
A71: 52 | B71: ул. 15 лет Октября, д. 47 | C71: 1953 | E71: Каменные, кирпичные | F71: 3 | G71: 3 | L71: 2,056,139.00 | M71: 0.00 | N71: 0.00 | O71: 2,056,139.00 | P71: 0.00 | S71: 2017-12-31
A72: 53 | B72: ул. 15 лет Октября, д. 56 | C72: 1958 | E72: Каменные, кирпичные | F72: 2 | G72: 2 | L72: 1,321,356.00 | M72: 0.00 | N72: 0.00 | O72: 1,321,356.00 | P72: 0.00 | S72: 2017-12-31
A73: 54 | B73: ул. 15 лет Октября, д. 58, корп. 1 | C73: 1959 | E73: Каменные, кирпичные | F73: 2 | G73: 2 | L73: 1,679,278.00 | M73: 0.00 | N73: 0.00 | O73: 1,679,278.00 | P73: 0.00 | S73: 2017-12-31
A74: 55 | B74: ул. 15 лет Октября, д. 60 | C74: 1959 | E74: Каменные, кирпичные | F74: 2 | G74: 2 | L74: 1,100,896.00 | M74: 0.00 | N74: 0.00 | O74: 1,100,896.00 | P74: 0.00 | S74: 2017-12-31
A75: 56 | B75: ул. 15 лет Октября, д. 62, корп. 1 | C75: 1959 | E75: Каменные, кирпичные | F75: 2 | G75: 2 | L75: 1,729,707.00 | M75: 0.00 | N75: 0.00 | O75: 1,729,707.00 | P75: 0.00 | S75: 2017-12-31
A76: 57 | B76: ул. 15 лет Октября, д. 64/23 | C76: 1959 | E76: Каменные, кирпичные | F76: 2 | G76: 2 | L76: 451,222.57 | M76: 0.00 | N76: 0.00 | O76: 451,222.57 | P76: 0.00 | S76: 2017-12-31
A77: 58 | B77: ул. Академика Туполева, д. 112/24 | C77: 1959 | E77: Каменные, кирпичные | F77: 2 | G77: 1 | L77: 703,675.57 | M77: 0.00 | N77: 0.00 | O77: 703,675.57 | P77: 0.00 | S77: 2017-12-31
A78: 59 | B78: ул. Академическая, д. 16 | C78: 1959 | E78: Каменные, кирпичные | F78: 4 | G78: 3 | L78: 1,053,533.22 | M78: 0.00 | N78: 0.00 | O78: 1,053,533.22 | P78: 0.00 | S78: 2017-12-31
A79: 60 | B79: ул. Академическая, д. 22 | C79: 1979 | E79: Каменные, кирпичные | F79: 9 | G79: 1 | L79: 1,253,738.00 | M79: 0.00 | N79: 0.00 | O79: 1,253,738.00 | P79: 0.00 | S79: 2017-12-31
A80: 61 | B80: ул. Артюхиной, д. 7 | C80: 1984 | E80: Панельные | F80: 9 | G80: 1 | L80: 1,870,046.00 | M80: 0.00 | N80: 0.00 | O80: 1,870,046.00 | P80: 0.00 | S80: 2017-12-31
A81: 62 | B81: ул. Благоева, д. 4, корп. 2 | C81: 1984 | E81: Панельные | F81: 9 | G81: 2 | L81: 3,720,676.00 | M81: 0.00 | N81: 0.00 | O81: 3,720,676.00 | P81: 0.00 | S81: 2017-12-31
A82: 63 | B82: ул. Благоева, д. 6А | C82: 1977 | E82: Каменные, кирпичные | F82: 5 | G82: 6 | L82: 3,687,908.00 | M82: 0.00 | N82: 0.00 | O82: 3,687,908.00 | P82: 0.00 | S82: 2017-12-31
A83: 64 | B83: ул. Бобкова, д. 2 | C83: 1933 | E83: Каменные, кирпичные | F83: 4 | G83: 5 | L83: 1,760,967.35 | M83: 0.00 | N83: 0.00 | O83: 1,760,967.35 | P83: 0.00 | S83: 2017-12-31
A84: 65 | B84: ул. Богданова, д. 26/17 | C84: 1961 | E84: Каменные, кирпичные | F84: 5 | G84: 4 | L84: 881,947.00 | M84: 0.00 | N84: 0.00 | O84: =L84 -> 881,947.00 | P84: 0.00 | Q84: =L84/I84 ->  | S84: 2017-12-31
A85: 66 | B85: ул. Богданова, д. 29 | C85: 1960 | E85: Каменные, кирпичные | F85: 2 | G85: 2 | L85: 517,739.00 | M85: 0.00 | N85: 0.00 | O85: 517,739.00 | P85: 0.00 | S85: 2017-12-31
A86: =A85+1 -> 67 | B86: ул. Богданова, д. 33/15 | C86: 1966 | E86: Каменные, кирпичные | F86: 5 | G86: 4 | L86: 1,728,895.00 | M86: 0.00 | N86: 0.00 | O86: 1,728,895.00 | P86: 0.00 | S86: 2017-12-31
A87: 68 | B87: ул. Бориса Полевого, д. 10/11 | C87: 1925 | E87: Деревянные | F87: 2 | G87: 2 | L87: 682,529.00 | M87: 0.00 | N87: 0.00 | O87: 682,529.00 | P87: 0.00 | S87: 2017-12-31
A88: 69 | B88: ул. Брагина, д. 44 | C88: 1900 | E88: Деревянные | F88: 2 | G88: 2 | L88: 582,157.00 | M88: 0.00 | N88: 0.00 | O88: 582,157.00 | P88: 0.00 | S88: 2017-12-31
A89: 70 | B89: ул. Вагжанова, д. 4 | C89: 1934 | E89: Каменные, кирпичные | F89: 3 | G89: 5 | L89: 701,704.00 | M89: 0.00 | N89: 0.00 | O89: 701,704.00 | P89: 0.00 | S89: 2017-12-31
A90: 71 | B90: ул. Веселова, д. 34/28 | C90: 1970 | E90: Панельные | F90: 5 | G90: 6 | L90: 1,969,149.00 | M90: 0.00 | N90: 0.00 | O90: 1,969,149.00 | P90: 0.00 | S90: 2017-12-31
A91: 72 | B91: ул. Гвардейская, д. 5 | C91: 1956 | E91: Каменные, кирпичные | F91: 3 | G91: 3 | L91: 1,023,088.00 | M91: 0.00 | N91: 0.00 | O91: 1,023,088.00 | P91: 0.00 | S91: 2017-12-31
A92: 73 | B92: ул. Гвардейская, д. 9, корп. 1 | C92: 1957 | E92: Каменные, кирпичные | F92: 3 | G92: 3 | L92: 3,334,570.00 | M92: 0.00 | N92: 0.00 | O92: 3,334,570.00 | P92: 0.00 | S92: 2017-12-31
A93: 74 | B93: ул. Горького, д. 10 | C93: 1970 | E93: Каменные, кирпичные | F93: 5 | G93: 2 | L93: 1,127,374.33 | M93: 0.00 | N93: 0.00 | O93: 1,127,374.33 | P93: 0.00 | S93: 2017-12-31
A94: 75 | B94: ул. Горького, д. 106 | C94: 1968 | E94: Панельные | F94: 5 | G94: 6 | L94: 1,161,456.00 | M94: 0.00 | N94: 0.00 | O94: 1,161,456.00 | P94: 0.00 | S94: 2017-12-31
A95: 76 | B95: ул. Горького, д. 4А | C95: 1971 | E95: Каменные, кирпичные | F95: 5 | G95: 4 | L95: 1,197,250.23 | M95: 0.00 | N95: 0.00 | O95: 1,197,250.23 | P95: 0.00 | S95: 2017-12-31
A96: 77 | B96: ул. Горького, д. 70 | C96: 1954 | E96: Каменные, кирпичные | F96: 4 | G96: 3 | L96: 2,784,233.00 | M96: 0.00 | N96: 0.00 | O96: 2,784,233.00 | P96: 0.00 | S96: 2017-12-31
A97: 78 | B97: ул. Горького, д. 89 | C97: 1968 | E97: Каменные, кирпичные | F97: 5 | G97: 4 | L97: 2,369,961.00 | M97: 0.00 | N97: 0.00 | O97: 2,369,961.00 | P97: 0.00 | S97: 2017-12-31
A98: 79 | B98: ул. Грибоедова 2-я, д. 8/1 | C98: 1959 | E98: Каменные, кирпичные | F98: 2 | G98: 1 | L98: 672,819.00 | M98: 0.00 | N98: 0.00 | O98: 672,819.00 | P98: 0.00 | S98: 2017-12-31
A99: 80 | B99: ул. Громова, д. 28, корп. 2 | C99: 1968 | E99: Панельные | F99: 5 | G99: 5 | L99: 1,651,491.00 | M99: 0.00 | N99: 0.00 | O99: 1,651,491.00 | P99: 0.00 | S99: 2017-12-31
A100: 81 | B100: ул. Громова, д. 30 | C100: 1962 | E100: Каменные, кирпичные | F100: 3 | G100: 3 | L100: 1,432,926.00 | M100: 0.00 | N100: 0.00 | O100: 1,432,926.00 | P100: 0.00 | S100: 2017-12-31
A101: 82 | B101: ул. Громова, д. 36, корп. 2 | C101: 1955 | E101: Каменные, кирпичные | F101: 2 | G101: 2 | L101: 1,137,886.00 | M101: 0.00 | N101: 0.00 | O101: 1,137,886.00 | P101: 0.00 | S101: 2017-12-31
A102: 83 | B102: ул. Дарвина, д. 2 | C102: 1971 | E102: Каменные, кирпичные | F102: 5 | G102: 4 | L102: 1,814,838.00 | M102: 0.00 | N102: 0.00 | O102: 1,814,838.00 | P102: 0.00 | S102: 2017-12-31
A103: 84 | B103: ул. Дарвина, д. 4, корп. 1 | C103: 1970 | E103: Каменные, кирпичные | F103: 5 | G103: 4 | L103: 1,544,359.54 | M103: 0.00 | N103: 0.00 | O103: 1,544,359.54 | P103: 0.00 | S103: 2017-12-31
A104: 85 | B104: ул. Евгения Пичугина, д. 21, корп. 3 | C104: 1987 | E104: Панельные | F104: 9 | G104: 1 | L104: 1,787,034.00 | M104: 0.00 | N104: 0.00 | O104: 1,787,034.00 | P104: 0.00 | S104: 2017-12-31
A105: 86 | B105: ул. Екатерины Фарафоновой, д. 37 | C105: 1983 | E105: Панельные | F105: 9 | G105: 4 | L105: 437,998.57 | M105: 0.00 | N105: 0.00 | O105: 437,998.57 | P105: 0.00 | S105: 2017-12-31
A106: 87 | B106: ул. Зинаиды Коноплянниковой, д. 14 | C106: 1976 | E106: Панельные | F106: 5 | G106: 4 | L106: 1,116,228.00 | M106: 0.00 | N106: 0.00 | O106: 1,116,228.00 | P106: 0.00 | S106: 2017-12-31
A107: 88 | B107: ул. Зинаиды Коноплянниковой, д. 19, корп. 2 | C107: 1983 | E107: Панельные | F107: 5 | G107: 3 | L107: 1,313,728.00 | M107: 0.00 | N107: 0.00 | O107: 1,313,728.00 | P107: 0.00 | S107: 2017-12-31
A108: 89 | B108: ул. Ипподромная, д. 10 | C108: 1958 | E108: Каменные, кирпичные | F108: 2 | G108: 1 | L108: 359,651.00 | M108: 0.00 | N108: 0.00 | O108: 359,651.00 | P108: 0.00 | S108: 2017-12-31
A109: 90 | B109: ул. Ипподромная, д. 22 | C109: 1965 | E109: Панельные | F109: 5 | G109: 5 | L109: 906,779.00 | M109: 0.00 | N109: 0.00 | O109: 906,779.00 | P109: 0.00 | S109: 2017-12-31
A110: 91 | B110: ул. Ипподромная, д. 6Б | C110: 1958 | E110: Каменные, кирпичные | F110: 2 | G110: 1 | L110: 886,559.00 | M110: 0.00 | N110: 0.00 | O110: 886,559.00 | P110: 0.00 | S110: 2017-12-31
A111: 92 | B111: ул. Ипподромная, д. 7, корп. 1 | C111: 1959 | E111: Каменные, кирпичные | F111: 2 | G111: 1 | L111: 642,210.00 | M111: 0.00 | N111: 0.00 | O111: 642,210.00 | P111: 0.00 | S111: 2017-12-31
A112: 93 | B112: ул. Кайкова, д. 4А | C112: 1957 | E112: Каменные, кирпичные | F112: 4 | G112: 3 | L112: 1,952,489.00 | M112: 0.00 | N112: 0.00 | O112: 1,952,489.00 | P112: 0.00 | S112: 2017-12-31
A113: 94 | B113: ул. Карла Маркса, д. 5 | C113: 1983 | E113: Панельные | F113: 9 | G113: 8 | L113: 15,157,748.00 | M113: 0.00 | N113: 0.00 | O113: 15,157,748.00 | P113: 0.00 | S113: 2017-12-31
A114: 95 | B114: ул. Кирова, д. 3А | C114: 1959 | E114: Каменные, кирпичные | F114: 4 | G114: 5 | L114: 2,542,298.37 | M114: 0.00 | N114: 0.00 | O114: 2,542,298.37 | P114: 0.00 | S114: 2017-12-31
A115: 96 | B115: ул. Коробкова, д. 18 | C115: 1983 | E115: Панельные | F115: 9 | G115: 1 | L115: 1,114,586.00 | M115: 0.00 | N115: 0.00 | O115: 1,114,586.00 | P115: 0.00 | S115: 2017-12-31
A116: 97 | B116: ул. Королева, д. 16/1 | C116: 1975 | E116: Панельные | F116: 9 | G116: 3 | L116: 5,623,853.00 | M116: 0.00 | N116: 0.00 | O116: =L116 -> 5,623,853.00 | P116: 0.00 | Q116: =L116/I116 ->  | S116: 2017-12-31
A117: 98 | B117: ул. Королева, д. 24 | C117: 1976 | E117: Панельные | F117: 9 | G117: 4 | L117: 2,721,106.00 | M117: 0.00 | N117: 0.00 | O117: 2,721,106.00 | P117: 0.00 | S117: 2017-12-31
A118: 99 | B118: ул. Королева, д. 4 | C118: 1973 | E118: Панельные | F118: 9 | G118: 6 | L118: 9,789,326.55 | M118: 0.00 | N118: 0.00 | O118: 9,789,326.55 | P118: 0.00 | S118: 2017-12-31
A119: 100 | B119: ул. Крылова, д. 5 | C119: до 1917 | E119: Каменные, кирпичные | F119: 3 | G119: 3 | L119: 1,615,074.00 | M119: 0.00 | N119: 0.00 | O119: 1,615,074.00 | P119: 0.00 | S119: 2017-12-31
A120: 101 | B120: ул. Лукина, д. 14 | C120: 1953 | E120: Каменные, кирпичные | F120: 2 | G120: 2 | L120: 824,390.00 | M120: 0.00 | N120: 0.00 | O120: 824,390.00 | P120: 0.00 | S120: 2017-12-31
A121: 102 | B121: ул. Лукина, д. 8 | C121: 1951 | E121: Блочные | F121: 2 | G121: 3 | L121: 2,661,189.00 | M121: 0.00 | N121: 0.00 | O121: 2,661,189.00 | P121: 0.00 | S121: 2017-12-31
A122: 103 | B122: ул. Маршала Буденого, д. 19/1 | C122: 1959 | E122: Каменные, кирпичные | F122: 2 | G122: 1 | L122: 278,220.00 | M122: 0.00 | N122: 0.00 | O122: 278,220.00 | P122: 0.00 | S122: 2017-12-31
A123: 104 | B123: ул. Маршала Буденого, д. 4 | C123: 1928 | E123: Каменные, кирпичные | F123: 3 | G123: 6 | L123: 2,511,472.00 | M123: 0.00 | N123: 0.00 | O123: 2,511,472.00 | P123: 0.00 | S123: 2017-12-31
A124: 105 | B124: ул. Маршала Василевского, д. 18 | C124: 1964 | E124: Каменные, кирпичные | F124: 4 | G124: 2 | L124: 871,988.00 | M124: 0.00 | N124: 0.00 | O124: 871,988.00 | P124: 0.00 | S124: 2017-12-31
A125: 106 | B125: ул. Маршала Василевского, д. 20 | C125: 1966 | E125: Каменные, кирпичные | F125: 4 | G125: 4 | L125: 2,113,335.00 | M125: 0.00 | N125: 0.00 | O125: 2,113,335.00 | P125: 0.00 | S125: 2017-12-31
A126: 107 | B126: ул. Машинистов, д. 3 | C126: 1960 | E126: Каменные, кирпичные | F126: 2 | G126: 2 | L126: 996,585.00 | M126: 0.00 | N126: 0.00 | O126: 996,585.00 | P126: 0.00 | S126: 2017-12-31
A127: 108 | B127: ул. Мичурина, д. 37/23 | C127: 1955 | E127: Каменные, кирпичные | F127: 2 | G127: 2 | L127: 637,739.00 | M127: 0.00 | N127: 0.00 | O127: 637,739.00 | P127: 0.00 | S127: 2017-12-31
A128: 109 | B128: ул. Можайского, д. 51 | C128: 1976 | E128: Панельные | F128: 9 | G128: 2 | L128: 1,357,217.00 | M128: 0.00 | N128: 0.00 | O128: 1,357,217.00 | P128: 0.00 | S128: 2017-12-31
A129: 110 | B129: ул. Московская, д. 78 | C129: 1952 | E129: Каменные, кирпичные | F129: 2 | G129: 2 | L129: 836,226.00 | M129: 0.00 | N129: 0.00 | O129: 836,226.00 | P129: 0.00 | S129: 2017-12-31
A130: 111 | B130: ул. Мусоргского, д. 32/32 | C130: 1952 | E130: Каменные, кирпичные | F130: 2 | G130: 2 | L130: 640,078.00 | M130: 0.00 | N130: 0.00 | O130: 640,078.00 | P130: 0.00 | S130: 2017-12-31
A131: 112 | B131: ул. Мусоргского, д. 38/33 | C131: 1959 | E131: Каменные, кирпичные | F131: 2 | G131: 2 | L131: 202,649.00 | M131: 0.00 | N131: 0.00 | O131: 202,649.00 | P131: 0.00 | S131: 2017-12-31
A132: 113 | B132: ул. Новоторжская, д. 7 | C132: 1954 | E132: Каменные, кирпичные | F132: 4-5 | G132: 10 | L132: 7,892,437.00 | M132: 0.00 | N132: 0.00 | O132: 7,892,437.00 | P132: 0.00 | S132: 2017-12-31
A133: 114 | B133: ул. Озерная, д. 23 | C133: 1950 | E133: Каменные, кирпичные | F133: 2 | G133: 1 | L133: 523,389.00 | M133: 0.00 | N133: 0.00 | O133: 523,389.00 | P133: 0.00 | S133: 2017-12-31
A134: 115 | B134: ул. Орджоникидзе, д. 1 | C134: 1950 | E134: Блочные | F134: 2 | G134: 3 | L134: 1,038,920.00 | M134: 0.00 | N134: 0.00 | O134: 1,038,920.00 | P134: 0.00 | S134: 2017-12-31
A135: 116 | B135: ул. Орджоникидзе, д. 11 | C135: 1950 | E135: Блочные | F135: 2 | G135: 2 | L135: 1,742,553.00 | M135: 0.00 | N135: 0.00 | O135: 1,742,553.00 | P135: 0.00 | S135: 2017-12-31
A136: 117 | B136: ул. Орджоникидзе, д. 12/1 | C136: 1948 | E136: Каменные, кирпичные | F136: 2 | G136: 3 | L136: 2,124,581.00 | M136: 0.00 | N136: 0.00 | O136: 2,124,581.00 | P136: 0.00 | S136: 2017-12-31
A137: 118 | B137: ул. Орджоникидзе, д. 13/26 | C137: 1948 | E137: Блочные | F137: 2 | G137: 3 | L137: 2,347,478.00 | M137: 0.00 | N137: 0.00 | O137: 2,347,478.00 | P137: 0.00 | S137: 2017-12-31
A138: 119 | B138: ул. Орджоникидзе, д. 14 | C138: 1948 | E138: Каменные, кирпичные | F138: 2 | G138: 3 | L138: 2,468,472.00 | M138: 0.00 | N138: 0.00 | O138: 2,468,472.00 | P138: 0.00 | S138: 2017-12-31
A139: 120 | B139: ул. Орджоникидзе, д. 3 | C139: 1950 | E139: Каменные, кирпичные | F139: 2 | G139: 2 | L139: 1,612,780.00 | M139: 0.00 | N139: 0.00 | O139: 1,612,780.00 | P139: 0.00 | S139: 2017-12-31
A140: 121 | B140: ул. Орджоникидзе, д. 4/2 | C140: 1947 | E140: Каменные, кирпичные | F140: 2 | G140: 2 | L140: 2,580,419.00 | M140: 0.00 | N140: 0.00 | O140: 2,580,419.00 | P140: 0.00 | S140: 2017-12-31
A141: 122 | B141: ул. Орджоникидзе, д. 46, корп. 4 | C141: 1963 | E141: Панельные | F141: 5 | G141: 4 | L141: 1,681,645.00 | M141: 0.00 | N141: 0.00 | O141: 1,681,645.00 | P141: 0.00 | S141: 2017-12-31
A142: 123 | B142: ул. Орджоникидзе, д. 5 | C142: 1950 | E142: Каменные, кирпичные | F142: 2 | G142: 2 | L142: 1,318,880.00 | M142: 0.00 | N142: 0.00 | O142: 1,318,880.00 | P142: 0.00 | S142: 2017-12-31
A143: 124 | B143: ул. Орджоникидзе, д. 8 | C143: 1949 | E143: Блочные | F143: 2 | G143: 1 | L143: 1,566,345.00 | M143: 0.00 | N143: 0.00 | O143: 1,566,345.00 | P143: 0.00 | S143: 2017-12-31
A144: 125 | B144: ул. Паши Савельевой, д. 39, корп. 3 | C144: 1984 | E144: Панельные | F144: 9 | G144: 1 | L144: 1,910,088.00 | M144: 0.00 | N144: 0.00 | O144: 1,910,088.00 | P144: 0.00 | S144: 2017-12-31
A145: 126 | B145: ул. Паши Савельевой, д. 7 | C145: 1966 | E145: Каменные, кирпичные | F145: 5 | G145: 3 | L145: 2,694,957.00 | M145: 0.00 | N145: 0.00 | O145: 2,694,957.00 | P145: 0.00 | S145: 2017-12-31
A146: 127 | B146: ул. Пролетарская 6-я, д. 16 | C146: 1958 | E146: Каменные, кирпичные | F146: 2 | G146: 1 | L146: 580,578.00 | M146: 0.00 | N146: 0.00 | O146: 580,578.00 | P146: 0.00 | S146: 2017-12-31
A147: 128 | B147: ул. Пролетарская 6-я, д. 17 | C147: 1971 | E147: Каменные, кирпичные | F147: 2 | G147: 1 | L147: 615,357.00 | M147: 0.00 | N147: 0.00 | O147: 615,357.00 | P147: 0.00 | S147: 2017-12-31
A148: 129 | B148: ул. Пролетарская 6-я, д. 19 | C148: 1957 | E148: Каменные, кирпичные | F148: 2 | G148: 1 | L148: 269,948.13 | M148: 0.00 | N148: 0.00 | O148: =L148 -> 269,948.13 | P148: 0.00 | Q148: =L148/I148 ->  | S148: 2017-12-31
A149: 130 | B149: ул. Прядильная, д. 13 | C149: 1924 | E149: Деревянные | F149: 2 | G149: 2 | L149: 807,980.00 | M149: 0.00 | N149: 0.00 | O149: 807,980.00 | P149: 0.00 | S149: 2017-12-31
A150: =A149+1 -> 131 | B150: ул. Резинстроя, д. 2/7 | C150: 1949 | E150: Каменные, кирпичные | F150: 2 | G150: 1 | L150: 661,525.00 | M150: 0.00 | N150: 0.00 | O150: 661,525.00 | P150: 0.00 | S150: 2017-12-31
A151: 132 | B151: ул. Ржевская, д. 14 | C151: 1981 | E151: Панельные | F151: 9 | G151: 2 | L151: 3,719,885.00 | M151: 0.00 | N151: 0.00 | O151: 3,719,885.00 | P151: 0.00 | S151: 2017-12-31
A152: 133 | B152: ул. Ротмистрова, д. 17 | C152: 1949 | E152: Каменные, кирпичные | F152: 2 | G152: 2 | L152: 1,726,391.00 | M152: 0.00 | N152: 0.00 | O152: 1,726,391.00 | P152: 0.00 | S152: 2017-12-31
A153: 134 | B153: ул. Ротмистрова, д. 20 | C153: 1950 | E153: Блочные | F153: 2 | G153: 1 | L153: 1,521,754.00 | M153: 0.00 | N153: 0.00 | O153: 1,521,754.00 | P153: 0.00 | S153: 2017-12-31
A154: 135 | B154: ул. Румянцева, д. 24/40 | C154: 1937 | E154: Каменные, кирпичные | F154: 2 | G154: 1 | L154: 671,505.00 | M154: 0.00 | N154: 0.00 | O154: 671,505.00 | P154: 0.00 | S154: 2017-12-31
A155: 136 | B155: ул. Севастьянова, д. 7, корп. 1 | C155: 1961 | E155: Каменные, кирпичные | F155: 3 | G155: 2 | L155: 1,081,718.00 | M155: 0.00 | N155: 0.00 | O155: 1,081,718.00 | P155: 0.00 | S155: 2017-12-31
A156: 137 | B156: ул. Седова, д. 120А | C156: 1960 | E156: Блочные | F156: 3 | G156: 2 | L156: 206,635.00 | M156: 0.00 | N156: 0.00 | O156: 206,635.00 | P156: 0.00 | S156: 2017-12-31
A157: 138 | B157: ул. Седова, д. 120Б | C157: 1961 | E157: Блочные | F157: 3 | G157: 2 | L157: 1,044,081.04 | M157: 0.00 | N157: 0.00 | O157: 1,044,081.04 | P157: 0.00 | S157: 2017-12-31
A158: 139 | B158: ул. Седова, д. 1Б | C158: 1959 | E158: Каменные, кирпичные | F158: 2 | G158: 2 | L158: 1,340,000.00 | M158: 0.00 | N158: 0.00 | O158: 1,340,000.00 | P158: 0.00 | S158: 2017-12-31
A159: 140 | B159: ул. Скворцова-Степанова, д. 10 | C159: 1975 | E159: Панельные | F159: 5 | G159: 6 | L159: 2,294,529.00 | M159: 0.00 | N159: 0.00 | O159: 2,294,529.00 | P159: 0.00 | S159: 2017-12-31
A160: 141 | B160: ул. Скворцова-Степанова, д. 16 | C160: 1981 | E160: Панельные | F160: 9 | G160: 2 | L160: 2,615,616.20 | M160: 0.00 | N160: 0.00 | O160: 2,615,616.20 | P160: 0.00 | S160: 2017-12-31
A161: 142 | B161: ул. Склизкова, д. 54/25 | C161: 1964 | E161: Каменные, кирпичные | F161: 5 | G161: 3 | L161: 1,561,539.00 | M161: 0.00 | N161: 0.00 | O161: 1,561,539.00 | P161: 0.00 | S161: 2017-12-31
A162: 143 | B162: ул. Склизкова, д. 60 | C162: 1960 | E162: Каменные, кирпичные | F162: 5 | G162: 2 | L162: 1,421,187.00 | M162: 0.00 | N162: 0.00 | O162: 1,421,187.00 | P162: 0.00 | S162: 2017-12-31
A163: 144 | B163: ул. Склизкова, д. 80 | C163: 1962 | E163: Панельные | F163: 4 | G163: 4 | L163: 2,469,740.00 | M163: 0.00 | N163: 0.00 | O163: 2,469,740.00 | P163: 0.00 | S163: 2017-12-31
A164: 145 | B164: ул. Склизкова, д. 88 | C164: 1986 | E164: Каменные, кирпичные | F164: 9 | G164: 1 | L164: 1,104,857.00 | M164: 0.00 | N164: 0.00 | O164: 1,104,857.00 | P164: 0.00 | S164: 2017-12-31
A165: 146 | B165: ул. Склизкова, д. 94 | C165: 1989 | E165: Каменные, кирпичные | F165: 9 | G165: 1 | L165: 1,877,378.00 | M165: 0.00 | N165: 0.00 | O165: 1,877,378.00 | P165: 0.00 | S165: 2017-12-31
A166: 147 | B166: ул. Советская, д. 24 | C166: до 1917 | E166: Каменные, кирпичные | F166: 4 | G166: 2 | L166: 2,945,836.00 | M166: 0.00 | N166: 0.00 | O166: 2,945,836.00 | P166: 0.00 | S166: 2017-12-31
A167: 148 | B167: ул. Советская, д. 60 | C167: 1932 | E167: Каменные, кирпичные | F167: 5 | G167: 5 | L167: 1,118,494.00 | M167: 0.00 | N167: 0.00 | O167: 1,118,494.00 | P167: 0.00 | S167: 2017-12-31
A168: 149 | B168: ул. Советская, д. 8 | C168: до 1917 | E168: Каменные, кирпичные | F168: 3 | G168: 2 | L168: 2,540,427.00 | M168: 0.00 | N168: 0.00 | O168: 2,540,427.00 | P168: 0.00 | S168: 2017-12-31
A169: 150 | B169: ул. Спартака, д. 4/2 | C169: 1951 | E169: Каменные, кирпичные | F169: 3 | G169: 3 | L169: 2,253,297.00 | M169: 0.00 | N169: 0.00 | O169: 2,253,297.00 | P169: 0.00 | S169: 2017-12-31
A170: 151 | B170: ул. Строителей, д. 12 | C170: 1971 | E170: Панельные | F170: 5 | G170: 4 | L170: 1,390,061.00 | M170: 0.00 | N170: 0.00 | O170: 1,390,061.00 | P170: 0.00 | S170: 2017-12-31
A171: 152 | B171: ул. Тамары Ильиной, д. 7, корп. 1 | C171: 1961 | E171: Каменные, кирпичные | F171: 5 | G171: 4 | L171: 3,213,804.00 | M171: 0.00 | N171: 0.00 | O171: 3,213,804.00 | P171: 0.00 | S171: 2017-12-31
A172: 153 | B172: ул. Тамары Ильиной, д. 9/19 | C172: 1958 | E172: Каменные, кирпичные | F172: 4 | G172: 3 | L172: 3,202,371.00 | M172: 0.00 | N172: 0.00 | O172: 3,202,371.00 | P172: 0.00 | S172: 2017-12-31
A173: 154 | B173: ул. Терещенко, д. 28 | C173: 1959 | E173: Каменные, кирпичные | F173: 2 | G173: 1 | L173: 709,022.00 | M173: 0.00 | N173: 0.00 | O173: 709,022.00 | P173: 0.00 | S173: 2017-12-31
A174: 155 | B174: ул. Терещенко, д. 35 | C174: 1958 | E174: Каменные, кирпичные | F174: 2 | G174: 1 | L174: 1,136,930.00 | M174: 0.00 | N174: 0.00 | O174: 1,136,930.00 | P174: 0.00 | S174: 2017-12-31
A175: 156 | B175: ул. Терещенко, д. 41, корп. 1 | C175: 1958 | E175: Каменные, кирпичные | F175: 2 | G175: 2 | L175: 1,320,636.00 | M175: 0.00 | N175: 0.00 | O175: 1,320,636.00 | P175: 0.00 | S175: 2017-12-31
A176: 157 | B176: ул. Учительская, д. 39 | C176: 1986 | E176: Панельные | F176: 9 | G176: 3 | L176: 4,265,098.00 | M176: 0.00 | N176: 0.00 | O176: 4,265,098.00 | P176: 0.00 | S176: 2017-12-31
A177: 158 | B177: ул. Фадеева, д. 34, корп. 1 | C177: 1963 | E177: Каменные, кирпичные | F177: 4 | G177: 4 | L177: 2,115,890.00 | M177: 0.00 | N177: 0.00 | O177: 2,115,890.00 | P177: 0.00 | S177: 2017-12-31
A178: 159 | B178: ул. Хромова, д. 16 | C178: 1961 | E178: Каменные, кирпичные | F178: 3 | G178: 2 | L178: 482,251.51 | M178: 0.00 | N178: 0.00 | O178: 482,251.51 | P178: 0.00 | S178: 2017-12-31
A179: 160 | B179: ул. Хромова, д. 8 | C179: 1959 | E179: Каменные, кирпичные | F179: 3 | G179: 2 | L179: 1,018,040.92 | M179: 0.00 | N179: 0.00 | O179: 1,018,040.92 | P179: 0.00 | S179: 2017-12-31
A180: 161 | B180: ул. Чудова, д. 14 | C180: 1977 | E180: Каменные, кирпичные | F180: 9 | G180: 1 | L180: 1,871,554.00 | M180: 0.00 | N180: 0.00 | O180: =L180 -> 1,871,554.00 | P180: 0.00 | Q180: =L180/I180 ->  | S180: 2017-12-31
A181: 162 | B181: ул. Чудова, д. 19 | C181: 1974 | E181: Каменные, кирпичные | F181: 5 | G181: 4 | L181: 2,652,530.00 | M181: 0.00 | N181: 0.00 | O181: 2,652,530.00 | P181: 0.00 | S181: 2017-12-31
A182: 163 | B182: ш. Московское, д. 13 | C182: 1974 | E182: Панельные | F182: 5 | G182: 6 | L182: 3,645,969.00 | M182: 0.00 | N182: 0.00 | O182: 3,645,969.00 | P182: 0.00 | S182: 2017-12-31
A183: 164 | B183: ш. Петербургское, д. 14, корп. 1 | C183: 1986 | E183: Панельные | F183: 9 | G183: 1 | L183: 771,330.00 | M183: 0.00 | N183: 0.00 | O183: 771,330.00 | P183: 0.00 | S183: 2017-12-31
A184: 165 | B184: ш. Петербургское, д. 50 | C184: 1972 | E184: Панельные | F184: 9 | G184: 1 | L184: 1,894,719.00 | M184: 0.00 | N184: 0.00 | O184: 1,894,719.00 | P184: 0.00 | S184: 2017-12-31
A185: 166 | B185: ш. Петербургское, д. 60 | C185: 1964 | E185: Каменные, кирпичные | F185: 5 | G185: 3 | L185: 1,492,412.00 | M185: 0.00 | N185: 0.00 | O185: 1,492,412.00 | P185: 0.00 | S185: 2017-12-31
A186: 167 | B186: ш. Петербургское, д. 7А | C186: 1884 | E186: Каменные, кирпичные | F186: 2 | G186: 2 | L186: 651,523.25 | M186: 0.00 | N186: 0.00 | O186: 651,523.25 | P186: 0.00 | S186: 2017-12-31
A187: 168 | B187: ш. Петербургское, д. 86 | C187: 1948 | E187: Блочные | F187: 2 | G187: 2 | L187: 1,221,424.83 | M187: 0.00 | N187: 0.00 | O187: 1,221,424.83 | P187: 0.00 | S187: 2017-12-31
B188: Итого по город Вышний Волочек | H188: =SUM(H189:H204) -> 25,162.00 | I188: 23,147.80 | J188: 18,031.42 | K188: 816 | L188: 31,255,395.63 | M188: 0.00 | N188: 0.00 | O188: =SUM(O189:O204) -> 31,255,395.63 | P188: =SUM(P189:P203) -> 0.00 | Q188: Х | R188: Х | S188: 2017-12-31
A189: 1 | B189: ул. Баумана, д. 13 | C189: 1962 | E189: Каменные, кирпичные | F189: 5 | G189: 4 | H189: 3005.3 | I189: 2844.5 | J189: 2525.7 | K189: 92 | L189: =O189 -> 3,615,424.00 | M189: 0.00 | N189: 0.00 | O189: 3,615,424.00 | P189: 0.00 | Q189: =L189/I189 -> 1,271.02 | R189: 7,822.00 | S189: 2017-12-31
A190: 2 | B190: ул. Б. Садовая, д. 29 | C190: 1992 | E190: Каменные, кирпичные | F190: 5 | G190: 7 | H190: 5555.6 | I190: 5004.6 | J190: 4087.1 | K190: 210 | L190: =O190 -> 3,435,122.02 | M190: 0.00 | N190: 0.00 | O190: 3,435,122.02 | P190: 0.00 | Q190: 686.39 | R190: 7,822.00 | S190: 2017-12-31
A191: 3 | B191: ул. Правды, д. 27 | C191: 1958 | E191: Каменные, кирпичные | F191: 2 | G191: 1 | H191: 498.8 | I191: 454.6 | J191: 454.6 | K191: 18 | L191: 1,525,199.00 | M191: 0.00 | N191: 0.00 | O191: 1,525,199.00 | P191: 0.00 | Q191: 3,355.04 | R191: 7,822.00 | S191: 2017-12-31
A192: 4 | B192: ул. Правды, д. 31/33 | C192: 1956 | E192: Каменные, кирпичные | F192: 2 | G192: 3 | H192: 854.1 | I192: 811.6 | J192: 519.32 | K192: 28 | L192: 2,379,167.99 | M192: 0.00 | N192: 0.00 | O192: 2,379,167.99 | P192: 0.00 | Q192: 2,931.45 | R192: 7,822.00 | S192: 2017-12-31
A193: 5 | B193: ул. Правды, д. 27а | C193: 1960 | E193: Каменные, кирпичные | F193: 3 | G193: 3 | H193: 1534.2 | I193: 1616.2 | J193: 1493.1 | K193: 47 | L193: 2,435,193.00 | M193: 0.00 | N193: 0.00 | O193: 2,435,193.00 | P193: 0.00 | Q193: 1,506.74 | R193: 7,822.00 | S193: 2017-12-31
A194: 6 | B194: Казанский пр-т, д. 105 | C194: 1936 | E194: Каменные, кирпичные | F194: 3 | G194: 4 | H194: 2389.4 | I194: 2172.1 | J194: 1560 | K194: 33 | L194: 2,705,457.32 | M194: 0.00 | N194: 0.00 | O194: 2,705,457.32 | P194: 0.00 | Q194: 1,245.55 | R194: 7,822.00 | S194: 2017-12-31
A195: 7 | B195: ул. Ст. Разина, д. 41 | C195: 1993 | E195: Каменные, кирпичные | F195: 3 | G195: 2 | H195: 870 | I195: 845.5 | J195: 799.3 | K195: 32 | L195: 954,408.50 | M195: 0.00 | N195: 0.00 | O195: 954,408.50 | P195: 0.00 | Q195: 1,128.81 | R195: 7,822.00 | S195: 2017-12-31
A196: 8 | B196: ул. Московская, д. 1/49 | C196: 1917 | E196: Каменные, кирпичные | F196: 3 | G196: 1 | H196: 978.9 | I196: 900.2 | J196: 229.3 | K196: 10 | L196: 2,430,125.00 | M196: 0.00 | N196: 0.00 | O196: 2,430,125.00 | P196: 0.00 | Q196: 2,699.54 | R196: 7,822.00 | S196: 2017-12-31
A197: 9 | B197: ул. Екатерининская, д. 4-6 | C197: 1917 | E197: Каменные, кирпичные | F197: 3 | G197: 3 | H197: 2020.3 | I197: 1816.9 | J197: 1314.2 | K197: 47 | L197: 2,505,651.00 | M197: 0.00 | N197: 0.00 | O197: 2,505,651.00 | P197: 0.00 | Q197: 1,379.08 | R197: 7,822.00 | S197: 2017-12-31
A198: 10 | B198: Казанский пр-т, д. 93 | C198: 1961 | E198: Каменные, кирпичные | F198: 3 | G198: 2 | H198: 942.6 | I198: 942.6 | J198: 623.9 | K198: 34 | L198: 1,546,987.00 | M198: 0.00 | N198: 0.00 | O198: 1,546,987.00 | P198: 0.00 | Q198: 1,641.19 | R198: 7,822.00 | S198: 2017-12-31
A199: 11 | B199: Ржевский тракт, д. 44 | C199: 1961 | E199: Каменные, кирпичные | F199: 2 | G199: 1 | H199: 344.2 | I199: 314.5 | J199: 268.1 | K199: 15 | L199: 709,600.00 | M199: 0.00 | N199: 0.00 | O199: 709,600.00 | P199: 0.00 | Q199: 2,256.28 | R199: 7,822.00 | S199: 2017-12-31
A200: 12 | B200: ул. Шмидта, д. 79/4 | C200: 1923 | E200: Деревянные | F200: 2 | G200: 1 | H200: 194.8 | I200: 194 | J200: 115.7 | K200: 16 | L200: 446,509.00 | M200: 0.00 | N200: 0.00 | O200: 446,509.00 | P200: 0.00 | Q200: 2,301.59 | R200: 7,822.00 | S200: 2017-12-31
A201: 13 | B201: ул. Декабристов, д. 9 | C201: 1953 | E201: Каменные, кирпичные | F201: 2 | G201: 1 | H201: 518 | I201: 483.4 | J201: 403.7 | K201: 34 | L201: 1,205,824.00 | M201: 0.00 | N201: 0.00 | O201: 1,205,824.00 | P201: 0.00 | Q201: 2,494.46 | R201: 7,822.00 | S201: 2017-12-31
A202: 14 | B202: ул. Новгородская, д. 4 | C202: 1960 | E202: Каменные, кирпичные | F202: 2 | G202: 2 | H202: 312.8 | I202: 300 | J202: 44.5 | K202: 11 | L202: 818,595.80 | M202: 0.00 | N202: 0.00 | O202: 818,595.80 | P202: 0.00 | Q202: 2,728.65 | R202: 7,822.00 | S202: 2017-12-31
A203: 15 | B203: Лермонтовский пер., д. 16 | C203: 1983 | E203: Крупнопанельные | F203: 5 | G203: 2 | H203: 4292.2 | I203: 3595.1 | J203: 2978.5 | K203: 170 | L203: 2,707,283.00 | M203: 0.00 | N203: 0.00 | O203: 2,707,283.00 | P203: 0.00 | Q203: 753.05 | R203: 7,822.00 | S203: 2017-12-31
... 1245 more rows

Sheet часть 2 (hidden)
A1: II. Реестр многоквартирных домов, которые подлежат капитальному ремонту по видам ремонта
A2: № п/п | B2: Адрес МКД | C2: Стоимость капитального ремонта, всего | D2: Виды, установленные нормативным правовым актом субъекта РФ:
D3: ремонт внутридомовых инженерных систем
D4: Итого | E4: электроснабжения | F4: теплоснабжения | G4: газоснабжения | H4: холодного водоснабжения | I4: горячего водоснабжения | J4: водоотведения | K4: установка коллективных (общедомовых) приборов учета и узлов управления | L4: ремонт или замена лифтового оборудования, признанного непригодным для эксплуатации, ремонт лифтовых шахт | N4: ремонт крыши, в том числе устройство выходов на кровлю | P4: ремонт подвальных помещений, относящихся к общему имуществу в многоквартирном доме | R4: ремонт фасада | T4: ремонт фундамента | W4: кровля 3342,75 | X4: фасад 1600,33 | Y4: электрика | Z4: газоснабжение | AA4: тепло | AB4: хвс | AC4: гвс | AD4: водоотв. | AE4: подвал 1012,19
C5: руб. | K5: руб. | L5: ед. | M5: руб. | N5: кв. м | O5: руб. | P5: кв. м | Q5: руб. | R5: кв. м | S5: руб. | T5: куб. м | U5: руб. | AF5: лифт | AG5: фундам.
A6: 1 | B6: 2 | C6: 3 | D6: 4 | E6: 5 | F6: 6 | G6: 7 | H6: 8 | I6: 9 | J6: 10 | K6: 11 | L6: 12 | M6: 13 | N6: 14 | O6: 15 | P6: 16 | Q6: 17 | R6: 18 | S6: 19 | T6: 20 | U6: 21
B7: Итого по Тверской области | C7: =C8+C177+C194+C196+C222+C235+C251+C260+C272+C275+C294+C298+C311+C315+C322+C328+C342+C353+C366+C374+C419+C424+C429+C440+C444+C456+C501+C506+C509+C516+C519+C526+C532+C537+C544+C556 -> 688,029,148.84 | K7: =K8+K177+K194+K196+K222+K235+K251+K260+K272+K275+K294+K298+K311+K315+K322+K328+K342+K353+K366+K374+K419+K424+K429+K440+K444+K456+K501+K506+K509+K516+K519+K526+K532+K537+K544+K556 ->  | L7: 79 | M7: =M8+M177+M194+M196+M222+M235+M251+M260+M272+M275+M294+M298+M311+M315+M322+M328+M342+M353+M366+M374+M419+M424+M429+M440+M444+M456+M501+M506+M509+M516+M519+M526+M532+M537+M544+M556 -> 109,722,398.00 | N7: =N8+N177+N194+N196+N222+N235+N251+N260+N272+N275+N294+N298+N311+N315+N322+N328+N342+N353+N366+N374+N419+N424+N429+N440+N444+N456+N501+N506+N509+N516+N519+N526+N532+N537+N544+N556 -> 181,088.71 | O7: =O8+O177+O194+O196+O222+O235+O251+O260+O272+O275+O294+O298+O311+O315+O322+O328+O342+O353+O366+O374+O419+O424+O429+O440+O444+O456+O501+O506+O509+O516+O519+O526+O532+O537+O544+O556 -> 407,329,726.71 | P7: 682.00 | Q7: =Q8+Q177+Q194+Q196+Q222+Q235+Q251+Q260+Q272+Q275+Q294+Q298+Q311+Q315+Q322+Q328+Q342+Q353+Q366+Q374+Q419+Q424+Q429+Q440+Q444+Q456+Q501+Q506+Q509+Q516+Q519+Q526+Q532+Q537+Q544+Q556 -> 662,518.00 | R7: 41,826.13 | S7: =S8+S177+S194+S196+S222+S235+S251+S260+S272+S275+S294+S298+S311+S315+S322+S328+S342+S353+S366+S374+S419+S424+S429+S440+S444+S456+S501+S506+S509+S516+S519+S526+S532+S537+S544+S556 -> 57,577,828.79 | T7: 212.00 | U7: =U8+U177+U194+U196+U222+U235+U251+U260+U272+U275+U294+U298+U311+U315+U322+U328+U342+U353+U366+U374+U419+U424+U429+U440+U444+U456+U501+U506+U509+U516+U519+U526+U532+U537+U544+U556 -> 728,274.00
B8: Итого по город Тверь | C8: =SUM(C9:C176) -> 336,230,870.63 | K8: =SUM(K9:K176) ->  | L8: 45 | M8: =SUM(M9:M176) -> 84,665,172.00 | N8: =SUM(N9:N176) -> 64,824.65 | O8: =SUM(O9:O176) -> 127,943,364.07 | P8: 682.00 | Q8: =SUM(Q9:Q176) -> 662,518.00 | R8: 29,106.85 | S8: =SUM(S9:S176) -> 38,255,949.95 | T8: 0 | U8: 0.00
A9: 1 | B9: б-р Гусева, д. 25 | C9: 5,982,216.00 | K9: 0.00 | L9: 0 | M9: 0.00 | N9: 0.00 | O9: 0.00 | P9: 0 | Q9: 0.00 | R9: 4,158.84 | S9: 5,982,216.00 | T9: 0 | U9: 0.00 | V9: =C9-'часть 1'!L20 -> 0.00
A10: 2 | B10: б-р Гусева, д. 39 | C10: 9,379,653.00 | K10: 0.00 | L10: 5 | M10: 9,379,653.00 | N10: 0.00 | O10: 0.00 | P10: 0 | Q10: 0.00 | R10: 0 | S10: 0.00 | T10: 0 | U10: 0.00 | V10: =C10-'часть 1'!L21 -> 0.00
A11: 3 | B11: б-р Гусева, д. 41 | C11: 3,763,756.00 | K11: 0.00 | L11: 2 | M11: 3,763,756.00 | N11: 0.00 | O11: 0.00 | P11: 0 | Q11: 0.00 | R11: 0 | S11: 0.00 | T11: 0 | U11: 0.00 | V11: =C11-'часть 1'!L22 -> 0.00
A12: 4 | B12: б-р Гусева, д. 45, корп. 1 | C12: 1,095,812.00 | K12: 1,095,812.00 | L12: 0 | M12: 0.00 | N12: 0.00 | O12: 0.00 | P12: 0 | Q12: 0.00 | R12: 0 | S12: 0.00 | T12: 0 | U12: 0.00 | V12: =C12-'часть 1'!L23 -> 0.00
A13: 5 | B13: б-р Гусева, д. 9 | C13: 5,619,141.00 | K13: 0.00 | L13: 3 | M13: 5,619,141.00 | N13: 0.00 | O13: 0.00 | P13: 0 | Q13: 0.00 | R13: 0 | S13: 0.00 | T13: 0 | U13: 0.00 | V13: =C13-'часть 1'!L24 -> 0.00
A14: 6 | B14: б-р Ногина, д. 2 | C14: 3,748,388.00 | K14: 0.00 | L14: 2 | M14: 3,748,388.00 | N14: 0.00 | O14: 0.00 | P14: 0 | Q14: 0.00 | R14: 0 | S14: 0.00 | T14: 0 | U14: 0.00 | V14: =C14-'часть 1'!L25 -> 0.00
A15: 7 | B15: б-р Ногина, д. 4 | C15: 15,157,748.00 | K15: 0.00 | L15: 8 | M15: =C15 -> 15,157,748.00 | N15: 0.00 | O15: 0.00 | P15: 0 | Q15: 0.00 | R15: 0 | S15: 0.00 | T15: 0 | U15: 0.00 | V15: =C15-'часть 1'!L26 -> 0.00
A16: 8 | B16: б-р Профсоюзов, д. 21 | C16: 1,030,213.00 | K16: 0.00 | L16: 0 | M16: 0.00 | N16: 513.80 | O16: =C16 -> 1,030,213.00 | P16: 0 | Q16: 0.00 | R16: 0 | S16: 0.00 | T16: 0 | U16: 0.00 | V16: =C16-'часть 1'!L27 -> 0.00
A17: 9 | B17: б-р Радищева, д. 26 | C17: 530,465.00 | K17: =#REF! ->  | L17: 0 | M17: 0.00 | N17: 0.00 | O17: 0.00 | P17: 0 | Q17: 0.00 | R17: 0 | S17: 0.00 | T17: 0 | U17: 0.00 | V17: =C17-'часть 1'!L28 -> 0.00
A18: 10 | B18: б-р Цанова, д. 10 | C18: 1,983,854.00 | K18: 0.00 | L18: 0 | M18: 0.00 | N18: 1,000.00 | O18: 1,983,854.00 | P18: 0 | Q18: 0.00 | R18: 0 | S18: 0.00 | T18: 0 | U18: 0.00 | V18: =C18-'часть 1'!L29 -> 0.00
A19: 11 | B19: наб. Афанасия Никитина, д. 24 | C19: 1,206,304.00 | K19: 0.00 | L19: 0 | M19: 0.00 | N19: 576.00 | O19: 1,206,304.00 | P19: 0 | Q19: 0.00 | R19: 0 | S19: 0.00 | T19: 0 | U19: 0.00 | V19: =C19-'часть 1'!L30 -> 0.00
A20: 12 | B20: наб. Афанасия Никитина, д. 24А | C20: 402,530.20 | K20: 402,530.20 | L20: 0 | M20: 0.00 | N20: 0.00 | O20: 0.00 | P20: 0 | Q20: 0.00 | R20: 0 | S20: 0.00 | T20: 0 | U20: 0.00 | V20: =C20-'часть 1'!L31 -> 0.00
A21: 13 | B21: наб. Мигаловская, д. 10А | C21: 2,861,497.00 | K21: 0.00 | L21: 0 | M21: 0.00 | N21: 1,450.00 | O21: 2,861,497.00 | P21: 0 | Q21: 0.00 | R21: 0 | S21: 0.00 | T21: 0 | U21: 0.00 | V21: =C21-'часть 1'!L32 -> 0.00
A22: 14 | B22: п. Литвинки, д. 27 | C22: 1,535,065.47 | K22: 0.00 | L22: 0 | M22: 0.00 | N22: 0.00 | O22: 0.00 | P22: 0 | Q22: 0.00 | R22: 1,641.00 | S22: 1,535,065.47 | T22: 0 | U22: 0.00 | V22: =C22-'часть 1'!L33 -> 0.00
A23: 15 | B23: п. Химинститута, д. 13 | C23: 930,534.00 | K23: 930,534.00 | L23: 0 | M23: 0.00 | N23: 0.00 | O23: 0.00 | P23: 0 | Q23: 0.00 | R23: 0 | S23: 0.00 | T23: 0 | U23: 0.00 | V23: =C23-'часть 1'!L34 -> 0.00
A24: 16 | B24: п. Химинститута, д. 20 | C24: 662,518.00 | K24: 0.00 | L24: 0 | M24: 0.00 | N24: 0.00 | O24: 0.00 | P24: 682.00 | Q24: =C24 -> 662,518.00 | R24: 0 | S24: 0.00 | T24: 0 | U24: 0.00 | V24: =C24-'часть 1'!L35 -> 0.00
A25: 17 | B25: п. Химинститута, д. 32 | C25: 2,346,663.00 | K25: 2,346,663.00 | L25: 0 | M25: 0.00 | N25: 0.00 | O25: 0.00 | P25: 0 | Q25: 0.00 | R25: 0 | S25: 0.00 | T25: 0 | U25: 0.00 | V25: =C25-'часть 1'!L36 -> 0.00
A26: 18 | B26: п. Химинститута, д. 38 | C26: 727,019.00 | K26: 727,019.00 | L26: 0 | M26: 0.00 | N26: 0.00 | O26: 0.00 | P26: 0 | Q26: 0.00 | R26: 0 | S26: 0.00 | T26: 0 | U26: 0.00 | V26: =C26-'часть 1'!L37 -> 0.00
A27: 19 | B27: п. Химинститута, д. 7 | C27: 538,121.00 | K27: 538,121.00 | L27: 0 | M27: 0.00 | N27: 0.00 | O27: 0.00 | P27: 0 | Q27: 0.00 | R27: 0 | S27: 0.00 | T27: 0 | U27: 0.00 | V27: =C27-'часть 1'!L38 -> 0.00
A28: 20 | B28: п. Химинститута, д. 9 | C28: 1,756,852.00 | K28: 0.00 | L28: 0 | M28: 0.00 | N28: 891.00 | O28: 1,756,852.00 | P28: 0 | Q28: 0.00 | R28: 0 | S28: 0.00 | T28: 0 | U28: 0.00 | V28: =C28-'часть 1'!L39 -> 0.00
A29: 21 | B29: пер. Артиллерийский, д. 12 | C29: 676,398.28 | K29: 0.00 | L29: 0 | M29: 0.00 | N29: 0.00 | O29: 0.00 | P29: 0 | Q29: 0.00 | R29: 1,444.00 | S29: 676,398.28 | T29: 0 | U29: 0.00 | V29: =C29-'часть 1'!L40 -> 0.00
A30: 22 | B30: пер. Коллективный, д. 6 | C30: 766,539.00 | K30: 0.00 | L30: 0 | M30: 0.00 | N30: 378.50 | O30: 766,539.00 | P30: 0 | Q30: 0.00 | R30: 0 | S30: 0.00 | T30: 0 | U30: 0.00 | V30: =C30-'часть 1'!L41 -> 0.00
A31: 23 | B31: пер. Никитина, д. 5 | C31: 1,186,114.00 | K31: 0.00 | L31: 0 | M31: 0.00 | N31: 586.30 | O31: 1,186,114.00 | P31: 0 | Q31: 0.00 | R31: 0 | S31: 0.00 | T31: 0 | U31: 0.00 | V31: =C31-'часть 1'!L42 -> 0.00
A32: 24 | B32: пер. Перекопский, д. 11А | C32: 178,272.59 | K32: 178,272.59 | L32: 0 | M32: 0.00 | N32: 0.00 | O32: 0.00 | P32: 0 | Q32: 0.00 | R32: 0 | S32: 0.00 | T32: 0 | U32: 0.00 | V32: =C32-'часть 1'!L43 -> 0.00
A33: 25 | B33: пер. Перекопский, д. 15 | C33: 1,087,116.00 | K33: =#REF! ->  | L33: 0 | M33: 0.00 | N33: 0.00 | O33: 0.00 | P33: 0 | Q33: 0.00 | R33: 0 | S33: 0.00 | T33: 0 | U33: 0.00 | V33: =C33-'часть 1'!L44 -> 0.00
A34: 26 | B34: пер. Смоленский, д. 8, корп. 1 | C34: 1,411,363.00 | K34: 0.00 | L34: 0 | M34: 0.00 | N34: 702.00 | O34: 1,411,363.00 | P34: 0 | Q34: 0.00 | R34: 0 | S34: 0.00 | T34: 0 | U34: 0.00 | V34: =C34-'часть 1'!L45 -> 0.00
A35: 27 | B35: пер. Университетский, д. 3 | C35: 1,136,666.00 | K35: 0.00 | L35: 0 | M35: 0.00 | N35: 552.00 | O35: 1,136,666.00 | P35: 0 | Q35: 0.00 | R35: 0 | S35: 0.00 | T35: 0 | U35: 0.00 | V35: =C35-'часть 1'!L46 -> 0.00
A36: 28 | B36: пр-кт 50 лет Октября, д. 2/19 | C36: 1,385,674.00 | K36: 1,385,674.00 | L36: 0 | M36: 0.00 | N36: 0.00 | O36: 0.00 | P36: 0 | Q36: 0.00 | R36: 0 | S36: 0.00 | T36: 0 | U36: 0.00 | V36: =C36-'часть 1'!L47 -> 0.00
A37: 29 | B37: пр-кт Калинина, д. 9 | C37: 4,619,990.00 | K37: 0.00 | L37: 0 | M37: 0.00 | N37: 2,319.00 | O37: 4,619,990.00 | P37: 0 | Q37: 0.00 | R37: 0 | S37: 0.00 | T37: 0 | U37: 0.00 | V37: =C37-'часть 1'!L48 -> 0.00
A38: 30 | B38: пр-кт Ленина, д. 14, корп. 2 | C38: 1,865,304.00 | K38: 0.00 | L38: 0 | M38: 0.00 | N38: 924.00 | O38: 1,865,304.00 | P38: 0 | Q38: 0.00 | R38: 0 | S38: 0.00 | T38: 0 | U38: 0.00 | V38: =C38-'часть 1'!L49 -> 0.00
A39: 31 | B39: пр-кт Ленина, д. 40 | C39: 1,870,910.00 | K39: 0.00 | L39: 0 | M39: 0.00 | N39: 946.30 | O39: 1,870,910.00 | P39: 0 | Q39: 0.00 | R39: 0 | S39: 0.00 | T39: 0 | U39: 0.00 | V39: =C39-'часть 1'!L50 -> 0.00
A40: 32 | B40: пр-кт Ленина, д. 43 | C40: 1,533,757.00 | K40: 0.00 | L40: 0 | M40: 0.00 | N40: 772.90 | O40: 1,533,757.00 | P40: 0 | Q40: 0.00 | R40: 0 | S40: 0.00 | T40: 0 | U40: 0.00 | V40: =C40-'часть 1'!L51 -> 0.00
A41: 33 | B41: пр-кт Ленина, д. 43А | C41: 939,858.00 | K41: 939,858.00 | L41: 0 | M41: 0.00 | N41: 0.00 | O41: 0.00 | P41: 0 | Q41: 0.00 | R41: 0 | S41: 0.00 | T41: 0 | U41: 0.00 | V41: =C41-'часть 1'!L52 -> 0.00
A42: 34 | B42: пр-кт Октябрьский, д. 69 | C42: 2,368,392.00 | K42: 0.00 | L42: 0 | M42: 0.00 | N42: 1,200.00 | O42: 2,368,392.00 | P42: 0 | Q42: 0.00 | R42: 0 | S42: 0.00 | T42: 0 | U42: 0.00 | V42: =C42-'часть 1'!L53 -> 0.00
A43: 35 | B43: пр-кт Победы, д. 28, корп. 1 | C43: 2,433,930.91 | K43: 1,478,520.91 | L43: 0 | M43: 0.00 | N43: 526.80 | O43: 955,410.00 | P43: 0 | Q43: 0.00 | R43: 0 | S43: 0.00 | T43: 0 | U43: 0.00 | V43: =C43-'часть 1'!L54 -> 0.00
A44: 36 | B44: пр-кт Победы, д. 2А | C44: 1,721,850.00 | K44: 0.00 | L44: 0 | M44: 0.00 | N44: 868.68 | O44: 1,721,850.00 | P44: 0 | Q44: 0.00 | R44: 0 | S44: 0.00 | T44: 0 | U44: 0.00 | V44: =C44-'часть 1'!L55 -> 0.00
A45: 37 | B45: пр-кт Победы, д. 32/3 | C45: 814,117.00 | K45: 814,117.00 | L45: 0 | M45: 0.00 | N45: 0.00 | O45: 0.00 | P45: 0 | Q45: 0.00 | R45: 0 | S45: 0.00 | T45: 0 | U45: 0.00 | V45: =C45-'часть 1'!L56 -> 0.00
A46: 38 | B46: пр-кт Победы, д. 36/46 | C46: 3,045,081.00 | K46: 0.00 | L46: 0 | M46: 0.00 | N46: 0.00 | O46: 0.00 | P46: 0 | Q46: 0.00 | R46: 2,108.00 | S46: 3,045,081.00 | T46: 0 | U46: 0.00 | V46: =C46-'часть 1'!L57 -> 0.00
A47: 39 | B47: пр-кт Победы, д. 38/45 | C47: 2,244,806.00 | K47: 0.00 | L47: 0 | M47: 0.00 | N47: 1,120.00 | O47: 2,244,806.00 | P47: 0 | Q47: 0.00 | R47: 0 | S47: 0.00 | T47: 0 | U47: 0.00 | V47: =C47-'часть 1'!L58 -> 0.00
A48: 40 | B48: пр-кт Победы, д. 4А | C48: 1,361,273.00 | K48: 347,471.00 | L48: 0 | M48: 0.00 | N48: 0.00 | O48: 0.00 | P48: 0 | Q48: 0.00 | R48: 1,105.00 | S48: 1,013,802.00 | T48: 0 | U48: 0.00 | V48: =C48-'часть 1'!L59 -> 0.00
A49: 41 | B49: пр-кт Победы, до 22/15 | C49: 2,421,596.00 | K49: 0.00 | L49: 0 | M49: 0.00 | N49: 1,230.72 | O49: 2,421,596.00 | P49: 0 | Q49: 0.00 | R49: 0 | S49: 0.00 | T49: 0 | U49: 0.00 | V49: =C49-'часть 1'!L60 -> 0.00
A50: 42 | B50: пр-кт Чайковского, д. 24/2Б | C50: 2,056,315.00 | K50: 0.00 | L50: 0 | M50: 0.00 | N50: 978.00 | O50: 2,056,315.00 | P50: 0 | Q50: 0.00 | R50: 0 | S50: 0.00 | T50: 0 | U50: 0.00 | V50: =C50-'часть 1'!L61 -> 0.00
A51: 43 | B51: пр-кт Чайковского, д. 37 | C51: 9,473,593.00 | K51: 0.00 | L51: 5 | M51: 9,473,593.00 | N51: 0.00 | O51: 0.00 | P51: 0 | Q51: 0.00 | R51: 0 | S51: 0.00 | T51: 0 | U51: 0.00 | V51: =C51-'часть 1'!L62 -> 0.00
A52: 44 | B52: проезд Зеленый, д. 47, корп. 1 | C52: 4,441,828.00 | K52: 0.00 | L52: 0 | M52: 0.00 | N52: 0.00 | O52: 0.00 | P52: 0 | Q52: 0.00 | R52: 3,081.40 | S52: 4,441,828.00 | T52: 0 | U52: 0.00 | V52: =C52-'часть 1'!L63 -> 0.00
A53: 45 | B53: проезд Зеленый, д. 47, корп. 2 | C53: 3,051,089.00 | K53: 0.00 | L53: 0 | M53: 0.00 | N53: 1,549.00 | O53: 3,051,089.00 | P53: 0 | Q53: 0.00 | R53: 0 | S53: 0.00 | T53: 0 | U53: 0.00 | V53: =C53-'часть 1'!L64 -> 0.00
A54: 46 | B54: проезд Карпинского 1-й, д. 2/60 | C54: 869,749.00 | K54: 0.00 | L54: 0 | M54: 0.00 | N54: 431.50 | O54: =C54 -> 869,749.00 | P54: 0 | Q54: 0.00 | R54: 0 | S54: 0.00 | T54: 0 | U54: 0.00 | V54: =C54-'часть 1'!L65 -> 0.00
A55: 47 | B55: проезд Карпинского 1-й, д. 4 | C55: 869,880.00 | K55: 0.00 | L55: 0 | M55: 0.00 | N55: 431.50 | O55: =C55 -> 869,880.00 | P55: 0 | Q55: 0.00 | R55: 0 | S55: 0.00 | T55: 0 | U55: 0.00 | V55: =C55-'часть 1'!L66 -> 0.00
A56: 48 | B56: проезд Розы Люксембург 1-й, д. 6 | C56: 172,302.00 | K56: 172,302.00 | L56: 0 | M56: 0.00 | N56: 0.00 | O56: 0.00 | P56: 0 | Q56: 0.00 | R56: 0 | S56: 0.00 | T56: 0 | U56: 0.00 | V56: =C56-'часть 1'!L67 -> 0.00
A57: 49 | B57: тер. Двор Пролетарки, д. 119 | C57: 3,706,393.00 | K57: =#REF! ->  | L57: 0 | M57: 0.00 | N57: 0.00 | O57: 0.00 | P57: 0 | Q57: 0.00 | R57: 0 | S57: 0.00 | T57: 0 | U57: 0.00 | V57: =C57-'часть 1'!L68 -> 0.00
A58: 50 | B58: тер. Двор Пролетарки, д. 43 | C58: 698,585.00 | K58: 698,585.00 | L58: 0 | M58: 0.00 | N58: 0.00 | O58: 0.00 | P58: 0 | Q58: 0.00 | R58: 0 | S58: 0.00 | T58: 0 | U58: 0.00 | V58: =C58-'часть 1'!L69 -> 0.00
A59: 51 | B59: тер. Товарный двор, д. 483А | C59: 951,740.00 | K59: 0.00 | L59: 0 | M59: 0.00 | N59: 471.10 | O59: 951,740.00 | P59: 0 | Q59: 0.00 | R59: 0 | S59: 0.00 | T59: 0 | U59: 0.00 | V59: =C59-'часть 1'!L70 -> 0.00
A60: 52 | B60: ул. 15 лет Октября, д. 47 | C60: 2,056,139.00 | K60: 0.00 | L60: 0 | M60: 0.00 | N60: 1,020.00 | O60: 2,056,139.00 | P60: 0 | Q60: 0.00 | R60: 0 | S60: 0.00 | T60: 0 | U60: 0.00 | V60: =C60-'часть 1'!L71 -> 0.00
A61: 53 | B61: ул. 15 лет Октября, д. 56 | C61: 1,321,356.00 | K61: 0.00 | L61: 0 | M61: 0.00 | N61: 662.00 | O61: 1,321,356.00 | P61: 0 | Q61: 0.00 | R61: 0 | S61: 0.00 | T61: 0 | U61: 0.00 | V61: =C61-'часть 1'!L72 -> 0.00
A62: 54 | B62: ул. 15 лет Октября, д. 58, корп. 1 | C62: 1,679,278.00 | K62: 355,519.00 | L62: 0 | M62: 0.00 | N62: 663.30 | O62: 1,323,759.00 | P62: 0 | Q62: 0.00 | R62: 0 | S62: 0.00 | T62: 0 | U62: 0.00 | V62: =C62-'часть 1'!L73 -> 0.00
A63: 55 | B63: ул. 15 лет Октября, д. 60 | C63: 1,100,896.00 | K63: 0.00 | L63: 0 | M63: 0.00 | N63: 549.00 | O63: 1,100,896.00 | P63: 0 | Q63: 0.00 | R63: 0 | S63: 0.00 | T63: 0 | U63: 0.00 | V63: =C63-'часть 1'!L74 -> 0.00
A64: 56 | B64: ул. 15 лет Октября, д. 62, корп. 1 | C64: 1,729,707.00 | K64: 630,140.00 | L64: 0 | M64: 0.00 | N64: 0.00 | O64: 0.00 | P64: 0 | Q64: 0.00 | R64: 760.30 | S64: 1,099,567.00 | T64: 0 | U64: 0.00 | V64: =C64-'часть 1'!L75 -> 0.00
A65: 57 | B65: ул. 15 лет Октября, д. 64/23 | C65: 451,222.57 | K65: 451,222.57 | L65: 0 | M65: 0.00 | N65: 0.00 | O65: 0.00 | P65: 0 | Q65: 0.00 | R65: 0 | S65: 0.00 | T65: 0 | U65: 0.00 | V65: =C65-'часть 1'!L76 -> 0.00
A66: 58 | B66: ул. Академика Туполева, д. 112/24 | C66: 703,675.57 | K66: 0.00 | L66: 0 | M66: 0.00 | N66: 378.00 | O66: 703,675.57 | P66: 0 | Q66: 0.00 | R66: 0 | S66: 0.00 | T66: 0 | U66: 0.00 | V66: =C66-'часть 1'!L77 -> 0.00
A67: 59 | B67: ул. Академическая, д. 16 | C67: 1,053,533.22 | K67: 1,053,533.22 | L67: 0 | M67: 0.00 | N67: 0.00 | O67: 0.00 | P67: 0 | Q67: 0.00 | R67: 0 | S67: 0.00 | T67: 0 | U67: 0.00 | V67: =C67-'часть 1'!L78 -> 0.00
A68: 60 | B68: ул. Академическая, д. 22 | C68: 1,253,738.00 | K68: 0.00 | L68: 0 | M68: 0.00 | N68: 622.00 | O68: 1,253,738.00 | P68: 0 | Q68: 0.00 | R68: 0 | S68: 0.00 | T68: 0 | U68: 0.00 | V68: =C68-'часть 1'!L79 -> 0.00
A69: 61 | B69: ул. Артюхиной, д. 7 | C69: 1,870,046.00 | K69: 0.00 | L69: 1 | M69: 1,870,046.00 | N69: 0.00 | O69: 0.00 | P69: 0 | Q69: 0.00 | R69: 0 | S69: 0.00 | T69: 0 | U69: 0.00 | V69: =C69-'часть 1'!L80 -> 0.00
A70: 62 | B70: ул. Благоева, д. 4, корп. 2 | C70: 3,720,676.00 | K70: 0.00 | L70: 2 | M70: 3,720,676.00 | N70: 0.00 | O70: 0.00 | P70: 0 | Q70: 0.00 | R70: 0 | S70: 0.00 | T70: 0 | U70: 0.00 | V70: =C70-'часть 1'!L81 -> 0.00
A71: 63 | B71: ул. Благоева, д. 6А | C71: 3,687,908.00 | K71: 3,687,908.00 | L71: 0 | M71: 0.00 | N71: 0.00 | O71: 0.00 | P71: 0 | Q71: 0.00 | R71: 0 | S71: 0.00 | T71: 0 | U71: 0.00 | V71: =C71-'часть 1'!L82 -> 0.00
A72: 64 | B72: ул. Бобкова, д. 2 | C72: 1,760,967.35 | K72: 0.00 | L72: 0 | M72: 0.00 | N72: 881.00 | O72: 1,760,967.35 | P72: 0 | Q72: 0.00 | R72: 0 | S72: 0.00 | T72: 0 | U72: 0.00 | V72: =C72-'часть 1'!L83 -> 0.00
A73: 65 | B73: ул. Богданова, д. 26/17 | C73: 881,947.00 | K73: 881,947.00 | L73: 0 | M73: 0.00 | N73: 0.00 | O73: 0.00 | P73: 0 | Q73: 0.00 | R73: 0 | S73: 0.00 | T73: 0 | U73: 0.00 | V73: =C73-'часть 1'!L84 -> 0.00
A74: 66 | B74: ул. Богданова, д. 29 | C74: 517,739.00 | K74: 0.00 | L74: 0 | M74: 0.00 | N74: 252.00 | O74: 517,739.00 | P74: 0 | Q74: 0.00 | R74: 0 | S74: 0.00 | T74: 0 | U74: 0.00 | V74: =C74-'часть 1'!L85 -> 0.00
A75: 67 | B75: ул. Богданова, д. 33/15 | C75: 1,728,895.00 | K75: 0.00 | L75: 0 | M75: 0.00 | N75: 873.06 | O75: 1,728,895.00 | P75: 0 | Q75: 0.00 | R75: 0 | S75: 0.00 | T75: 0 | U75: 0.00 | V75: =C75-'часть 1'!L86 -> 0.00
A76: 68 | B76: ул. Бориса Полевого, д. 10/11 | C76: 682,529.00 | K76: 0.00 | L76: 0 | M76: 0.00 | N76: 335.60 | O76: 682,529.00 | P76: 0 | Q76: 0.00 | R76: 0 | S76: 0.00 | T76: 0 | U76: 0.00 | V76: =C76-'часть 1'!L87 -> 0.00
A77: 69 | B77: ул. Брагина, д. 44 | C77: 582,157.00 | K77: 0.00 | L77: 0 | M77: 0.00 | N77: 285.00 | O77: 582,157.00 | P77: 0 | Q77: 0.00 | R77: 0 | S77: 0.00 | T77: 0 | U77: 0.00 | V77: =C77-'часть 1'!L88 -> 0.00
A78: 70 | B78: ул. Вагжанова, д. 4 | C78: 701,704.00 | K78: 701,704.00 | L78: 0 | M78: 0.00 | N78: 0.00 | O78: 0.00 | P78: 0 | Q78: 0.00 | R78: 0 | S78: 0.00 | T78: 0 | U78: 0.00 | V78: =C78-'часть 1'!L89 -> 0.00
A79: 71 | B79: ул. Веселова, д. 34/28 | C79: 1,969,149.00 | K79: 0.00 | L79: 0 | M79: 0.00 | N79: 995.80 | O79: 1,969,149.00 | P79: 0 | Q79: 0.00 | R79: 0 | S79: 0.00 | T79: 0 | U79: 0.00 | V79: =C79-'часть 1'!L90 -> 0.00
A80: 72 | B80: ул. Гвардейская, д. 5 | C80: 1,023,088.00 | K80: 0.00 | L80: 0 | M80: 0.00 | N80: 0.00 | O80: 0.00 | P80: 0 | Q80: 0.00 | R80: 694.00 | S80: 1,023,088.00 | T80: 0 | U80: 0.00 | V80: =C80-'часть 1'!L91 -> 0.00
A81: 73 | B81: ул. Гвардейская, д. 9, корп. 1 | C81: 3,334,570.00 | K81: =#REF! ->  | L81: 0 | M81: 0.00 | N81: 0.00 | O81: 0.00 | P81: 0 | Q81: 0.00 | R81: 0 | S81: 0.00 | T81: 0 | U81: 0.00 | V81: =C81-'часть 1'!L92 -> 0.00
A82: 74 | B82: ул. Горького, д. 10 | C82: 1,127,374.33 | K82: 1,127,374.33 | L82: 0 | M82: 0.00 | N82: 0.00 | O82: 0.00 | P82: 0 | Q82: 0.00 | R82: 0 | S82: 0.00 | T82: 0 | U82: 0.00 | V82: =C82-'часть 1'!L93 -> 0.00
A83: 75 | B83: ул. Горького, д. 106 | C83: 1,161,456.00 | K83: 1,161,456.00 | L83: 0 | M83: 0.00 | N83: 0.00 | O83: 0.00 | P83: 0 | Q83: 0.00 | R83: 0 | S83: 0.00 | T83: 0 | U83: 0.00 | V83: =C83-'часть 1'!L94 -> 0.00
A84: 76 | B84: ул. Горького, д. 4А | C84: 1,197,250.23 | K84: 1,197,250.23 | L84: 0 | M84: 0.00 | N84: 0.00 | O84: 0.00 | P84: 0 | Q84: 0.00 | R84: 0 | S84: 0.00 | T84: 0 | U84: 0.00 | V84: =C84-'часть 1'!L95 -> 0.00
A85: 77 | B85: ул. Горького, д. 70 | C85: 2,784,233.00 | K85: 0.00 | L85: 0 | M85: 0.00 | N85: 1,391.00 | O85: 2,784,233.00 | P85: 0 | Q85: 0.00 | R85: 0 | S85: 0.00 | T85: 0 | U85: 0.00 | V85: =C85-'часть 1'!L96 -> 0.00
A86: 78 | B86: ул. Горького, д. 89 | C86: 2,369,961.00 | K86: 2,369,961.00 | L86: 0 | M86: 0.00 | N86: 0.00 | O86: 0.00 | P86: 0 | Q86: 0.00 | R86: 0 | S86: 0.00 | T86: 0 | U86: 0.00 | V86: =C86-'часть 1'!L97 -> 0.00
A87: 79 | B87: ул. Грибоедова 2-я, д. 8/1 | C87: 672,819.00 | K87: 0.00 | L87: 0 | M87: 0.00 | N87: 331.40 | O87: 672,819.00 | P87: 0 | Q87: 0.00 | R87: 0 | S87: 0.00 | T87: 0 | U87: 0.00 | V87: =C87-'часть 1'!L98 -> 0.00
A88: 80 | B88: ул. Громова, д. 28, корп. 2 | C88: 1,651,491.00 | K88: 1,651,491.00 | L88: 0 | M88: 0.00 | N88: 0.00 | O88: 0.00 | P88: 0 | Q88: 0.00 | R88: 0 | S88: 0.00 | T88: 0 | U88: 0.00 | V88: =C88-'часть 1'!L99 -> 0.00
A89: 81 | B89: ул. Громова, д. 30 | C89: 1,432,926.00 | K89: 0.00 | L89: 0 | M89: 0.00 | N89: 710.73 | O89: 1,432,926.00 | P89: 0 | Q89: 0.00 | R89: 0 | S89: 0.00 | T89: 0 | U89: 0.00 | V89: =C89-'часть 1'!L100 -> 0.00
A90: 82 | B90: ул. Громова, д. 36, корп. 2 | C90: 1,137,886.00 | K90: 0.00 | L90: 0 | M90: 0.00 | N90: 0.00 | O90: 0.00 | P90: 0 | Q90: 0.00 | R90: 785.50 | S90: 1,137,886.00 | T90: 0 | U90: 0.00 | V90: =C90-'часть 1'!L101 -> 0.00
A91: 83 | B91: ул. Дарвина, д. 2 | C91: 1,814,838.00 | K91: 0.00 | L91: 0 | M91: 0.00 | N91: 917.00 | O91: 1,814,838.00 | P91: 0 | Q91: 0.00 | R91: 0 | S91: 0.00 | T91: 0 | U91: 0.00 | V91: =C91-'часть 1'!L102 -> 0.00
A92: 84 | B92: ул. Дарвина, д. 4, корп. 1 | C92: 1,544,359.54 | K92: 1,544,359.54 | L92: 0 | M92: 0.00 | N92: 0.00 | O92: 0.00 | P92: 0 | Q92: 0.00 | R92: 0 | S92: 0.00 | T92: 0 | U92: 0.00 | V92: =C92-'часть 1'!L103 -> 0.00
A93: 85 | B93: ул. Евгения Пичугина, д. 21, корп. 3 | C93: 1,787,034.00 | K93: 0.00 | L93: 1 | M93: 1,787,034.00 | N93: 0.00 | O93: 0.00 | P93: 0 | Q93: 0.00 | R93: 0 | S93: 0.00 | T93: 0 | U93: 0.00 | V93: =C93-'часть 1'!L104 -> 0.00
A94: 86 | B94: ул. Екатерины Фарафоновой, д. 37 | C94: 437,998.57 | K94: 437,998.57 | L94: 0 | M94: 0.00 | N94: 0.00 | O94: 0.00 | P94: 0 | Q94: 0.00 | R94: 0 | S94: 0.00 | T94: 0 | U94: 0.00 | V94: =C94-'часть 1'!L105 -> 0.00
A95: 87 | B95: ул. Зинаиды Коноплянниковой, д. 14 | C95: 1,116,228.00 | K95: 0.00 | L95: 0 | M95: 0.00 | N95: 734.00 | O95: 1,116,228.00 | P95: 0 | Q95: 0.00 | R95: 0 | S95: 0.00 | T95: 0 | U95: 0.00 | V95: =C95-'часть 1'!L106 -> 0.00
A96: 88 | B96: ул. Зинаиды Коноплянниковой, д. 19, корп. 2 | C96: 1,313,728.00 | K96: 0.00 | L96: 0 | M96: 0.00 | N96: 660.70 | O96: 1,313,728.00 | P96: 0 | Q96: 0.00 | R96: 0 | S96: 0.00 | T96: 0 | U96: 0.00 | V96: =C96-'часть 1'!L107 -> 0.00
A97: 89 | B97: ул. Ипподромная, д. 10 | C97: 359,651.00 | K97: 359,651.00 | L97: 0 | M97: 0.00 | N97: 0.00 | O97: 0.00 | P97: 0 | Q97: 0.00 | R97: 0 | S97: 0.00 | T97: 0 | U97: 0.00 | V97: =C97-'часть 1'!L108 -> 0.00
A98: 90 | B98: ул. Ипподромная, д. 22 | C98: 906,779.00 | K98: 906,779.00 | L98: 0 | M98: 0.00 | N98: 0.00 | O98: 0.00 | P98: 0 | Q98: 0.00 | R98: 0 | S98: 0.00 | T98: 0 | U98: 0.00 | V98: =C98-'часть 1'!L109 -> 0.00
A99: 91 | B99: ул. Ипподромная, д. 6Б | C99: 886,559.00 | K99: 0.00 | L99: 0 | M99: 0.00 | N99: 440.00 | O99: 886,559.00 | P99: 0 | Q99: 0.00 | R99: 0 | S99: 0.00 | T99: 0 | U99: 0.00 | V99: =C99-'часть 1'!L110 -> 0.00
A100: 92 | B100: ул. Ипподромная, д. 7, корп. 1 | C100: 642,210.00 | K100: 0.00 | L100: 0 | M100: 0.00 | N100: 0.00 | O100: 0.00 | P100: 0 | Q100: 0.00 | R100: 440.00 | S100: 642,210.00 | T100: 0 | U100: 0.00 | V100: =C100-'часть 1'!L111 -> 0.00
A101: 93 | B101: ул. Кайкова, д. 4А | C101: 1,952,489.00 | K101: 0.00 | L101: 0 | M101: 0.00 | N101: 965.00 | O101: 1,952,489.00 | P101: 0 | Q101: 0.00 | R101: 0 | S101: 0.00 | T101: 0 | U101: 0.00 | V101: =C101-'часть 1'!L112 -> 0.00
A102: 94 | B102: ул. Карла Маркса, д. 5 | C102: 15,157,748.00 | K102: 0.00 | L102: 8 | M102: 15,157,748.00 | N102: 0.00 | O102: 0.00 | P102: 0 | Q102: 0.00 | R102: 0 | S102: 0.00 | T102: 0 | U102: 0.00 | V102: =C102-'часть 1'!L113 -> 0.00
A103: 95 | B103: ул. Кирова, д. 3А | C103: 2,542,298.37 | K103: 0.00 | L103: 0 | M103: 0.00 | N103: 1,350.00 | O103: 2,542,298.37 | P103: 0 | Q103: 0.00 | R103: 0 | S103: 0.00 | T103: 0 | U103: 0.00 | V103: =C103-'часть 1'!L114 -> 0.00
A104: 96 | B104: ул. Коробкова, д. 18 | C104: 1,114,586.00 | K104: 0.00 | L104: 0 | M104: 0.00 | N104: 550.00 | O104: 1,114,586.00 | P104: 0 | Q104: 0.00 | R104: 0 | S104: 0.00 | T104: 0 | U104: 0.00 | V104: =C104-'часть 1'!L115 -> 0.00
A105: 97 | B105: ул. Королева, д. 16/1 | C105: 5,623,853.00 | K105: 0.00 | L105: 3 | M105: 5,623,853.00 | N105: 0.00 | O105: 0.00 | P105: 0 | Q105: 0.00 | R105: 0 | S105: 0.00 | T105: 0 | U105: 0.00 | V105: =C105-'часть 1'!L116 -> 0.00
A106: 98 | B106: ул. Королева, д. 24 | C106: 2,721,106.00 | K106: 0.00 | L106: 0 | M106: 0.00 | N106: 1,371.00 | O106: 2,721,106.00 | P106: 0 | Q106: 0.00 | R106: 0 | S106: 0.00 | T106: 0 | U106: 0.00 | V106: =C106-'часть 1'!L117 -> 0.00
A107: 99 | B107: ул. Королева, д. 4 | C107: 9,789,326.55 | K107: 6,592,990.56 | L107: 0 | M107: 0.00 | N107: 2,090.00 | O107: 3,196,335.99 | P107: 0 | Q107: 0.00 | R107: 0 | S107: 0.00 | T107: 0 | U107: 0.00 | V107: =C107-'часть 1'!L118 -> 0.00
A108: 100 | B108: ул. Крылова, д. 5 | C108: 1,615,074.00 | K108: =#REF! ->  | L108: 0 | M108: 0.00 | N108: 0.00 | O108: 0.00 | P108: 0 | Q108: 0.00 | R108: 0 | S108: 0.00 | T108: 0 | U108: 0.00 | V108: =C108-'часть 1'!L119 -> 0.00
A109: 101 | B109: ул. Лукина, д. 14 | C109: 824,390.00 | K109: 824,390.00 | L109: 0 | M109: 0.00 | N109: 0.00 | O109: 0.00 | P109: 0 | Q109: 0.00 | R109: 0 | S109: 0.00 | T109: 0 | U109: 0.00 | V109: =C109-'часть 1'!L120 -> 0.00
A110: 102 | B110: ул. Лукина, д. 8 | C110: 2,661,189.00 | K110: 0.00 | L110: 0 | M110: 0.00 | N110: 1,338.70 | O110: 2,661,189.00 | P110: 0 | Q110: 0.00 | R110: 0 | S110: 0.00 | T110: 0 | U110: 0.00 | V110: =C110-'часть 1'!L121 -> 0.00
A111: 103 | B111: ул. Маршала Буденого, д. 19/1 | C111: 278,220.00 | K111: 278,220.00 | L111: 0 | M111: 0.00 | N111: 0.00 | O111: 0.00 | P111: 0 | Q111: 0.00 | R111: 0 | S111: 0.00 | T111: 0 | U111: 0.00 | V111: =C111-'часть 1'!L122 -> 0.00
A112: 104 | B112: ул. Маршала Буденого, д. 4 | C112: 2,511,472.00 | K112: 2,511,472.00 | L112: 0 | M112: 0.00 | N112: 0.00 | O112: 0.00 | P112: 0 | Q112: 0.00 | R112: 0 | S112: 0.00 | T112: 0 | U112: 0.00 | V112: =C112-'часть 1'!L123 -> 0.00
A113: 105 | B113: ул. Маршала Василевского, д. 18 | C113: 871,988.00 | K113: 0.00 | L113: 0 | M113: 0.00 | N113: 438.23 | O113: 871,988.00 | P113: 0 | Q113: 0.00 | R113: 0 | S113: 0.00 | T113: 0 | U113: 0.00 | V113: =C113-'часть 1'!L124 -> 0.00
A114: 106 | B114: ул. Маршала Василевского, д. 20 | C114: 2,113,335.00 | K114: =#REF! ->  | L114: 0 | M114: 0.00 | N114: 0.00 | O114: 0.00 | P114: 0 | Q114: 0.00 | R114: 0 | S114: 0.00 | T114: 0 | U114: 0.00 | V114: =C114-'часть 1'!L125 -> 0.00
A115: 107 | B115: ул. Машинистов, д. 3 | C115: 996,585.00 | K115: 0.00 | L115: 0 | M115: 0.00 | N115: 496.20 | O115: 996,585.00 | P115: 0 | Q115: 0.00 | R115: 0 | S115: 0.00 | T115: 0 | U115: 0.00 | V115: =C115-'часть 1'!L126 -> 0.00
A116: 108 | B116: ул. Мичурина, д. 37/23 | C116: 637,739.00 | K116: 637,739.00 | L116: 0 | M116: 0.00 | N116: 0.00 | O116: 0.00 | P116: 0 | Q116: 0.00 | R116: 0 | S116: 0.00 | T116: 0 | U116: 0.00 | V116: =C116-'часть 1'!L127 -> 0.00
A117: 109 | B117: ул. Можайского, д. 51 | C117: 1,357,217.00 | K117: 0.00 | L117: 0 | M117: 0.00 | N117: 675.00 | O117: 1,357,217.00 | P117: 0 | Q117: 0.00 | R117: 0 | S117: 0.00 | T117: 0 | U117: 0.00 | V117: =C117-'часть 1'!L128 -> 0.00
A118: 110 | B118: ул. Московская, д. 78 | C118: 836,226.00 | K118: 0.00 | L118: 0 | M118: 0.00 | N118: 414.10 | O118: 836,226.00 | P118: 0 | Q118: 0.00 | R118: 0 | S118: 0.00 | T118: 0 | U118: 0.00 | V118: =C118-'часть 1'!L129 -> 0.00
A119: 111 | B119: ул. Мусоргского, д. 32/32 | C119: 640,078.00 | K119: 640,078.00 | L119: 0 | M119: 0.00 | N119: 0.00 | O119: 0.00 | P119: 0 | Q119: 0.00 | R119: 0 | S119: 0.00 | T119: 0 | U119: 0.00 | V119: =C119-'часть 1'!L130 -> 0.00
A120: 112 | B120: ул. Мусоргского, д. 38/33 | C120: 202,649.00 | K120: =#REF! ->  | L120: 0 | M120: 0.00 | N120: 0.00 | O120: 0.00 | P120: 0 | Q120: 0.00 | R120: 0 | S120: 0.00 | T120: 0 | U120: 0.00 | V120: =C120-'часть 1'!L131 -> 0.00
A121: 113 | B121: ул. Новоторжская, д. 7 | C121: 7,892,437.00 | K121: 7,892,437.00 | L121: 0 | M121: 0.00 | N121: 0.00 | O121: 0.00 | P121: 0 | Q121: 0.00 | R121: 0 | S121: 0.00 | T121: 0 | U121: 0.00 | V121: =C121-'часть 1'!L132 -> 0.00
A122: 114 | B122: ул. Озерная, д. 23 | C122: 523,389.00 | K122: 0.00 | L122: 0 | M122: 0.00 | N122: 255.00 | O122: 523,389.00 | P122: 0 | Q122: 0.00 | R122: 0 | S122: 0.00 | T122: 0 | U122: 0.00 | V122: =C122-'часть 1'!L133 -> 0.00
A123: 115 | B123: ул. Орджоникидзе, д. 1 | C123: 1,038,920.00 | K123: 1,038,920.00 | L123: 0 | M123: 0.00 | N123: 0.00 | O123: 0.00 | P123: 0 | Q123: 0.00 | R123: 0 | S123: 0.00 | T123: 0 | U123: 0.00 | V123: =C123-'часть 1'!L134 -> 0.00
A124: 116 | B124: ул. Орджоникидзе, д. 11 | C124: 1,742,553.00 | K124: 0.00 | L124: 0 | M124: 0.00 | N124: 874.22 | O124: 1,742,553.00 | P124: 0 | Q124: 0.00 | R124: 0 | S124: 0.00 | T124: 0 | U124: 0.00 | V124: =C124-'часть 1'!L135 -> 0.00
A125: 117 | B125: ул. Орджоникидзе, д. 12/1 | C125: 2,124,581.00 | K125: 0.00 | L125: 0 | M125: 0.00 | N125: 1,070.00 | O125: 2,124,581.00 | P125: 0 | Q125: 0.00 | R125: 0 | S125: 0.00 | T125: 0 | U125: 0.00 | V125: =C125-'часть 1'!L136 -> 0.00
A126: 118 | B126: ул. Орджоникидзе, д. 13/26 | C126: 2,347,478.00 | K126: 0.00 | L126: 0 | M126: 0.00 | N126: 1,185.07 | O126: 2,347,478.00 | P126: 0 | Q126: 0.00 | R126: 0 | S126: 0.00 | T126: 0 | U126: 0.00 | V126: =C126-'часть 1'!L137 -> 0.00
A127: 119 | B127: ул. Орджоникидзе, д. 14 | C127: 2,468,472.00 | K127: 0.00 | L127: 0 | M127: 0.00 | N127: 1,246.50 | O127: 2,468,472.00 | P127: 0 | Q127: 0.00 | R127: 0 | S127: 0.00 | T127: 0 | U127: 0.00 | V127: =C127-'часть 1'!L138 -> 0.00
A128: 120 | B128: ул. Орджоникидзе, д. 3 | C128: 1,612,780.00 | K128: 0.00 | L128: 0 | M128: 0.00 | N128: 810.50 | O128: 1,612,780.00 | P128: 0 | Q128: 0.00 | R128: 0 | S128: 0.00 | T128: 0 | U128: 0.00 | V128: =C128-'часть 1'!L139 -> 0.00
A129: 121 | B129: ул. Орджоникидзе, д. 4/2 | C129: 2,580,419.00 | K129: 0.00 | L129: 0 | M129: 0.00 | N129: 786.30 | O129: 1,565,675.00 | P129: 0 | Q129: 0.00 | R129: 700.00 | S129: 1,014,744.00 | T129: 0 | U129: 0.00 | V129: =C129-'часть 1'!L140 -> 0.00
A130: 122 | B130: ул. Орджоникидзе, д. 46, корп. 4 | C130: 1,681,645.00 | K130: 0.00 | L130: 0 | M130: 0.00 | N130: 848.59 | O130: 1,681,645.00 | P130: 0 | Q130: 0.00 | R130: 0 | S130: 0.00 | T130: 0 | U130: 0.00 | V130: =C130-'часть 1'!L141 -> 0.00
A131: 123 | B131: ул. Орджоникидзе, д. 5 | C131: 1,318,880.00 | K131: 0.00 | L131: 0 | M131: 0.00 | N131: 660.00 | O131: 1,318,880.00 | P131: 0 | Q131: 0.00 | R131: 0 | S131: 0.00 | T131: 0 | U131: 0.00 | V131: =C131-'часть 1'!L142 -> 0.00
A132: 124 | B132: ул. Орджоникидзе, д. 8 | C132: 1,566,345.00 | K132: 0.00 | L132: 0 | M132: 0.00 | N132: 422.00 | O132: 850,468.00 | P132: 0 | Q132: 0.00 | R132: 492.00 | S132: 715,877.00 | T132: 0 | U132: 0.00 | V132: =C132-'часть 1'!L143 -> 0.00
A133: 125 | B133: ул. Паши Савельевой, д. 39, корп. 3 | C133: 1,910,088.00 | K133: 1,910,088.00 | L133: 0 | M133: 0.00 | N133: 0.00 | O133: 0.00 | P133: 0 | Q133: 0.00 | R133: 0 | S133: 0.00 | T133: 0 | U133: 0.00 | V133: =C133-'часть 1'!L144 -> 0.00
A134: 126 | B134: ул. Паши Савельевой, д. 7 | C134: 2,694,957.00 | K134: 710,638.00 | L134: 0 | M134: 0.00 | N134: 0.00 | O134: 0.00 | P134: 0 | Q134: 0.00 | R134: 1,359.50 | S134: 1,984,319.00 | T134: 0 | U134: 0.00 | V134: =C134-'часть 1'!L145 -> 0.00
A135: 127 | B135: ул. Пролетарская 6-я, д. 16 | C135: 580,578.00 | K135: 0.00 | L135: 0 | M135: 0.00 | N135: 293.50 | O135: 580,578.00 | P135: 0 | Q135: 0.00 | R135: 0 | S135: 0.00 | T135: 0 | U135: 0.00 | V135: =C135-'часть 1'!L146 -> 0.00
A136: 128 | B136: ул. Пролетарская 6-я, д. 17 | C136: 615,357.00 | K136: 0.00 | L136: 0 | M136: 0.00 | N136: 301.00 | O136: 615,357.00 | P136: 0 | Q136: 0.00 | R136: 0 | S136: 0.00 | T136: 0 | U136: 0.00 | V136: =C136-'часть 1'!L147 -> 0.00
A137: 129 | B137: ул. Пролетарская 6-я, д. 19 | C137: 269,948.13 | K137: 269,948.13 | L137: 0 | M137: 0.00 | N137: 0.00 | O137: 0.00 | P137: 0 | Q137: 0.00 | R137: 0 | S137: 0.00 | T137: 0 | U137: 0.00 | V137: =C137-'часть 1'!L148 -> 0.00
A138: 130 | B138: ул. Прядильная, д. 13 | C138: 807,980.00 | K138: 0.00 | L138: 0 | M138: 0.00 | N138: 400.00 | O138: 807,980.00 | P138: 0 | Q138: 0.00 | R138: 0 | S138: 0.00 | T138: 0 | U138: 0.00 | V138: =C138-'часть 1'!L149 -> 0.00
A139: 131 | B139: ул. Резинстроя, д. 2/7 | C139: 661,525.00 | K139: 0.00 | L139: 0 | M139: 0.00 | N139: 325.00 | O139: 661,525.00 | P139: 0 | Q139: 0.00 | R139: 0 | S139: 0.00 | T139: 0 | U139: 0.00 | V139: =C139-'часть 1'!L150 -> 0.00
A140: 132 | B140: ул. Ржевская, д. 14 | C140: 3,719,885.00 | K140: 0.00 | L140: 2 | M140: 3,719,885.00 | N140: 0.00 | O140: 0.00 | P140: 0 | Q140: 0.00 | R140: 0 | S140: 0.00 | T140: 0 | U140: 0.00 | V140: =C140-'часть 1'!L151 -> 0.00
A141: 133 | B141: ул. Ротмистрова, д. 17 | C141: 1,726,391.00 | K141: 0.00 | L141: 0 | M141: 0.00 | N141: 866.80 | O141: 1,726,391.00 | P141: 0 | Q141: 0.00 | R141: 0 | S141: 0.00 | T141: 0 | U141: 0.00 | V141: =C141-'часть 1'!L152 -> 0.00
A142: 134 | B142: ул. Ротмистрова, д. 20 | C142: 1,521,754.00 | K142: 0.00 | L142: 0 | M142: 0.00 | N142: 430.00 | O142: 866,735.00 | P142: 0 | Q142: 0.00 | R142: 449.00 | S142: 655,019.00 | T142: 0 | U142: 0.00 | V142: =C142-'часть 1'!L153 -> 0.00
A143: 135 | B143: ул. Румянцева, д. 24/40 | C143: 671,505.00 | K143: =#REF! ->  | L143: 0 | M143: 0.00 | N143: 0.00 | O143: 0.00 | P143: 0 | Q143: 0.00 | R143: 404.50 | S143: 591,227.00 | T143: 0 | U143: 0.00 | V143: =C143-'часть 1'!L154 -> 0.00
A144: 136 | B144: ул. Севастьянова, д. 7, корп. 1 | C144: 1,081,718.00 | K144: 0.00 | L144: 0 | M144: 0.00 | N144: 531.70 | O144: 1,081,718.00 | P144: 0 | Q144: 0.00 | R144: 0 | S144: 0.00 | T144: 0 | U144: 0.00 | V144: =C144-'часть 1'!L155 -> 0.00
A145: 137 | B145: ул. Седова, д. 120А | C145: 206,635.00 | K145: 206,635.00 | L145: 0 | M145: 0.00 | N145: 0.00 | O145: 0.00 | P145: 0 | Q145: 0.00 | R145: 0 | S145: 0.00 | T145: 0 | U145: 0.00 | V145: =C145-'часть 1'!L156 -> 0.00
A146: 138 | B146: ул. Седова, д. 120Б | C146: 1,044,081.04 | K146: 0.00 | L146: 0 | M146: 0.00 | N146: 516.50 | O146: 1,044,081.04 | P146: 0 | Q146: 0.00 | R146: 0 | S146: 0.00 | T146: 0 | U146: 0.00 | V146: =C146-'часть 1'!L157 -> 0.00
A147: 139 | B147: ул. Седова, д. 1Б | C147: 1,340,000.00 | K147: 1,340,000.00 | L147: 0 | M147: 0.00 | N147: 0.00 | O147: 0.00 | P147: 0 | Q147: 0.00 | R147: 0 | S147: 0.00 | T147: 0 | U147: 0.00 | V147: =C147-'часть 1'!L158 -> 0.00
A148: 140 | B148: ул. Скворцова-Степанова, д. 10 | C148: 2,294,529.00 | K148: 0.00 | L148: 0 | M148: 0.00 | N148: 1,162.00 | O148: 2,294,529.00 | P148: 0 | Q148: 0.00 | R148: 0 | S148: 0.00 | T148: 0 | U148: 0.00 | V148: =C148-'часть 1'!L159 -> 0.00
A149: 141 | B149: ул. Скворцова-Степанова, д. 16 | C149: 2,615,616.20 | K149: 0.00 | L149: 0 | M149: 0.00 | N149: 0.00 | O149: 0.00 | P149: 0 | Q149: 0.00 | R149: 2,540.00 | S149: 2,615,616.20 | T149: 0 | U149: 0.00 | V149: =C149-'часть 1'!L160 -> 0.00
A150: 142 | B150: ул. Склизкова, д. 54/25 | C150: 1,561,539.00 | K150: 0.00 | L150: 0 | M150: 0.00 | N150: 787.85 | O150: 1,561,539.00 | P150: 0 | Q150: 0.00 | R150: 0 | S150: 0.00 | T150: 0 | U150: 0.00 | V150: =C150-'часть 1'!L161 -> 0.00
A151: 143 | B151: ул. Склизкова, д. 60 | C151: 1,421,187.00 | K151: 0.00 | L151: 0 | M151: 0.00 | N151: 687.00 | O151: 1,421,187.00 | P151: 0 | Q151: 0.00 | R151: 0 | S151: 0.00 | T151: 0 | U151: 0.00 | V151: =C151-'часть 1'!L162 -> 0.00
A152: 144 | B152: ул. Склизкова, д. 80 | C152: 2,469,740.00 | K152: 757,154.00 | L152: 0 | M152: 0.00 | N152: 868.10 | O152: 1,712,586.00 | P152: 0 | Q152: 0.00 | R152: 0 | S152: 0.00 | T152: 0 | U152: 0.00 | V152: =C152-'часть 1'!L163 -> 0.00
A153: 145 | B153: ул. Склизкова, д. 88 | C153: 1,104,857.00 | K153: 0.00 | L153: 0 | M153: 0.00 | N153: 545.60 | O153: 1,104,857.00 | P153: 0 | Q153: 0.00 | R153: 0 | S153: 0.00 | T153: 0 | U153: 0.00 | V153: =C153-'часть 1'!L164 -> 0.00
A154: 146 | B154: ул. Склизкова, д. 94 | C154: 1,877,378.00 | K154: 0.00 | L154: 1 | M154: 1,877,378.00 | N154: 0.00 | O154: 0.00 | P154: 0 | Q154: 0.00 | R154: 0 | S154: 0.00 | T154: 0 | U154: 0.00 | V154: =C154-'часть 1'!L165 -> 0.00
A155: 147 | B155: ул. Советская, д. 24 | C155: 2,945,836.00 | K155: =#REF! ->  | L155: 0 | M155: 0.00 | N155: 0.00 | O155: 0.00 | P155: 0 | Q155: 0.00 | R155: 0 | S155: 0.00 | T155: 0 | U155: 0.00 | V155: =C155-'часть 1'!L166 -> 0.00
A156: 148 | B156: ул. Советская, д. 60 | C156: 1,118,494.00 | K156: 1,118,494.00 | L156: 0 | M156: 0.00 | N156: 0.00 | O156: 0.00 | P156: 0 | Q156: 0.00 | R156: 0 | S156: 0.00 | T156: 0 | U156: 0.00 | V156: =C156-'часть 1'!L167 -> 0.00
A157: 149 | B157: ул. Советская, д. 8 | C157: 2,540,427.00 | K157: 0.00 | L157: 0 | M157: 0.00 | N157: 592.00 | O157: 1,201,460.00 | P157: 0 | Q157: 0.00 | R157: 922.00 | S157: 1,338,967.00 | T157: 0 | U157: 0.00 | V157: =C157-'часть 1'!L168 -> 0.00
A158: 150 | B158: ул. Спартака, д. 4/2 | C158: 2,253,297.00 | K158: 0.00 | L158: 0 | M158: 0.00 | N158: 1,126.00 | O158: 2,253,297.00 | P158: 0 | Q158: 0.00 | R158: 0 | S158: 0.00 | T158: 0 | U158: 0.00 | V158: =C158-'часть 1'!L169 -> 0.00
A159: 151 | B159: ул. Строителей, д. 12 | C159: 1,390,061.00 | K159: =#REF! ->  | L159: 0 | M159: 0.00 | N159: 0.00 | O159: 0.00 | P159: 0 | Q159: 0.00 | R159: 0 | S159: 0.00 | T159: 0 | U159: 0.00 | V159: =C159-'часть 1'!L170 -> 0.00
A160: 152 | B160: ул. Тамары Ильиной, д. 7, корп. 1 | C160: 3,213,804.00 | K160: 846,948.00 | L160: 0 | M160: 0.00 | N160: 1,200.00 | O160: 2,366,856.00 | P160: 0 | Q160: 0.00 | R160: 0 | S160: 0.00 | T160: 0 | U160: 0.00 | V160: =C160-'часть 1'!L171 -> 0.00
A161: 153 | B161: ул. Тамары Ильиной, д. 9/19 | C161: 3,202,371.00 | K161: 0.00 | L161: 0 | M161: 0.00 | N161: 0.00 | O161: 0.00 | P161: 0 | Q161: 0.00 | R161: 2,220.83 | S161: 3,202,371.00 | T161: 0 | U161: 0.00 | V161: =C161-'часть 1'!L172 -> 0.00
A162: 154 | B162: ул. Терещенко, д. 28 | C162: 709,022.00 | K162: 0.00 | L162: 0 | M162: 0.00 | N162: 0.00 | O162: 0.00 | P162: 0 | Q162: 0.00 | R162: 486.60 | S162: 709,022.00 | T162: 0 | U162: 0.00 | V162: =C162-'часть 1'!L173 -> 0.00
A163: 155 | B163: ул. Терещенко, д. 35 | C163: 1,136,930.00 | K163: 0.00 | L163: 0 | M163: 0.00 | N163: 278.00 | O163: 570,382.00 | P163: 0 | Q163: 0.00 | R163: 386.88 | S163: 566,548.00 | T163: 0 | U163: 0.00 | V163: =C163-'часть 1'!L174 -> 0.00
A164: 156 | B164: ул. Терещенко, д. 41, корп. 1 | C164: 1,320,636.00 | K164: 0.00 | L164: 0 | M164: 0.00 | N164: 662.00 | O164: 1,320,636.00 | P164: 0 | Q164: 0.00 | R164: 0 | S164: 0.00 | T164: 0 | U164: 0.00 | V164: =C164-'часть 1'!L175 -> 0.00
A165: 157 | B165: ул. Учительская, д. 39 | C165: 4,265,098.00 | K165: 0.00 | L165: 0 | M165: 0.00 | N165: 0.00 | O165: 0.00 | P165: 0 | Q165: 0.00 | R165: 2,927.50 | S165: 4,265,098.00 | T165: 0 | U165: 0.00 | V165: =C165-'часть 1'!L176 -> 0.00
A166: 158 | B166: ул. Фадеева, д. 34, корп. 1 | C166: 2,115,890.00 | K166: 2,115,890.00 | L166: 0 | M166: 0.00 | N166: 0.00 | O166: 0.00 | P166: 0 | Q166: 0.00 | R166: 0 | S166: 0.00 | T166: 0 | U166: 0.00 | V166: =C166-'часть 1'!L177 -> 0.00
A167: 159 | B167: ул. Хромова, д. 16 | C167: 482,251.51 | K167: 482,251.51 | L167: 0 | M167: 0.00 | N167: 0.00 | O167: 0.00 | P167: 0 | Q167: 0.00 | R167: 0 | S167: 0.00 | T167: 0 | U167: 0.00 | V167: =C167-'часть 1'!L178 -> 0.00
A168: 160 | B168: ул. Хромова, д. 8 | C168: 1,018,040.92 | K168: 0.00 | L168: 0 | M168: 0.00 | N168: 516.50 | O168: 1,018,040.92 | P168: 0 | Q168: 0.00 | R168: 0 | S168: 0.00 | T168: 0 | U168: 0.00 | V168: =C168-'часть 1'!L179 -> 0.00
A169: 161 | B169: ул. Чудова, д. 14 | C169: 1,871,554.00 | K169: 0.00 | L169: 1 | M169: 1,871,554.00 | N169: 0.00 | O169: 0.00 | P169: 0 | Q169: 0.00 | R169: 0 | S169: 0.00 | T169: 0 | U169: 0.00 | V169: =C169-'часть 1'!L180 -> 0.00
A170: 162 | B170: ул. Чудова, д. 19 | C170: 2,652,530.00 | K170: 2,652,530.00 | L170: 0 | M170: 0.00 | N170: 0.00 | O170: 0.00 | P170: 0 | Q170: 0.00 | R170: 0 | S170: 0.00 | T170: 0 | U170: 0.00 | V170: =C170-'часть 1'!L181 -> 0.00
A171: 163 | B171: ш. Московское, д. 13 | C171: 3,645,969.00 | K171: =#REF! ->  | L171: 0 | M171: 0.00 | N171: 0.00 | O171: 0.00 | P171: 0 | Q171: 0.00 | R171: 0 | S171: 0.00 | T171: 0 | U171: 0.00 | V171: =C171-'часть 1'!L182 -> 0.00
A172: 164 | B172: ш. Петербургское, д. 14, корп. 1 | C172: 771,330.00 | K172: 0.00 | L172: 0 | M172: 0.00 | N172: 376.00 | O172: 771,330.00 | P172: 0 | Q172: 0.00 | R172: 0 | S172: 0.00 | T172: 0 | U172: 0.00 | V172: =C172-'часть 1'!L183 -> 0.00
A173: 165 | B173: ш. Петербургское, д. 50 | C173: 1,894,719.00 | K173: 0.00 | L173: 1 | M173: 1,894,719.00 | N173: 0.00 | O173: 0.00 | P173: 0 | Q173: 0.00 | R173: 0 | S173: 0.00 | T173: 0 | U173: 0.00 | V173: =C173-'часть 1'!L184 -> 0.00
A174: 166 | B174: ш. Петербургское, д. 60 | C174: 1,492,412.00 | K174: 0.00 | L174: 0 | M174: 0.00 | N174: 752.00 | O174: 1,492,412.00 | P174: 0 | Q174: 0.00 | R174: 0 | S174: 0.00 | T174: 0 | U174: 0.00 | V174: =C174-'часть 1'!L185 -> 0.00
A175: 167 | B175: ш. Петербургское, д. 7А | C175: 651,523.25 | K175: 651,523.25 | L175: 0 | M175: 0.00 | N175: 0.00 | O175: 0.00 | P175: 0 | Q175: 0.00 | R175: 0 | S175: 0.00 | T175: 0 | U175: 0.00 | V175: =C175-'часть 1'!L186 -> 0.00
A176: 168 | B176: ш. Петербургское, д. 86 | C176: 1,221,424.83 | K176: 0.00 | L176: 0 | M176: 0.00 | N176: 640.00 | O176: 1,221,424.83 | P176: 0 | Q176: 0.00 | R176: 0 | S176: 0.00 | T176: 0 | U176: 0.00 | V176: =C176-'часть 1'!L187 -> 0.00
B177: Итого по город Вышний Волочек | C177: =C178+C179+C180+C181+C182+C183+C184+C185+C186+C187+C188+C189+C190+C191+C192+C193 -> 31,255,395.63 | D177: =D178+D179+D180+D181+D182+D183+D184+D185+D186+D187+D188+D189+D190+D191+D192+D193 -> 0.00 | E177: 0.00 | F177: 0.00 | G177: 0.00 | H177: 0.00 | I177: 0.00 | J177: 0.00 | K177: 0.00 | L177: 0.00 | M177: 0.00 | N177: 9,743.69 | O177: 31,255,395.63 | P177: 0.00 | Q177: 0.00 | R177: 0.00 | S177: 0.00 | T177: 0.00 | U177: 0.00 | V177: 0.00
A178: 1 | B178: ул. Баумана, д. 13 | C178: ='часть 1'!L189 -> 3,615,424.00 | D178: 0.00 | E178: 0.00 | F178: 0.00 | G178: 0.00 | H178: 0.00 | I178: 0.00 | J178: 0.00 | K178: 0.00 | L178: 0 | M178: 0.00 | N178: 1,138.00 | O178: =C178 -> 3,615,424.00 | P178: 0 | Q178: 0.00 | R178: 0 | S178: 0.00 | T178: 0 | U178: 0.00 | W178: =O178/N178 -> 3,177.00
A179: 2 | B179: ул. Б. Садовая, д. 29 | C179: ='часть 1'!L190 -> 3,435,122.02 | D179: 0.00 | E179: 0.00 | F179: 0.00 | G179: 0.00 | H179: 0.00 | I179: 0.00 | J179: 0.00 | K179: 0.00 | L179: 0 | M179: 0.00 | N179: 1,550.00 | O179: =C179 -> 3,435,122.02 | P179: 0 | Q179: 0.00 | R179: 0 | S179: 0.00 | T179: 0 | U179: 0.00 | W179: =O179/N179 -> 2,216.21
A180: 3 | B180: ул. Правды, д. 27 | C180: ='часть 1'!L191 -> 1,525,199.00 | D180: 0.00 | E180: 0.00 | F180: 0.00 | G180: 0.00 | H180: 0.00 | I180: 0.00 | J180: 0.00 | K180: 0.00 | L180: 0 | M180: 0.00 | N180: 483.10 | O180: 1,525,199.00 | P180: 0 | Q180: 0.00 | R180: 0 | S180: 0.00 | T180: 0 | U180: 0.00 | W180: 3,157.11
A181: 4 | B181: ул. Правды, д. 31/33 | C181: ='часть 1'!L192 -> 2,379,167.99 | D181: 0.00 | E181: 0.00 | F181: 0.00 | G181: 0.00 | H181: 0.00 | I181: 0.00 | J181: 0.00 | K181: 0.00 | L181: 0 | M181: 0.00 | N181: 840.00 | O181: 2,379,167.99 | P181: 0 | Q181: 0.00 | R181: 0 | S181: 0.00 | T181: 0 | U181: 0.00 | W181: 2,832.34
A182: 5 | B182: ул. Правды, д. 27а | C182: ='часть 1'!L193 -> 2,435,193.00 | D182: 0.00 | E182: 0.00 | F182: 0.00 | G182: 0.00 | H182: 0.00 | I182: 0.00 | J182: 0.00 | K182: 0.00 | L182: 0 | M182: 0.00 | N182: 770.00 | O182: 2,435,193.00 | P182: 0 | Q182: 0.00 | R182: 0 | S182: 0.00 | T182: 0 | U182: 0.00 | W182: 3,162.59
A183: 6 | B183: Казанский пр-т, д. 105 | C183: ='часть 1'!L194 -> 2,705,457.32 | D183: 0.00 | E183: 0.00 | F183: 0.00 | G183: 0.00 | H183: 0.00 | I183: 0.00 | J183: 0.00 | K183: 0.00 | L183: 0 | M183: 0.00 | O183: 2,705,457.32 | P183: 0 | Q183: 0.00 | R183: 0 | S183: 0.00 | T183: 0 | U183: 0.00
A184: 7 | B184: ул. Ст. Разина, д. 41 | C184: ='часть 1'!L195 -> 954,408.50 | D184: 0.00 | E184: 0.00 | F184: 0.00 | G184: 0.00 | H184: 0.00 | I184: 0.00 | J184: 0.00 | K184: 0.00 | L184: 0 | M184: 0.00 | N184: 451.20 | O184: 954,408.50 | P184: 0 | Q184: 0.00 | R184: 0 | S184: 0.00 | T184: 0 | U184: 0.00 | W184: 2,115.27
A185: 8 | B185: ул. Московская, д. 1/49 | C185: ='часть 1'!L196 -> 2,430,125.00 | D185: 0.00 | E185: 0.00 | F185: 0.00 | G185: 0.00 | H185: 0.00 | I185: 0.00 | J185: 0.00 | K185: 0.00 | L185: 0 | M185: 0.00 | N185: 571.03 | O185: 2,430,125.00 | P185: 0 | Q185: 0.00 | R185: 0 | S185: 0.00 | T185: 0 | U185: 0.00 | W185: 4,255.69
A186: 9 | B186: ул. Екатерининская, д. 4-6 | C186: ='часть 1'!L197 -> 2,505,651.00 | D186: 0.00 | E186: 0.00 | F186: 0.00 | G186: 0.00 | H186: 0.00 | I186: 0.00 | J186: 0.00 | K186: 0.00 | L186: 0 | M186: 0.00 | N186: 792.00 | O186: 2,505,651.00 | P186: 0 | Q186: 0.00 | R186: 0 | S186: 0.00 | T186: 0 | U186: 0.00 | W186: 3,163.70
A187: 10 | B187: Казанский пр-т, д. 93 | C187: ='часть 1'!L198 -> 1,546,987.00 | D187: 0.00 | E187: 0.00 | F187: 0.00 | G187: 0.00 | H187: 0.00 | I187: 0.00 | J187: 0.00 | K187: 0.00 | L187: 0 | M187: 0.00 | N187: 485.00 | O187: 1,546,987.00 | P187: 0 | Q187: 0.00 | R187: 0 | S187: 0.00 | T187: 0 | U187: 0.00 | W187: 3,189.66
A188: 11 | B188: Ржевский тракт, д. 44 | C188: ='часть 1'!L199 -> 709,600.00 | D188: 0.00 | E188: 0.00 | F188: 0.00 | G188: 0.00 | H188: 0.00 | I188: 0.00 | J188: 0.00 | K188: 0.00 | L188: 0 | M188: 0.00 | N188: 220.36 | O188: 709,600.00 | P188: 0 | Q188: 0.00 | R188: 0 | S188: 0.00 | T188: 0 | U188: 0.00 | W188: 3,220.19
A189: 12 | B189: ул. Шмидта, д. 79/4 | C189: ='часть 1'!L200 -> 446,509.00 | D189: 0.00 | E189: 0.00 | F189: 0.00 | G189: 0.00 | H189: 0.00 | I189: 0.00 | J189: 0.00 | K189: 0.00 | L189: 0 | M189: 0.00 | N189: 135.80 | O189: 446,509.00 | P189: 0 | Q189: 0.00 | R189: 0 | S189: 0.00 | T189: 0 | U189: 0.00 | W189: 3,287.99
A190: 13 | B190: ул. Декабристов, д. 9 | C190: ='часть 1'!L201 -> 1,205,824.00 | D190: 0.00 | E190: 0.00 | F190: 0.00 | G190: 0.00 | H190: 0.00 | I190: 0.00 | J190: 0.00 | K190: 0.00 | L190: 0 | M190: 0.00 | N190: 380.00 | O190: 1,205,824.00 | P190: 0 | Q190: 0.00 | R190: 0 | S190: 0.00 | T190: 0 | U190: 0.00 | W190: 3,173.22
A191: 14 | B191: ул. Новгородская, д. 4 | C191: ='часть 1'!L202 -> 818,595.80 | D191: 0.00 | E191: 0.00 | F191: 0.00 | G191: 0.00 | H191: 0.00 | I191: 0.00 | J191: 0.00 | K191: 0.00 | L191: 0 | M191: 0.00 | N191: 250.00 | O191: 818,595.80 | P191: 0 | Q191: 0.00 | R191: 0 | S191: 0.00 | T191: 0 | U191: 0.00 | W191: 3,274.38
A192: 15 | B192: Лермонтовский пер., д. 16 | C192: ='часть 1'!L203 -> 2,707,283.00 | D192: 0.00 | E192: 0.00 | F192: 0.00 | G192: 0.00 | H192: 0.00 | I192: 0.00 | J192: 0.00 | K192: 0.00 | L192: 0 | M192: 0.00 | N192: 1,095.00 | O192: 2,707,283.00 | P192: 0 | Q192: 0.00 | R192: 0 | S192: 0.00 | T192: 0 | U192: 0.00 | W192: 2,472.40
A193: 16 | B193: ул. 4-я Пролетарская, д. 98/2 | C193: ='часть 1'!L204 -> 1,834,849.00 | D193: 0.00 | E193: 0.00 | F193: 0.00 | G193: 0.00 | H193: 0.00 | I193: 0.00 | J193: 0.00 | K193: 0.00 | L193: 0 | M193: 0.00 | N193: 582.20 | O193: 1,834,849.00 | P193: 0 | Q193: 0.00 | R193: 0 | S193: 0.00 | T193: 0 | U193: 0.00 | W193: 3,151.58
B194: Итого по город Кимры | C194: =C195 -> 366,350.00 | D194: =D195 -> 366,350.00 | E194: 0.00 | F194: 366,350.00 | G194: 0.00 | H194: 0.00 | I194: 0.00 | J194: 0.00 | K194: 0.00 | L194: 0.00 | M194: 0.00 | N194: 0.00 | O194: 0.00 | P194: 0.00 | Q194: 0.00 | R194: 0.00 | S194: 0.00 | T194: 0.00 | U194: 0.00
A195: 177 | B195: ул. Кириллова, д. 14 | C195: ='часть 1'!L206 -> 366,350.00 | D195: =E195+F195+G195+H195+I195+J195+K195 -> 366,350.00 | E195: 0.00 | F195: 366,350.00 | G195: 0.00 | H195: 0.00 | I195: 0.00 | J195: 0.00 | K195: 0.00 | L195: 0 | M195: 0.00 | N195: 0.00 | O195: 0.00 | P195: 0 | Q195: 0.00 | R195: 0 | S195: 0.00 | T195: 0 | U195: 0.00 | AA195: =F195/'часть 1'!I206 -> 923.2610887
B196: Итого по город Ржев | C196: =C197+C198+C199+C200+C201+C202+C203+C204+C205+C206+C207+C208 -> 31,146,002.00 | D196: =D197+D198+D199+D200+D201+D202+D203+D204+D205+D206+D207+D208 -> 0.00 | E196: 0.00 | F196: 0.00 | G196: 0.00 | H196: 0.00 | I196: 0.00 | J196: 0.00 | K196: 0.00 | L196: 0.00 | M196: 0.00 | N196: 10,349.57 | O196: 31,146,002.00 | P196: 0.00 | Q196: 0.00 | R196: 0.00 | S196: 0.00 | T196: 0.00 | U196: 0.00
A197: 178 | B197: ул. Тертия Филиппова, 86а | C197: ='часть 1'!L208 -> 2,706,084.00 | D197: 0.00 | E197: 0.00 | F197: 0.00 | G197: 0.00 | H197: 0.00 | I197: 0.00 | J197: 0.00 | K197: 0.00 | L197: 0 | M197: 0.00 | N197: 863.80 | O197: 2,706,084.00 | P197: 0 | Q197: 0.00 | R197: 0 | S197: 0.00 | T197: 0 | U197: 0.00 | W197: =O197/N197 -> 3,132.77
A198: 179 | B198: ул. Карла Маркса, 20/16 | C198: ='часть 1'!L209 -> 1,419,136.00 | D198: 0.00 | E198: 0.00 | F198: 0.00 | G198: 0.00 | H198: 0.00 | I198: 0.00 | J198: 0.00 | K198: 0.00 | L198: 0 | M198: 0.00 | N198: 448.92 | O198: 1,419,136.00 | P198: 0 | Q198: 0.00 | R198: 0 | S198: 0.00 | T198: 0 | U198: 0.00 | W198: =O198/N198 -> 3,161.22
A199: 180 | B199: ул. Садовая, 20/30 | C199: ='часть 1'!L210 -> 3,552,093.00 | D199: 0.00 | E199: 0.00 | F199: 0.00 | G199: 0.00 | H199: 0.00 | I199: 0.00 | J199: 0.00 | K199: 0.00 | L199: 0 | M199: 0.00 | N199: 1,135.00 | O199: 3,552,093.00 | P199: 0 | Q199: 0.00 | R199: 0 | S199: 0.00 | T199: 0 | U199: 0.00 | W199: 3,129.60
A200: 181 | B200: ул. Большая Спасская, 18/50 | C200: ='часть 1'!L211 -> 2,154,879.00 | D200: 0.00 | E200: 0.00 | F200: 0.00 | G200: 0.00 | H200: 0.00 | I200: 0.00 | J200: 0.00 | K200: 0.00 | L200: 0 | M200: 0.00 | N200: 682.50 | O200: 2,154,879.00 | P200: 0 | Q200: 0.00 | R200: 0 | S200: 0.00 | T200: 0 | U200: 0.00 | W200: 3,157.33
... 1163 more rows

Sheet часть 3 (hidden)
A1: III. Планируемые показатели выполнения работ по капитальному ремонту многоквартирных домов
A2: № п/п | B2: Наименование муниципального образования | C2: Общая площадь МКД, всего | D2: Количество жителей, зарегистрированных в МКД на дату утверждения краткосрочного плана | E2: Количество МКД | J2: Стоимость капитального ремонта
E3: I квартал | F3: II квартал | G3: III квартал | H3: IV квартал | I3: всего | J3: I квартал | K3: II квартал | L3: III квартал | M3: IV квартал | N3: всего
C4: кв. м | D4: чел. | E4: ед. | F4: ед. | G4: ед. | H4: ед. | I4: ед. | J4: руб. | K4: руб. | L4: руб. | M4: руб. | N4: руб.
A5: 1 | B5: 2 | C5: 3 | D5: 4 | E5: 5 | F5: 6 | G5: 7 | H5: 8 | I5: 9 | J5: 10 | K5: 11 | L5: 12 | M5: 13 | N5: 14
B6: Итого по Тверской области | C6: =C7+C8+C9+C10+C11+C12+C14+C16+C18++C20+C23+C25+C33+C35+C37+C40+C46+C48+C51+C55+C64+C66+C68+C72+C74+C76+C79+C82+C84+C89+C92+C94+C96+C99+C101+C102 -> 468,830.95 | D6: =D7+D8+D9+D10+D11+D12+D14+D16+D18++D20+D23+D25+D33+D35+D37+D40+D46+D48+D51+D55+D64+D66+D68+D72+D74+D76+D79+D82+D84+D89+D92+D94+D96+D99+D101+D102 -> 15,600 | E6: =E7+E8+E9+E10+E11+E12+E14+E16+E18+E20+E23+E25+E33+E35+E37+E40+E46+E48+E51+E55+E64+E66+E68+E72+E74+E76+E79+E82+E84+E89+E92+E94+E99+E101+E102 -> 0 | F6: =F7+F8+F9+F10+F11+F12+F14+F16+F18+F20+F23+F25+F33+F35+F37+F40+F46+F48+F51+F55+F64+F66+F68+F72+F74+F76+F79+F82+F84+F89+F92+F94+F99+F101+F102 -> 2 | G6: =G7+G8+G9+G10+G11+G12+G14+G16+G18+G20+G23+G25+G33+G35+G37+G40+G46+G48+G51+G55+G64+G66+G68+G72+G74+G76+G79+G82+G84+G89+G92+G94+G96+G99+G101+G102 -> 7 | H6: =H7+H8+H9+H10+H11+H12+H14+H16+H18+H20+H23+H25+H33+H35+H37+H40+H46+H48+H51+H55+H64+H66+H68+H72+H74+H76+H79+H82+H84+H89+H92+H94+H96+H99+H101+H102 ->  | I6: =I7+I8+I9+I10+I11+I12+I14+I16+I18+I20+I23+I25+I33+I35+I37+I40+I46+I48+I51+I55+I64+I66+I68+I72+I74+I76+I79+I82+I84+I89+I92+I94+I96+I99+I101+I102 ->  | J6: =J7+J8+J9+J10+J11+J12+J14+J16+J18+J20+J23+J25+J33+J35+J37+J40+J46+J48+J51+J55+J64+J66+J68+J72+J74+J76+J79+J82+J84+J89+J92+J94+J99+J101+J102 -> 0.00 | K6: =K7+K8+K9+K10+K11+K12+K14+K16+K18+K20+K23+K25+K33+K35+K37+K40+K46+K48+K51+K55+K64+K66+K68+K72+K74+K76+K79+K82+K84+K89+K92+K94+K99+K101+K102 -> 3,666,180.00 | L6: =L7+L8+L9+L10+L11+L12+L14+L16+L18+L20+L23+L25+L33+L35+L37+L40+L46+L48+L51+L55+L64+L66+L68+L72+L74+L76+L79+L82+L84+L89+L92+L94+L99+L101+L102 -> 7,158,350.07 | M6: =M7+M8+M9+M10+M11+M12+M14+M16+M18+M20+M23+M25+M33+M35+M37+M40+M46+M48+M51+M55+M64+M66+M68+M72+M74+M76+M79+M82+M84+M89+M92+M94+M96+M99+M101+M102 -> 667,981,123.18 | N6: =N7+N8+N9+N10+N11+N12+N14+N16+N18+N20+N23+N25+N33+N35+N37+N40+N46+N48+N51+N55+N64+N66+N68+N72+N74+N76+N79+N82+N84+N89+N92+N94+N96+N99+N101+N102 -> 689,255,460.85
A7: 1 | B7: Итого по город Тверь | C7: ='часть 1'!H19 -> 0.00 | D7: ='часть 1'!K19 -> 0 | E7: 0 | F7: 0 | G7: 0 | H7: 168 | I7: =H7+G7 -> 168 | J7: 0.00 | K7: 0.00 | L7: 0.00 | M7: ='часть 1'!L19 -> 336,230,870.63 | N7: =M7 -> 336,230,870.63
A8: 2 | B8: Итого по город Вышний Волочек | C8: ='часть 1'!H188 -> 25,162.00 | D8: ='часть 1'!K188 -> 816 | E8: 0 | F8: 0 | G8: 0 | H8: 16 | I8: =H8+G8 -> 16 | J8: 0.00 | K8: 0.00 | L8: 0.00 | M8: ='часть 1'!L188 -> 31,255,395.63 | N8: 31,255,395.63
A9: 3 | B9: Итого по город Кимры | C9: ='часть 1'!H205 -> 432.80 | D9: ='часть 1'!K205 -> 27 | E9: 0 | F9: 0 | G9: 0 | H9: 1 | I9: 1 | J9: 0.00 | K9: 0.00 | L9: 0.00 | M9: ='часть 1'!L205 -> 366,350.00 | N9: 366,350.00
A10: 4 | B10: Итого по город Ржев | C10: ='часть 1'!H207 -> 19,486.90 | D10: ='часть 1'!K207 -> 669 | E10: 0 | F10: 0 | G10: 0 | H10: 12 | I10: 12 | J10: 0.00 | K10: 0.00 | L10: 0.00 | M10: ='часть 1'!L207 -> 31,146,002.00 | N10: =M10 -> 31,146,002.00
A11: 5 | B11: Итого по город Торжок | C11: ='часть 1'!H231 -> 27,680.90 | D11: ='часть 1'!K231 -> 984 | E11: 0 | F11: 0 | G11: 0 | H11: 9 | I11: 9 | J11: 0.00 | K11: 0.00 | L11: 0.00 | M11: ='часть 1'!L231 -> 26,467,626.00 | N11: 26,467,626.00
A12: 6 | B12: Итого по ЗАТО Озерный | C12: ='часть 1'!H244 -> 34,678.06 | D12: ='часть 1'!K244 -> 1,002 | E12: 0 | F12: 0 | G12: 0 | H12: 5 | I12: 5 | J12: 0.00 | K12: 0.00 | L12: 0.00 | M12: ='часть 1'!L244 -> 11,767,484.00 | N12: 11,767,484.00
B13: Итого по ЗАТО Солнечный | C13: ='часть 1'!H257 -> 4,284.70 | D13: ='часть 1'!K257 -> 97 | E13: 0 | F13: 1 | G13: 1 | H13: 0 | I13: =H13+G13+F13+E13 -> 2 | J13: 0.00 | K13: 898,332.00 | L13: 1,914,360.00 | M13: 0.00 | N13: =M13+L13+K13+J13 -> 2,812,692.00
B14: Андреапольский район | C14: =C15 -> 3,033.70 | D14: =D15 -> 100.00 | E14: 0.00 | F14: 0.00 | G14: 0.00 | H14: 7.00 | I14: 7.00 | J14: 0.00 | K14: 0.00 | L14: 0.00 | M14: 5,868,972.00 | N14: 5,868,972.00
A15: 7 | B15: Итого по городское поселение город Андреаполь | C15: ='часть 1'!H261 -> 3,033.70 | D15: ='часть 1'!K261 -> 100 | E15: 0 | F15: 0 | G15: 0 | H15: 7 | I15: 7 | J15: 0.00 | K15: 0.00 | L15: 0.00 | M15: ='часть 1'!L260 -> 5,868,972.00 | N15: =M15 -> 5,868,972.00
B16: Бежецкий район | C16: =C17 -> 21,724.20 | D16: =D17 -> 832 | E16: 0 | F16: 0 | G16: 0 | H16: =H17 -> 10 | I16: 10 | J16: 0.00 | K16: 0.00 | L16: 0.00 | M16: ='часть 1'!L269 -> 22,562,280.00 | N16: 22,562,280.00
A17: 8 | B17: Итого по городское поселение город Бежецк | C17: ='часть 1'!H269 -> 21,724.20 | D17: ='часть 1'!K270 -> 832 | E17: 0 | F17: 0 | G17: 0 | H17: 10 | I17: 10 | J17: 0.00 | K17: 0.00 | L17: 0.00 | M17: ='часть 1'!L269 -> 22,562,280.00 | N17: =M17 -> 22,562,280.00
B18: Бельский район | C18: =C19 -> 362.90 | D18: =D19 -> 15.00 | E18: 0.00 | F18: 0.00 | G18: 0.00 | H18: 1.00 | I18: 1.00 | J18: 0.00 | K18: 0.00 | L18: 0.00 | M18: 241,114.00 | N18: 241,114.00
A19: 9 | B19: Итого по городское поселение город Белый | C19: ='часть 1'!H282 -> 362.90 | D19: ='часть 1'!K282 -> 15 | E19: 0 | F19: 0 | G19: 0 | H19: 1 | I19: 1 | J19: 0.00 | K19: 0.00 | L19: 0.00 | M19: ='часть 1'!L282 -> 241,114.00 | N19: =M19 -> 241,114.00
B20: Бологовский район | C20: =C21+C22 -> 23,164.56 | D20: =D21+D22 -> 853.0 | E20: =E21+E22 -> 0 | F20: =F21+F22 -> 0 | G20: 0 | J20: =J21+J22 -> 0.00 | K20: =K21+K22 -> 0.00 | L20: 0.00 | M20: 23,032,470.00 | N20: 23,032,470.00
A21: 10 | B21: Итого по городскому поселению город Бологое | C21: ='часть 1'!H285 -> 20,106.56 | D21: ='часть 1'!K285 -> 735 | E21: 0 | F21: 0 | G21: 0 | H21: ='часть 2'!#REF! ->  | J21: 0.00 | K21: 0.00 | L21: 0.00 | M21: ='часть 1'!L285 -> 20,696,312.00 | N21: =M21 -> 20,696,312.00
A22: 11 | B22: Итого по Валдайскому сельскому поселению | C22: ='часть 1'!H300 -> 3,058.00 | D22: ='часть 1'!K300 -> 118 | E22: 0 | F22: 0 | G22: 0 | H22: 2 | I22: 2 | J22: 0.00 | K22: 0.00 | L22: 0.00 | M22: ='часть 1'!L300 -> 2,336,158.00 | N22: =M22 -> 2,336,158.00
B23: Весьегонский район | C23: =C24 -> 1,753.90 | D23: =D24 -> 60 | E23: 0 | F23: 0 | G23: 0 | H23: 2 | I23: 2 | J23: 0.00 | K23: 0.00 | L23: 0.00 | M23: ='часть 1'!L303 -> 2,561,132.00 | N23: 2,561,132.00
A24: =A22+1 -> 12 | B24: Итого по городское поселение город Весьегонск | C24: ='часть 1'!H304 -> 1,753.90 | D24: ='часть 1'!K304 -> 60 | E24: 0 | F24: 0 | G24: 0 | H24: 2 | I24: 2 | J24: 0.00 | K24: 0.00 | L24: 0.00 | M24: ='часть 1'!L303 -> 2,561,132.00 | N24: =M24 -> 2,561,132.00
B25: Вышневолоцкий район | C25: =C26+C27+C28+C29+C30+C31+C32 -> 12,862.18 | D25: =D26+D27+D28+D29+D30+D31+D32 -> 459.00 | E25: 0.00 | F25: 0.00 | G25: 0.00 | H25: 5.00 | I25: 5.00 | J25: 0.00 | K25: 0.00 | L25: 0.00 | M25: 9,578,601.00 | N25: 9,578,601.00
A26: =A24+1 -> 13 | B26: Итого по городское поселение поселок Красномайский | C26: ='часть 1'!H308 -> 3,536.00 | D26: ='часть 1'!K308 -> 153 | E26: 0 | F26: 0 | G26: 0 | H26: 1 | I26: 1 | J26: 0.00 | K26: 0.00 | L26: 0.00 | M26: ='часть 1'!L308 -> 2,256,851.00 | N26: =M26 -> 2,256,851.00
B27: Итого по Горняцкое сельское поселение | C27: ='часть 1'!H311 -> 1,426.08 | D27: ='часть 1'!K311 -> 47 | E27: 0 | F27: 0 | G27: 0 | H27: 1 | I27: 1 | J27: 0.00 | K27: 0.00 | L27: 0.00 | M27: 1,826,091.00 | N27: =M27+L27+K27+J27 -> 1,826,091.00
A28: =A26+1 -> 14 | B28: Итого по Коломенское сельское поселение | C28: ='часть 1'!H312 -> 961.20 | D28: ='часть 1'!K312 -> 37 | E28: 0 | F28: 0 | G28: 0 | H28: 1 | I28: 1 | J28: 0.00 | K28: 0.00 | L28: 0.00 | M28: ='часть 1'!L312 -> 1,602,324.00 | N28: =M28 -> 1,602,324.00
A29: =A28+1 -> 15 | B29: Итого по Солнечное сельское поселение | C29: ='часть 1'!H314 -> 3,346.30 | D29: ='часть 1'!K314 -> 128 | E29: 0 | F29: 0 | G29: 0 | H29: 1 | I29: 1 | J29: 0.00 | K29: 0.00 | L29: 0.00 | M29: ='часть 1'!L314 -> 1,986,648.00 | N29: =M29 -> 1,986,648.00
A30: =A29+1 -> 16 | B30: Итого по Сорокинское сельское поселение | C30: ='часть 1'!H316 -> 0.00 | D30: ='часть 1'!K316 -> 0 | E30: 0 | F30: 0 | G30: 0 | H30: 0 | I30: 0 | J30: 0.00 | K30: 0.00 | L30: 0.00 | M30: ='часть 1'!L316 -> 0.00 | N30: =M30 -> 0.00
A31: =A30+1 -> 17 | B31: Итого по Терелесовское сельское поселение | C31: ='часть 1'!H317 -> 0.00 | D31: ='часть 1'!K317 -> 0 | E31: 0 | F31: 0 | G31: 0 | H31: 0 | I31: 0 | J31: 0.00 | K31: 0.00 | L31: 0.00 | M31: ='часть 1'!L317 -> 0.00 | N31: =M31 -> 0.00
B32: Итого по Холохоленское сельское поселение | C32: ='часть 1'!H319 -> 3,592.60 | D32: ='часть 1'!K319 -> 94 | E32: 0 | F32: 0 | G32: 0 | H32: 1 | I32: 1 | J32: 0.00 | K32: 0.00 | L32: 0.00 | M32: ='часть 1'!L319 -> 1,906,687.00 | N32: =M32+L32+K32+J32 -> 1,906,687.00
B33: Жарковский район | C33: ='часть 1'!H320 -> 525.40 | D33: ='часть 1'!K320 -> 21 | E33: =E34 -> 0 | F33: 0 | G33: 0 | H33: 1 | I33: 1 | J33: 0.00 | K33: 0.00 | L33: 0.00 | M33: 1,415,265.00 | N33: 1,415,265.00
A34: =A31+1 -> 18 | B34: Итого по городское поселение поселок Жарковский | C34: ='часть 1'!H321 -> 525.40 | D34: ='часть 1'!K320 -> 21 | E34: 0 | F34: 0 | G34: 0 | H34: 1 | I34: 1 | J34: 0.00 | K34: 0.00 | L34: 0.00 | M34: ='часть 1'!L321 -> 1,415,265.00 | N34: =M34 -> 1,415,265.00
B35: Западнодвинский район | C35: ='часть 1'!H324 -> 3,715.20 | D35: ='часть 1'!K324 -> 106 | E35: =E36 -> 0 | F35: 0 | G35: 0 | H35: =H36 -> 5 | I35: 5 | J35: 0.00 | K35: 0.00 | L35: 0.00 | M35: 6,592,116.00 | N35: 6,592,116.00
A36: =A34+1 -> 19 | B36: Итого по городское поселение город Западная Двина | C36: ='часть 1'!H325 -> 3,715.20 | D36: ='часть 1'!K325 -> 106 | E36: 0 | F36: 0 | G36: 0 | H36: 5 | I36: 5 | J36: 0.00 | K36: 0.00 | L36: 0.00 | M36: ='часть 1'!L325 -> 6,592,116.00 | N36: =M36 -> 6,592,116.00
B37: Зубцовский район | C37: ='часть 1'!H331 -> 1,348.80 | D37: ='часть 1'!K331 -> 52 | E37: =E38+E39 -> 0 | F37: 0 | G37: 0 | H37: =H38+H39 ->  | J37: 0.00 | K37: 0.00 | L37: 0.00 | M37: 3,699,748.00 | N37: 3,699,748.00
A38: =A36+1 -> 20 | B38: Итого по городское поселение город Зубцов | C38: ='часть 1'!H332 -> 1,083.30 | D38: ='часть 1'!K332 -> 50 | E38: 0 | F38: 0 | G38: 0 | H38: 2 | I38: 2 | J38: 0.00 | K38: 0.00 | L38: 0.00 | M38: ='часть 1'!L332 -> 3,145,909.00 | N38: =M38 -> 3,145,909.00
A39: =A38+1 -> 21 | B39: Итого по Погорельское сельское поселение | C39: ='часть 1'!H336 -> 265.50 | D39: ='часть 1'!K336 -> 2 | E39: 0 | F39: 0 | G39: 0 | H39: ='часть 2'!#REF! ->  | J39: 0.00 | K39: 0.00 | L39: 0.00 | M39: ='часть 1'!L336 -> 553,839.00 | N39: 553,839.00
B40: Калининский район | C40: ='часть 1'!H338 -> 8,221.40 | D40: ='часть 1'!K338 -> 388 | E40: =E41 -> 0 | F40: 0 | G40: =G41+G43+G44+G45 -> 1 | H40: =H41+H43+H44+H45 -> 2 | I40: 3 | J40: 0.00 | K40: 0.00 | L40: =L43 -> 1,905,804.00 | M40: =SUM(M41:M45) -> 6,108,282.00 | N40: =SUM(N41:N45) -> 18,463,893.60
A41: =A39+1 -> 22 | B41: Итого пео городское поселение поселок Орша | C41: ='часть 1'!H339 -> 1,542.70 | D41: ='часть 1'!K339 -> 78 | E41: 0 | F41: 0 | G41: 0 | H41: 1 | I41: 1 | J41: 0.00 | K41: 0.00 | L41: 0.00 | M41: ='часть 1'!L339 -> 5,287,622.00 | N41: 5,287,622.00
B42: Итого по Бурашевское сельское поселение | C42: ='часть 1'!H341 -> 1,774.00 | D42: ='часть 1'!K341 -> 99 | E42: 0 | F42: 0 | G42: 2 | H42: 0 | I42: 2 | J42: 0.00 | K42: 0.00 | L42: ='часть 1'!L341 -> 7,561,422.60 | M42: 0.00 | N42: =M42+L42+K42+J42 -> 7,561,422.60
A43: =A41+1 -> 23 | B43: Итого по Верхневолжское сельское поселение | C43: ='часть 1'!H344 -> 1,595.10 | D43: ='часть 1'!K344 -> 87 | E43: 0 | F43: 0 | G43: 0 | H43: 0 | I43: 0 | J43: 0.00 | K43: 0.00 | L43: ='часть 1'!L344 -> 1,905,804.00 | M43: 0.00 | N43: =L43 -> 1,905,804.00
A44: =A43+1 -> 24 | B44: Итого по Щербининское сельское поселение | C44: ='часть 1'!H347 -> 506.90 | D44: ='часть 1'!K347 -> 7 | E44: 0 | F44: 0 | G44: 0 | H44: 1 | I44: 1 | J44: 0.00 | K44: 0.00 | L44: 0.00 | M44: ='часть 1'!L347 -> 820,660.00 | N44: =M44 -> 820,660.00
A45: =A44+1 -> 25 | B45: Итого по Эмаусское сельское поселение | C45: ='часть 1'!H349 -> 4,576.70 | D45: ='часть 1'!K349 -> 216 | E45: 0 | F45: 0 | G45: 1 | H45: 0 | I45: 1 | J45: 0.00 | K45: 0.00 | L45: 2,888,385.00 | M45: 0.00 | N45: 2,888,385.00
B46: Калязинский район | C46: =C47 -> 6,412.52 | D46: =D47 -> 202 | E46: 0 | F46: 0 | G46: 0 | H46: 9 | I46: 9 | J46: 0.00 | K46: 0.00 | L46: 0.00 | M46: 14,213,854.00 | N46: 14,213,854.00
A47: =A45+1 -> 26 | B47: Итого по городское поселение город Калязин | C47: ='часть 1'!H353 -> 6,412.52 | D47: ='часть 1'!K353 -> 202 | E47: 0 | F47: 0 | G47: 0 | H47: 9 | I47: 9 | J47: 0.00 | K47: 0.00 | L47: 0.00 | M47: ='часть 1'!L352 -> 14,213,854.00 | N47: =M47 -> 14,213,854.00
B48: Кашинский район | C48: =C49 -> 7,394.60 | D48: =D49 -> 302 | E48: 0 | F48: 0 | G48: 0 | H48: 8 | I48: 8 | J48: 0.00 | K48: 0.00 | L48: 0.00 | M48: 11,379,869.00 | N48: 11,379,869.00
A49: =A47+1 -> 27 | B49: Итого по городское поселение город Кашин | C49: ='часть 1'!H363 -> 7,394.60 | D49: ='часть 1'!K363 -> 302 | E49: 0 | F49: 0 | G49: 0 | H49: 8 | I49: 8 | J49: 0.00 | K49: 0.00 | L49: 0.00 | M49: ='часть 1'!L364 -> 11,379,869.00 | N49: =M49 -> 11,379,869.00
B50: Итого по Верхнетроицкое сельское поселение | C50: ='часть 1'!H373 -> 1,087.70 | D50: ='часть 1'!K373 -> 55 | E50: 0 | F50: 0 | G50: 2 | H50: 0 | I50: 2 | J50: 0.00 | K50: 0.00 | L50: 2,903,743.00 | M50: 0.00 | N50: =M50+L50+K50+J50 -> 2,903,743.00
B51: Кимрский район | C51: =C53+C52+C54 -> 2,360.40 | D51: =D53+D52+D54 -> 81 | E51: =E53+E52 -> 0 | F51: =F53+F52 -> 0 | G51: 1 | H51: =H53+H52+H54 -> 2 | I51: 3 | J51: =J53 -> 0.00 | K51: 0.00 | L51: 0.00 | M51: =M53+M52+M54 -> 1,292,346.00 | N51: =M51 -> 1,292,346.00
A52: =A49+1 -> 28 | B52: Итого по городское поселение поселок Белый Городок | C52: ='часть 1'!H377 -> 704.60 | D52: ='часть 1'!K377 -> 16 | E52: 0 | F52: 0 | G52: 1 | H52: 0 | I52: 1 | J52: 0.00 | K52: 0.00 | L52: 1,828,731.00 | M52: 0.00 | N52: 1,828,731.00
A53: =A52+1 -> 29 | B53: Итого по Быковское сельское поселение | C53: ='часть 1'!H380 -> 799.30 | D53: ='часть 1'!K380 -> 32 | E53: 0 | F53: 0 | G53: 0 | H53: 1 | I53: 1 | J53: 0.00 | K53: 0.00 | L53: 0.00 | M53: 201,010.00 | N53: =M53 -> 201,010.00
A54: =A53+1 -> 30 | B54: Итого по Приволжское сельское поселение | C54: ='часть 1'!H382 -> 856.50 | D54: ='часть 1'!K382 -> 33 | E54: 0 | F54: 0 | G54: 0 | H54: 1 | I54: 1 | J54: 0.00 | K54: 0.00 | L54: 0.00 | M54: ='часть 1'!L382 -> 1,091,336.00 | N54: =M54 -> 1,091,336.00
B55: Конаковский район | C55: ='часть 1'!H384+'часть 1'!H524 -> 125,982.90 | D55: ='часть 1'!K384+'часть 1'!K524 -> 3,722 | E55: =E58+E61+E62+E56 -> 0 | F55: 0 | G55: 0 | H55: =H58+H61+H59+H62+H56+H57+H63 -> 22 | I55: 22 | J55: 0.00 | K55: 0.00 | L55: 0.00 | M55: =M58+M61+M59+M62+M56+M57+M63 -> 54,292,021.92 | N55: =M55 -> 54,292,021.92
A56: =A54+1 -> 31 | B56: Итого по городское поселение город Конаково | C56: ='часть 1'!H385 -> 77,350.00 | D56: ='часть 1'!K385 -> 2,037 | E56: 0 | F56: 0 | G56: 0 | H56: 10 | I56: 10 | J56: 0.00 | K56: 0.00 | L56: 0.00 | M56: ='часть 2'!C375 -> 31,676,745.00 | N56: 31,676,745.00
A57: =A56+1 -> 32 | B57: Итого по городское поселение поселок Изоплит | C57: ='часть 1'!H397 -> 2,337.40 | D57: ='часть 1'!K397 -> 91 | E57: 0 | F57: 0 | G57: 0 | H57: 3 | I57: 3 | J57: 0.00 | K57: 0.00 | L57: 0.00 | M57: ='часть 1'!L397 -> 5,439,639.00 | N57: =M57 -> 5,439,639.00
A58: 33 | B58: Итого по городское поселение поселок Козлово | C58: ='часть 1'!H403 -> 1,494.00 | D58: ='часть 1'!K403 -> 59 | E58: 0 | F58: 0 | G58: 0 | H58: 1 | I58: 1 | J58: 0.00 | K58: 0.00 | L58: 0.00 | M58: ='часть 1'!L403 -> 2,476,043.00 | N58: 2,476,043.00
A59: 34 | B59: Итого по городское поселение поселок Редкино | C59: ='часть 1'!H405 -> 13,933.00 | D59: ='часть 1'!K405 -> 553 | E59: 0 | F59: 0 | G59: 0 | H59: 4 | I59: 4 | J59: 0.00 | K59: 0.00 | L59: 0.00 | M59: ='часть 1'!L405 -> 11,027,716.00 | N59: 11,027,716.00
B60: Итого по городское поселение поселок Радченко | C60: ='часть 1'!H412 -> 5,520.20 | D60: ='часть 1'!K412 -> 173 | E60: 0 | F60: 0 | G60: 0 | H60: 2 | I60: 2 | J60: 0.00 | K60: 0.00 | L60: 0.00 | M60: 4,521,219.00 | N60: 4,521,219.00
A61: =A59+1 -> 35 | B61: Итого по Городенское сельское поселение | C61: ='часть 1'!H415 -> 625.90 | D61: ='часть 1'!K415 -> 32 | E61: 0 | F61: 0 | G61: 0 | H61: 1 | I61: 1 | J61: 0.00 | K61: 0.00 | L61: 0.00 | M61: ='часть 1'!L415 -> 1,540,610.00 | N61: 1,540,610.00
A62: 36 | B62: Итого по Дмитровогорское сельское поселение | C62: ='часть 1'!H417 -> 533.50 | D62: ='часть 1'!K417 -> 54 | E62: 0 | F62: 0 | G62: 0 | H62: 1 | I62: 1 | J62: 0.00 | K62: 0.00 | L62: 0.00 | M62: ='часть 1'!L417 -> 657,835.92 | N62: 657,835.92
A63: 37 | B63: Итого по сельское поселение "Завидово" | C63: ='часть 1'!H419 -> 1,150.10 | D63: ='часть 1'!K419 -> 58 | E63: 0 | F63: 0 | G63: 0 | H63: 2 | I63: 2 | J63: 0.00 | K63: 0.00 | L63: 0.00 | M63: ='часть 1'!L419 -> 1,473,433.00 | N63: 1,473,433.00
B64: Краснохолмский район | C64: =C65 -> 1,983.00 | D64: =D65 -> 80 | E64: 0 | F64: 0 | G64: 0 | J64: 0.00 | K64: 0.00 | L64: 0.00 | M64: 2,222,747.00 | N64: 2,222,747.00
A65: =A63+1 -> 38 | B65: Итого по городское поселение город Красный Холм | C65: ='часть 1'!H425 -> 1,983.00 | D65: ='часть 1'!K425 -> 80 | E65: 0 | F65: 0 | G65: 0 | H65: ='часть 2'!#REF! ->  | J65: 0.00 | K65: 0.00 | L65: 0.00 | M65: ='часть 1'!L425 -> 2,222,747.00 | N65: =M65 -> 2,222,747.00
B66: Кувшиновский район | C66: =C67 -> 912.10 | D66: =D67 -> 39.00 | E66: 0.00 | F66: 0.00 | G66: 2.00 | H66: 0 | I66: 2 | J66: 0.00 | K66: 0.00 | L66: 2,809,430.00 | M66: 0.00 | N66: 2,809,430.00
A67: 38 | B67: Итого по тгородское поселение город Кувшиново | C67: ='часть 1'!H430 -> 912.10 | D67: ='часть 1'!K430 -> 39 | E67: 0 | F67: 0 | G67: 2 | H67: 0 | I67: 2 | J67: 0.00 | K67: 0.00 | L67: 2,809,430.00 | M67: 0.00 | N67: =M67+L67+K67+J67 -> 2,809,430.00
B68: Лихославльский район | C68: ='часть 1'!H434 -> 10,396.00 | D68: ='часть 1'!K434 -> 320 | E68: =E69+E70+E71 -> 0 | F68: 0 | G68: 1 | H68: 6 | I68: 7 | J68: 0.00 | K68: 0.00 | L68: 1,510,788.00 | M68: =M69+M70+M71 -> 9,278,483.00 | N68: 10,789,271.00
A69: 39 | B69: Итого по городское поселение город Лихославль | C69: ='часть 1'!H435 -> 4,140.70 | D69: ='часть 1'!K435 -> 125 | E69: 0 | F69: 0 | G69: 0 | H69: 5 | I69: 5 | J69: 0.00 | K69: 0.00 | L69: 0.00 | M69: ='часть 1'!L435 -> 6,762,929.00 | N69: =M69 -> 6,762,929.00
A70: 40 | B70: Итого по городское поселение поселок Калашниково | C70: ='часть 1'!H441 -> 4,874.10 | D70: ='часть 1'!K441 -> 127 | E70: 0 | F70: 0 | G70: 0 | H70: 1 | I70: 1 | J70: 0.00 | K70: 0.00 | L70: 0.00 | M70: ='часть 1'!L441 -> 2,515,554.00 | N70: =M70 -> 2,515,554.00
A71: 41 | B71: Итого по Вескинское сельское поселение | C71: ='часть 1'!H443 -> 1,381.20 | D71: ='часть 1'!K443 -> 68 | E71: 0 | F71: 0 | G71: 1 | H71: 0 | I71: 1 | J71: 0.00 | K71: 0.00 | L71: 1,510,788.00 | M71: 0.00 | N71: =L71 -> 1,510,788.00
B72: Максатихинский район | C72: =C73 -> 8,010.40 | D72: =D73 -> 199 | E72: 0 | F72: 0 | G72: 0 | H72: 2 | I72: 2 | J72: 0.00 | K72: 0.00 | L72: 0.00 | M72: =M73 -> 2,579,247.00 | N72: =N73 -> 2,579,247.00
A73: 42 | B73: Итого по городское поселение поселок Максатиха | C73: ='часть 1'!H446 -> 8,010.40 | D73: ='часть 1'!K446 -> 199 | E73: 0 | F73: 0 | G73: 0 | H73: 2 | I73: 2 | J73: 0.00 | K73: 0.00 | L73: 0.00 | M73: ='часть 1'!L445 -> 2,579,247.00 | N73: =M73 -> 2,579,247.00
B74: Нелидовский район | C74: =C75 -> 17,371.80 | D74: ='часть 1'!K449+'часть 1'!K533 -> 538 | E74: =E75 -> 0 | F74: 0 | G74: 0 | J74: 0.00 | K74: 0.00 | L74: 0.00 | M74: 12,228,909.00 | N74: 12,228,909.00
A75: 43 | B75: Итого по городское поселение город Нелидово | C75: ='часть 1'!H449+'часть 1'!H534 -> 17,371.80 | D75: ='часть 1'!K534+'часть 1'!K450 -> 538 | E75: 0 | F75: 0 | G75: 0 | H75: ='часть 2'!#REF! ->  | J75: 0.00 | K75: 0.00 | L75: 0.00 | M75: ='часть 2'!C444 -> 12,228,909.00 | N75: =M75 -> 12,228,909.00
B76: Оленинский район | C76: =C77+C78 -> 26,864.30 | D76: =D77+D78 -> 879.00 | E76: 0.00 | F76: 0.00 | G76: 0.00 | H76: 42.00 | I76: 42.00 | J76: 0.00 | K76: 0.00 | L76: 0.00 | M76: 4,724,118.00 | N76: 4,724,118.00
A77: 44 | B77: Итого по городское поселение поселок Оленино | C77: ='часть 1'!H537 -> 4,504.30 | D77: ='часть 1'!K537 -> 203 | E77: 0 | F77: 0 | G77: 0 | H77: 7 | I77: 7 | J77: 0.00 | K77: 0.00 | L77: 0.00 | M77: ='часть 1'!L537 -> 1,839,043.00 | N77: =M77 -> 1,839,043.00
A78: 45 | B78: Итого по Мостовское сельское поселение | C78: ='часть 1'!H545 -> 22,360.00 | D78: ='часть 1'!K545 -> 676 | E78: 0 | F78: 0 | G78: 0 | H78: 35 | I78: =H78+G78 -> 35 | J78: 0.00 | K78: 0.00 | L78: 0.00 | M78: ='часть 1'!L545 -> 2,885,075.00 | N78: =M78 -> 2,885,075.00
B79: Осташковский район | C79: ='часть 1'!H460 -> 8,449.80 | D79: ='часть 1'!K460 -> 357 | E79: =E81 -> 0 | F79: 2 | G79: 0 | H79: 0 | I79: =H79+G79+F79+E79 -> 2 | J79: 0.00 | K79: 3,666,180.00 | L79: 0.00 | M79: 0.00 | N79: 3,666,180.00
B80: Пеновский район | C80: ='часть 1'!H466 -> 318.70 | D80: ='часть 1'!K466 -> 14 | E80: 0 | F80: 0 | G80: 0 | H80: 1 | I80: =H80+G80+F80+E80 -> 1 | J80: 0.00 | K80: 0.00 | L80: 0.00 | M80: 1,167,102.00 | N80: =M80+L80+K80+J80 -> 1,167,102.00
A81: 46 | B81: Рамешковский район | C81: ='часть 1'!H469 -> 4,625.80 | D81: ='часть 1'!K469 -> 154 | E81: 0 | F81: 2 | G81: 0 | H81: 0 | I81: 2 | J81: 0.00 | K81: 3,666,180.00 | L81: 0.00 | M81: 0.00 | N81: =M81+L81+K81+J81 -> 3,666,180.00
B82: Ржевский район | C82: 478.00 | D82: 15 | E82: 0 | F82: 0 | G82: 1 | H82: 0 | I82: 1 | J82: 0.00 | K82: 0.00 | L82: 204,131.00 | M82: 0.00 | N82: 204,131.00
A83: 47 | B83: Сандовский район | C83: ='часть 1'!H476 -> 508.92 | D83: ='часть 1'!K476 -> 16 | E83: 0 | F83: 0 | G83: 1 | H83: 0 | I83: 1 | J83: 0.00 | K83: 0.00 | L83: 1,214,790.00 | M83: 0.00 | N83: =J83+K83+L83+M83 -> 1,214,790.00
B84: Торжокский район | C84: ='часть 1'!H491 -> 1,095.30 | D84: ='часть 1'!K491 -> 27 | E84: =E88 -> 0 | F84: =F88 -> 0 | G84: =G88 -> 0 | H84: 2 | I84: 2 | J84: =J88 -> 0.00 | K84: =K88 -> 0.00 | L84: =L88 -> 0.00 | M84: ='часть 1'!L491 -> 2,988,909.00 | N84: =M84+L84+K84+J84 -> 2,988,909.00
B85: Селижаровский район | C85: ='часть 1'!H479 -> 4,999.20 | D85: ='часть 1'!K479 -> 190 | E85: 0 | F85: 0 | G85: 0 | H85: 2 | I85: 2 | J85: 0.00 | K85: 0.00 | L85: 0.00 | M85: 3,037,109.00 | N85: =M85+L85+K85+J85 -> 3,037,109.00
B86: Сонковский район | C86: =C87 -> 555.00 | D86: =D87 -> 16.00 | E86: 0.00 | F86: 0.00 | G86: 1.00 | H86: 0.00 | I86: 1.00 | J86: 0.00 | K86: 0.00 | L86: 1,402,598.00 | M86: 0.00 | N86: 1,402,598.00
B87: Итого по городское поселение поселок Сонково | C87: ='часть 1'!H484 -> 555.00 | D87: ='часть 1'!K484 -> 16 | E87: 0 | F87: 0 | G87: 1 | H87: 0 | I87: 1 | J87: 0.00 | K87: 0.00 | L87: 1,402,598.00 | M87: 0.00 | N87: 1,402,598.00
B88: Старицкий район | C88: =C89 -> 1,306.50 | D88: =D89 -> 49.00 | E88: 0.00 | F88: 0.00 | G88: 0.00 | H88: 4.00 | I88: 4.00 | J88: 0.00 | K88: 0.00 | L88: 0.00 | M88: 5,743,338.00 | N88: 5,743,338.00
A89: 49 | B89: Итого по городское поселение город Старица | C89: ='часть 1'!H486 -> 1,306.50 | D89: ='часть 1'!K486 -> 49 | E89: 0 | F89: 0 | G89: 0 | H89: 4 | I89: =H89+G89 -> 4 | J89: 0.00 | K89: 0.00 | L89: 0.00 | M89: ='часть 2'!C527 -> 5,743,338.00 | N89: =M89 -> 5,743,338.00
B90: Торопецкий район | C90: =C92+C91 -> 2,315.60 | D90: =D92+D91 -> 65.00 | E90: 0.00 | F90: 0.00 | G90: 0.00 | H90: 4.00 | I90: 4.00 | J90: 0.00 | K90: 0.00 | L90: 0.00 | M90: 4,692,143.00 | N90: 4,692,143.00
B91: Итого по Речанское сельское поселение | C91: ='часть 1'!H497 -> 675.90 | D91: ='часть 1'!K497 -> 21.00 | E91: 0.00 | F91: 0.00 | G91: 0.00 | H91: 1.00 | I91: =H91+G91+F91+E91 -> 1.00 | J91: 0.00 | K91: 0.00 | L91: 0.00 | M91: 346,938.00 | N91: 346,938.00
B92: Итого по городское поселение город Торопец | C92: 1,639.70 | D92: 44 | E92: 0 | F92: 0 | G92: 0 | H92: 3 | I92: 3 | J92: 0.00 | K92: 0.00 | L92: 0.00 | M92: 4,345,205.00 | N92: =M92 -> 4,345,205.00
A97: =A95+1 -> 1 | B97: Итого по Мирновское сельское поселение | C97: ='часть 1'!H492 -> 494.80 | D97: ='часть 1'!K492 -> 12 | E97: 0 | F97: 0 | G97: 0 | H97: 1 | I97: 1 | J97: 0.00 | K97: 0.00 | L97: 0.00 | M97: ='часть 2'!C533 -> 1,537,679.00 | N97: =M97 -> 1,537,679.00
A98: 54 | B98: Итого по Рудниковское сельское поселение | C98: ='часть 1'!H494 -> 600.50 | D98: ='часть 1'!K494 -> 15 | E98: 0 | F98: 0 | G98: 0 | H98: 1 | I98: 1 | J98: 0.00 | K98: 0.00 | L98: 0.00 | M98: ='часть 2'!C535 -> 1,451,230.00 | N98: =M98 -> 1,451,230.00
A101: 56 | B101: Удомельский городской округ | C101: ='часть 1'!H503 -> 59,226.13 | D101: ='часть 1'!K503 -> 2,200 | E101: 0 | F101: 0 | G101: 0 | H101: 7 | I101: 7 | J101: 0.00 | K101: 0.00 | L101: 0.00 | M101: ='часть 1'!L503 -> 21,667,282.00 | N101: =M101 -> 21,667,282.00
B102: Фировский район | C102: ='часть 1'!H515 -> 4,794.60 | D102: ='часть 1'!K515 -> 162 | E102: 0 | F102: 0 | G102: =G103 -> 1 | H102: =H103+H104 -> 1 | I102: 2 | J102: 0.00 | K102: 0.00 | L102: =L103 -> 728,197.07 | M102: =M103+M104 -> 2,131,086.00 | N102: =N103+N104 -> 2,859,283.07
A103: 57 | B103: Итого по городское поселение поселок Фирово | C103: ='часть 1'!H516 -> 1,507.80 | D103: ='часть 1'!K516 -> 62 | E103: 0 | F103: 0 | G103: 1 | H103: 0 | I103: 1 | J103: 0.00 | K103: 0.00 | L103: ='часть 1'!L516 -> 728,197.07 | M103: 0.00 | N103: =L103 -> 728,197.07
A104: 58 | B104: Итого по городское поселение поселок Великооктябрьский | C104: ='часть 1'!H518 -> 3,286.80 | D104: ='часть 1'!K518 -> 100 | E104: 0 | F104: 0 | G104: 0 | H104: 1 | I104: 1 | J104: 0.00 | K104: 0.00 | L104: 0.00 | M104: ='часть 1'!L518 -> 2,131,086.00 | N104: =M104 -> 2,131,086.00
A105: 1 | B105: Итого по город Тверь | C105: ='часть 1'!H106 -> 0.00 | D105: ='часть 1'!K106 -> 0 | E105: 0 | F105: 0 | G105: 0 | H105: 168 | I105: =H105+G105 -> 168 | J105: 0.00 | K105: 0.00 | L105: 0.00 | M105: ='часть 1'!L106 -> 1,116,228.00 | N105: =M105 -> 1,116,228.00
A106: 2 | B106: Итого по город Вышний Волочек | C106: ='часть 1'!H753 -> 11,522.80 | D106: ='часть 1'!K753 -> 365 | E106: 0 | F106: 0 | G106: 0 | H106: 13 | I106: =H106+G106 -> 13 | J106: 0.00 | K106: 0.00 | L106: 0.00 | M106: ='часть 1'!L753 -> 21,022,265.00 | N106: 21,022,265.00
A107: 3 | B107: Итого по город Кимры | C107: 929.50 | D107: 43 | E107: 0 | F107: 0 | G107: 0 | H107: 2 | I107: 2 | J107: 0.00 | K107: 0.00 | L107: 0.00 | M107: 1,681,461.00 | N107: 1,681,461.00
A108: 4 | B108: Итого по город Ржев | C108: ='часть 1'!H770 -> 4,540.80 | D108: ='часть 1'!K770 -> 151 | E108: 0 | F108: 0 | G108: 0 | H108: 2 | I108: 2 | J108: 0.00 | K108: 0.00 | L108: 0.00 | M108: ='часть 1'!L770 -> 4,013,524.00 | N108: =M108 -> 4,013,524.00
A109: 5 | B109: Итого по город Торжок | C109: ='часть 1'!H796 -> 13,237.70 | D109: ='часть 1'!K796 -> 482 | E109: 0 | F109: 0 | G109: 0 | H109: 9 | I109: 9 | J109: 0.00 | K109: 0.00 | L109: 0.00 | M109: ='часть 1'!L796 -> 17,682,419.00 | N109: =M109 -> 17,682,419.00
A110: 6 | B110: Итого по ЗАТО Озерный | C110: ='часть 1'!H809 -> 26,975.90 | D110: ='часть 1'!K809 -> 1,039 | E110: 0 | F110: 0 | G110: 0 | H110: 5 | I110: 5 | J110: 0.00 | K110: 0.00 | L110: 0.00 | M110: ='часть 1'!L809 -> 12,904,489.00 | N110: 12,904,489.00
B111: Итого по ЗАТО Солнечный | C111: ='часть 1'!H822 -> 5,260.10 | D111: ='часть 1'!K822 -> 160 | E111: 0 | F111: 1 | G111: 1 | H111: 0 | I111: =H111+G111+F111+E111 -> 2 | J111: 0.00 | K111: 1,146,524.00 | L111: 2,505,179.00 | M111: 0.00 | N111: =M111+L111+K111+J111 -> 3,651,703.00
B112: Андреапольский район | C112: =C113 -> 3,267.20 | D112: =D113 -> 71 | E112: 0 | F112: 0 | G112: 0 | H112: 2 | I112: 2 | J112: 0.00 | K112: 0.00 | L112: 0.00 | M112: 4,218,095.00 | N112: 4,218,095.00
A113: 7 | B113: Итого по городское поселение город Андреаполь | C113: ='часть 1'!H826 -> 3,267.20 | D113: ='часть 1'!K826 -> 71 | E113: 0 | F113: 0 | G113: 0 | H113: 2 | I113: 2 | J113: 0.00 | K113: 0.00 | L113: 0.00 | M113: ='часть 1'!L826 -> 4,218,095.00 | N113: =M113 -> 4,218,095.00
B114: Бежецкий район | C114: =C115 -> 4,403.50 | D114: =D115 -> 191.00 | E114: 0.00 | F114: 0.00 | G114: 0.00 | H114: 5.00 | I114: 5.00 | J114: 0.00 | K114: 0.00 | L114: 0.00 | M114: 9,289,441.00 | N114: 9,289,441.00
A115: 8 | B115: Итого по городское поселение город Бежецк | C115: ='часть 1'!H835 -> 4,403.50 | D115: ='часть 1'!K835 -> 191 | E115: 0 | F115: 0 | G115: 0 | H115: 5 | I115: 5 | J115: 0.00 | K115: 0.00 | L115: 0.00 | M115: ='часть 1'!L835 -> 9,289,441.00 | N115: =M115 -> 9,289,441.00
B116: Бельский район | C116: =C117 -> 285.20 | D116: =D117 -> 13 | E116: 0 | F116: 0 | G116: 0 | H116: ='часть 2'!#REF! ->  | J116: 0.00 | K116: 0.00 | L116: 0.00 | M116: ='часть 1'!L368 -> 1,551,693.00 | N116: 443,001.00
A117: 9 | B117: Итого по городское поселение город Белый | C117: ='часть 1'!H843 -> 285.20 | D117: ='часть 1'!K843 -> 13 | E117: 0 | F117: 0 | G117: 0 | H117: 1 | I117: 1 | J117: 0.00 | K117: 0.00 | L117: 0.00 | M117: ='часть 1'!L842 -> 443,001.00 | N117: =M117 -> 443,001.00
B118: Бологовский район | C118: =C119+C120 -> 105,310.90 | D118: =D119+D120 -> 3,133.0 | E118: =E119+E120 -> 0 | F118: =F119+F120 -> 0 | G118: 0 | J118: =J119+J120 -> 0.00 | K118: =K119+K120 -> 0.00 | L118: 0.00 | M118: 58,030,999.92 | N118: 58,030,999.92
A119: 10 | B119: Итого по городскому поселению город Бологое | C119: ='часть 1'!H372 -> 3,129.10 | D119: ='часть 1'!K372 -> 113 | E119: 0 | F119: 0 | G119: 0 | H119: ='часть 2'!#REF! ->  | J119: 0.00 | K119: 0.00 | L119: 0.00 | M119: ='часть 1'!L372 -> 2,178,044.00 | N119: =M119 -> 2,178,044.00
A120: 11 | B120: Итого по Валдайскому сельскому поселению | C120: ='часть 1'!H384 -> 102,181.80 | D120: ='часть 1'!K384 -> 3,020 | E120: 0 | F120: 0 | G120: 0 | H120: 2 | I120: 2 | J120: 0.00 | K120: 0.00 | L120: 0.00 | M120: ='часть 1'!L384 -> 55,852,955.92 | N120: =M120 -> 55,852,955.92
B121: Весьегонский район | C121: =C122 -> 520.90 | D121: =D122 -> 25 | E121: 0 | F121: 0 | G121: 0 | H121: 1 | I121: 1 | J121: 0.00 | K121: 0.00 | L121: 0.00 | M121: ='часть 1'!L387 -> 3,894,862.00 | N121: 922,687.00
A122: =A120+1 -> 12 | B122: Итого по городское поселение город Весьегонск | C122: ='часть 1'!H864 -> 520.90 | D122: ='часть 1'!K864 -> 25 | E122: 0 | F122: 0 | G122: 0 | H122: 1 | I122: 1 | J122: 0.00 | K122: 0.00 | L122: 0.00 | M122: ='часть 1'!L865 -> 922,687.00 | N122: =M122 -> 922,687.00
B123: Вышневолоцкий район | C123: =C124+C125+C126+C127+C128+C129 -> 7,577.50 | D123: =D124+D125+D126+D127+D128+D129 -> 291.00 | E123: 0.00 | F123: 0.00 | G123: 1.00 | H123: 6.00 | I123: 7.00 | J123: 0.00 | K123: 0.00 | L123: 1,646,792.00 | M123: 6,930,539.00 | N123: 8,577,331.00
A124: =A122+1 -> 13 | B124: Итого по городское поселение поселок Красномайский | C124: ='часть 1'!H868 -> 1,910.20 | D124: ='часть 1'!K868 -> 85 | E124: 0 | F124: 0 | G124: 0 | H124: 3 | I124: 3 | J124: 0.00 | K124: 0.00 | L124: 0.00 | M124: ='часть 1'!L868 -> 3,345,596.00 | N124: =M124 -> 3,345,596.00
B125: Итого по Горняцкое сельское поселение | C125: ='часть 1'!H873 -> 484.10 | D125: ='часть 1'!K873 -> 31 | E125: 0 | F125: 0 | G125: 0 | H125: 1 | I125: 1 | J125: 0.00 | K125: 0.00 | L125: 0.00 | M125: 908,962.00 | N125: =M125+L125+K125+J125 -> 908,962.00
B126: Итого по Коломенское сельское поселение | C126: ='часть 1'!H874 -> 386.60 | D126: ='часть 1'!K874 -> 19 | E126: 0 | F126: 0 | G126: 0 | H126: 1 | I126: 1 | J126: 0.00 | K126: 0.00 | L126: 0.00 | M126: ='часть 1'!L874 -> 655,569.00 | N126: =M126 -> 655,569.00
A127: =A126+1 -> 1 | B127: Итого по Солнечное сельское поселение | C127: ='часть 1'!H877 -> 3,324.50 | D127: ='часть 1'!K877 -> 127 | E127: 0 | F127: 0 | G127: 0 | H127: 1 | I127: 1 | J127: 0.00 | K127: 0.00 | L127: 0.00 | M127: ='часть 1'!L877 -> 2,020,412.00 | N127: =M127 -> 2,020,412.00
A128: =A127+1 -> 2 | B128: Итого по Сорокинское сельское поселение | C128: ='часть 1'!H878 -> 1,472.10 | D128: ='часть 1'!K878 -> 29 | E128: 0 | F128: 0 | G128: 1 | H128: 0 | I128: 1 | J128: 0.00 | K128: 0.00 | L128: ='часть 1'!L878 -> 1,646,792.00 | M128: 0.00 | N128: =M128+L128+K128+J128 -> 1,646,792.00
A129: =A128+1 -> 3 | B129: Итого пр Терелесовское сельское поселение | C129: 0.00 | D129: 0 | E129: 0 | F129: 0 | G129: 0 | H129: 0 | I129: 0 | J129: 0.00 | K129: 0.00 | L129: 0.00 | M129: 0.00 | N129: =M129 -> 0.00
B130: Жарковский район | C130: =C131 -> 459.10 | D130: =D131 -> 18.00 | E130: 0.00 | F130: 0.00 | G130: 0.00 | H130: 1.00 | I130: 1.00 | J130: 0.00 | K130: 0.00 | L130: 0.00 | M130: 674,133.00 | N130: 674,133.00
A131: =A129+1 -> 4 | B131: Итого по городское поселение поселок Жарковский | C131: 459.10 | D131: 18 | E131: 0 | F131: 0 | G131: 0 | H131: 1 | I131: 1 | J131: 0.00 | K131: 0.00 | L131: 0.00 | M131: 674,133.00 | N131: =M131 -> 674,133.00
B132: Западнодвинский район | C132: =C133 -> 597.00 | D132: =D133 -> 22.00 | E132: 0.00 | F132: 0.00 | G132: 0.00 | H132: 1.00 | I132: 1.00 | J132: 0.00 | K132: 0.00 | L132: 0.00 | M132: 1,786,109.00 | N132: 1,786,109.00
A133: =A131+1 -> 5 | B133: Итого по городское поселение город Западная Двина | C133: ='часть 1'!H887 -> 597.00 | D133: ='часть 1'!K887 -> 22 | E133: 0 | F133: 0 | G133: 0 | H133: 1 | I133: 1 | J133: 0.00 | K133: 0.00 | L133: 0.00 | M133: ='часть 1'!L887 -> 1,786,109.00 | N133: =M133 -> 1,786,109.00
B134: Зубцовский район | C134: ='часть 1'!H424 -> 1,983.00 | D134: ='часть 1'!K424 -> 80 | E134: =E135+E136 -> 0 | F134: 0 | G134: 0 | H134: =H135+H136 ->  | J134: =J135+J136 -> 0.00 | K134: 0.00 | L134: 0.00 | M134: 5,112,634.00 | N134: 5,112,634.00
A135: =A133+1 -> 6 | B135: Итого по городское поселение город Зубцов | C135: ='часть 1'!H890 -> 1,330.30 | D135: ='часть 1'!K890 -> 72 | E135: 0 | F135: 0 | G135: 0 | H135: 2 | I135: 2 | J135: 0.00 | K135: 0.00 | L135: 0.00 | M135: ='часть 1'!L890 -> 2,303,204.00 | N135: =M135 -> 2,303,204.00
A136: =A135+1 -> 7 | B136: Итого по Погорельское сельское поселение | C136: ='часть 1'!H429 -> 912.10 | D136: ='часть 1'!K429 -> 39 | E136: 0 | F136: 0 | G136: 0 | H136: ='часть 2'!#REF! ->  | J136: 0.00 | K136: 0.00 | L136: 0.00 | M136: ='часть 1'!L429 -> 2,809,430.00 | N136: 2,809,430.00
B137: Калининский район | C137: ='часть 1'!H431 -> 542.50 | D137: ='часть 1'!K431 -> 16 | E137: =E138 -> 0 | F137: 0 | G137: =G138+G139+G140+G141 -> 1 | H137: =H138+H139+H140+H141 -> 2 | I137: 3 | J137: 0.00 | K137: 0.00 | L137: =L139 -> 6,762,929.00 | M137: =SUM(M138:M141) -> 3,562,516.00 | N137: =SUM(N138:N141) -> 12,131,344.80
A138: =A136+1 -> 8 | B138: Итого пео городское поселение поселок Орша | C138: ='часть 1'!H898 -> 722.00 | D138: ='часть 1'!K898 -> 39 | E138: 0 | F138: 0 | G138: 0 | H138: 1 | I138: 1 | J138: 0.00 | K138: 0.00 | L138: 0.00 | M138: 1,753,559.00 | N138: =M138 -> 1,753,559.00
A139: =A138+1 -> 9 | B139: Итого по Верхневолжское сельское поселение | C139: ='часть 1'!H435 -> 4,140.70 | D139: ='часть 1'!K435 -> 125 | E139: 0 | F139: 0 | G139: 0 | H139: 0 | I139: 0 | J139: 0.00 | K139: 0.00 | L139: ='часть 1'!L435 -> 6,762,929.00 | M139: 0.00 | N139: =L139 -> 6,762,929.00
A140: =A139+1 -> 10 | B140: Итого по Щербининское сельское поселение | C140: ='часть 1'!H438 -> 522.50 | D140: ='часть 1'!K438 -> 21 | E140: 0 | F140: 0 | G140: 0 | H140: 1 | I140: 1 | J140: 0.00 | K140: 0.00 | L140: 0.00 | M140: ='часть 1'!L438 -> 1,808,957.00 | N140: =M140 -> 1,808,957.00
A141: =A140+1 -> 11 | B141: Итого по Эмаусское сельское поселение | C141: ='часть 1'!H906 -> 748.50 | D141: ='часть 1'!K906 -> 38 | E141: 0 | F141: 0 | G141: 1 | H141: 0 | I141: 1 | J141: 0.00 | K141: 0.00 | L141: 1,805,899.80 | M141: 0.00 | N141: 1,805,899.80
B142: Калязинский район | C142: =C143 -> 10,972.30 | D142: =D143 -> 402 | E142: 0 | F142: 0 | G142: 0 | H142: 6 | I142: 6 | J142: 0.00 | K142: 0.00 | L142: 0.00 | M142: 13,535,827.00 | N142: 13,535,827.00
A143: =A141+1 -> 12 | B143: Итого по городское поселение город Калязин | C143: ='часть 1'!H909 -> 10,972.30 | D143: ='часть 1'!K909 -> 402 | E143: 0 | F143: 0 | G143: 0 | H143: 6 | I143: 6 | J143: 0.00 | K143: 0.00 | L143: 0.00 | M143: ='часть 1'!L909 -> 13,535,827.00 | N143: =M143 -> 13,535,827.00
B144: Кашинский район | C144: =C145 -> 8,644.40 | D144: =D145 -> 283 | E144: 0 | F144: 0 | G144: 0 | H144: 8 | I144: 8 | J144: 0.00 | K144: 0.00 | L144: 0.00 | M144: 11,085,155.00 | N144: 11,085,155.00
A145: =A143+1 -> 13 | B145: Итого по городское поселение город Кашин | C145: ='часть 1'!H917 -> 8,644.40 | D145: ='часть 1'!K917 -> 283 | E145: 0 | F145: 0 | G145: 0 | H145: 8 | I145: 8 | J145: 0.00 | K145: 0.00 | L145: 0.00 | M145: ='часть 1'!L917 -> 11,085,155.00 | N145: =M145 -> 11,085,155.00
B146: Итого по Верхнетроицкое сельское поселение | C146: ='часть 1'!H926 -> 1,005.20 | D146: ='часть 1'!K926 -> 37 | E146: 0 | F146: 0 | G146: 1 | H146: 1 | I146: 2 | J146: 0.00 | K146: 0.00 | L146: 781,716.00 | M146: 247,569.00 | N146: =M146+L146+K146+J146 -> 1,029,285.00
B147: Кимрский район | C147: =C149+C148+C150 -> 6,236.20 | D147: =D149+D148+D150 -> 209 | E147: =E149+E148 -> 0 | F147: =F149+F148 -> 0 | G147: 1 | H147: =H149+H148+H150 -> 2 | I147: 3 | J147: =J149 -> 0.00 | K147: 0.00 | L147: 0.00 | M147: =M149+M148+M150 -> 1,313,974.00 | N147: =M147 -> 1,313,974.00
A148: =A145+1 -> 14 | B148: Итого по городское поселение поселок Белый Городок | C148: 704.60 | D148: 24 | E148: 0 | F148: 0 | G148: 1 | H148: 0 | I148: 1 | J148: 0.00 | K148: 0.00 | L148: 1,851,309.00 | M148: 0.00 | N148: 1,851,309.00
A149: =A148+1 -> 15 | B149: Итого по Быковское сельское поселение | C149: ='часть 1'!H470 -> 4,625.80 | D149: ='часть 1'!K470 -> 154 | E149: 0 | F149: 0 | G149: 0 | H149: 1 | I149: 1 | J149: 0.00 | K149: 0.00 | L149: 0.00 | M149: 201,010.00 | N149: =M149 -> 201,010.00
A150: =A149+1 -> 16 | B150: Итого по Приволжское сельское поселение | C150: ='часть 1'!H472 -> 905.80 | D150: ='часть 1'!K472 -> 31 | E150: 0 | F150: 0 | G150: 0 | H150: 1 | I150: 1 | J150: 0.00 | K150: 0.00 | L150: 0.00 | M150: ='часть 1'!L472 -> 1,112,964.00 | N150: =M150 -> 1,112,964.00
B151: Конаковский район | C151: ='часть 1'!H477+'часть 1'!H594 -> 508.92 | D151: ='часть 1'!K477+'часть 1'!K594 -> 16 | E151: =E154+E157+E158+E152 -> 0 | F151: =F154+F157+F158+F152 -> 0 | G151: =G154+G157+G158+G152 -> 0 | H151: =H154+H157+H155+H158+H152+H153+H159 -> 16 | I151: 16 | J151: =J154+J157+J158+J152 -> 0.00 | K151: =K154+K157+K158+K152 -> 0.00 | L151: =L154+L157+L158+L152 -> 0.00 | M151: =M154+M157+M155+M158+M152+M153+M159 -> 48,749,036.00 | N151: =M151 -> 48,749,036.00
A152: =A150+1 -> 17 | B152: Итого по городское поселение город Конаково | C152: ='часть 1'!H938 -> 44,029.10 | D152: ='часть 1'!K938 -> 1,255 | E152: 0 | F152: 0 | G152: 0 | H152: 6 | I152: 6 | J152: 0.00 | K152: 0.00 | L152: 0.00 | M152: ='часть 1'!L938 -> 29,383,642.00 | N152: 29,383,642.00
A153: =A152+1 -> 18 | B153: Итого по городское поселение поселок Изоплит | C153: ='часть 1'!H945 -> 781.00 | D153: ='часть 1'!K945 -> 22 | E153: 0 | F153: 0 | G153: 0 | H153: 1 | I153: 1 | J153: 0.00 | K153: 0.00 | L153: 0.00 | M153: ='часть 1'!L945 -> 1,107,622.00 | N153: =M153 -> 1,107,622.00
A154: 19 | B154: Итого по городское поселение поселок Козлово | C154: ='часть 1'!H948 -> 894.60 | D154: ='часть 1'!K948 -> 57 | E154: 0 | F154: 0 | G154: 0 | H154: 1 | I154: 1 | J154: 0.00 | K154: 0.00 | L154: 0.00 | M154: 2,348,226.00 | N154: =M154 -> 2,348,226.00
A155: 20 | B155: Итого по городское поселение поселок Редкино | C155: ='часть 1'!H949 -> 11,540.80 | D155: ='часть 1'!K949 -> 394 | E155: 0 | F155: 0 | G155: 0 | H155: 4 | I155: 4 | J155: 0.00 | K155: 0.00 | L155: 0.00 | M155: ='часть 1'!L949 -> 9,209,860.00 | N155: 9,209,860.00
B156: Итого по городское поселение поселок Радченко | C156: 687.80 | D156: 23 | E156: 0 | F156: 0 | G156: 0 | H156: 1 | I156: 1 | J156: 0.00 | K156: 0.00 | L156: 0.00 | M156: 1,720,569.00 | N156: 1,720,569.00
A157: =A155+1 -> 21 | B157: Итого по Городенское сельское поселение | C157: ='часть 1'!H958 -> 932.40 | D157: ='часть 1'!K958 -> 55 | E157: 0 | F157: 0 | G157: 0 | H157: 2 | I157: 2 | J157: 0.00 | K157: 0.00 | L157: 0.00 | M157: ='часть 1'!L958 -> 580,386.00 | N157: 580,386.00
A158: 22 | B158: Итого по Дмитровогорское сельское поселение | C158: ='часть 1'!H506 -> 13,232.03 | D158: ='часть 1'!K506 -> 487 | E158: 0 | F158: 0 | G158: 0 | H158: 1 | I158: 1 | J158: 0.00 | K158: 0.00 | L158: 0.00 | M158: ='часть 1'!L506 -> 4,688,365.00 | N158: 4,688,365.00
A159: 23 | B159: Итого по сельское поселение "Завидово" | C159: ='часть 1'!H963 -> 1,028.00 | D159: ='часть 1'!K963 -> 47 | E159: 0 | F159: 0 | G159: 0 | H159: 1 | I159: 1 | J159: 0.00 | K159: 0.00 | L159: 0.00 | M159: ='часть 1'!L963 -> 1,430,935.00 | N159: 1,430,935.00
B160: Краснохолмский район | C160: =C161 -> 0.00 | D160: =D161 -> 0 | E160: 0 | F160: 0 | G160: 0 | J160: 0.00 | K160: 0.00 | L160: 0.00 | M160: 0.00 | N160: 0.00
A161: =A159+1 -> 24 | B161: Итого по городское поселение город Красный Холм | C161: ='часть 1'!H514 -> 0.00 | D161: ='часть 1'!K514 -> 0 | E161: 0 | F161: 0 | G161: 0 | H161: ='часть 2'!#REF! ->  | J161: 0.00 | K161: 0.00 | L161: 0.00 | M161: ='часть 1'!L514 -> 0.00 | N161: =M161 -> 0.00
B162: Кувшиновский район | C162: =C163 -> 561.40 | D162: =D163 -> 19.00 | E162: 0.00 | F162: 0.00 | G162: 1.00 | H162: 0.00 | I162: 1.00 | J162: 0.00 | K162: 0.00 | L162: 1,739,787.00 | M162: 0.00 | N162: 1,739,787.00
A163: 38 | B163: Итого по тгородское поселение город Кувшиново | C163: 561.40 | D163: 19 | E163: 0 | F163: 0 | G163: 1 | H163: 0 | I163: 1 | J163: 0.00 | K163: 0.00 | L163: 1,739,787.00 | M163: 0.00 | N163: =M163+L163+K163+J163 -> 1,739,787.00
B164: Лихославльский район | C164: ='часть 1'!H523 -> 23,801.10 | D164: ='часть 1'!K523 -> 702 | E164: =E165+E166+E167 -> 0 | F164: 0 | G164: 0 | J164: =J165+J166+J167 -> 0.00 | K164: 0.00 | L164: 0.00 | M164: =M165+M166+M167 -> 12,623,452.00 | N164: =N165+N166+N167 -> 12,623,452.00
A165: 39 | B165: Итого по городское поселение город Лихославль | C165: ='часть 1'!H979 -> 5,703.00 | D165: ='часть 1'!K979 -> 262 | E165: 0 | F165: 0 | G165: 0 | H165: 6 | I165: 6 | J165: 0.00 | K165: 0.00 | L165: 0.00 | M165: ='часть 1'!L979 -> 8,669,678.00 | N165: =M165 -> 8,669,678.00
A166: 40 | B166: Итого по городское поселение поселок Калашниково | C166: ='часть 1'!H986 -> 1,293.30 | D166: ='часть 1'!K986 -> 57 | E166: 0 | F166: 0 | G166: 0 | H166: 3 | I166: 3 | J166: 0.00 | K166: 0.00 | L166: 0.00 | M166: ='часть 1'!L986 -> 2,114,731.00 | N166: =M166 -> 2,114,731.00
A167: 41 | B167: Итого по Ильинское сельское поселение | C167: ='часть 1'!H537 -> 4,504.30 | D167: ='часть 1'!K537 -> 203 | E167: 0 | F167: 0 | G167: 0 | H167: ='часть 2'!#REF! ->  | J167: 0.00 | K167: 0.00 | L167: 0.00 | M167: ='часть 1'!L537 -> 1,839,043.00 | N167: =M167 -> 1,839,043.00
B168: Максатихинский район | C168: =C169 -> 4,519.10 | D168: =D169 -> 141 | E168: 0 | F168: 0 | G168: 0 | H168: 2 | I168: 2 | J168: 0.00 | K168: 0.00 | L168: 0.00 | M168: =M169 -> 2,547,865.00 | N168: =N169 -> 2,547,865.00
A169: 42 | B169: Итого по городское поселение поселок Максатиха | C169: ='часть 1'!H993 -> 4,519.10 | D169: ='часть 1'!K993 -> 141 | E169: 0 | F169: 0 | G169: 0 | H169: 2 | I169: 2 | J169: 0.00 | K169: 0.00 | L169: 0.00 | M169: ='часть 1'!L993 -> 2,547,865.00 | N169: =M169 -> 2,547,865.00
B170: Нелидовский район | C170: =C171 -> 538.20 | D170: ='часть 1'!K543+'часть 1'!K603 -> 24 | E170: =E171 -> 0 | F170: 0 | G170: 0 | J170: 0.00 | K170: 0.00 | L170: 0.00 | M170: 974,618.00 | N170: 974,618.00
A171: 43 | B171: Итого по городское поселение город Нелидово | C171: ='часть 1'!H543+'часть 1'!H604 -> 538.20 | D171: ='часть 1'!K604+'часть 1'!K544 -> 45 | E171: 0 | F171: 0 | G171: 0 | H171: ='часть 2'!#REF! ->  | J171: 0.00 | K171: 0.00 | L171: 0.00 | M171: ='часть 2'!C516 -> 974,618.00 | N171: =M171 -> 974,618.00
B172: Оленинский район | C172: =C173+C174 -> 0.00 | D172: =D173+D174 -> 0.00 | E172: 0.00 | F172: 0.00 | G172: 0.00 | H172: 0.00 | I172: 0.00 | J172: 0.00 | K172: 0.00 | L172: 0.00 | M172: 0.00 | N172: 0.00
A173: 44 | B173: Итого по городское поселение поселок Оленино | C173: ='часть 1'!H607 -> 0.00 | D173: ='часть 1'!K607 -> 0 | E173: 0 | F173: 0 | G173: 0 | H173: 0 | I173: 0 | J173: 0.00 | K173: 0.00 | L173: 0.00 | M173: 0.00 | N173: =M173 -> 0.00
A174: 45 | B174: Итого по Мостовское сельское поселение | C174: ='часть 1'!H662 -> 0.00 | D174: ='часть 1'!K662 -> 0 | E174: 0 | F174: 0 | G174: 0 | H174: 0 | I174: =H174+G174 -> 0 | J174: 0.00 | K174: 0.00 | L174: 0.00 | M174: 0.00 | N174: =M174 -> 0.00
B175: Осташковский район | C175: ='часть 1'!H554 -> 640.40 | D175: ='часть 1'!K554 -> 19 | E175: =E177 -> 0 | F175: 0 | G175: 3 | H175: 0 | I175: 3 | J175: 0.00 | K175: 0.00 | L175: 4,886,972.00 | M175: 0.00 | N175: 4,886,972.00
B176: Пеновский район | C176: ='часть 1'!H1013 -> 274.14 | D176: ='часть 1'!K1015 -> 13 | E176: 0 | F176: 0 | G176: 0 | H176: 1 | I176: 1 | J176: 0.00 | K176: 0.00 | L176: 0.00 | M176: 423,156.00 | N176: =M176+L176+K176+J176 -> 423,156.00
A177: 46 | B177: Рамешковский район | C177: 1,469.14 | D177: 75 | E177: 0 | F177: 0 | G177: 3 | H177: 0 | I177: 3 | J177: 0.00 | K177: 0.00 | L177: 4,886,972.00 | M177: 0.00 | N177: =M177+L177+K177+J177 -> 4,886,972.00
B178: Ржевский район | C178: =1391.4+1391.4 -> 2,782.80 | D178: =39+37 -> 76 | E178: 0 | F178: 0 | G178: 2 | H178: 0 | I178: 2 | J178: 0.00 | K178: 0.00 | L178: =788836+788836 -> 1,577,672.00 | M178: 0.00 | N178: =788836+788836 -> 1,577,672.00
A179: 47 | B179: Сандовский район | C179: ='часть 1'!H1026 -> 403.40 | D179: 17 | E179: 0 | F179: 0 | G179: 1 | H179: 0 | I179: 1 | J179: 0.00 | K179: 0.00 | L179: 1,134,905.00 | M179: 0.00 | N179: =M179+L179+K179+J179 -> 1,134,905.00
B180: Торжокский район | C180: ='часть 1'!H1038 -> 1,161.30 | D180: ='часть 1'!K1038 -> 32 | E180: =E182 -> 0 | F180: =F182 -> 0 | G180: =G182 -> 0 | H180: 2 | I180: 2 | J180: =J182 -> 0.00 | K180: =K182 -> 0.00 | L180: =L182 -> 0.00 | M180: ='часть 1'!L1038 -> 3,125,223.00 | N180: =M180+L180+K180+J180 -> 3,125,223.00
B181: Селижаровский район | C181: ='часть 1'!H1028 -> 1,388.40 | D181: ='часть 1'!K1028 -> 39 | E181: 0 | F181: 0 | G181: 0 | H181: 2 | I181: 2 | J181: 0.00 | K181: 0.00 | L181: 0.00 | M181: 2,751,167.00 | N181: =M181+L181+K181+J181 -> 2,751,167.00
B182: Старицкий район | C182: =C183 -> 1,981.80 | D182: =D183 -> 66.00 | E182: 0.00 | F182: 0.00 | G182: 0.00 | H182: 4.00 | I182: 4.00 | J182: 0.00 | K182: 0.00 | L182: 0.00 | M182: 5,819,333.00 | N182: 5,819,333.00
A183: 49 | B183: Итого по городское поселение город Старица | C183: 1,981.80 | D183: 66 | E183: 0 | F183: 0 | G183: 0 | H183: 4 | I183: =H183+G183 -> 4 | J183: 0.00 | K183: 0.00 | L183: 0.00 | M183: 5,819,333.00 | N183: =M183 -> 5,819,333.00
B184: Торопецкий район | C184: =C185 -> 1,156.80 | D184: =D185 -> 44.00 | E184: 0.00 | F184: 0.00 | G184: 0.00 | H184: 1.00 | I184: 1.00 | J184: 0.00 | K184: 0.00 | L184: 0.00 | M184: 2,792,955.00 | N184: 2,792,955.00
B185: Итого по городское поселение город Торопец | C185: 1,156.80 | D185: 44 | E185: 0 | F185: 0 | G185: 0 | H185: 1 | I185: 1 | J185: 0.00 | K185: 0.00 | L185: 0.00 | M185: 2,792,955.00 | N185: =M185 -> 2,792,955.00
A190: =A188+1 -> 1 | B190: Итого по Мирновское сельское поселение | C190: ='часть 1'!#REF! ->  | D190: ='часть 1'!#REF! ->  | E190: 0 | F190: 0 | G190: 0 | H190: 1 | I190: =H190+G190 -> 1 | J190: 0.00 | K190: 0.00 | L190: 0.00 | M190: ='часть 2'!C622 -> 1,870,046.00 | N190: =M190 -> 1,870,046.00
A191: 54 | B191: Итого по Рудниковское сельское поселение | C191: ='часть 1'!#REF! ->  | D191: ='часть 1'!#REF! ->  | E191: 0 | F191: 0 | G191: 0 | H191: 1 | I191: 1 | J191: 0.00 | K191: 0.00 | L191: 0.00 | M191: ='часть 2'!C624 -> 3,687,908.00 | N191: =M191 -> 3,687,908.00
A194: 56 | B194: Удомельский городской округ | C194: 53,993.47 | D194: 1,897 | E194: 0 | F194: 0 | G194: 0 | H194: 10 | I194: =H194+G194 -> 10 | J194: 0.00 | K194: 0.00 | L194: 0.00 | M194: 22,164,555.00 | N194: =M194 -> 22,164,555.00
B195: Фировский район | C195: ='часть 1'!H585 -> 0.00 | D195: ='часть 1'!K585 -> 0 | E195: 0 | F195: 0 | G195: =G196 -> 1 | H195: =H196+H197 -> 0 | I195: 1 | J195: 0.00 | K195: 0.00 | L195: =L196 -> 9,379,653.00 | M195: =M196+M197 -> 0.00 | N195: =N196+N197 -> 9,379,653.00
A196: 57 | B196: Итого по городское поселение поселок Фирово | C196: ='часть 1'!H586 -> 0.00 | D196: ='часть 1'!K586 -> 0 | E196: 0 | F196: 0 | G196: 1 | H196: 0 | I196: 1 | J196: 0.00 | K196: 0.00 | L196: ='часть 1'!L586 -> 9,379,653.00 | M196: 0.00 | N196: =L196 -> 9,379,653.00
A197: 58 | B197: Итого по городское поселение поселок Великооктябрьский | C197: 0.00 | D197: 0 | E197: 0 | F197: 0 | G197: 0 | H197: 0 | I197: 0 | J197: 0.00 | K197: 0.00 | L197: 0.00 | M197: 0.00 | N197: 0.00
A198: 1 | B198: Итого по город Тверь | C198: ='часть 1'!H193 -> 1,534.20 | D198: ='часть 1'!K193 -> 47 | E198: 0 | F198: 0 | G198: 0 | H198: 168 | I198: =H198+G198 -> 168 | J198: 0.00 | K198: 0.00 | L198: 0.00 | M198: ='часть 1'!L193 -> 2,435,193.00 | N198: =M198 -> 2,435,193.00
A199: 2 | B199: Итого по город Вышний Волочек | C199: ='часть 1'!H1255 -> 14,224.60 | D199: ='часть 1'!K1255 -> 391 | E199: 0 | F199: 0 | G199: 0 | H199: 11 | I199: =H199+G199 -> 11 | J199: 0.00 | K199: 0.00 | L199: 0.00 | M199: ='часть 1'!L1255 -> 20,085,822.14 | N199: 20,085,822.14
A200: 3 | B200: Итого по город Кимры | C200: 0.00 | D200: 0 | E200: 0 | F200: 0 | G200: 0 | H200: 0 | I200: 0 | J200: 0.00 | K200: 0.00 | L200: 0.00 | M200: 0.00 | N200: 0.00
A201: 4 | B201: Итого по город Ржев | C201: ='часть 1'!H1269 -> 16,121.40 | D201: ='часть 1'!K1269 -> 400 | E201: 0 | F201: 0 | G201: 0 | H201: 4 | I201: 4 | J201: 0.00 | K201: 0.00 | L201: 0.00 | M201: ='часть 1'!L1269 -> 12,233,600.00 | N201: =M201 -> 12,233,600.00
A202: 5 | B202: Итого по город Торжок | C202: ='часть 1'!H1295 -> 5,185.70 | D202: ='часть 1'!K1295 -> 172 | E202: 0 | F202: 0 | G202: 0 | H202: 2 | I202: 2 | J202: 0.00 | K202: 0.00 | L202: 0.00 | M202: ='часть 1'!L1295 -> 2,634,518.00 | N202: =M202 -> 2,634,518.00
A203: 6 | B203: Итого по ЗАТО Озерный | C203: ='часть 1'!H1308 -> 20,881.10 | D203: ='часть 1'!K1308 -> 629 | E203: 0 | F203: 0 | G203: 0 | H203: 3 | I203: 3 | J203: 0.00 | K203: 0.00 | L203: 0.00 | M203: ='часть 1'!L1308 -> 10,007,426.00 | N203: 10,007,426.00
B204: Итого по ЗАТО Солнечный | C204: ='часть 1'!H1320 -> 2,514.70 | D204: ='часть 1'!K1320 -> 82 | E204: 0 | F204: 0 | G204: 1 | H204: 0 | I204: =H204+G204+F204+E204 -> 1 | J204: 0.00 | K204: 0.00 | L204: 1,112,894.00 | M204: 0.00 | N204: 1,112,894.00
B205: Андреапольский район | C205: =C206 -> 2,066.40 | D205: =D206 -> 80 | E205: 0 | F205: 0 | G205: 0 | H205: 4 | I205: 4 | J205: 0.00 | K205: 0.00 | L205: 0.00 | M205: 4,547,991.00 | N205: 4,547,991.00
A206: 7 | B206: Итого по городское поселение город Андреаполь | C206: ='часть 1'!H1323 -> 2,066.40 | D206: ='часть 1'!K1323 -> 80 | E206: 0 | F206: 0 | G206: 0 | H206: 4 | I206: 4 | J206: 0.00 | K206: 0.00 | L206: 0.00 | M206: ='часть 1'!L1323 -> 4,547,991.00 | N206: =M206 -> 4,547,991.00
B207: Бежецкий район | C207: =C208 -> 11,641.50 | D207: =D208 -> 480.00 | E207: 0.00 | F207: 0.00 | G207: 0.00 | H207: 4.00 | I207: 4.00 | J207: 0.00 | K207: 0.00 | L207: 0.00 | M207: 12,671,361.00 | N207: 12,671,361.00
A208: 8 | B208: Итого по городское поселение город Бежецк | C208: ='часть 1'!H1332 -> 11,641.50 | D208: ='часть 1'!K1332 -> 480 | E208: 0 | F208: 0 | G208: 0 | H208: 4 | I208: 4 | J208: 0.00 | K208: 0.00 | L208: 0.00 | M208: ='часть 1'!L1332 -> 12,671,361.00 | N208: =M208 -> 12,671,361.00
B209: Бельский район | C209: =C210 -> 0.00 | D209: =D210 -> 0 | E209: 0 | F209: 0 | G209: 0 | H209: ='часть 2'!#REF! ->  | J209: 0.00 | K209: 0.00 | L209: 0.00 | M209: ='часть 1'!L455 -> 1,512,903.00 | N209: 0.00
A210: 9 | B210: Итого по городское поселение город Белый | C210: 0.00 | D210: 0 | E210: 0 | F210: 0 | G210: 0 | H210: 0 | I210: 0 | J210: 0.00 | K210: 0.00 | L210: 0.00 | M210: 0.00 | N210: =M210 -> 0.00
B211: Бологовский район | C211: =C212+C213 -> 1,600.52 | D211: =D212+D213 -> 49.0 | E211: =E212+E213 -> 0 | F211: =F212+F213 -> 0 | G211: 0 | J211: =J212+J213 -> 0.00 | K211: =K212+K213 -> 0.00 | L211: 0.00 | M211: 2,576,038.00 | N211: 2,576,038.00
A212: 10 | B212: Итого по городскому поселению город Бологое | C212: ='часть 1'!H459 -> 1,091.60 | D212: ='часть 1'!K459 -> 33 | E212: 0 | F212: 0 | G212: 0 | H212: ='часть 2'!#REF! ->  | J212: 0.00 | K212: 0.00 | L212: 0.00 | M212: ='часть 1'!L459 -> 1,361,248.00 | N212: =M212 -> 1,361,248.00
... 75 more rows

Sheet № п-п (hidden)
B1: № 1 | D1: № 2 | F1: № 3
B2: г.Андреаполь | D2: Кимрский район | F2: Оленинский район
B3: г.Бежецк | D3: г.Кимры | F3: пгт.Оленино
B4: г.Белый | D4: пгт.Белый Городок | F4: Мостовское с/п
B5: г.Бологое | D5: Быковское с/п | F5: Конаковский район
B6: г.Весьегонск | D6: Приволжское с/п | F6: г.Конаково
B7: г.В.Волочек | D7: г.Лихославль | F7: пгт.Изоплит
B8: "Вышневолоцкий район" | D8: Лихославльский район | F8: пгт.Козлово
B9: пгт.Красномайский | D9: пгт.Калашниково | F9: пгт.Редкино
B10: Коломенское с/п | D10: Ильинское с/п | F10: Козловское с/п
B11: Солнечное с/п | D11: пгт.Максатиха | F11: Дмитровогорское с/п
B12: Сорокинское с/п | D12: г.Нелидово | F12: "Завидово" с/п
B13: Терелесовское с/п | D13: Нелидовское с/п
B16: Горняцкое с/п | D16: пгт. Рамешки
B17: Холохоленское с/п | D17: № 4 | F17: № 5
D20: г.Осташков | F20: ЗАТО "ОЗЕРНЫЙ"
D21: п. Пено
D22: г.Кашин | F22: г.ТВЕРЬ
D23: г.Ржев | F23: пгт.Жарковский
D24: г.Старица | F24: г.Западная Двина
D25: пгт.Селижарово | F25: г.Зубцов
D26: пгт.Сандово | F26: Зубцовский район
D27: г.Торжок | F27: Погорельское с/п
B28: 3 | D28: г.Торопец | F28: Калининский район
D29: г.Удомля | F29: пгт.Орша
D30: Фировский район | F30: Верхневолжское с/п
D31: пгт.Фирово | F31: Щербининское с/п
D32: пгт.Великооктябрьский | F32: Эммаусское с/п
F33: г.Калязин
F34: г.Красный Холм
F35: г.Кувшиново
B36: г.Ржев | D36: КП 2016 г
B37: г.Старица
B38: пгт.Селижарово
B39: пгт.Сандово | D39: КП 2016 г
B40: пгт. Сонково
B41: г.Торопец
B42: г.Удомля

Sheet 2-38
O1: Приложение к постановлению Правительства Тверской области от 29.12.2022 № 788-пп
A4: Краткосрочный план
A5: реализации в 2023 – 2025 годах региональной программы по проведению капитального ремонта общего имущества
A6: в многоквартирных домах на территории Тверской области на 2014 – 2043 годы
A7: I. Перечень многоквартирных домов, которые подлежат капитальному ремонту
A8: № п/п | B8: Адрес многоквартирного дома (далее – МКД) | C8: Год | E8: Материал стен | F8: Количество этажей | G8: Количество подъездов | H8: Общая площадь МКД, всего | I8: Площадь помещений МКД | K8: Количество жителей, зарегистрированных в МКД на дату утверждения краткосрочного плана | L8: Стоимость капитального ремонта | R8: Плановая дата завершения
C9: ввода в эксплуатацию | D9: завершения последнего капитального ремонта | I9: всего | J9: в том числе жилых помещений, находящихся в собственности граждан | L9: всего | M9: в том числе
M10: за счет средств областного бюджета Тверской области | N10: за счет средств местного бюджета | O10: за счет средств собственников помещений в МКД | P10: за счет привлеченных средств (кредит) | Q10: за счет привлеченных средств (рассрочка) | R10: разработки проектной документации, проведения проверки достоверности определения сметной стоимости капитального ремонта | S10: выполнения работ по капитальному ремонту
H11: кв. м | I11: кв. м | J11: кв. м | K11: чел. | L11: руб. | M11: руб. | N11: руб. | O11: руб. | P11: руб. | Q11: руб.
A12: 1 | B12: 2 | C12: 3 | D12: 4 | E12: 5 | F12: 6 | G12: 7 | H12: 8 | I12: 9 | J12: 10 | K12: 11 | L12: 12 | M12: 13 | N12: 14 | O12: 15 | P12: 16 | Q12: 17 | R12: 18 | S12: 19
A13: Начало проведения капитального ремонта – 2023 год
B14: Всего по Тверской области | H14: =H16+H186+H188 -> 269,245.16 | I14: 241,838.58 | J14: 210,818.86 | K14: 9345 | L14: 705,543,562.04 | M14: 0.00 | N14: 2,025,958.29 | O14: 703,517,603.75 | P14: 0.00 | Q14: 0.00 | R14: Х | S14: Х
A15: Формирование фонда капитального ремонта многоквартирного дома на счете некоммерческой организации – Фонда капитального ремонта многоквартирных домов Тверской области (далее – региональный оператор)
B16: Итого по Тверской области | H16: =H17+H28+H38+H40+H46+H48+H54+H57+H63+H67+H71+H89+H97+H107+H114+H131+H133+H136+H140+H143+H153+H168+H171+H173+H175+H178+H181+H44+H69+H105+H166 -> 247,796.16 | I16: =I17+I28+I38+I40+I46+I48+I54+I57+I63+I67+I71+I89+I97+I107+I114+I131+I133+I136+I140+I143+I153+I168+I171+I173+I175+I178+I181+I44+I69+I105+I166 -> 224,011.98 | J16: 192,992.26 | K16: 8,739.00 | L16: 701,401,905.04 | M16: 0.00 | N16: 929,107.29 | O16: 700,472,797.75 | P16: 0.00 | Q16: 0.00 | R16: Х | S16: Х
B17: Итого по муниципальному образованию Тверской области (далее – МО) город Тверь | H17: =SUM(H18:H27) -> 33,629.40 | I17: 30,057.54 | J17: 27,559.25 | K17: 1724 | L17: 158,081,640.29 | M17: 0.00 | N17: 0.00 | O17: 158,081,640.29 | P17: 0.00 | Q17: 0.00 | R17: Х | S17: Х
A18: 1 | B18: г. Тверь, ул. Зинаиды Коноплянниковой, д. 8 | C18: 1982 | E18: Каменные, кирпичные | F18: 9 | G18: 2 | H18: 5198.30 | I18: 4623.00 | J18: 4483.70 | K18: 264 | L18: 27,935,692.62 | M18: 0.00 | N18: 0.00 | O18: 27,935,692.62 | P18: 0.00 | Q18: 0.00 | R18: 2023 | S18: 2023
A19: 2 | B19: г. Тверь, пос. Химинститута, д. 46 | C19: 1975 | E19: Панельные | F19: 9 | G19: 1 | H19: 9856.80 | I19: 8952.84 | J19: 7603.75 | K19: 682 | L19: 14,500,229.31 | M19: 0.00 | N19: 0.00 | O19: 14,500,229.31 | P19: 0.00 | Q19: 0.00 | R19: 2023 | S19: 2023
A20: 3 | B20: г. Тверь, пер. Свободный, д. 1Г | C20: 1974 | E20: Блочные | F20: 12 | G20: 1 | H20: 4063.20 | I20: 3632.20 | J20: 3460.20 | K20: 224 | L20: 37,984,944.43 | M20: 0.00 | N20: 0.00 | O20: 37,984,944.43 | P20: 0.00 | Q20: 0.00 | R20: 2023 | S20: 2023
A21: 4 | B21: г. Тверь, ул. Громова, д. 14 | C21: 1992 | E21: Панельные | F21: 9 | G21: 4 | H21: 8424.70 | I21: 7359.50 | J21: =I21-239.9 -> 7119.60 | K21: 288 | L21: 12,241,360.51 | M21: 0.00 | N21: 0.00 | O21: 12,241,360.51 | P21: 0.00 | Q21: 0.00 | R21: 2023 | S21: 2023
A22: 5 | B22: г. Тверь, наб. Степана Разина, д. 8 | C22: до 1917 | E22: Каменные, кирпичные | F22: 2 | G22: 3 | H22: 698.40 | I22: 550.20 | J22: =I22-36.9 -> 513.30 | K22: 25 | L22: 3,215,641.00 | M22: 0.00 | N22: 0.00 | O22: 3,215,641.00 | P22: 0.00 | Q22: 0.00 | R22: 2023 | S22: 2023
A23: 6 | B23: г. Тверь, ул. Маяковского, д. 36/94 | C23: 1959 | E23: Каменные, кирпичные | F23: 2 | G23: 2 | H23: 509.40 | I23: 465.70 | J23: 372.40 | K23: 23 | L23: 5,225,790.55 | M23: 0.00 | N23: 0.00 | O23: 5,225,790.55 | P23: 0.00 | Q23: 0.00 | R23: 2023 | S23: 2023
A24: 7 | B24: г. Тверь, наб. реки Лазури, д. 14 | C24: 1949 | E24: Каменные, кирпичные | F24: 2 | G24: 1 | H24: 396.50 | I24: 363.40 | J24: =I24-128.8 -> 234.60 | K24: 27 | L24: 8,117,052.13 | M24: 0.00 | N24: 0.00 | O24: 8,117,052.13 | P24: 0.00 | Q24: 0.00 | R24: 2023 | S24: 2023
A25: 8 | B25: г. Тверь, наб. Афанасия Никитина, д. 82/2 | C25: 1965 | E25: Каменные, кирпичные | F25: 5 | G25: 2 | H25: 1733.20 | I25: =1449+160.2 -> 1609.20 | J25: 1523.30 | K25: 68 | L25: 18,401,541.02 | M25: 0.00 | N25: 0.00 | O25: 18,401,541.02 | P25: 0.00 | Q25: 0.00 | R25: 2023 | S25: 2023
A26: 9 | B26: г. Тверь, ул. Мусоргского, д. 36А | C26: 1973 | E26: Каменные, кирпичные | F26: 5 | G26: 2 | H26: 1953.10 | I26: 1763.30 | J26: =I26-226 -> 1537.30 | K26: 84 | L26: 18,306,453.00 | M26: 0.00 | N26: 0.00 | O26: 18,306,453.00 | P26: 0.00 | Q26: 0.00 | R26: 2023 | S26: 2023
A27: 10 | B27: г. Тверь, 1-ый переулок (поселок Элеватор), д. 1 | C27: 1971 | E27: Каменные, кирпичные | F27: 2 | G27: 2 | H27: 795.80 | I27: 738.20 | J27: 711.10 | K27: 39 | L27: 12,152,935.72 | M27: 0.00 | N27: 0.00 | O27: 12,152,935.72 | P27: 0.00 | Q27: 0.00 | R27: 2023 | S27: 2023
B28: Итого по МО Вышневолоцкий городской округ | H28: =SUM(H29:H37) -> 14,598.10 | I28: 14,061.10 | J28: 12,291.64 | K28: 530 | L28: 28,532,348.18 | M28: 0.00 | N28: 0.00 | O28: 28,532,348.18 | P28: 0.00 | Q28: 0.00 | R28: Х | S28: Х
A29: 11 | B29: с. Есеновичи, ул. Площадь Правды, д. 21 | C29: 1992 | E29: Каменные, кирпичные | F29: 3 | G29: 3 | H29: 1,504.70 | I29: 1,504.70 | J29: 1,326.70 | K29: 45 | L29: 4,898,148.28 | M29: 0.00 | N29: 0.00 | O29: 4,898,148.28 | P29: 0.00 | Q29: 0.00 | R29: 2023 | S29: 2023
A30: 12 | B30: г. Вышний Волочек, ул. Ванчакова линия, д. 33 | C30: до 1917 | E30: Каменные, кирпичные | F30: 3 | G30: 2 | H30: 769.10 | I30: 769.10 | J30: 772.70 | K30: 25 | L30: 1,191,236.00 | M30: 0.00 | N30: 0.00 | O30: 1,191,236.00 | P30: 0.00 | Q30: 0.00 | R30: 2023 | S30: 2023
A31: 13 | B31: г. Вышний Волочек, ул. Куйбышева, д. 15а | C31: 1970 | E31: Каменные, кирпичные | F31: 5 | G31: 6 | H31: 4,352.30 | I31: 4,352.20 | J31: 2,916.04 | K31: 176 | L31: 6,253,469.22 | M31: 0.00 | N31: 0.00 | O31: 6,253,469.22 | P31: 0.00 | Q31: 0.00 | R31: 2023 | S31: 2023
A32: 14 | B32: п. Пригородный, ул. Мелиораторов, д. 9 | C32: 1978 | E32: Каменные, кирпичные | F32: 2 | G32: 3 | H32: 898.30 | I32: 898.30 | J32: 898.30 | K32: 34 | L32: 3,863,966.72 | M32: 0.00 | N32: 0.00 | O32: 3,863,966.72 | P32: 0.00 | Q32: 0.00 | R32: 2023 | S32: 2023
A33: 15 | B33: г. Вышний Волочек, ул. Бейшлотская набережная, д. 131 | C33: 1955 | E33: Каменные, кирпичные | F33: 2 | G33: 2 | H33: 686.30 | I33: 686.30 | J33: 686.30 | K33: 21 | L33: 7,720,509.62 | M33: 0.00 | N33: 0.00 | O33: 7,720,509.62 | P33: 0.00 | Q33: 0.00 | R33: 2023 | S33: 2023
A34: 16 | B34: г. Вышний Волочек, ул. Ванчакова линия, д. 39-41 | C34: до 1917 | E34: Каменные, кирпичные | F34: 3 | G34: 5 | H34: 2,560.50 | I34: 2,318.50 | J34: 2,291.20 | K34: 84 | L34: 1,210,508.00 | M34: 0.00 | N34: 0.00 | O34: 1,210,508.00 | P34: 0.00 | Q34: 0.00 | R34: 2023 | S34: 2023
A35: 17 | B35: г. Вышний Волочек, ул. Карла Маркса, д. 68 | C35: до 1917 | E35: Деревянные | F35: 1 | G35: 3 | H35: 192.90 | I35: 190.90 | J35: 199.80 | K35: 14 | L35: 3,151,976.83 | M35: 0.00 | N35: 0.00 | O35: 3,151,976.83 | P35: 0.00 | Q35: 0.00 | R35: 2023 | S35: 2023
A36: 18 | B36: г. Вышний Волочек, ул. Красный Городок, д. 407 | C36: 1964 | E36: Каменные, кирпичные | F36: 4 | G36: 5 | H36: 2,703.40 | I36: 2,503.60 | J36: 2,503.60 | K36: 102 | L36: 146,528.60 | M36: 0.00 | N36: 0.00 | O36: 146,528.60 | P36: 0.00 | Q36: 0.00 | R36: 2023 | S36: 2023
A37: 19 | B37: г. Вышний Волочек, ул. Екатерининская, д. 7/9 | C37: до 1917 | E37: Каменные, кирпичные | F37: 3 | G37: 1 | H37: 930.60 | I37: 837.50 | J37: 697.00 | K37: 29 | L37: 96,004.91 | M37: 0.00 | N37: 0.00 | O37: 96,004.91 | P37: 0.00 | Q37: 0.00 | R37: 2023 | S37: 2023
B38: Итого по МО город Торжок | H38: =SUM(H39:H39) -> 1,124.10 | I38: 917.50 | J38: 871.60 | K38: 43 | L38: 10,176,539.50 | M38: 0.00 | N38: 0.00 | O38: 10,176,539.50 | P38: 0.00 | Q38: 0.00 | R38: Х | S38: Х
A39: 20 | B39: г. Торжок, ул. Белинского, д. 7 | C39: 1959 | E39: Каменные, кирпичные | F39: 3 | G39: 2 | H39: 1,124.10 | I39: 917.50 | J39: 871.60 | K39: 43 | L39: 10,176,539.50 | M39: 0.00 | N39: 0.00 | O39: 10,176,539.50 | P39: 0.00 | Q39: 0.00 | R39: 2023 | S39: 2023
B40: Итого по МО ЗАТО Озерный | H40: =H41+H42+H43 -> 7,962.70 | I40: =I41+I42+I43 -> 5,286.50 | J40: 4,291.80 | K40: 211 | L40: 14,556,403.25 | M40: 0.00 | N40: 0.00 | O40: 14,556,403.25 | P40: 0.00 | Q40: 0.00 | R40: Х | S40: Х
A41: 21 | B41: пгт Озерный, ул. Комсомольская, д. 1 | C41: 1963 | E41: Каменные, кирпичные | F41: 3 | G41: 2 | H41: 1,024.60 | I41: 904.10 | J41: 784.50 | K41: 38 | L41: 5,170,782.23 | M41: 0.00 | N41: 0.00 | O41: 5,170,782.23 | P41: 0.00 | Q41: 0.00 | R41: 2023 | S41: 2023
A42: 22 | B42: пгт Озерный, ул. Комсомольская, д. 2 | C42: 1963 | E42: Каменные, кирпичные | F42: 3 | G42: 2 | H42: 1,048.70 | I42: 934.50 | J42: 675.50 | K42: 38 | L42: 5,170,782.23 | M42: 0.00 | N42: 0.00 | O42: 5,170,782.23 | P42: 0.00 | Q42: 0.00 | R42: 2023 | S42: 2023
A43: 23 | B43: пгт Озерный, ул. Труда, д. 5 | C43: 1992 | E43: Панельные | F43: 5 | G43: 4 | H43: 5,889.40 | I43: 3,447.90 | J43: 2,831.80 | K43: 135 | L43: 4,214,838.79 | M43: 0.00 | N43: 0.00 | O43: 4,214,838.79 | P43: 0.00 | Q43: 0.00 | R43: 2023 | S43: 2023
B44: Итого по МО ЗАТО Солнечный | H44: =H45 -> 2,178.00 | I44: =I45 -> 1,517.90 | J44: 1,331.50 | K44: 49.00 | L44: 1,588,224.31 | M44: 0.00 | N44: 0.00 | O44: 1,588,224.31 | P44: 0.00 | Q44: 0.00 | R44: Х | S44: Х
A45: 24 | B45: ЗАТО Солнечный, ул. Новая, д. 27 | C45: 1963 | D45: 2020 | E45: Каменные, кирпичные | F45: 3 | G45: 3 | H45: 2,178.00 | I45: 1,517.90 | J45: 1,331.50 | K45: 49 | L45: 1,588,224.31 | M45: 0.00 | N45: 0.00 | O45: 1,588,224.31 | P45: 0.00 | Q45: 0.00 | R45: 2023 | S45: 2023
B46: Андреапольский муниципальный округ | H46: =H47 -> 1,094.80 | I46: =I47 -> 1,009.80 | J46: 281.50 | K46: 41.00 | L46: 10,749,726.21 | M46: 0.00 | N46: 0.00 | O46: 10,749,726.21 | P46: 0.00 | Q46: 0.00 | R46: Х | S46: Х
A47: 25 | B47: г. Андреаполь, пл. Гвардейская, д. 1 | C47: 1956 | D47: 2006 | E47: Каменные, кирпичные | F47: 2 | G47: 3 | H47: 1,094.80 | I47: 1,009.80 | J47: 281.50 | K47: 41 | L47: 10,749,726.21 | M47: 0.00 | N47: 0.00 | O47: 10,749,726.21 | P47: 0.00 | Q47: 0.00 | R47: 2023 | S47: 2023
B48: Бежецкий район | H48: =H49 -> 7,455.10 | I48: =I49 -> 6,728.10 | J48: 6,728.10 | K48: 221 | L48: 17,931,462.42 | M48: 0.00 | N48: 0.00 | O48: 17,931,462.42 | P48: 0.00 | Q48: 0.00 | R48: Х | S48: Х
B49: Итого по МО городское поселение город Бежецк | H49: =SUM(H50:H53) -> 7,455.10 | I49: 6,728.10 | J49: 6,728.10 | K49: 221 | L49: 17,931,462.42 | M49: 0.00 | N49: 0.00 | O49: 17,931,462.42 | P49: 0.00 | Q49: 0.00 | R49: Х | S49: Х
A50: 26 | B50: г. Бежецк, ул. Л. Толстого, д. 4 | C50: 1976 | E50: Панельные | F50: 5 | G50: 6 | H50: 4,472.40 | I50: 4,472.40 | J50: 4,472.40 | K50: 129 | L50: 9,872,879.99 | M50: 0.00 | N50: 0.00 | O50: 9,872,879.99 | P50: 0.00 | Q50: 0.00 | R50: 2023 | S50: 2023
A51: 27 | B51: г. Бежецк, ул. Рабочая, д. 5 | C51: 1948 | E51: Блочные | F51: 2 | G51: 2 | H51: 722.50 | I51: 722.50 | J51: 722.50 | K51: 30 | L51: 755,973.43 | M51: 0.00 | N51: 0.00 | O51: 755,973.43 | P51: 0.00 | Q51: 0.00 | R51: 2023 | S51: 2023
A52: 28 | B52: г. Бежецк, ул. М.И. Кузнецова, д. 24 | C52: 1964 | E52: Каменные, кирпичные | F52: 4 | G52: 2 | H52: 1,615.30 | I52: 888.30 | J52: 888.30 | K52: 30 | L52: 1,490,063.02 | M52: 0.00 | N52: 0.00 | O52: 1,490,063.02 | P52: 0.00 | Q52: 0.00 | R52: 2023 | S52: 2023
A53: 29 | B53: г. Бежецк, пер. Первомайский, д. 33/18 | C53: 1960 | E53: Каменные, кирпичные | F53: 2 | G53: 2 | H53: 644.90 | I53: 644.90 | J53: 644.90 | K53: 32 | L53: 5,812,545.98 | M53: 0.00 | N53: 0.00 | O53: 5,812,545.98 | P53: 0.00 | Q53: 0.00 | R53: 2023 | S53: 2023
B54: Бельский муниципальный округ | H54: =H55+H56 -> 1,581.50 | I54: =I55+I56 -> 928.20 | J54: 928.20 | K54: 34.00 | L54: 971,203.51 | M54: 0.00 | N54: 0.00 | O54: 971,203.51 | P54: 0.00 | Q54: 0.00 | R54: Х | S54: Х
A55: 30 | B55: г. Белый, пер. Ленинский, д. 1 | C55: 1987 | E55: Каменные, кирпичные | F55: 2 | G55: 3 | H55: 851.00 | I55: 480.70 | J55: 480.70 | K55: 18 | L55: 502,970.83 | M55: 0.00 | N55: 0.00 | O55: 502,970.83 | P55: 0.00 | Q55: 0.00 | R55: 2023 | S55: 2023
A56: 31 | B56: г. Белый, ул. Ленина, д. 44 | C56: 1978 | E56: Каменные, кирпичные | F56: 2 | G56: 2 | H56: 730.50 | I56: 447.50 | J56: 447.50 | K56: 16 | L56: 468,232.68 | M56: 0.00 | N56: 0.00 | O56: 468,232.68 | P56: 0.00 | Q56: 0.00 | R56: 2023 | S56: 2023
B57: Бологовский район | H57: =H58 -> 2,672.60 | I57: =I58 -> 2,555.62 | J57: 2,383.30 | K57: 101.00 | L57: 11,562,294.28 | M57: 0.00 | N57: 0.00 | O57: 11,562,294.28 | P57: 0.00 | Q57: 0.00 | R57: Х | S57: Х
B58: Итого по МО городское поселение город Бологое | H58: =SUM(H59:H62) -> 2,672.60 | I58: 2,555.62 | J58: 2,383.30 | K58: 101 | L58: 11,562,294.28 | M58: 0.00 | N58: 0.00 | O58: 11,562,294.28 | P58: 0.00 | Q58: 0.00 | R58: Х | S58: Х
A59: 32 | B59: г. Бологое, ул. Гагарина, д. 6 | C59: 1881 | E59: Деревянные | F59: 2 | G59: 2 | H59: 516.20 | I59: 516.20 | J59: 515.50 | K59: 24 | L59: 917,627.89 | M59: 0.00 | N59: 0.00 | O59: =L59 -> 917,627.89 | P59: 0.00 | Q59: 0.00 | R59: 2023 | S59: 2023
A60: 33 | B60: г. Бологое, ул. Кирова, д. 53 | C60: 1956 | E60: Каменные, кирпичные | F60: 2 | G60: 2 | H60: 833.90 | I60: 785.90 | J60: 675.00 | K60: 32 | L60: 2,878,482.59 | M60: 0.00 | N60: 0.00 | O60: =L60 -> 2,878,482.59 | P60: 0.00 | Q60: 0.00 | R60: 2023 | S60: 2023
A61: 34 | B61: г. Бологое, ул. Дружбы, д. 2 | C61: 1956 | E61: Каменные, кирпичные | F61: 2 | G61: 3 | H61: 939.80 | I61: 870.82 | J61: 870.80 | K61: 28 | L61: 4,282,323.43 | M61: 0.00 | N61: 0.00 | O61: 4,282,323.43 | P61: 0.00 | Q61: 0.00 | R61: 2023 | S61: 2023
A62: 35 | B62: г. Бологое, ул. Горская, д. 98 | C62: 1971 | E62: Каменные, кирпичные | F62: 2 | G62: 1 | H62: 382.70 | I62: 382.70 | J62: 322.00 | K62: 17 | L62: 3,483,860.37 | M62: 0.00 | N62: 0.00 | O62: 3,483,860.37 | P62: 0.00 | Q62: 0.00 | R62: 2023 | S62: 2023
B63: Весьегонский муниципальный округ | H63: =H64+H65+H66 -> 2,514.60 | I63: =I64+I65+I66 -> 2,514.60 | J63: 2,299.60 | K63: 53.00 | L63: 8,902,371.51 | M63: 0.00 | N63: 0.00 | O63: 8,902,371.51 | P63: 0.00 | Q63: 0.00 | R63: Х | S63: Х
A64: 36 | B64: г. Весьегонск, пер. Строителей, д. 3 | C64: 1985 | E64: Блочные | F64: 3 | G64: 3 | H64: 1,425.00 | I64: 1,425.00 | J64: 1,307.00 | K64: 27 | L64: 2,999,506.97 | M64: 0.00 | N64: 0.00 | O64: 2,999,506.97 | P64: 0.00 | Q64: 0.00 | R64: 2023 | S64: 2023
A65: 37 | B65: г. Весьегонск, ул. Парковая, д. 6 | C65: 1970 | E65: Каменные, кирпичные | F65: 2 | G65: 2 | H65: 521.60 | I65: 521.60 | J65: 473.60 | K65: 12 | L65: 3,318,040.65 | M65: 0.00 | N65: 0.00 | O65: 3,318,040.65 | P65: 0.00 | Q65: 0.00 | R65: 2023 | S65: 2023
A66: 38 | B66: г. Весьегонск, ул. Павлика Морозова, д. 28 | C66: 1967 | E66: Каменные, кирпичные | F66: 2 | G66: 2 | H66: 568.00 | I66: 568.00 | J66: 519.00 | K66: 14 | L66: 2,584,823.89 | M66: 0.00 | N66: 0.00 | O66: 2,584,823.89 | P66: 0.00 | Q66: 0.00 | R66: 2023 | S66: 2023
B67: Западнодвинский муниципальный округ | H67: =H68 -> 1,530.10 | I67: =I68 -> 1,017.90 | J67: 1,017.90 | K67: 38.00 | L67: 5,323,904.26 | M67: 0.00 | N67: 0.00 | O67: 5,323,904.26 | P67: 0.00 | Q67: 0.00 | R67: Х | S67: Х
A68: 39 | B68: пгт Старая Торопа, ул. Комсомольская, д. 13 | C68: 1976 | E68: Каменные, кирпичные | F68: 3 | G68: 3 | H68: 1,530.10 | I68: 1,017.90 | J68: 1,017.90 | K68: 38 | L68: 5,323,904.26 | M68: 0.00 | N68: 0.00 | O68: 5,323,904.26 | P68: 0.00 | Q68: 0.00 | R68: 2023 | S68: 2023
B69: Зубцовский муниципальный округ | H69: =H70 -> 370.20 | I69: =I70 -> 370.20 | J69: 336.60 | K69: 21.00 | L69: 2,387,361.16 | M69: 0.00 | N69: 0.00 | O69: 2,387,361.16 | P69: 0.00 | Q69: 0.00 | R69: Х | S69: Х
A70: 40 | B70: г. Зубцов, ул. Электроподстанции, д. 1 | C70: 1973 | E70: Каменные, кирпичные | F70: 2 | G70: 1 | H70: 370.20 | I70: 370.20 | J70: 336.60 | K70: 21 | L70: 2,387,361.16 | M70: 0.00 | N70: 0.00 | O70: 2,387,361.16 | P70: 0.00 | Q70: 0.00 | R70: 2023 | S70: 2023
B71: Калининский район | H71: =H80+H74+H86+H78+H72+H84+H82 -> 15,299.75 | I71: =I80+I74+I86+I78+I72+I84+I82 -> 15,063.85 | J71: 11,057.85 | K71: 678.00 | L71: 33,600,535.26 | M71: 0.00 | N71: 929,107.29 | O71: 32,671,427.97 | P71: 0.00 | Q71: 0.00 | R71: Х | S71: Х
B72: Итого по МО городское поселение пос. Васильевский Мох | H72: =H73 -> 939.10 | I72: =I73 -> 939.10 | J72: 854.10 | K72: 42 | L72: 9,443,095.21 | M72: 0.00 | N72: 0.00 | O72: 9,443,095.21 | P72: 0.00 | Q72: 0.00 | R72: Х | S72: Х
A73: 41 | B73: ул. Смирнова, д. 1 | C73: 1982 | E73: Каменные, кирпичные | F73: 2 | G73: 3 | H73: 939.10 | I73: 939.10 | J73: 854.10 | K73: 42 | L73: 9,443,095.21 | M73: 0.00 | N73: 0.00 | O73: 9,443,095.21 | P73: 0.00 | Q73: 0.00 | R73: 2023 | S73: 2023
B74: Итого по МО Верхневолжское сельское поселение | H74: =H75+H77+H76 -> 1,640.30 | I74: =I75+I77+I76 -> 1,640.30 | J74: 1,479.80 | K74: 83.00 | L74: 4,792,659.72 | M74: 0.00 | N74: 0.00 | O74: 4,792,659.72 | P74: 0.00 | Q74: 0.00 | R74: Х | S74: Х
A75: 42 | B75: с. Пушкино, д. 1 | C75: 1966 | E75: Каменные, кирпичные | F75: 2 | G75: 2 | H75: 545.20 | I75: 545.20 | J75: 422.90 | K75: 32 | L75: 2,016,905.71 | M75: 0.00 | N75: 0.00 | O75: 2,016,905.71 | P75: 0.00 | Q75: 0.00 | R75: 2023 | S75: 2023
A76: 43 | B76: с. Пушкино, д. 5 | C76: 1966 | E76: Панельные | F76: 2 | G76: 2 | H76: 736.40 | I76: 736.40 | J76: 736.40 | K76: 33 | L76: 2,600,746.83 | M76: 0.00 | N76: 0.00 | O76: 2,600,746.83 | P76: 0.00 | Q76: 0.00 | R76: 2023 | S76: 2023
A77: 44 | B77: д. Квакшино, д. 4 | C77: 1966 | E77: Каменные, кирпичные | F77: 2 | G77: 2 | H77: 358.70 | I77: 358.70 | J77: 320.50 | K77: 18 | L77: 175,007.18 | M77: 0.00 | N77: 0.00 | O77: 175,007.18 | P77: 0.00 | Q77: 0.00 | R77: 2023 | S77: 2023
B78: Итого по МО Заволжское сельское поселение | H78: =H79 -> 3,259.55 | I78: =I79 -> 3,023.65 | J78: 3,023.65 | K78: 132.00 | L78: 4,284,863.10 | M78: 0.00 | N78: 143,208.90 | O78: 4,141,654.20 | P78: 0.00 | Q78: 0.00 | R78: Х | S78: Х
A79: 45 | B79: пос. Заволжский, д. 25 | C79: 1988 | E79: Панельные | F79: 5 | G79: 4 | H79: 3,259.55 | I79: 3,023.65 | J79: 3,023.65 | K79: 132 | L79: 4,284,863.10 | M79: 0.00 | N79: 143,208.90 | O79: 4,141,654.20 | P79: 0.00 | Q79: 0.00 | R79: 2023 | S79: 2023
B80: Итого по МО Каблуковское сельское поселение | H80: =H81 -> 512.00 | I80: =I81 -> 512.00 | J80: 512.00 | K80: 35 | L80: 1,831,138.08 | M80: 0.00 | N80: 785,898.39 | O80: 1,045,239.69 | P80: 0.00 | Q80: 0.00 | R80: Х | S80: Х
A81: 46 | B81: д. Заборовье, ул. Лесная, д. 3 | C81: 1970 | E81: Каменные, кирпичные | F81: 2 | G81: 2 | H81: 512.00 | I81: 512.00 | J81: 512.00 | K81: 35 | L81: =N81+O81 -> 1,831,138.08 | M81: 0.00 | N81: 785,898.39 | O81: 1,045,239.69 | P81: 0.00 | Q81: 0.00 | R81: 2023 | S81: 2023
B82: Итого по МО Красногорское сельское поселение | H82: =H83 -> 437.10 | I82: 437.10 | J82: 381.20 | K82: 31 | L82: 457,350.84 | M82: 0.00 | N82: 0.00 | O82: 457,350.84 | P82: 0.00 | Q82: 0.00 | R82: Х | S82: Х
A83: 47 | B83: д. Колталово, ул. Зеленая, д. 22 | C83: 1974 | E83: Каменные, кирпичные | F83: 2 | G83: 2 | H83: 437.10 | I83: 437.10 | J83: 381.20 | K83: 31 | L83: 457,350.84 | M83: 0.00 | N83: 0.00 | O83: 457,350.84 | P83: 0.00 | Q83: 0.00 | R83: 2023 | S83: 2023
B84: Итого по МО Медновское сельское поселение | H84: =H85 -> 2,509.60 | I84: 2,509.60 | J84: 1,632.00 | K84: 100 | L84: 4,670,729.01 | M84: 0.00 | N84: 0.00 | O84: 4,670,729.01 | P84: 0.00 | Q84: 0.00 | R84: Х | S84: Х
A85: 48 | B85: с. Медное, ул. Тверская, д. 2 | C85: 1972 | E85: Каменные, кирпичные | F85: 4 | G85: 4 | H85: 2,509.60 | I85: 2,509.60 | J85: 1,632.00 | K85: 100 | L85: 4,670,729.01 | M85: 0.00 | N85: 0.00 | O85: 4,670,729.01 | P85: 0.00 | Q85: 0.00 | R85: 2023 | S85: 2023
B86: Итого по МО Эммаусское сельское поселение | H86: =H87+H88 -> 6,002.10 | I86: =I87+I88 -> 6,002.10 | J86: 3,175.10 | K86: 255 | L86: 8,120,699.30 | M86: 0.00 | N86: 0.00 | O86: 8,120,699.30 | P86: 0.00 | Q86: 0.00 | R86: Х | S86: Х
A87: 49 | B87: пос. Эммаусс, д. 24 | C87: 1981 | E87: Панельные | F87: 5 | G87: 4 | H87: 2,849.50 | I87: 2,849.50 | J87: 1,594.30 | K87: 118 | L87: 4,033,811.42 | M87: 0.00 | N87: 0.00 | O87: 4,033,811.42 | P87: 0.00 | Q87: 0.00 | R87: 2023 | S87: 2023
A88: 50 | B88: пос. Эммаусс, д. 33 | C88: 1991 | E88: Панельные | F88: 5 | G88: 4 | H88: 3,152.60 | I88: 3,152.60 | J88: 1,580.80 | K88: 137 | L88: 4,086,887.88 | M88: 0.00 | N88: 0.00 | O88: 4,086,887.88 | P88: 0.00 | Q88: 0.00 | R88: 2023 | S88: 2023
B89: Калязинский район | H89: =H90 -> 3,779.41 | I89: =I90 -> 3,381.31 | J89: 3,042.90 | K89: 152 | L89: 30,135,392.18 | M89: 0.00 | N89: 0.00 | O89: 30,135,392.18 | P89: 0.00 | Q89: 0.00 | R89: Х | S89: Х
B90: Итого по МО городское поселение город Калязин | H90: =SUM(H91:H96) -> 3,779.41 | I90: =SUM(I91:I96) -> 3,381.31 | J90: 3,042.90 | K90: 152.00 | L90: 30,135,392.18 | M90: 0.00 | N90: 0.00 | O90: 30,135,392.18 | P90: 0.00 | Q90: 0.00 | R90: Х | S90: Х
A91: 51 | B91: г. Калязин, ул. Коминтерна, д. 42 | C91: 1991 | E91: Каменные, кирпичные | F91: 2 | G91: 2 | H91: 682 | I91: 650.6 | J91: 585.5 | K91: 29 | L91: 5,867,554.30 | M91: 0.00 | N91: 0.00 | O91: 5,867,554.30 | P91: 0.00 | Q91: 0.00 | R91: 2023 | S91: 2023
A92: 52 | B92: г. Калязин, ул. Центральная, д. 2а | C92: 1993 | E92: Каменные, кирпичные | F92: 2 | G92: 3 | H92: 1091.5 | I92: 974.7 | J92: 877.2 | K92: 47 | L92: 8,984,692.53 | M92: 0.00 | N92: 0.00 | O92: 8,984,692.53 | P92: 0.00 | Q92: 0.00 | R92: 2023 | S92: 2023
A93: 53 | B93: г. Калязин, ул. Коминтерна, д. 61 | C93: 1967 | E93: Каменные, кирпичные | F93: 2 | G93: 2 | H93: 511.8 | I93: 448.6 | J93: 403.7 | K93: 29 | L93: 3,942,263.05 | M93: 0.00 | N93: 0.00 | O93: 3,942,263.05 | P93: 0.00 | Q93: 0.00 | R93: 2023 | S93: 2023
A94: 54 | B94: г. Калязин, ул. Вагжанова, д. 2а | C94: 1973 | E94: Блочные | F94: 2 | G94: 1 | H94: 379.4 | I94: 347.7 | J94: 312.9 | K94: 12 | L94: 2,823,760.51 | M94: 0.00 | N94: 0.00 | O94: 2,823,760.51 | P94: 0.00 | Q94: 0.00 | R94: 2023 | S94: 2023
A95: 55 | B95: г. Калязин, ул. Коминтерна, д. 32а | C95: 1965 | E95: Каменные, кирпичные | F95: 2 | G95: 2 | H95: 424.5 | I95: 329.5 | J95: 296.5 | K95: 14 | L95: 3,263,827.08 | M95: 0.00 | N95: 0.00 | O95: 3,263,827.08 | P95: 0.00 | Q95: 0.00 | R95: 2023 | S95: 2023
A96: 56 | B96: г. Калязин, ул. Коминтерна, д. 30/12 | C96: 1961 | E96: Каменные, кирпичные | F96: 2 | G96: 2 | H96: 690.21 | I96: 630.21 | J96: 567.1 | K96: 21 | L96: 5,253,294.71 | M96: 0.00 | N96: 0.00 | O96: 5,253,294.71 | P96: 0.00 | Q96: 0.00 | R96: 2023 | S96: 2023
B97: Кашинский городской округ | H97: =SUM(H98:H104) -> 2,548.20 | I97: 2,531.90 | J97: 1,755.30 | K97: 117 | L97: 8,582,395.00 | M97: 0.00 | N97: 0.00 | O97: 8,582,395.00 | P97: 0.00 | Q97: 0.00 | R97: Х | S97: Х
A98: 57 | B98: г. Кашин, наб. Пушкинская, д. 18/1 | C98: до 1917 | E98: Каменные, кирпичные | F98: 2 | G98: 2 | H98: 606.60 | I98: 606.60 | J98: 374.20 | K98: 22 | L98: 1,195,838.00 | M98: 0.00 | N98: 0.00 | O98: 1,195,838.00 | P98: 0.00 | Q98: 0.00 | R98: 2023 | S98: 2023
A99: 58 | B99: г. Кашин, ул. Ивана Тургенева, д. 3 | C99: до 1917 | E99: Каменные, кирпичные | F99: 2 | G99: 1 | H99: 264.50 | I99: 264.50 | J99: 180.00 | K99: 11 | L99: 1,215,045.00 | M99: 0.00 | N99: 0.00 | O99: 1,215,045.00 | P99: 0.00 | Q99: 0.00 | R99: 2023 | S99: 2023
A100: 59 | B100: г. Кашин, ул. Ленина, д. 20 | C100: до 1917 | E100: Каменные, кирпичные | F100: 2 | G100: 1 | H100: 457.60 | I100: 457.60 | J100: 299.10 | K100: 27 | L100: 1,191,236.00 | M100: 0.00 | N100: 0.00 | O100: 1,191,236.00 | P100: 0.00 | Q100: 0.00 | R100: 2023 | S100: 2023
A101: 60 | B101: г. Кашин, ул. Московская, д. 25 | C101: до 1917 | E101: Каменные, кирпичные | F101: 1 | G101: 1 | H101: 251.10 | I101: 251.10 | J101: 151.60 | K101: 14 | L101: 1,230,002.00 | M101: 0.00 | N101: 0.00 | O101: 1,230,002.00 | P101: 0.00 | Q101: 0.00 | R101: 2023 | S101: 2023
A102: 61 | B102: г. Кашин, ул. Песочная, д. 11/6 | C102: до 1917 | E102: Каменные, кирпичные | F102: 5 | G102: 6 | H102: 267.30 | I102: 251.00 | J102: 267.30 | K102: 12 | L102: 1,182,844.00 | M102: 0.00 | N102: 0.00 | O102: 1,182,844.00 | P102: 0.00 | Q102: 0.00 | R102: 2023 | S102: 2023
A103: 62 | B103: г. Кашин, ул. Песочная, д. 14/8 | C103: до 1917 | E103: Каменные, кирпичные | F103: 1 | G103: 1 | H103: 248.20 | I103: 248.20 | J103: 93.70 | K103: 9 | L103: 1,271,553.00 | M103: 0.00 | N103: 0.00 | O103: 1,271,553.00 | P103: 0.00 | Q103: 0.00 | R103: 2023 | S103: 2023
A104: 63 | B104: г. Кашин, ул. Сад Тургенева, д. 5/5 | C104: до 1917 | E104: Каменные, кирпичные | F104: 2 | G104: 2 | H104: 452.90 | I104: 452.90 | J104: 389.40 | K104: 22 | L104: 1,295,877.00 | M104: 0.00 | N104: 0.00 | O104: 1,295,877.00 | P104: 0.00 | Q104: 0.00 | R104: 2023 | S104: 2023
B105: Кесовогорский муниципальный округ | H105: =H106 -> 976.50 | I105: =I106 -> 976.50 | J105: 557.10 | K105: 38.00 | L105: 1,021,741.25 | M105: 0.00 | N105: 0.00 | O105: 1,021,741.25 | P105: 0.00 | Q105: 0.00 | R105: Х | S105: Х
A106: 64 | B106: пгт Кесова Гора, ул. Старовокзальная, д. 4а | C106: 1985 | E106: Прочие | F106: 2 | G106: 3 | H106: 976.50 | I106: 976.50 | J106: 557.10 | K106: 38 | L106: 1,021,741.25 | M106: 0.00 | N106: 0.00 | O106: 1,021,741.25 | P106: 0.00 | Q106: 0.00 | R106: 2023 | S106: 2023
B107: Кимрский муниципальный округ | H107: =SUM(H108:H113) -> 12,672.90 | I107: =SUM(I108:I113) -> 8,989.30 | J107: 7,120.20 | K107: 221.00 | L107: 42,147,210.33 | M107: 0.00 | N107: 0.00 | O107: 42,147,210.33 | P107: 0.00 | Q107: 0.00 | R107: Х | S107: Х
A108: 65 | B108: г. Кимры, ул. Володарского, д. 104а | C108: 1959 | E108: Каменные, кирпичные | F108: 3 | G108: 2 | H108: 1,056.90 | I108: 974.70 | J108: 974.70 | K108: 24 | L108: 5,953,275.60 | M108: 0.00 | N108: 0.00 | O108: 5,953,275.60 | P108: 0.00 | Q108: 0.00 | R108: 2023 | S108: 2023
A109: 66 | B109: г. Кимры, ул. Коммунистическая, д. 2/5 | C109: 1953 | E109: Каменные, кирпичные | F109: 5 | G109: 4 | H109: 6,366.50 | I109: 4,514.30 | J109: 3,565.90 | K109: 96 | L109: 14,320,499.72 | M109: 0.00 | N109: 0.00 | O109: 14,320,499.72 | P109: 0.00 | Q109: 0.00 | R109: 2023 | S109: 2023
A110: 67 | B110: г. Кимры, ул. Свободы, д. 4а | C110: 1961 | E110: Каменные, кирпичные | F110: 2 | G110: 1 | H110: 783.50 | I110: 470.90 | J110: 444.30 | K110: 15 | L110: 3,575,540.90 | M110: 0.00 | N110: 0.00 | O110: 3,575,540.90 | P110: 0.00 | Q110: 0.00 | R110: 2023 | S110: 2023
A111: 68 | B111: г. Кимры, ул. Станционная, д. 1 | C111: 1956 | E111: Каменные, кирпичные | F111: 2 | G111: 3 | H111: 1,526.70 | I111: 890.30 | J111: 798.70 | K111: 30 | L111: 8,131,238.42 | M111: 0.00 | N111: 0.00 | O111: 8,131,238.42 | P111: 0.00 | Q111: 0.00 | R111: 2023 | S111: 2023
A112: 69 | B112: г. Кимры, ул. Троицкая, д. 9/11 | C112: 1991 | E112: Каменные, кирпичные | F112: 3 | G112: 4 | H112: 2,478.20 | I112: 1,678.00 | J112: 1,123.40 | K112: 38 | L112: 6,484,765.37 | M112: 0.00 | N112: 0.00 | O112: 6,484,765.37 | P112: 0.00 | Q112: 0.00 | R112: 2023 | S112: 2023
A113: 70 | B113: п. Белый Городок, ул. Школьная, д. 16 | C113: 1955 | E113: Каменные, кирпичные | F113: 2 | G113: 2 | H113: 461.10 | I113: 461.10 | J113: 213.20 | K113: 18 | L113: 3,681,890.32 | M113: 0.00 | N113: 0.00 | O113: 3,681,890.32 | P113: 0.00 | Q113: 0.00 | R113: 2023 | S113: 2023
B114: Конаковский район | H114: =H115+H124+H129+H126 -> 50,855.60 | I114: =I115+I124+I129+I126 -> 44,450.10 | J114: 41,912.80 | K114: 1,776.00 | L114: 111,467,955.21 | M114: 0.00 | N114: 0.00 | O114: 111,467,955.21 | P114: 0.00 | Q114: 0.00 | R114: Х | S114: Х
B115: Итого по МО городское поселение город Конаково | H115: =SUM(H116:H123) -> 42,010.60 | I115: =SUM(I116:I123) -> 36,180.70 | J115: 34,118.60 | K115: 1,469.00 | L115: 83,901,772.95 | M115: 0.00 | N115: 0.00 | O115: 83,901,772.95 | P115: 0.00 | Q115: 0.00 | R115: Х | S115: Х
A116: 71 | B116: г. Конаково, пр-т Ленина, д. 11 | C116: 1976 | E116: Каменные, кирпичные | F116: 5 | G116: 4 | H116: 4,452.80 | I116: =2671.2+916 -> 3,587.20 | J116: =I116-50.8-916 -> 2,620.40 | K116: 168 | L116: 7,307,335.22 | M116: 0.00 | N116: 0.00 | O116: 7,307,335.22 | P116: 0.00 | Q116: 0.00 | R116: 2023 | S116: 2023
A117: 72 | B117: г. Конаково, пр-т Ленина, д. 12 | C117: 1966 | E117: Блочные | F117: 5 | G117: 4 | H117: =I117+308 -> 3,896.00 | I117: =3187.2+400.8 -> 3,588.00 | J117: =3187.2-88.1 -> 3,099.10 | K117: 142 | L117: 14,456,786.96 | M117: 0.00 | N117: 0.00 | O117: 14,456,786.96 | P117: 0.00 | Q117: 0.00 | R117: 2023 | S117: 2023
A118: 73 | B118: г. Конаково, ул. Васильковского, д. 5 | C118: 1979 | E118: Панельные | F118: 5 | G118: 7 | H118: 3,845.40 | I118: 3,480.00 | J118: =I118-18.7 -> 3,461.30 | K118: 157 | L118: 3,443,046.89 | M118: 0.00 | N118: 0.00 | O118: 3,443,046.89 | P118: 0.00 | Q118: 0.00 | R118: 2023 | S118: 2023
A119: 74 | B119: г. Конаково, ул. Энергетиков, д. 17 | C119: 1966 | E119: Каменные, кирпичные | F119: 5 | G119: 4 | H119: 4,045.70 | I119: 3,687.60 | J119: =I119-123.3 -> 3,564.30 | K119: 126 | L119: 16,167,753.49 | M119: 0.00 | N119: 0.00 | O119: 16,167,753.49 | P119: 0.00 | Q119: 0.00 | R119: 2023 | S119: 2023
A120: 75 | B120: г. Конаково, ул. Васильковского, д. 1а | C120: 1994 | E120: Панельные | F120: 9 | G120: 2 | H120: 4,965.50 | I120: 4,214.40 | J120: =I120-117.1 -> 4,097.30 | K120: 171 | L120: 13,296,021.50 | M120: 0.00 | N120: 0.00 | O120: 13,296,021.50 | P120: 0.00 | Q120: 0.00 | R120: 2023 | S120: 2023
A121: 76 | B121: г. Конаково, ул. Горького, д. 3 | C121: 1980 | E121: Панельные | F121: 9 | G121: 3 | H121: 6,541.70 | I121: 5,769.50 | J121: =I121-180.4 -> 5,589.10 | K121: 217 | L121: 17,344,885.09 | M121: 0.00 | N121: 0.00 | O121: 17,344,885.09 | P121: 0.00 | Q121: 0.00 | R121: 2023 | S121: 2023
A122: 77 | B122: г. Конаково, ул. Горького, д. 3а | C122: 1988 | E122: Каменные, кирпичные | F122: 9 | G122: 2 | H122: 8,747.60 | I122: 7,951.30 | J122: =I122 -> 7,951.30 | K122: 324 | L122: 8,476,311.62 | M122: 0.00 | N122: 0.00 | O122: 8,476,311.62 | P122: 0.00 | Q122: 0.00 | R122: 2023 | S122: 2023
A123: 78 | B123: г. Конаково, ул. Энергетиков, д. 28 | C123: 1984 | E123: Каменные, кирпичные | F123: 12 | G123: 2 | H123: 5,515.90 | I123: 3,902.70 | J123: =I123-166.9 -> 3,735.80 | K123: 164 | L123: 3,409,632.18 | M123: 0.00 | N123: 0.00 | O123: 3,409,632.18 | P123: 0.00 | Q123: 0.00 | R123: 2023 | S123: 2023
B124: Итого по МО городское поселение пос. Изоплит | H124: =H125 -> 2,517.10 | I124: =I125 -> 2,334.50 | J124: 2,334.50 | K124: 103.00 | L124: 10,268,220.03 | M124: 0.00 | N124: 0.00 | O124: 10,268,220.03 | P124: 0.00 | Q124: 0.00 | R124: Х | S124: Х
A125: 79 | B125: пос. Изоплит, ул. Пионерская, д. 7 | C125: 1965 | E125: Каменные, кирпичные | F125: 4 | G125: 4 | H125: 2,517.10 | I125: 2,334.50 | J125: 2,334.50 | K125: 103 | L125: 10,268,220.03 | M125: 0.00 | N125: 0.00 | O125: 10,268,220.03 | P125: 0.00 | Q125: 0.00 | R125: 2023 | S125: 2023
B126: Итого по МО Городенское сельское поселение | H126: =H127+H128 -> 1,364.80 | I126: =I127+I128 -> 1,364.80 | J126: 889.60 | K126: 59.00 | L126: 7,809,913.95 | M126: 0.00 | N126: 0.00 | O126: 7,809,913.95 | P126: 0.00 | Q126: 0.00 | R126: Х | S126: Х
A127: 80 | B127: с. Городня, ул. Садовая, д. 3 | C127: 1964 | E127: Каменные, кирпичные | F127: 2 | G127: 2 | H127: 634.50 | I127: 634.50 | J127: 416.40 | K127: 28 | L127: 3,645,690.17 | M127: 0.00 | N127: 0.00 | O127: 3,645,690.17 | P127: 0.00 | Q127: 0.00 | R127: 2023 | S127: 2023
A128: 81 | B128: с. Городня, ул. Ленинградская, д. 187 | C128: 1972 | E128: Каменные, кирпичные | F128: 2 | G128: 2 | H128: 730.30 | I128: 730.30 | J128: 473.20 | K128: 31 | L128: 4,164,223.78 | M128: 0.00 | N128: 0.00 | O128: 4,164,223.78 | P128: 0.00 | Q128: 0.00 | R128: 2023 | S128: 2023
B129: Итого по МО городское поселение пос. Радченко | H129: =H130 -> 4,963.10 | I129: =I130 -> 4,570.10 | J129: 4,570.10 | K129: 145 | L129: 9,488,048.28 | M129: 0.00 | N129: 0.00 | O129: 9,488,048.28 | P129: 0.00 | Q129: 0.00 | R129: Х | S129: Х
A130: 82 | B130: пгт Радченко, д. 13 | C130: 1978 | E130: Панельные | F130: 5 | G130: 6 | H130: 4,963.10 | I130: 4,570.10 | J130: 4,570.10 | K130: 145 | L130: 9,488,048.28 | M130: 0.00 | N130: 0.00 | O130: 9,488,048.28 | P130: 0.00 | Q130: 0.00 | R130: 2023 | S130: 2023
B131: Краснохолмский муниципальный округ | H131: =H132 -> 380.00 | I131: =I132 -> 371.20 | J131: 330.90 | K131: 15.00 | L131: 3,460,390.15 | M131: 0.00 | N131: 0.00 | O131: 3,460,390.15 | P131: 0.00 | Q131: 0.00 | R131: Х | S131: Х
A132: 83 | B132: г. Красный Холм, пер. Свободы Малый, д. 15 | C132: 1970 | E132: Каменные, кирпичные | F132: 2 | G132: 2 | H132: 380.00 | I132: 371.20 | J132: 330.90 | K132: 15 | L132: 3,460,390.15 | M132: 0.00 | N132: 0.00 | O132: 3,460,390.15 | P132: 0.00 | Q132: 0.00 | R132: 2023 | S132: 2023
B133: Кувшиновский район | H133: =H134 -> 833.50 | I133: =I134 -> 807.75 | J133: 769.36 | K133: 18 | L133: 3,386,423.36 | M133: 0.00 | N133: 0.00 | O133: 3,386,423.36 | P133: 0.00 | Q133: 0.00 | R133: Х | S133: Х
B134: Итого по МО городское поселение город Кувшиново | H134: =H135 -> 833.50 | I134: =I135 -> 807.75 | J134: 769.36 | K134: 18 | L134: 3,386,423.36 | M134: 0.00 | N134: 0.00 | O134: 3,386,423.36 | P134: 0.00 | Q134: 0.00 | R134: Х | S134: Х
A135: 84 | B135: г. Кувшиново, ул. Маяковского, д. 20 | C135: 1983 | E135: Каменные, кирпичные | F135: 3 | G135: 1 | H135: 833.50 | I135: 807.75 | J135: 769.36 | K135: 18 | L135: 3,386,423.36 | M135: 0.00 | N135: 0.00 | O135: 3,386,423.36 | P135: 0.00 | Q135: 0.00 | R135: 2023 | S135: 2023
B136: Лихославльский муниципальный округ | H136: =SUM(H137:H139) -> 5,752.60 | I136: 5,752.60 | J136: 4,146.20 | K136: 174.00 | L136: 19,646,255.00 | M136: 0.00 | N136: 0.00 | O136: 19,646,255.00 | P136: 0.00 | Q136: 0.00 | R136: Х | S136: Х
A137: 85 | B137: г. Лихославль, ул. Вагжанова, д. 6а | C137: 1993 | E137: Каменные, кирпичные | F137: 3 | G137: 2 | H137: 1,245.80 | I137: 1,245.80 | J137: 1,196.80 | K137: 53 | L137: 10,081,900.60 | M137: 0.00 | N137: 0.00 | O137: =L137 -> 10,081,900.60 | P137: 0.00 | Q137: 0.00 | R137: 2023 | S137: 2023
A138: 86 | B138: г. Лихославль, ул. Вагжанова, д. 10 | C138: 1962 | E138: Каменные, кирпичные | F138: 2 | G138: 2 | H138: 369.50 | I138: 369.50 | J138: 369.50 | K138: 10 | L138: 1,714,553.24 | M138: 0.00 | N138: 0.00 | O138: 1,714,553.24 | P138: 0.00 | Q138: 0.00 | R138: 2023 | S138: 2023
A139: 87 | B139: г. Лихославль, ул. Первомайская, д. 3 | C139: 1975 | E139: Каменные, кирпичные | F139: 5 | G139: 4 | H139: 4,137.30 | I139: 4,137.30 | J139: 2,579.90 | K139: 111 | L139: 7,849,801.16 | M139: 0.00 | N139: 0.00 | O139: 7,849,801.16 | P139: 0.00 | Q139: 0.00 | R139: 2023 | S139: 2023
B140: Нелидовский городской округ | H140: =H141+H142 -> 1,575.79 | I140: =I141+I142 -> 1,475.80 | J140: 1,411.90 | K140: 57.00 | L140: 10,897,874.88 | M140: 0.00 | N140: 0.00 | O140: 10,897,874.88 | P140: 0.00 | Q140: 0.00 | R140: Х | S140: Х
A141: 88 | B141: г. Нелидово, ул. Нахимова, д. 11 | C141: 1955 | E141: Каменные, кирпичные | F141: 2 | G141: 2 | H141: 798.09 | I141: 731.40 | J141: 731.40 | K141: 31 | L141: 3,764,706.35 | M141: 0.00 | N141: 0.00 | O141: =L141 -> 3,764,706.35 | P141: 0.00 | Q141: 0.00 | R141: 2023 | S141: 2023
A142: 89 | B142: г. Нелидово, ул. Матросова, д. 36/44 | C142: 1953 | E142: блочные | F142: 2 | G142: 2 | H142: 777.70 | I142: 744.40 | J142: 680.50 | K142: 26 | L142: 7,133,168.53 | M142: 0.00 | N142: 0.00 | O142: =L142 -> 7,133,168.53 | P142: 0.00 | Q142: 0.00 | R142: 2023 | S142: 2023
B143: Осташковский городской округ | H143: =SUM(H144:H152) -> 28,307.90 | I143: =SUM(I144:I152) -> 28,307.90 | J143: 23,259.90 | K143: 880 | L143: 58,020,979.92 | M143: 0.00 | N143: 0.00 | O143: 58,020,979.92 | P143: 0.00 | Q143: 0.00 | R143: Х | S143: Х
A144: 90 | B144: г. Осташков, пер. Льва Толстого, д. 1Б | C144: 1994 | E144: Каменные, кирпичные | F144: 5 | G144: 2 | H144: 2,030.30 | I144: 2,030.30 | J144: 1,595.90 | K144: 50 | L144: 2,997,228.03 | M144: 0.00 | N144: 0.00 | O144: 2,997,228.03 | P144: 0.00 | Q144: 0.00 | R144: 2023 | S144: 2023
A145: 91 | B145: нп т/б Сокол, д. 20 | C145: 1983 | E145: Панельные | F145: 3 | G145: 3 | H145: 1,609.60 | I145: 1,609.60 | J145: 1,070.00 | K145: 41 | L145: 2,706,899.77 | M145: 0.00 | N145: 0.00 | O145: 2,706,899.77 | P145: 0.00 | Q145: 0.00 | R145: 2023 | S145: 2023
A146: 92 | B146: г. Осташков, ул. Володарского, д. 177 | C146: 1983 | E146: Каменные, кирпичные | F146: 5 | G146: 7 | H146: 5,209.70 | I146: 5,209.70 | J146: 4,729.30 | K146: 125 | L146: 11,676,822.52 | M146: 0.00 | N146: 0.00 | O146: 11,676,822.52 | P146: 0.00 | Q146: 0.00 | R146: 2023 | S146: 2023
A147: 93 | B147: г. Осташков, нп Микрорайон, д. 18 | C147: 1981 | E147: Панельные | F147: 5 | G147: 5 | H147: 4,943.30 | I147: 4,943.30 | J147: 3,748.90 | K147: 108 | L147: 11,092,981.39 | M147: 0.00 | N147: 0.00 | O147: 11,092,981.39 | P147: 0.00 | Q147: 0.00 | R147: 2023 | S147: 2023
A148: 94 | B148: г. Осташков, пр-т Гвардейский, д. 1 | C148: 1985 | E148: Панельные | F148: 5 | G148: 5 | H148: 3,613.30 | I148: 3,613.30 | J148: 3,258.80 | K148: 141 | L148: 10,084,528.54 | M148: 0.00 | N148: 0.00 | O148: 10,084,528.54 | P148: 0.00 | Q148: 0.00 | R148: 2023 | S148: 2023
A149: 95 | B149: г. Осташков, ул. Володарского, д. 179 | C149: 1984 | D149: 2022 | E149: Каменные, кирпичные | F149: 4 | G149: 3 | H149: 3,248.70 | I149: 3,248.70 | J149: 2,298.70 | K149: 67 | L149: 7,917,854.46 | M149: 0.00 | N149: 0.00 | O149: 7,917,854.46 | P149: 0.00 | Q149: 0.00 | R149: 2023 | S149: 2023
A150: 96 | B150: г. Осташков, ул. Кузнечная, д. 51 | C150: 1974 | E150: Каменные, кирпичные | F150: 5 | G150: 2 | H150: 1,953.60 | I150: 1,953.60 | J150: 1,797.60 | K150: 78 | L150: 3,426,085.88 | M150: 0.00 | N150: 0.00 | O150: 3,426,085.88 | P150: 0.00 | Q150: 0.00 | R150: 2023 | S150: 2023
A151: 97 | B151: г. Осташков, ул. Шевчука, д. 5 | C151: 1981 | D151: 2022 | E151: Каменные, кирпичные | F151: 5 | G151: 1 | H151: 3,240.40 | I151: 3,240.40 | J151: 2,485.40 | K151: 180 | L151: 3,390,527.73 | M151: 0.00 | N151: 0.00 | O151: 3,390,527.73 | P151: 0.00 | Q151: 0.00 | R151: 2023 | S151: 2023
A152: 98 | B152: г. Осташков, ул. Рябочкина, д. 38А | C152: 1982 | E152: Панельные | F152: 5 | G152: 3 | H152: 2,459.00 | I152: 2,459.00 | J152: 2,275.30 | K152: 90 | L152: 4,728,051.60 | M152: 0.00 | N152: 0.00 | O152: 4,728,051.60 | P152: 0.00 | Q152: 0.00 | R152: 2023 | S152: 2023
B153: Ржевский муниципальный округ | H153: =SUM(H154:H165) -> 28,212.50 | I153: =SUM(I154:I165) -> 25,433.95 | J153: 21,286.80 | K153: 851.00 | L153: 59,203,369.72 | M153: 0.00 | N153: 0.00 | O153: 59,203,369.72 | P153: 0.00 | Q153: 0.00 | R153: Х | S153: Х
A154: 99 | B154: г.Ржев, ул. Мира, д. 4 | C154: 1957 | E154: Каменные, кирпичные | F154: 3 | G154: 3 | H154: 1,373.30 | I154: 1,155.30 | J154: 1,155.30 | K154: 40 | L154: 5,959,675.40 | M154: 0.00 | N154: 0.00 | O154: 5,959,675.40 | P154: 0.00 | Q154: 0.00 | R154: 2023 | S154: 2023
A155: 100 | B155: г.Ржев, ул. Мира, д. 10 | C155: 1963 | E155: Каменные, кирпичные | F155: 3 | G155: 2 | H155: 1,523.50 | I155: 1,101.55 | J155: 524.10 | K155: 28 | L155: 10,032,307.98 | M155: 0.00 | N155: 0.00 | O155: 10,032,307.98 | P155: 0.00 | Q155: 0.00 | R155: 2023 | S155: 2023
A156: 101 | B156: г.Ржев, ул. Разина, д. 3 | C156: 1965 | E156: Каменные, кирпичные | F156: 5 | G156: 3 | H156: 2,979.50 | I156: 2,416.00 | J156: 2,416.00 | K156: 70 | L156: 3,270,571.83 | M156: 0.00 | N156: 0.00 | O156: 3,270,571.83 | P156: 0.00 | Q156: 0.00 | R156: 2023 | S156: 2023
A157: 102 | B157: г.Ржев, ул. Б.Спасская, д. 41/65 | C157: 1949 | E157: Каменные, кирпичные | F157: 3 | G157: 3 | H157: 2,081.10 | I157: 972.40 | J157: 862.30 | K157: 40 | L157: 5,552,714.71 | M157: 0.00 | N157: 0.00 | O157: 5,552,714.71 | P157: 0.00 | Q157: 0.00 | R157: 2023 | S157: 2023
A158: 103 | B158: г.Ржев, ул.Б.Спасская, д.50/70 | C158: 1952 | E158: Каменные, кирпичные | F158: 2 | G158: 2 | H158: 898.30 | I158: 898.30 | J158: 517.00 | K158: 18 | L158: 5,051,597.53 | M158: 0.00 | N158: 0.00 | O158: 5,051,597.53 | P158: 0.00 | Q158: 0.00 | R158: 2023 | S158: 2023
A159: 104 | B159: г.Ржев, ул.Косарова, д.49 | C159: 1982 | E159: Панельные | F159: 5 | G159: 8 | H159: 6,227.50 | I159: 6,227.50 | J159: 4,896.20 | K159: 236 | L159: 7,244,937.61 | M159: 0.00 | N159: 0.00 | O159: 7,244,937.61 | P159: 0.00 | Q159: 0.00 | R159: 2023 | S159: 2023
A160: 105 | B160: г.Ржев, ул.Калинина, д.53 | C160: 1955 | E160: Каменные, кирпичные | F160: 2 | G160: 1 | H160: 589.50 | I160: 419.70 | J160: 419.70 | K160: 15 | L160: 3,333,137.57 | M160: 0.00 | N160: 0.00 | O160: 3,333,137.57 | P160: 0.00 | Q160: 0.00 | R160: 2023 | S160: 2023
A161: 106 | B161: г.Ржев, ул.Краностроителей, д.1 | C161: 1953 | E161: Каменные, кирпичные | F161: 2 | G161: 1 | H161: 616.80 | I161: 616.80 | J161: 547.30 | K161: 10 | L161: 3,077,746.65 | M161: 0.00 | N161: 0.00 | O161: 3,077,746.65 | P161: 0.00 | Q161: 0.00 | R161: 2023 | S161: 2023
A162: 107 | B162: г.Ржев, Торопецкий тр., д.2а/21 | C162: 1960 | E162: Каменные, кирпичные | F162: 2 | G162: 2 | H162: 531.80 | I162: 471.30 | J162: 425.20 | K162: 30 | L162: 1,992,234.35 | M162: 0.00 | N162: 0.00 | O162: 1,992,234.35 | P162: 0.00 | Q162: 0.00 | R162: 2023 | S162: 2023
A163: 108 | B163: г.Ржев, Красноармейская наб., д.30/1 | C163: 1917 | E163: Каменные, кирпичные | F163: 2 | G163: 1 | H163: 259.70 | I163: 224.00 | J163: 224.00 | K163: 6 | L163: 1,447,085.58 | M163: 0.00 | N163: 0.00 | O163: 1,447,085.58 | P163: 0.00 | Q163: 0.00 | R163: 2023 | S163: 2023
A164: 109 | B164: г.Ржев, ул.Республиканская, д.7б | C164: 2009 | E164: Панельные | F164: 7 | G164: 1 | H164: 1,801.10 | I164: 1,600.70 | J164: 1,367.00 | K164: 66 | L164: 3,060,340.13 | M164: 0.00 | N164: 0.00 | O164: 3,060,340.13 | P164: 0.00 | Q164: 0.00 | R164: 2023 | S164: 2023
A165: 110 | B165: г.Ржев, ул.Чкалова, д.41 | C165: 1999 | E165: Панельные | F165: 9 | G165: 3 | H165: 9,330.40 | I165: 9,330.40 | J165: 7,932.70 | K165: 292 | L165: 9,181,020.38 | M165: 0.00 | N165: 0.00 | O165: 9,181,020.38 | P165: 0.00 | Q165: 0.00 | R165: 2023 | S165: 2023
B166: Сандовский муниципальный округ | H166: =H167 -> 953.10 | I166: =I167 -> 849.20 | J166: 849.20 | K166: 36.00 | L166: 1,018,891.44 | M166: 0.00 | N166: 0.00 | O166: 1,018,891.44 | P166: 0.00 | Q166: 0.00 | R166: Х | S166: Х
A167: 111 | B167: п. Сандово, ул. Лесная, д. 3 | C167: 1981 | E167: Панельные | F167: 2 | G167: 2 | H167: 953.10 | I167: 849.20 | J167: 849.20 | K167: 36 | L167: 1,018,891.44 | M167: 0.00 | N167: 0.00 | O167: 1,018,891.44 | P167: 0.00 | Q167: 0.00 | R167: 2023 | S167: 2023
B168: Селижаровский муниципальный округ | H168: =H169+H170 -> 867.60 | I168: =I169+I170 -> 817.60 | J168: 771.60 | K168: 30 | L168: 5,002,509.37 | M168: 0.00 | N168: 0.00 | O168: 5,002,509.37 | P168: 0.00 | Q168: 0.00 | R168: Х | S168: Х
A169: 112 | B169: пос. Селижарово, ул. Новая, д. 11 | C169: 1970 | E169: Каменные, кирпичные | F169: 2 | G169: 2 | H169: 429.50 | I169: 429.50 | J169: 383.50 | K169: 11 | L169: 2,584,474.31 | M169: 0.00 | N169: 0.00 | O169: 2,584,474.31 | P169: 0.00 | Q169: 0.00 | R169: 2023 | S169: 2023
A170: 113 | B170: пос. Селижарово, ул. Ленина, д. 29 | C170: 1969 | E170: Каменные, кирпичные | F170: 2 | G170: 2 | H170: 438.10 | I170: 388.10 | J170: 388.10 | K170: 19 | L170: 2,418,035.06 | M170: 0.00 | N170: 0.00 | O170: 2,418,035.06 | P170: 0.00 | Q170: 0.00 | R170: 2023 | S170: 2023
B171: Сонковский муниципальный округ | H171: =H172 -> 790.20 | I171: =I172 -> 731.00 | J171: 731.00 | K171: 22 | L171: 3,927,134.26 | M171: 0.00 | N171: 0.00 | O171: 3,927,134.26 | P171: 0.00 | Q171: 0.00 | R171: Х | S171: Х
A172: 114 | B172: пос. Сонково, ул. Артамонова, д. 1а | C172: 1976 | E172: Панельные | F172: 2 | G172: 2 | H172: 790.20 | I172: 731.00 | J172: 731.00 | K172: 22 | L172: 3,927,134.26 | M172: 0.00 | N172: 0.00 | O172: 3,927,134.26 | P172: 0.00 | Q172: 0.00 | R172: 2023 | S172: 2023
B173: Спировский муниципальный округ | H173: =H174 -> 4,877.20 | I173: =I174 -> 4,877.20 | J173: 2,993.90 | K173: 133.00 | L173: 9,677,432.05 | M173: 0.00 | N173: 0.00 | O173: 9,677,432.05 | P173: 0.00 | Q173: 0.00 | R173: Х | S173: Х
A174: 115 | B174: пос. Спирово, ул. Речная, д. 4 | C174: 1992 | E174: Блочные | F174: 5 | G174: 6 | H174: 4,877.20 | I174: 4,877.20 | J174: 2,993.90 | K174: 133 | L174: 9,677,432.05 | M174: 0.00 | N174: 0.00 | O174: 9,677,432.05 | P174: 0.00 | Q174: 0.00 | R174: 2023 | S174: 2023
B175: Старицкий муниципальный округ | H175: =SUM(H176:H177) -> 2,280.20 | I175: 2,225.45 | J175: 2,195.35 | K175: 161.00 | L175: 6,654,419.57 | M175: 0.00 | N175: 0.00 | O175: 6,654,419.57 | P175: 0.00 | Q175: 0.00 | R175: Х | S175: Х
A176: 116 | B176: г. Старица, ул. Карла Маркса, д. 60 | C176: 1961 | D176: 2020 | E176: Каменные, кирпичные | F176: 2 | G176: 1 | H176: 335.20 | I176: 310.00 | J176: 310.00 | K176: 12 | L176: 3,314,848.33 | M176: 0.00 | N176: 0.00 | O176: 3,314,848.33 | P176: 0.00 | Q176: 0.00 | R176: 2023 | S176: 2023
A177: 117 | B177: г. Старица, ул. Коммунистическая, д. 40а | C177: 1983 | E177: Каменные, кирпичные | F177: 5 | G177: 1 | H177: 1,945.00 | I177: 1,915.45 | J177: 1,885.35 | K177: 149 | L177: 3,339,571.24 | M177: 0.00 | N177: 0.00 | O177: 3,339,571.24 | P177: 0.00 | Q177: 0.00 | R177: 2023 | S177: 2023
B178: Торопецкий район | H178: =H179 -> 599.80 | I178: =I179 -> 482.20 | J178: 256.80 | K178: 9 | L178: 8,284,127.59 | M178: 0.00 | N178: 0.00 | O178: 8,284,127.59 | P178: 0.00 | Q178: 0.00 | R178: Х | S178: Х
B179: Итого по МО городское поселение город Торопец | H179: =H180 -> 599.80 | I179: 482.20 | J179: 256.80 | K179: 9.00 | L179: 8,284,127.59 | M179: 0.00 | N179: 0.00 | O179: 8,284,127.59 | P179: 0.00 | Q179: 0.00 | R179: Х | S179: Х
A180: 118 | B180: г. Торопец, ул. Советская, д. 2 | C180: 1810 | E180: Каменные, кирпичные | F180: 2 | G180: 1 | H180: 599.80 | I180: 482.20 | J180: 256.80 | K180: 9 | L180: 8,284,127.59 | M180: 0.00 | N180: 0.00 | O180: 8,284,127.59 | P180: =Q180 -> 0.00 | Q180: 0.00 | R180: 2023 | S180: 2023
B181: Удомельский городской округ | H181: =SUM(H182:H184) -> 9,522.21 | I181: =SUM(I182:I184) -> 9,522.21 | J181: 8,222.21 | K181: 305.00 | L181: 14,503,389.62 | M181: 0.00 | N181: 0.00 | O181: 14,503,389.62 | P181: 0.00 | Q181: 0.00 | R181: Х | S181: Х
A182: 119 | B182: г. Удомля, пр-т Энергетиков, д. 6а | C182: 1982 | E182: Панельные | F182: 5 | G182: 4 | H182: 3,059.61 | I182: 3,059.61 | J182: 3,059.61 | K182: 100 | L182: 3,762,059.91 | M182: 0.00 | N182: 0.00 | O182: 3,762,059.91 | P182: 0.00 | Q182: 0.00 | R182: 2023 | S182: 2023
A183: 120 | B183: г. Удомля, ул. Вышневолоцкое шоссе, д. 6 | C183: 1976 | E183: Каменные, кирпичные | F183: 2 | G183: 2 | H183: 588.10 | I183: 588.10 | J183: 539.70 | K183: 23 | L183: 3,063,337.04 | M183: 0.00 | N183: 0.00 | O183: =L183 -> 3,063,337.04 | P183: 0.00 | Q183: 0.00 | R183: 2023 | S183: 2023
A184: 121 | B184: г. Удомля, ул. Автодорожная, д. 2/1 | C184: 1983 | E184: Каменные, кирпичные | F184: 9 | G184: 1 | H184: 5,874.50 | I184: 5,874.50 | J184: 4,622.90 | K184: 182 | L184: 7,677,992.67 | M184: 0.00 | N184: 0.00 | O184: 7,677,992.67 | P184: 0.00 | Q184: 0.00 | R184: 2023 | S184: 2023
A185: Формирование фонда капитального ремонта многоквартирного дома на специальном счете, владельцем которого является региональный оператор
B186: Итого по Тверской области | H186: 0.00 | I186: 0.00 | J186: 0.00 | K186: 0 | L186: 0.00 | M186: 0.00 | N186: 0.00 | O186: 0.00 | P186: 0.00 | Q186: 0.00 | R186: Х | S186: Х
A187: Формирование фонда капитального ремонта многоквартирного дома на специальном счете, владельцем которого является товарищество собственников жилья, жилищно-строительный кооператив, жилищный кооператив, иной специализированный потребительский кооператив, управляющая компания
B188: Итого по Тверской области | H188: =H189 -> 21,449.00 | I188: =I189 -> 17,826.60 | J188: 17,826.60 | K188: 606.00 | L188: 4,141,657.00 | M188: 0.00 | N188: 1,096,851.00 | O188: 3,044,806.00 | P188: 0.00 | Q188: 0.00 | R188: Х | S188: Х
B189: Оленинский муниципальный округ | H189: =SUM(H190:H210) -> 21,449.00 | I189: =SUM(I190:I210) -> 17,826.60 | J189: 17,826.60 | K189: 606.00 | L189: 4,141,657.00 | M189: 0.00 | N189: 1,096,851.00 | O189: 3,044,806.00 | P189: 0.00 | Q189: 0.00 | R189: Х | S189: Х
A190: 122 | B190: пгт Оленино, ул. Кузьмина, д. 91 | C190: 1968 | D190: 2021 | E190: Блочные | F190: 2 | G190: 2 | H190: 555.10 | I190: 533.30 | J190: 533.30 | K190: 19 | L190: =N190+O190 -> 327,980.00 | M190: 0.00 | N190: 98,394.00 | O190: 229,586.00 | P190: 0.00 | Q190: 0.00 | R190: 2023 | S190: 2023
A191: 123 | B191: пгт Оленино, ул. Октябрьская, д. 14 | C191: 1971 | D191: 2021 | E191: Каменные, кирпичные | F191: 2 | G191: 1 | H191: 352.10 | I191: 303.30 | J191: 303.30 | K191: 12 | L191: =N191+O191 -> 127,310.00 | M191: 0.00 | N191: 38,193.00 | O191: 89,117.00 | P191: 0.00 | Q191: 0.00 | R191: 2023 | S191: 2023
A192: 124 | B192: пгт Оленино, ул. Октябрьская, д. 26 | C192: 1972 | D192: 2021 | E192: Каменные, кирпичные | F192: 2 | G192: 3 | H192: 960.10 | I192: 933.30 | J192: 933.30 | K192: 28 | L192: 264,124.00 | M192: 0.00 | N192: 79,237.00 | O192: 184,887.00 | P192: 0.00 | Q192: 0.00 | R192: 2023 | S192: 2023
A193: 125 | B193: пгт Оленино, ул. Чехова, д. 17 | C193: 1974 | D193: 2022 | E193: Каменные, кирпичные | F193: 2 | G193: 2 | H193: 752.30 | I193: 732.50 | J193: 732.50 | K193: 24 | L193: 175,068.00 | M193: 0.00 | N193: 52,520.00 | O193: 122,548.00 | P193: 0.00 | Q193: 0.00 | R193: 2023 | S193: 2023
A194: 126 | B194: пгт Оленино, ул. Чехова, д. 22 | C194: 1985 | D194: 2021 | E194: Панельные | F194: 3 | G194: 2 | H194: 1,235.90 | I194: 762.40 | J194: 762.40 | K194: 23 | L194: 182,214.00 | M194: 0.00 | N194: 36,443.00 | O194: 145,771.00 | P194: 0.00 | Q194: 0.00 | R194: 2023 | S194: 2023
A195: 127 | B195: пгт Оленино, ул. Пионерская, д. 2 | C195: 1980 | D195: 2020 | E195: Блочные | F195: 2 | G195: 2 | H195: 808.00 | I195: 670.50 | J195: 670.50 | K195: 25 | L195: 62,000.00 | M195: 0.00 | N195: 18,600.00 | O195: 43,400.00 | P195: 0.00 | Q195: 0.00 | R195: 2023 | S195: 2023
A196: 128 | B196: пгт Оленино, ул. Пионерская, д. 3 | C196: 1977 | D196: 2016 | E196: Блочные | F196: 2 | G196: 2 | H196: 836.80 | I196: 783.60 | J196: 783.60 | K196: 32 | L196: 62,000.00 | M196: 0.00 | N196: 6,200.00 | O196: 55,800.00 | P196: 0.00 | Q196: 0.00 | R196: 2023 | S196: 2023
A197: 129 | B197: пгт Оленино, ул. Пионерская, д. 4 | C197: 1989 | D197: 2018 | E197: Каменные, кирпичные | F197: 2 | G197: 2 | H197: 807.30 | I197: 741.30 | J197: 741.30 | K197: 20 | L197: 318,425.00 | M197: 0.00 | N197: 63,685.00 | O197: 254,740.00 | P197: 0.00 | Q197: 0.00 | R197: 2023 | S197: 2023
A198: 130 | B198: пгт Оленино, ул. Пионерская, д. 4а | C198: 1989 | D198: 2021 | E198: Каменные, кирпичные | F198: 5 | G198: 6 | H198: 5,612.10 | I198: 4,066.30 | J198: 4,066.30 | K198: 123 | L198: 205,000.00 | M198: 0.00 | N198: 61,500.00 | O198: 143,500.00 | P198: 0.00 | Q198: 0.00 | R198: 2023 | S198: 2023
A199: 131 | B199: пгт Оленино, ул. Пионерская, д. 5 | C199: 1978 | D199: 2016 | E199: Блочные | F199: 2 | G199: 2 | H199: 825.50 | I199: 761.50 | J199: 761.50 | K199: 23 | L199: 530,323.00 | M199: 0.00 | N199: 106,065.00 | O199: 424,258.00 | P199: 0.00 | Q199: 0.00 | R199: 2023 | S199: 2023
A200: 132 | B200: пгт Оленино, ул. Пионерская, д. 7 | C200: 1984 | D200: 2022 | E200: Каменные, кирпичные | F200: 2 | G200: 3 | H200: 1,390.50 | I200: 833.80 | J200: 833.80 | K200: 37 | L200: 336,985.00 | M200: 0.00 | N200: 101,095.00 | O200: 235,890.00 | P200: 0.00 | Q200: 0.00 | R200: 2023 | S200: 2023
A201: 133 | B201: пгт Оленино, ул. Пионерская, д. 8 | C201: 1978 | D201: 2016 | E201: Блочные | F201: 2 | G201: 2 | H201: 818.10 | I201: 754.10 | J201: 754.10 | K201: 24 | L201: 81,000.00 | M201: 0.00 | N201: 24,300.00 | O201: 56,700.00 | P201: 0.00 | Q201: 0.00 | R201: 2023 | S201: 2023
A202: 134 | B202: пгт Оленино, ул. Пионерская, д. 9 | C202: 1984 | D202: 2022 | E202: Блочные | F202: 2 | G202: 2 | H202: 790.40 | I202: 741.20 | J202: 741.20 | K202: 22 | L202: 47,000.00 | M202: 0.00 | N202: 9,400.00 | O202: 37,600.00 | P202: 0.00 | Q202: 0.00 | R202: 2023 | S202: 2023
... 855 more rows

Sheet 39-66
A1: II. Реестр многоквартирных домов, которые подлежат капитальному ремонту по видам ремонта
A2: № п/п | B2: Адрес МКД | C2: Стоимость капитального ремонта, всего | D2: Виды услуг и (или) работ по капитальному ремонту:
D3: ремонт внутридомовых инженерных систем | K3: установка приборов учета2 | M3: ремонт, замена, модернизация лифтов, ремонт лифтовых шахт, машинных и блочных помещений | O3: ремонт крыши, переустройство невентилируемой крыши на вентилируемую крышу, устройство выходов на кровлю | Q3: ремонт подвальных помещений, относящихся к общему имуществу в многоквартирном доме | S3: ремонт и утепление фасада | W3: ремонт фундамента | Y3: уста-новка, ремонт систем приема телеви-дения3 | Z3: разработка проектной документации4 | AA3: техническое обследование общего имущества в много-квартирном доме
D4: Итого | E4: электроснабжения | F4: теплоснабжения 1 | G4: газоснабжения | H4: холодного водоснабжения | I4: горячего водоснабжения | J4: водоотведения
S5: ремонт фасада | U5: утепление фасада
C6: руб. | D6: руб. | E6: руб. | F6: руб. | G6: руб. | H6: руб. | I6: руб. | J6: руб. | K6: ед. | L6: руб. | M6: ед. | N6: руб. | O6: кв. м | P6: руб. | Q6: кв. м | R6: руб. | S6: кв. м | T6: руб. | W6: куб. м | X6: руб. | Z6: руб. | AA6: руб.
A7: 1 | B7: 2 | C7: 3 | D7: 4 | E7: 5 | F7: 6 | G7: 7 | H7: 8 | I7: 9 | J7: 10 | K7: 11 | L7: 12 | M7: 13 | N7: 14 | O7: 15 | P7: 16 | Q7: 17 | R7: 18 | S7: 19 | T7: 20 | U7: 21 | V7: 22 | W7: 23 | X7: 24 | Y7: 25 | Z7: 26 | AA7: 27
A8: Начало проведения капитального ремонта – 2023 год
B9: Итого по Тверской области | C9: =C10+C21+C31+C33+C39+C41+C47+C50+C56+C60+C64+C82+C90+C100+C107+C124+C126+C129+C133+C136+C158+C168+C183+C186+C189+C191+C193+C196+C37+C62+C98+C181 -> 705,543,562.04 | D9: =D10+D21+D31+D33+D39+D41+D47+D50+D56+D60+D64+D82+D90+D100+D107+D124+D126+D129+D133+D136+D158+D168+D183+D186+D189+D191+D193+D196+D37+D62+D98+D181 -> 50,069,112.70 | E9: 13,062,263.22 | F9: 14,298,550.43 | G9: 3,367,992.14 | H9: 8,605,831.62 | I9: 5,811,536.91 | J9: 4,922,938.38 | K9: 2.00 | L9: 430,301.00 | M9: 14.00 | N9: 42,209,146.64 | O9: 64,604.17 | P9: 404,816,334.64 | Q9: 0.00 | R9: 0.00 | S9: 32,062.02 | T9: 120,768,453.88 | U9: 362.00 | V9: 1,645,003.51 | W9: 397.40 | X9: 576,230.00 | Y9: 0.00 | Z9: 64,098,354.86 | AA9: 0.00
B10: Итого по МО город Тверь | C10: =SUM(C11:C20) -> 158,081,640.29 | D10: 35,785,902.57 | E10: 4,341,353.46 | F10: 12,548,539.18 | G10: 3,090,220.37 | H10: 6,959,875.07 | I10: 5,811,536.91 | J10: 3,034,377.58 | K10: 2 | L10: 430,301.00 | M10: 9 | N10: 28,018,882.40 | O10: 6,631.95 | P10: 34,706,002.50 | Q10: 0.00 | R10: 0.00 | S10: 12,887.00 | T10: 44,676,245.39 | U10: 0.00 | V10: 0.00 | W10: 0.00 | X10: 0.00 | Y10: 0.00 | Z10: 14,464,306.43 | AA10: 0.00
A11: 1 | B11: г. Тверь, ул. Зинаиды Коноплянниковой, д. 8 | C11: =D11+N11+P11+R11+T11+X11+Z11 -> 27,935,692.62 | D11: =SUM(E11:J11) -> 0.00 | E11: 0.00 | F11: 0.00 | G11: 0.00 | H11: 0.00 | I11: 0.00 | J11: 0.00 | K11: 0 | L11: 0.00 | M11: 2 | N11: 5,676,105.69 | O11: 880.00 | P11: 4,331,471.41 | Q11: 0.00 | R11: 0.00 | S11: 4,027.40 | T11: 15,899,011.28 | U11: 0.00 | V11: 0.00 | W11: 0.00 | X11: 0.00 | Y11: 0.00 | Z11: 2029104.24 | AA11: 0.00
A12: 2 | B12: г. Тверь, пос. Химинститута, д. 46 | C12: =D12+N12+P12+R12+T12+X12+Z12 -> 14,500,229.31 | D12: =SUM(E12:J12) -> 0.00 | E12: 0.00 | F12: 0.00 | G12: 0.00 | H12: 0.00 | I12: 0.00 | J12: 0.00 | K12: 0 | L12: 0.00 | M12: 1 | N12: 2838052.85 | O12: 2155.36 | P12: 10608954.79 | Q12: 0.00 | R12: 0.00 | S12: 0.00 | T12: 0.00 | U12: 0.00 | V12: 0.00 | W12: 0.00 | X12: 0.00 | Y12: 0.00 | Z12: 1053221.67 | AA12: 0.00
A13: 3 | B13: г. Тверь, пер. Свободный, д. 1Г | C13: 37,984,944.43 | D13: 0.00 | E13: 0.00 | F13: 0.00 | G13: 0.00 | H13: 0.00 | I13: 0.00 | J13: 0.00 | K13: 0 | L13: 0.00 | M13: 2 | N13: 8152512.47 | O13: 0.00 | P13: 0.00 | Q13: 0.00 | R13: 0.00 | S13: 6858.00 | T13: 27073402.04 | U13: 0.00 | V13: 0.00 | W13: 0.00 | X13: 0.00 | Y13: 0.00 | Z13: 2759029.92 | AA13: 0.00
A14: 4 | B14: г. Тверь, ул. Громова, д. 14 | C14: 12,241,360.51 | D14: 0.00 | E14: 0.00 | F14: 0.00 | G14: 0.00 | H14: 0.00 | I14: 0.00 | J14: 0.00 | K14: 0 | L14: 0.00 | M14: 4 | N14: 11352211.39 | O14: 0.00 | P14: 0.00 | Q14: 0.00 | R14: 0.00 | S14: 0.00 | T14: 0.00 | U14: 0.00 | V14: 0.00 | W14: 0.00 | X14: 0.00 | Y14: 0.00 | Z14: 889149.12 | AA14: 0.00
A15: 5 | B15: г. Тверь, наб. Степана Разина, д. 8 | C15: 3,215,641.00 | D15: 0.00 | E15: 0.00 | F15: 0.00 | G15: 0.00 | H15: 0.00 | I15: 0.00 | J15: 0.00 | K15: 0 | L15: 0.00 | M15: 0 | N15: 0.00 | O15: 780.00 | P15: 0.00 | Q15: 0.00 | R15: 0.00 | S15: 1570.00 | T15: 0.00 | U15: 0.00 | V15: 0.00 | W15: 0.00 | X15: 0.00 | Y15: 0.00 | Z15: 3215641.00 | AA15: 0.00
A16: 6 | B16: г. Тверь, ул. Маяковского, д. 36/94 | C16: 5,225,790.55 | D16: 0.00 | E16: 0.00 | F16: 0.00 | G16: 0.00 | H16: 0.00 | I16: 0.00 | J16: 0.00 | K16: 0 | L16: 0.00 | M16: 0 | N16: 0.00 | O16: 570.00 | P16: 4846216.15 | Q16: 0.00 | R16: 0.00 | S16: 0.00 | T16: 0.00 | U16: 0.00 | V16: 0.00 | W16: 0.00 | X16: 0.00 | Y16: 0.00 | Z16: 379574.40 | AA16: 0.00
A17: 7 | B17: г. Тверь, наб. реки Лазури, д. 14 | C17: 8,117,052.13 | D17: 2,667,647.38 | E17: 352,617.92 | F17: 937,963.67 | G17: 0.00 | H17: 565,302.21 | I17: 565,302.21 | J17: 246,461.37 | K17: 0 | L17: 0.00 | M17: 0 | N17: 0.00 | O17: 371.20 | P17: 3155991.99 | Q17: 0.00 | R17: 0.00 | S17: 431.60 | T17: 1703832.07 | U17: 0.00 | V17: 0.00 | W17: 0.00 | X17: 0.00 | Y17: 0.00 | Z17: 589580.69 | AA17: 0.00
A18: 8 | B18: г. Тверь, наб. Афанасия Никитина, д. 82/2 | C18: 18,401,541.02 | D18: 14,023,074.01 | E18: 1,561,455.04 | F18: 5,154,009.40 | G18: 1,209,716.74 | H18: 2,503,258.97 | I18: 2,503,258.97 | J18: 1,091,374.89 | K18: 0 | L18: 0.00 | M18: 0 | N18: 0.00 | O18: 618.00 | P18: 3041874.24 | Q18: 0.00 | R18: 0.00 | S18: 0.00 | T18: 0.00 | U18: 0.00 | V18: 0.00 | W18: 0.00 | X18: 0.00 | Y18: 0.00 | Z18: 1336592.77 | AA18: 0.00
A19: 9 | B19: г. Тверь, ул. Мусоргского, д. 36А | C19: 18,306,453.00 | D19: 14,269,597.30 | E19: 1,710,982.89 | F19: 4,551,214.48 | G19: 1,325,561.48 | H19: 2,742,975.73 | I19: 2,742,975.73 | J19: 1,195,886.99 | K19: 0 | L19: 0.00 | M19: 0 | N19: 0.00 | O19: 550.00 | P19: 2707169.63 | Q19: 0.00 | R19: 0.00 | S19: 0.00 | T19: 0.00 | U19: 0.00 | V19: 0.00 | W19: 0.00 | X19: 0.00 | Y19: 0.00 | Z19: 1329686.07 | AA19: 0.00
A20: 10 | B20: г. Тверь, 1-ый переулок (пос. Элеватор), д. 1 | C20: =D20+N20+P20+R20+T20+X20+Z20+L20 -> 12,152,935.72 | D20: 4,825,583.88 | E20: 716,297.61 | F20: 1,905,351.63 | G20: 554,942.15 | H20: 1,148,338.16 | I20: 0.00 | J20: 500,654.33 | K20: 2 | L20: =348180+82121 -> 430,301.00 | M20: 0 | N20: 0.00 | O20: 707.39 | P20: 6014324.29 | Q20: 0.00 | R20: 0.00 | S20: 0.00 | T20: 0.00 | U20: 0.00 | V20: 0.00 | W20: 0.00 | X20: 0.00 | Y20: 0.00 | Z20: 882726.55 | AA20: 0.00
B21: Итого по МО Вышневолоцкий городской округ | C21: =SUM(C22:C30) -> 28,532,348.18 | D21: 0.00 | E21: 0.00 | F21: 0.00 | G21: 0.00 | H21: 0.00 | I21: 0.00 | J21: 0.00 | K21: 0 | L21: 0.00 | M21: 0 | N21: 0.00 | O21: 3,706.11 | P21: 24,007,695.10 | Q21: 0.00 | R21: 0.00 | S21: 0.00 | T21: 0.00 | U21: 0.00 | V21: 0.00 | W21: =SUM(W22:W30) -> 0.00 | X21: =SUM(X22:X30) -> 0.00 | Y21: =SUM(Y22:Y30) -> 0.00 | Z21: =SUM(Z22:Z30) -> 4,524,653.08 | AA21: =SUM(AA22:AA30) -> 0.00
A22: 11 | B22: с. Есеновичи, ул. Площадь Правды, д. 21 | C22: =D22+N22+P22+R22+T22+X22+Z22 -> 4,898,148.28 | D22: =SUM(E22:J22) -> 0.00 | E22: 0.00 | F22: 0.00 | G22: 0.00 | H22: 0.00 | I22: 0.00 | J22: 0.00 | K22: 0 | L22: 0.00 | M22: 0 | N22: 0.00 | O22: 614.00 | P22: 4,542,372.12 | Q22: 0.00 | R22: 0.00 | S22: 0.00 | T22: 0.00 | U22: 0.00 | V22: 0.00 | W22: 0.00 | X22: 0.00 | Y22: 0.00 | Z22: 355,776.16 | AA22: 0.00
A23: 12 | B23: г. Вышний Волочек, ул. Ванчакова линия, д. 33 | C23: 1,191,236.00 | D23: 0.00 | E23: 0.00 | F23: 0.00 | G23: 0.00 | H23: 0.00 | I23: 0.00 | J23: 0.00 | K23: 0 | L23: 0.00 | M23: 0 | N23: 0.00 | O23: 0.00 | P23: 0.00 | Q23: 0.00 | R23: 0.00 | S23: 0.00 | T23: 0.00 | U23: 0.00 | V23: 0.00 | W23: 0.00 | X23: 0.00 | Y23: 0.00 | Z23: 1,191,236.00 | AA23: 0.00
A24: 13 | B24: г. Вышний Волочек, ул. Куйбышева, д. 15а | C24: 6,253,469.22 | D24: 0.00 | E24: 0.00 | F24: 0.00 | G24: 0.00 | H24: 0.00 | I24: 0.00 | J24: 0.00 | K24: 0 | L24: 0.00 | M24: 0 | N24: 0.00 | O24: 1,178.20 | P24: 5,799,249.56 | Q24: 0.00 | R24: 0.00 | S24: 0.00 | T24: 0.00 | U24: 0.00 | V24: 0.00 | W24: 0.00 | X24: 0.00 | Y24: 0.00 | Z24: 454,219.66 | AA24: 0.00
A25: 14 | B25: п. Пригородный, ул. Мелиораторов, д. 9 | C25: 3,863,966.72 | D25: 0.00 | E25: 0.00 | F25: 0.00 | G25: 0.00 | H25: 0.00 | I25: 0.00 | J25: 0.00 | K25: 0 | L25: 0.00 | M25: 0 | N25: 0.00 | O25: 728.00 | P25: 3,583,308.16 | Q25: 0.00 | R25: 0.00 | S25: 0.00 | T25: 0.00 | U25: 0.00 | V25: 0.00 | W25: 0.00 | X25: 0.00 | Y25: 0.00 | Z25: 280,658.56 | AA25: 0.00
A26: 15 | B26: г. Вышний Волочек, ул. Бейшлотская набережная, д. 131 | C26: 7,720,509.62 | D26: 0.00 | E26: 0.00 | F26: 0.00 | G26: 0.00 | H26: 0.00 | I26: 0.00 | J26: 0.00 | K26: 0 | L26: 0.00 | M26: 0 | N26: 0.00 | O26: 842.11 | P26: 7,159,731.73 | Q26: 0.00 | R26: 0.00 | S26: 0.00 | T26: 0.00 | U26: 0.00 | V26: 0.00 | W26: 0.00 | X26: 0.00 | Y26: 0.00 | Z26: 560,777.89 | AA26: 0.00
A27: 16 | B27: г. Вышний Волочек, ул. Ванчакова линия, д. 39-41 | C27: 1,210,508.00 | D27: 0.00 | E27: 0.00 | F27: 0.00 | G27: 0.00 | H27: 0.00 | I27: 0.00 | J27: 0.00 | K27: 0 | L27: 0.00 | M27: 0 | N27: 0.00 | O27: 0.00 | P27: 0.00 | Q27: 0.00 | R27: 0.00 | S27: 0.00 | T27: 0.00 | U27: 0.00 | V27: 0.00 | W27: 0.00 | X27: 0.00 | Y27: 0.00 | Z27: 1,210,508.00 | AA27: 0.00
A28: 17 | B28: г. Вышний Волочек, ул. Карла Маркса, д. 68 | C28: 3,151,976.83 | D28: 0.00 | E28: 0.00 | F28: 0.00 | G28: 0.00 | H28: 0.00 | I28: 0.00 | J28: 0.00 | K28: 0 | L28: 0.00 | M28: 0 | N28: 0.00 | O28: 343.80 | P28: 2,923,033.53 | Q28: 0.00 | R28: 0.00 | S28: 0.00 | T28: 0.00 | U28: 0.00 | V28: 0.00 | W28: 0.00 | X28: 0.00 | Y28: 0.00 | Z28: 228,943.30 | AA28: 0.00
A29: 18 | B29: г. Вышний Волочек, ул. Красный Городок, д. 407 | C29: 146,528.60 | D29: 0.00 | E29: 0.00 | F29: 0.00 | G29: 0.00 | H29: 0.00 | I29: 0.00 | J29: 0.00 | K29: 0 | L29: 0.00 | M29: 0 | N29: 0.00 | O29: 0.00 | P29: 0.00 | Q29: 0.00 | R29: 0.00 | S29: 0.00 | T29: 0.00 | U29: 0.00 | V29: 0.00 | W29: 0.00 | X29: 0.00 | Y29: 0.00 | Z29: 146,528.60 | AA29: 0.00
A30: 19 | B30: г. Вышний Волочек, ул. Екатерининская, д. 7/9 | C30: 96,004.91 | D30: 0.00 | E30: 0.00 | F30: 0.00 | G30: 0.00 | H30: 0.00 | I30: 0.00 | J30: 0.00 | K30: 0 | L30: 0.00 | M30: 0 | N30: 0.00 | O30: 0.00 | P30: 0.00 | Q30: 0.00 | R30: 0.00 | S30: 0.00 | T30: 0.00 | U30: 0.00 | V30: 0.00 | W30: 0.00 | X30: 0.00 | Y30: 0.00 | Z30: 96,004.91 | AA30: 0.00
B31: Итого по МО город Торжок | C31: =SUM(C32:C32) -> 10,176,539.50 | D31: 0.00 | E31: 0.00 | F31: 0.00 | G31: 0.00 | H31: 0.00 | I31: 0.00 | J31: 0.00 | K31: 0 | L31: 0.00 | M31: 0 | N31: 0.00 | O31: 1,110.00 | P31: 9,437,368.30 | Q31: 0.00 | R31: 0.00 | S31: 0.00 | T31: 0.00 | U31: 0.00 | V31: 0.00 | W31: =SUM(W32:W32) -> 0.00 | X31: =SUM(X32:X32) -> 0.00 | Y31: 0.00 | Z31: =SUM(Z32:Z32) -> 739,171.20 | AA31: =SUM(AA32:AA32) -> 0.00
A32: 20 | B32: г. Торжок, ул. Белинского, д. 7 | C32: =D32+N32+P32+R32+T32+X32+Z32 -> 10,176,539.50 | D32: =SUM(E32:J32) -> 0.00 | E32: 0.00 | F32: 0.00 | G32: 0.00 | H32: 0.00 | I32: 0.00 | J32: 0.00 | K32: 0 | L32: 0.00 | M32: 0 | N32: 0.00 | O32: 1,110.00 | P32: 9,437,368.30 | Q32: 0.00 | R32: 0.00 | S32: 0.00 | T32: 0.00 | U32: 0.00 | V32: 0.00 | W32: 0.00 | X32: 0.00 | Y32: 0.00 | Z32: 739,171.20 | AA32: 0.00
B33: Итого по МО ЗАТО Озерный | C33: =C34+C35+C36 -> 14,556,403.25 | D33: =D34+D35+D36 -> 0.00 | E33: 0.00 | F33: 0.00 | G33: 0.00 | H33: 0.00 | I33: 0.00 | J33: 0.00 | K33: 0 | L33: 0.00 | M33: 0 | N33: 0.00 | O33: 1,931.00 | P33: 13,709,423.37 | Q33: 0.00 | R33: 0.00 | S33: 0.00 | T33: 0.00 | U33: 0.00 | V33: 0.00 | W33: 0.00 | X33: 0.00 | Y33: 0.00 | Z33: 846,979.88 | AA33: 0.00
A34: 21 | B34: пгт Озерный, ул. Комсомольская, д. 1 | C34: =D34+N34+P34+R34+T34+X34+Z34 -> 5,170,782.23 | D34: =SUM(E34:J34) -> 0.00 | E34: 0.00 | F34: 0.00 | G34: 0.00 | H34: 0.00 | I34: 0.00 | J34: 0.00 | K34: 0 | L34: 0.00 | M34: 0 | N34: 0.00 | O34: 564.00 | P34: 4,795,203.35 | Q34: 0.00 | R34: 0.00 | S34: 0.00 | T34: 0.00 | U34: 0.00 | V34: 0.00 | W34: 0.00 | X34: 0.00 | Y34: 0.00 | Z34: 375,578.88 | AA34: 0.00
A35: 22 | B35: пгт Озерный, ул. Комсомольская, д. 2 | C35: 5,170,782.23 | D35: 0.00 | E35: 0.00 | F35: 0.00 | G35: 0.00 | H35: 0.00 | I35: 0.00 | J35: 0.00 | K35: 0 | L35: 0.00 | M35: 0 | N35: 0.00 | O35: 564.00 | P35: 4,795,203.35 | Q35: 0.00 | R35: 0.00 | S35: 0.00 | T35: 0.00 | U35: 0.00 | V35: 0.00 | W35: 0.00 | X35: 0.00 | Y35: 0.00 | Z35: 375,578.88 | AA35: 0.00
A36: 23 | B36: пгт Озерный, ул. Труда, д. 5 | C36: 4,214,838.79 | D36: 0.00 | E36: 0.00 | F36: 0.00 | G36: 0.00 | H36: 0.00 | I36: 0.00 | J36: 0.00 | K36: 0 | L36: 0.00 | M36: 0 | N36: 0.00 | O36: 803.00 | P36: 4,119,016.67 | Q36: 0.00 | R36: 0.00 | S36: 0.00 | T36: 0.00 | U36: 0.00 | V36: 0.00 | W36: 0.00 | X36: 0.00 | Y36: 0.00 | Z36: 95,822.12 | AA36: 0.00
B37: Итого по МО ЗАТО Солнечный | C37: =C38 -> 1,588,224.31 | D37: =D38 -> 1,472,863.91 | E37: 1,472,863.91 | F37: 0.00 | G37: 0.00 | H37: 0.00 | I37: 0.00 | J37: 0.00 | K37: 0.00 | L37: 0.00 | M37: 0.00 | N37: 0.00 | O37: 0.00 | P37: 0.00 | Q37: 0.00 | R37: 0.00 | S37: 0.00 | T37: 0.00 | U37: 0.00 | V37: 0.00 | W37: 0.00 | X37: 0.00 | Y37: 0.00 | Z37: 115,360.40 | AA37: 0.00
A38: 24 | B38: ЗАТО Солнечный, ул. Новая, д. 27 | C38: =D38+N38+P38+R38+T38+X38+Z38 -> 1,588,224.31 | D38: =SUM(E38:J38) -> 1,472,863.91 | E38: 1,472,863.91 | F38: 0.00 | G38: 0.00 | H38: 0.00 | I38: 0.00 | J38: 0.00 | K38: 0 | L38: 0.00 | M38: 0 | N38: 0.00 | O38: 0.00 | P38: 0.00 | Q38: 0.00 | R38: 0.00 | S38: 0.00 | T38: 0.00 | U38: 0.00 | V38: 0.00 | W38: 0.00 | X38: 0.00 | Y38: 0.00 | Z38: 115,360.40 | AA38: 0.00
B39: Андреапольский муниципальный округ | C39: =C40 -> 10,749,726.21 | D39: =D40 -> 0.00 | E39: 0.00 | F39: 0.00 | G39: 0.00 | H39: 0.00 | I39: 0.00 | J39: 0.00 | K39: 0.00 | L39: 0.00 | M39: 0.00 | N39: 0.00 | O39: 1,172.52 | P39: 9,968,921.69 | Q39: 0.00 | R39: 0.00 | S39: 0.00 | T39: 0.00 | U39: 0.00 | V39: 0.00 | W39: 0.00 | X39: 0.00 | Y39: 0.00 | Z39: 780,804.52 | AA39: 0.00
A40: 25 | B40: г. Андреаполь, пл. Гвардейская, д. 1 | C40: =D40+N40+P40+R40+T40+X40+Z40 -> 10,749,726.21 | D40: =SUM(E40:J40) -> 0.00 | E40: 0.00 | F40: 0.00 | G40: 0.00 | H40: 0.00 | I40: 0.00 | J40: 0.00 | K40: 0 | L40: 0.00 | M40: 0 | N40: 0.00 | O40: 1,172.52 | P40: 9,968,921.69 | Q40: 0.00 | R40: 0.00 | S40: 0.00 | T40: 0.00 | U40: 0.00 | V40: 0.00 | W40: 0.00 | X40: 0.00 | Y40: 0.00 | Z40: 780,804.52 | AA40: 0.00
B41: Бежецкий район | C41: =C42 -> 17,931,462.42 | D41: 2,082,895.98 | E41: 701,063.43 | F41: 0.00 | G41: 0.00 | H41: 1,381,832.55 | I41: 0.00 | J41: 0.00 | K41: 0 | L41: 0.00 | M41: =M42 -> 0 | N41: 0.00 | O41: 1,871.60 | P41: 14,546,117.75 | Q41: 0.00 | R41: 0.00 | S41: 0.00 | T41: 0.00 | U41: 0.00 | V41: 0.00 | W41: 0.00 | X41: 0.00 | Y41: 0.00 | Z41: =Z42 -> 1,302,448.69 | AA41: 0.00
B42: Итого по МО городское поселение город Бежецк | C42: =SUM(C43:C46) -> 17,931,462.42 | D42: 2,082,895.98 | E42: 701,063.43 | F42: 0.00 | G42: 0.00 | H42: 1,381,832.55 | I42: 0.00 | J42: 0.00 | K42: 0 | L42: 0.00 | M42: 0 | N42: 0.00 | O42: 1,871.60 | P42: 14,546,117.75 | Q42: 0.00 | R42: 0.00 | S42: 0.00 | T42: 0.00 | U42: 0.00 | V42: 0.00 | W42: =SUM(W43:W46) -> 0.00 | X42: =SUM(X43:X46) -> 0.00 | Y42: =SUM(Y43:Y46) -> 0.00 | Z42: =SUM(Z43:Z46) -> 1,302,448.69 | AA42: =SUM(AA43:AA46) -> 0.00
A43: 26 | B43: г. Бежецк, ул. Л. Толстого, д. 4 | C43: =D43+N43+P43+R43+T43+X43+Z43 -> 9,872,879.99 | D43: =SUM(E43:J43) -> 0.00 | E43: 0.00 | F43: 0.00 | G43: 0.00 | H43: 0.00 | I43: 0.00 | J43: 0.00 | K43: 0 | L43: 0.00 | M43: 0 | N43: 0.00 | O43: 1,237.60 | P43: 9,155,765.05 | Q43: 0.00 | R43: 0.00 | S43: 0.00 | T43: 0.00 | U43: 0.00 | V43: 0.00 | W43: 0.00 | X43: 0.00 | Y43: 0.00 | Z43: 717,114.94 | AA43: 0.00
A44: 27 | B44: г. Бежецк, ул. Рабочая, д. 5 | C44: 755,973.43 | D44: 701,063.43 | E44: 701,063.43 | F44: 0.00 | G44: 0.00 | H44: 0.00 | I44: 0.00 | J44: 0.00 | K44: 0 | L44: 0.00 | M44: 0 | N44: 0.00 | O44: 0.00 | P44: 0.00 | Q44: 0.00 | R44: 0.00 | S44: 0.00 | T44: 0.00 | U44: 0.00 | V44: 0.00 | W44: 0.00 | X44: 0.00 | Y44: 0.00 | Z44: 54,910.00 | AA44: 0.00
A45: 28 | B45: г. Бежецк, ул. М.И. Кузнецова, д. 24 | C45: 1,490,063.02 | D45: 1,381,832.55 | E45: 0.00 | F45: 0.00 | G45: 0.00 | H45: 1,381,832.55 | I45: 0.00 | J45: 0.00 | K45: 0 | L45: 0.00 | M45: 0 | N45: 0.00 | O45: 0.00 | P45: 0.00 | Q45: 0.00 | R45: 0.00 | S45: 0.00 | T45: 0.00 | U45: 0.00 | V45: 0.00 | W45: 0.00 | X45: 0.00 | Y45: 0.00 | Z45: 108,230.47 | AA45: 0.00
A46: 29 | B46: г. Бежецк, пер. Первомайский, д. 33/18 | C46: 5,812,545.98 | D46: 0.00 | E46: 0.00 | F46: 0.00 | G46: 0.00 | H46: 0.00 | I46: 0.00 | J46: 0.00 | K46: 0 | L46: 0.00 | M46: 0 | N46: 0.00 | O46: 634.00 | P46: 5,390,352.70 | Q46: 0.00 | R46: 0.00 | S46: 0.00 | T46: 0.00 | U46: 0.00 | V46: 0.00 | W46: 0.00 | X46: 0.00 | Y46: 0.00 | Z46: 422,193.28 | AA46: 0.00
B47: Бельский муниципальный округ | C47: =C48+C49 -> 971,203.51 | D47: =D48+D49 -> 900,660.31 | E47: 900,660.31 | F47: 0.00 | G47: 0.00 | H47: 0.00 | I47: 0.00 | J47: 0.00 | K47: 0.00 | L47: 0.00 | M47: 0.00 | N47: 0.00 | O47: 0.00 | P47: 0.00 | Q47: 0.00 | R47: 0.00 | S47: 0.00 | T47: 0.00 | U47: 0.00 | V47: 0.00 | W47: 0.00 | X47: 0.00 | Y47: 0.00 | Z47: 70,543.20 | AA47: 0.00
A48: 30 | B48: г. Белый, пер. Ленинский, д. 1 | C48: =D48+N48+P48+R48+T48+X48+Z48 -> 502,970.83 | D48: =SUM(E48:J48) -> 466,437.63 | E48: 466,437.63 | F48: 0.00 | G48: 0.00 | H48: 0.00 | I48: 0.00 | J48: 0.00 | K48: 0 | L48: 0.00 | M48: 0 | N48: 0.00 | O48: 0.00 | P48: 0.00 | Q48: 0.00 | R48: 0.00 | S48: 0.00 | T48: 0.00 | U48: 0.00 | V48: 0.00 | W48: 0.00 | X48: 0.00 | Y48: 0.00 | Z48: 36,533.20 | AA48: 0.00
A49: 31 | B49: г. Белый, ул. Ленина, д. 44 | C49: =D49+N49+P49+R49+T49+X49+Z49 -> 468,232.68 | D49: =SUM(E49:J49) -> 434,222.68 | E49: 434,222.68 | F49: 0.00 | G49: 0.00 | H49: 0.00 | I49: 0.00 | J49: 0.00 | K49: 0 | L49: 0.00 | M49: 0 | N49: 0.00 | O49: 0.00 | P49: 0.00 | Q49: 0.00 | R49: 0.00 | S49: 0.00 | T49: 0.00 | U49: 0.00 | V49: 0.00 | W49: 0.00 | X49: 0.00 | Y49: 0.00 | Z49: 34,010.00 | AA49: 0.00
B50: Бологовский район | C50: =C51 -> 11,562,294.28 | D50: =D51 -> 850,976.15 | E50: 500,884.35 | F50: 0.00 | G50: 0.00 | H50: 0.00 | I50: 0.00 | J50: 350,091.80 | K50: 0.00 | L50: 0.00 | M50: 0.00 | N50: 0.00 | O50: 1,164.00 | P50: 6,029,528.48 | Q50: 0.00 | R50: 0.00 | S50: 1,034.13 | T50: 4,082,446.38 | U50: 0.00 | V50: 0.00 | W50: 0.00 | X50: 0.00 | Y50: 0.00 | Z50: 599,343.27 | AA50: 0.00
B51: Итого по МО городское поселение город Бологое | C51: =SUM(C52:C55) -> 11,562,294.28 | D51: 850,976.15 | E51: 500,884.35 | F51: 0.00 | G51: 0.00 | H51: 0.00 | I51: 0.00 | J51: 350,091.80 | K51: 0 | L51: 0.00 | M51: 0 | N51: 0.00 | O51: 1,164.00 | P51: 6,029,528.48 | Q51: 0.00 | R51: 0.00 | S51: 1,034.13 | T51: 4,082,446.38 | U51: 0.00 | V51: 0.00 | W51: =SUM(W52:W55) -> 0.00 | X51: =SUM(X52:X55) -> 0.00 | Y51: 0.00 | Z51: =SUM(Z52:Z55) -> 599,343.27 | AA51: =SUM(AA52:AA55) -> 0.00
A52: 32 | B52: г. Бологое, ул. Гагарина, д. 6 | C52: =D52+N52+P52+R52+T52+X52+Z52 -> 917,627.89 | D52: =SUM(E52:J52) -> 850,976.15 | E52: 500,884.35 | F52: 0.00 | G52: 0.00 | H52: 0.00 | I52: 0.00 | J52: 350,091.80 | K52: 0 | L52: 0.00 | M52: 0 | N52: 0.00 | O52: 0.00 | P52: 0.00 | Q52: 0.00 | R52: 0.00 | S52: 0.00 | T52: 0.00 | U52: 0.00 | V52: 0.00 | W52: 0.00 | X52: 0.00 | Y52: 0.00 | Z52: 66,651.74 | AA52: 0.00
A53: 33 | B53: г. Бологое, ул. Кирова, д. 53 | C53: =D53+N53+P53+R53+T53+X53+Z53 -> 2,878,482.59 | D53: =SUM(E53:J53) -> 0.00 | E53: 0.00 | F53: 0.00 | G53: 0.00 | H53: 0.00 | I53: 0.00 | J53: 0.00 | K53: 0 | L53: 0.00 | M53: 0 | N53: 0.00 | O53: 784.00 | P53: 2,798,717.71 | Q53: 0.00 | R53: 0.00 | S53: 0.00 | T53: 0.00 | U53: 0.00 | V53: 0.00 | W53: 0.00 | X53: 0.00 | Y53: 0.00 | Z53: 79,764.88 | AA53: 0.00
A54: 34 | B54: г. Бологое, ул. Дружбы, д. 2 | C54: 4,282,323.43 | D54: 0.00 | E54: 0.00 | F54: 0.00 | G54: 0.00 | H54: 0.00 | I54: 0.00 | J54: 0.00 | K54: 0 | L54: 0.00 | M54: 0 | N54: 0.00 | O54: 0.00 | P54: 0.00 | Q54: 0.00 | R54: 0.00 | S54: 1,034.13 | T54: 4,082,446.38 | U54: 0.00 | V54: 0.00 | W54: 0.00 | X54: 0.00 | Y54: 0.00 | Z54: 199,877.05 | AA54: 0.00
A55: 35 | B55: г. Бологое, ул. Горская, д. 98 | C55: 3,483,860.37 | D55: 0.00 | E55: 0.00 | F55: 0.00 | G55: 0.00 | H55: 0.00 | I55: 0.00 | J55: 0.00 | K55: 0 | L55: 0.00 | M55: 0 | N55: 0.00 | O55: 380.00 | P55: 3,230,810.77 | Q55: 0.00 | R55: 0.00 | S55: 0.00 | T55: 0.00 | U55: 0.00 | V55: 0.00 | W55: 0.00 | X55: 0.00 | Y55: 0.00 | Z55: 253,049.60 | AA55: 0.00
B56: Весьегонский муниципальный округ | C56: =C57+C58+C59 -> 8,902,371.51 | D56: =D57+D58+D59 -> 0.00 | E56: 0.00 | F56: 0.00 | G56: 0.00 | H56: 0.00 | I56: 0.00 | J56: 0.00 | K56: 0.00 | L56: 0.00 | M56: 0.00 | N56: 0.00 | O56: 1,571.90 | P56: 8,482,240.91 | Q56: 0.00 | R56: 0.00 | S56: 0.00 | T56: 0.00 | U56: 0.00 | V56: 0.00 | W56: 0.00 | X56: 0.00 | Y56: 0.00 | Z56: 420,130.60 | AA56: 0.00
A57: 36 | B57: г. Весьегонск, ул. Строителей, д. 3 | C57: =D57+N57+P57+R57+T57+X57+Z57 -> 2,999,506.97 | D57: =SUM(E57:J57) -> 0.00 | E57: 0.00 | F57: 0.00 | G57: 0.00 | H57: 0.00 | I57: 0.00 | J57: 0.00 | K57: 0 | L57: 0.00 | M57: 0 | N57: 0.00 | O57: 585.90 | P57: 2,883,873.97 | Q57: 0.00 | R57: 0.00 | S57: 0.00 | T57: 0.00 | U57: 0.00 | V57: 0.00 | W57: 0.00 | X57: 0.00 | Y57: 0.00 | Z57: 115,633.00 | AA57: 0.00
A58: 37 | B58: г. Весьегонск, ул. Парковая, д. 6 | C58: =D58+N58+P58+R58+T58+X58+Z58 -> 3,318,040.65 | D58: =SUM(E58:J58) -> 0.00 | E58: 0.00 | F58: 0.00 | G58: 0.00 | H58: 0.00 | I58: 0.00 | J58: 0.00 | K58: 0 | L58: 0.00 | M58: 0 | N58: 0.00 | O58: 499.00 | P58: 3,201,291.29 | Q58: 0.00 | R58: 0.00 | S58: 0.00 | T58: 0.00 | U58: 0.00 | V58: 0.00 | W58: 0.00 | X58: 0.00 | Y58: 0.00 | Z58: 116,749.36 | AA58: 0.00
A59: 38 | B59: г. Весьегонск, ул. Павлика Морозова, д. 28 | C59: 2,584,823.89 | D59: 0.00 | E59: 0.00 | F59: 0.00 | G59: 0.00 | H59: 0.00 | I59: 0.00 | J59: 0.00 | K59: 0 | L59: 0.00 | M59: 0 | N59: 0.00 | O59: 487.00 | P59: 2,397,075.65 | Q59: 0.00 | R59: 0.00 | S59: 0.00 | T59: 0.00 | U59: 0.00 | V59: 0.00 | W59: 0.00 | X59: 0.00 | Y59: 0.00 | Z59: 187,748.24 | AA59: 0.00
B60: Западнодвинский муниципальный округ | C60: =C61 -> 5,323,904.26 | D60: =D61 -> 0.00 | E60: 0.00 | F60: 0.00 | G60: 0.00 | H60: 0.00 | I60: 0.00 | J60: 0.00 | K60: 0.00 | L60: 0.00 | M60: 0.00 | N60: 0.00 | O60: 667.37 | P60: 4,937,203.39 | Q60: 0.00 | R60: 0.00 | S60: 0.00 | T60: 0.00 | U60: 0.00 | V60: 0.00 | W60: 0.00 | X60: 0.00 | Y60: 0.00 | Z60: 386,700.87 | AA60: 0.00
A61: 39 | B61: пгт Старая Торопа, ул. Комсомольская, д. 13 | C61: =D61+N61+P61+R61+T61+X61+Z61 -> 5,323,904.26 | D61: =SUM(E61:J61) -> 0.00 | E61: 0.00 | F61: 0.00 | G61: 0.00 | H61: 0.00 | I61: 0.00 | J61: 0.00 | K61: 0 | L61: 0.00 | M61: 0 | N61: 0.00 | O61: 667.37 | P61: 4,937,203.39 | Q61: 0.00 | R61: 0.00 | S61: 0.00 | T61: 0.00 | U61: 0.00 | V61: 0.00 | W61: 0.00 | X61: 0.00 | Y61: 0.00 | Z61: 386,700.87 | AA61: 0.00
B62: Зубцовский муниципальный округ | C62: =C63 -> 2,387,361.16 | D62: =D63 -> 0.00 | E62: 0.00 | F62: 0.00 | G62: 0.00 | H62: 0.00 | I62: 0.00 | J62: 0.00 | K62: 0.00 | L62: 0.00 | M62: 0.00 | N62: 0.00 | O62: 260.40 | P62: 2,213,955.59 | Q62: 0.00 | R62: 0.00 | S62: 0.00 | T62: 0.00 | U62: 0.00 | V62: 0.00 | W62: 0.00 | X62: 0.00 | Y62: 0.00 | Z62: 173,405.57 | AA62: 0.00
A63: 40 | B63: г. Зубцов, ул. Электроподстанции, д. 1 | C63: =D63+N63+P63+R63+T63+X63+Z63 -> 2,387,361.16 | D63: =SUM(E63:J63) -> 0.00 | E63: 0.00 | F63: 0.00 | G63: 0.00 | H63: 0.00 | I63: 0.00 | J63: 0.00 | K63: 0 | L63: 0.00 | M63: 0 | N63: 0.00 | O63: 260.40 | P63: 2,213,955.59 | Q63: 0.00 | R63: 0.00 | S63: 0.00 | T63: 0.00 | U63: 0.00 | V63: 0.00 | W63: 0.00 | X63: 0.00 | Y63: 0.00 | Z63: 173,405.57 | AA63: 0.00
B64: Калининский район | C64: =C73+C67+C79+C71+C65+C77+C75 -> 33,600,535.26 | D64: 586,426.80 | E64: 424,131.24 | F64: 0.00 | G64: 0.00 | H64: 0.00 | I64: 0.00 | J64: 162,295.56 | K64: 0.00 | L64: 0.00 | M64: 0.00 | N64: 0.00 | O64: 5,462.30 | P64: 30,573,539.34 | Q64: 0.00 | R64: 0.00 | S64: 0.00 | T64: 0.00 | U64: 0.00 | V64: 0.00 | W64: 0.00 | X64: 0.00 | Y64: 0.00 | Z64: 2,440,569.12 | AA64: 0.00
B65: Итого по МО городское поселение пос. Васильевский Мох | C65: =C66 -> 9,443,095.21 | D65: =D66 -> 0.00 | E65: 0.00 | F65: 0.00 | G65: 0.00 | H65: 0.00 | I65: 0.00 | J65: 0.00 | K65: 0 | L65: 0.00 | M65: 0 | N65: 0.00 | O65: 1,030.00 | P65: 8,757,197.61 | Q65: 0.00 | R65: 0.00 | S65: 0.00 | T65: 0.00 | U65: 0.00 | V65: 0.00 | W65: 0.00 | X65: 0.00 | Y65: 0.00 | Z65: 685,897.60 | AA65: 0.00
A66: 41 | B66: пгт Васильевский Мох, ул. Смирнова, д. 1 | C66: =D66+N66+P66+R66+T66+X66+Z66 -> 9,443,095.21 | D66: =SUM(E66:J66) -> 0.00 | E66: 0.00 | F66: 0.00 | G66: 0.00 | H66: 0.00 | I66: 0.00 | J66: 0.00 | K66: 0 | L66: 0.00 | M66: 0 | N66: 0.00 | O66: 1,030.00 | P66: 8,757,197.61 | Q66: 0.00 | R66: 0.00 | S66: 0.00 | T66: 0.00 | U66: 0.00 | V66: 0.00 | W66: 0.00 | X66: 0.00 | Y66: 0.00 | Z66: 685,897.60 | AA66: 0.00
B67: Итого по МО Верхневолжское сельское поселение | C67: =C68+C70+C69 -> 4,792,659.72 | D67: =D68+D70+D69 -> 162,295.56 | E67: 0.00 | F67: 0.00 | G67: 0.00 | H67: 0.00 | I67: 0.00 | J67: 162,295.56 | K67: 0.00 | L67: 0.00 | M67: 0.00 | N67: 0.00 | O67: 870.00 | P67: 4,282,250.14 | Q67: 0.00 | R67: 0.00 | S67: 0.00 | T67: 0.00 | U67: 0.00 | V67: 0.00 | W67: 0.00 | X67: 0.00 | Y67: 0.00 | Z67: 348,114.02 | AA67: 0.00
A68: 42 | B68: с. Пушкино, д. 1 | C68: =D68+N68+P68+R68+T68+X68+Z68 -> 2,016,905.71 | D68: =SUM(E68:J68) -> 0.00 | E68: 0.00 | F68: 0.00 | G68: 0.00 | H68: 0.00 | I68: 0.00 | J68: 0.00 | K68: 0 | L68: 0.00 | M68: 0 | N68: 0.00 | O68: 380.00 | P68: 1,870,408.11 | Q68: 0.00 | R68: 0.00 | S68: 0.00 | T68: 0.00 | U68: 0.00 | V68: 0.00 | W68: 0.00 | X68: 0.00 | Y68: 0.00 | Z68: 146,497.60 | AA68: 0.00
A69: 43 | B69: с. Пушкино, д. 5 | C69: =D69+N69+P69+R69+T69+X69+Z69 -> 2,600,746.83 | D69: =SUM(E69:J69) -> 0.00 | O69: 490.00 | P69: 2,411,842.03 | Z69: 188,904.80
A70: 44 | B70: д. Квакшино, д. 4 | C70: =D70+N70+P70+R70+T70+X70+Z70 -> 175,007.18 | D70: =SUM(E70:J70) -> 162,295.56 | E70: 0.00 | F70: 0.00 | G70: 0.00 | H70: 0.00 | I70: 0.00 | J70: 162,295.56 | K70: 0 | L70: 0.00 | M70: 0 | N70: 0.00 | O70: 0.00 | P70: 0.00 | Q70: 0.00 | R70: 0.00 | S70: 0.00 | T70: 0.00 | U70: 0.00 | V70: 0.00 | W70: 0.00 | X70: 0.00 | Y70: 0.00 | Z70: 12,711.62 | AA70: 0.00
B71: Итого по МО Заволжское сельское поселение | C71: =C72 -> 4,284,863.10 | D71: =D72 -> 0.00 | E71: 0.00 | F71: 0.00 | G71: 0.00 | H71: 0.00 | I71: 0.00 | J71: 0.00 | K71: 0.00 | L71: 0.00 | M71: 0.00 | N71: 0.00 | O71: 807.30 | P71: 3,973,632.80 | Q71: 0.00 | R71: 0.00 | S71: 0.00 | T71: 0.00 | U71: 0.00 | V71: 0.00 | W71: 0.00 | X71: 0.00 | Y71: 0.00 | Z71: 311,230.30 | AA71: 0.00
A72: 45 | B72: пос. Заволжский, д. 25 | C72: =D72+N72+P72+R72+T72+X72+Z72 -> 4,284,863.10 | D72: =SUM(E72:J72) -> 0.00 | E72: 0.00 | F72: 0.00 | G72: 0.00 | H72: 0.00 | I72: 0.00 | J72: 0.00 | K72: 0 | L72: 0.00 | M72: 0 | N72: 0.00 | O72: 807.30 | P72: 3,973,632.80 | Q72: 0.00 | R72: 0.00 | S72: 0.00 | T72: 0.00 | U72: 0.00 | V72: 0.00 | W72: 0.00 | X72: 0.00 | Y72: 0.00 | Z72: 311,230.30 | AA72: 0.00
B73: Итого по МО Каблуковское сельское поселение | C73: =C74 -> 1,831,138.08 | D73: =D74 -> 0.00 | E73: 0.00 | F73: 0.00 | G73: 0.00 | H73: 0.00 | I73: 0.00 | J73: 0.00 | K73: 0.00 | L73: 0.00 | M73: 0.00 | N73: 0.00 | O73: 345.00 | P73: 1,698,133.68 | Q73: 0.00 | R73: 0.00 | S73: 0.00 | T73: 0.00 | U73: 0.00 | V73: 0.00 | W73: 0.00 | X73: 0.00 | Y73: 0.00 | Z73: 133,004.40 | AA73: 0.00
A74: 46 | B74: д. Заборовье, ул. Лесная, д. 3 | C74: =D74+N74+P74+R74+T74+X74+Z74 -> 1,831,138.08 | D74: =SUM(E74:J74) -> 0.00 | E74: 0.00 | F74: 0.00 | G74: 0.00 | H74: 0.00 | I74: 0.00 | J74: 0.00 | K74: 0 | L74: 0.00 | M74: 0 | N74: 0.00 | O74: 345.00 | P74: 1,698,133.68 | Q74: 0.00 | R74: 0.00 | S74: 0.00 | T74: 0.00 | U74: 0.00 | V74: 0.00 | W74: 0.00 | X74: 0.00 | Y74: 0.00 | Z74: 133,004.40 | AA74: 0.00
B75: Итого по МО Красногорское сельское поселение | C75: =C76 -> 457,350.84 | D75: =D76 -> 424,131.24 | E75: 424,131.24 | F75: 0.00 | G75: 0.00 | H75: 0.00 | I75: 0.00 | J75: 0.00 | K75: 0.00 | L75: 0.00 | M75: 0.00 | N75: 0.00 | O75: 0.00 | P75: 0.00 | Q75: 0.00 | R75: 0.00 | S75: 0.00 | T75: 0.00 | U75: 0.00 | V75: 0.00 | W75: 0.00 | X75: 0.00 | Y75: 0.00 | Z75: 33,219.60 | AA75: 0.00
A76: 47 | B76: д. Колталово, ул. Зеленая, д. 22 | C76: =D76+N76+P76+R76+T76+X76+Z76 -> 457,350.84 | D76: =SUM(E76:J76) -> 424,131.24 | E76: 424,131.24 | F76: 0.00 | G76: 0.00 | H76: 0.00 | I76: 0.00 | J76: 0.00 | K76: 0 | L76: 0.00 | M76: 0 | N76: 0.00 | O76: 0.00 | P76: 0.00 | Q76: 0.00 | R76: 0.00 | S76: 0.00 | T76: 0.00 | U76: 0.00 | V76: 0.00 | W76: 0.00 | X76: 0.00 | Y76: 0.00 | Z76: 33,219.60 | AA76: 0.00
B77: Итого по МО Медновское сельское поселение | C77: =C78 -> 4,670,729.01 | D77: 0.00 | E77: 0.00 | F77: 0.00 | G77: 0.00 | H77: 0.00 | I77: 0.00 | J77: 0.00 | K77: 0.00 | L77: 0.00 | M77: 0.00 | N77: 0.00 | O77: 880.00 | P77: 4,331,471.41 | Q77: 0.00 | R77: 0.00 | S77: 0.00 | T77: 0.00 | U77: 0.00 | V77: 0.00 | W77: 0.00 | X77: 0.00 | Y77: 0.00 | Z77: 339,257.60 | AA77: 0.00
A78: 48 | B78: с. Медное, ул. Тверская, д. 2 | C78: =D78+N78+P78+R78+T78+X78+Z78 -> 4,670,729.01 | D78: =SUM(E78:J78) -> 0.00 | E78: 0.00 | F78: 0.00 | G78: 0.00 | H78: 0.00 | I78: 0.00 | J78: 0.00 | K78: 0 | L78: 0.00 | M78: 0 | N78: 0.00 | O78: 880.00 | P78: 4,331,471.41 | Q78: 0.00 | R78: 0.00 | S78: 0.00 | T78: 0.00 | U78: 0.00 | V78: 0.00 | W78: 0.00 | X78: 0.00 | Y78: 0.00 | Z78: 339,257.60 | AA78: 0.00
B79: Итого по МО Эммаусское сельское поселение | C79: =C80+C81 -> 8,120,699.30 | D79: =D80+D81 -> 0.00 | E79: 0.00 | F79: 0.00 | G79: 0.00 | H79: 0.00 | I79: 0.00 | J79: 0.00 | K79: 0 | L79: 0.00 | M79: 0 | N79: 0.00 | O79: 1,530.00 | P79: 7,530,853.70 | Q79: 0.00 | R79: 0.00 | S79: 0.00 | T79: 0.00 | U79: 0.00 | V79: 0.00 | W79: 0.00 | X79: 0.00 | Y79: 0.00 | Z79: 589,845.60 | AA79: 0.00
A80: 49 | B80: пос. Эммаусс, д. 24 | C80: =D80+N80+P80+R80+T80+X80+Z80 -> 4,033,811.42 | D80: =SUM(E80:J80) -> 0.00 | E80: 0.00 | F80: 0.00 | G80: 0.00 | H80: 0.00 | I80: 0.00 | J80: 0.00 | K80: 0 | L80: 0.00 | M80: 0 | N80: 0.00 | O80: 760.00 | P80: 3,740,816.22 | Q80: 0.00 | R80: 0.00 | S80: 0.00 | T80: 0.00 | U80: 0.00 | V80: 0.00 | W80: 0.00 | X80: 0.00 | Y80: 0.00 | Z80: 292,995.20 | AA80: 0.00
A81: 50 | B81: пос. Эммаусс, д. 33 | C81: =D81+N81+P81+R81+T81+X81+Z81 -> 4,086,887.88 | D81: =SUM(E81:J81) -> 0.00 | E81: 0.00 | F81: 0.00 | G81: 0.00 | H81: 0.00 | I81: 0.00 | J81: 0.00 | K81: 0 | L81: 0.00 | M81: 0 | N81: 0.00 | O81: 770.00 | P81: 3,790,037.48 | Q81: 0.00 | R81: 0.00 | S81: 0.00 | T81: 0.00 | U81: 0.00 | V81: 0.00 | W81: 0.00 | X81: 0.00 | Y81: 0.00 | Z81: 296,850.40 | AA81: 0.00
B82: Калязинский район | C82: =C83 -> 30,135,392.18 | D82: 0.00 | E82: 0.00 | F82: 0.00 | G82: 0.00 | H82: 0.00 | I82: 0.00 | J82: 0.00 | K82: 0 | L82: 0.00 | M82: =M83 -> 0 | N82: 0.00 | O82: 3,287.00 | P82: 27,946,513.14 | Q82: 0.00 | R82: 0.00 | S82: 0.00 | T82: 0.00 | U82: 0.00 | V82: 0.00 | W82: 0.00 | X82: 0.00 | Y82: 0.00 | Z82: =Z83 -> 2,188,879.04 | AA82: 0.00
B83: Итого по МО городское поселение город Калязин | C83: =SUM(C84:C89) -> 30,135,392.18 | D83: 0.00 | E83: 0.00 | F83: 0.00 | G83: 0.00 | H83: 0.00 | I83: 0.00 | J83: 0.00 | K83: 0 | L83: 0.00 | M83: 0 | N83: 0.00 | O83: 3,287.00 | P83: 27,946,513.14 | Q83: 0.00 | R83: 0.00 | S83: 0.00 | T83: 0.00 | U83: 0.00 | V83: 0.00 | W83: =SUM(W84:W89) -> 0.00 | X83: =SUM(X84:X89) -> 0.00 | Y83: 0.00 | Z83: =SUM(Z84:Z89) -> 2,188,879.04 | AA83: =SUM(AA84:AA89) -> 0.00
A84: 51 | B84: г. Калязин, ул. Коминтерна, д. 42 | C84: =D84+N84+P84+R84+T84+X84+Z84 -> 5,867,554.30 | D84: =SUM(E84:J84) -> 0.00 | E84: =([1]база!E260-(([1]база!E260*8)/110.14)) -> 0.00 | F84: =([1]база!F260-(([1]база!F260*8)/110.14)) -> 0.00 | G84: =([1]база!G260-(([1]база!G260*8)/110.14)) -> 0.00 | H84: =([1]база!H260-(([1]база!H260*8)/110.14)) -> 0.00 | I84: =([1]база!I260-(([1]база!I260*8)/110.14)) -> 0.00 | J84: =([1]база!J260-(([1]база!J260*8)/110.14)) -> 0.00 | K84: 0 | L84: 0.00 | M84: 0 | N84: =([1]база!L260-([1]база!L260*8)/110.14) -> 0.00 | O84: 640.00 | P84: 5,441,365.50 | Q84: 0.00 | R84: 0.00 | S84: 0.00 | T84: 0.00 | U84: 0.00 | V84: 0.00 | W84: 0.00 | X84: 0.00 | Y84: 0.00 | Z84: 426,188.80 | AA84: 0.00
A85: 52 | B85: г. Калязин, ул. Центральная, д. 2а | C85: 8,984,692.53 | D85: 0.00 | E85: =([1]база!E261-(([1]база!E261*8)/110.14)) -> 0.00 | F85: =([1]база!F261-(([1]база!F261*8)/110.14)) -> 0.00 | G85: =([1]база!G261-(([1]база!G261*8)/110.14)) -> 0.00 | H85: =([1]база!H261-(([1]база!H261*8)/110.14)) -> 0.00 | I85: =([1]база!I261-(([1]база!I261*8)/110.14)) -> 0.00 | J85: =([1]база!J261-(([1]база!J261*8)/110.14)) -> 0.00 | K85: 0 | L85: 0.00 | M85: 0 | N85: =([1]база!L261-([1]база!L261*8)/110.14) -> 0.00 | O85: 980.00 | P85: 8,332,090.93 | Q85: 0.00 | R85: 0.00 | S85: 0.00 | T85: 0.00 | U85: 0.00 | V85: 0.00 | W85: 0.00 | X85: 0.00 | Y85: 0.00 | Z85: 652,601.60 | AA85: 0.00
A86: 53 | B86: г. Калязин, ул. Коминтерна, д. 61 | C86: 3,942,263.05 | D86: 0.00 | E86: =([1]база!E263-(([1]база!E263*8)/110.14)) -> 0.00 | F86: =([1]база!F263-(([1]база!F263*8)/110.14)) -> 0.00 | G86: =([1]база!G263-(([1]база!G263*8)/110.14)) -> 0.00 | H86: =([1]база!H263-(([1]база!H263*8)/110.14)) -> 0.00 | I86: =([1]база!I263-(([1]база!I263*8)/110.14)) -> 0.00 | J86: =([1]база!J263-(([1]база!J263*8)/110.14)) -> 0.00 | K86: 0 | L86: 0.00 | M86: 0 | N86: =([1]база!L263-([1]база!L263*8)/110.14) -> 0.00 | O86: 430.00 | P86: 3,655,917.45 | Q86: 0.00 | R86: 0.00 | S86: 0.00 | T86: 0.00 | U86: 0.00 | V86: 0.00 | W86: 0.00 | X86: 0.00 | Y86: 0.00 | Z86: 286,345.60 | AA86: 0.00
A87: 54 | B87: г. Калязин, ул. Вагжанова, д. 2а | C87: 2,823,760.51 | D87: 0.00 | E87: =([1]база!E264-(([1]база!E264*8)/110.14)) -> 0.00 | F87: =([1]база!F264-(([1]база!F264*8)/110.14)) -> 0.00 | G87: =([1]база!G264-(([1]база!G264*8)/110.14)) -> 0.00 | H87: =([1]база!H264-(([1]база!H264*8)/110.14)) -> 0.00 | I87: =([1]база!I264-(([1]база!I264*8)/110.14)) -> 0.00 | J87: =([1]база!J264-(([1]база!J264*8)/110.14)) -> 0.00 | K87: 0 | L87: 0.00 | M87: 0 | N87: =([1]база!L264-([1]база!L264*8)/110.14) -> 0.00 | O87: 308.00 | P87: 2,618,657.15 | Q87: 0.00 | R87: 0.00 | S87: 0.00 | T87: 0.00 | U87: 0.00 | V87: 0.00 | W87: 0.00 | X87: 0.00 | Y87: 0.00 | Z87: 205,103.36 | AA87: 0.00
A88: 55 | B88: г. Калязин, ул. Коминтерна, д. 32а | C88: 3,263,827.08 | D88: 0.00 | E88: =([1]база!E267-(([1]база!E267*8)/110.14)) -> 0.00 | F88: =([1]база!F267-(([1]база!F267*8)/110.14)) -> 0.00 | G88: =([1]база!G267-(([1]база!G267*8)/110.14)) -> 0.00 | H88: =([1]база!H267-(([1]база!H267*8)/110.14)) -> 0.00 | I88: =([1]база!I267-(([1]база!I267*8)/110.14)) -> 0.00 | J88: =([1]база!J267-(([1]база!J267*8)/110.14)) -> 0.00 | K88: 0 | L88: 0.00 | M88: 0 | N88: =([1]база!L267-([1]база!L267*8)/110.14) -> 0.00 | O88: 356.00 | P88: 3,026,759.56 | Q88: 0.00 | R88: 0.00 | S88: 0.00 | T88: 0.00 | U88: 0.00 | V88: 0.00 | W88: 0.00 | X88: 0.00 | Y88: 0.00 | Z88: 237,067.52 | AA88: 0.00
A89: 56 | B89: г. Калязин, ул. Коминтерна, д. 30/12 | C89: 5,253,294.71 | D89: 0.00 | E89: =([1]база!E268-(([1]база!E268*8)/110.14)) -> 0.00 | F89: =([1]база!F268-(([1]база!F268*8)/110.14)) -> 0.00 | G89: =([1]база!G268-(([1]база!G268*8)/110.14)) -> 0.00 | H89: =([1]база!H268-(([1]база!H268*8)/110.14)) -> 0.00 | I89: =([1]база!I268-(([1]база!I268*8)/110.14)) -> 0.00 | J89: =([1]база!J268-(([1]база!J268*8)/110.14)) -> 0.00 | K89: 0 | L89: 0.00 | M89: 0 | N89: =([1]база!L268-([1]база!L268*8)/110.14) -> 0.00 | O89: 573.00 | P89: 4,871,722.55 | Q89: 0.00 | R89: 0.00 | S89: 0.00 | T89: 0.00 | U89: 0.00 | V89: 0.00 | W89: 0.00 | X89: 0.00 | Y89: 0.00 | Z89: 381,572.16 | AA89: 0.00
B90: Итого по МО Кашинский городской округ | C90: =SUM(C91:C97) -> 8,582,395.00 | D90: 0.00 | E90: 0.00 | F90: 0.00 | G90: 0.00 | H90: 0.00 | I90: 0.00 | J90: 0.00 | K90: 0 | L90: 0.00 | M90: 0 | N90: 0.00 | O90: 0.00 | P90: 0.00 | Q90: 0.00 | R90: 0.00 | S90: 0.00 | T90: 0.00 | U90: 0.00 | V90: 0.00 | W90: =SUM(W91:W97) -> 0.00 | X90: =SUM(X91:X97) -> 0.00 | Y90: 0.00 | Z90: =SUM(Z91:Z97) -> 8,582,395.00 | AA90: =SUM(AA91:AA97) -> 0.00
A91: 57 | B91: г. Кашин, наб. Пушкинская, д. 18/1 | C91: =D91+N91+P91+R91+T91+X91+Z91 -> 1,195,838.00 | D91: =SUM(E91:J91) -> 0.00 | E91: 0.00 | F91: 0.00 | G91: 0.00 | H91: 0.00 | I91: 0.00 | J91: 0.00 | K91: 0 | L91: 0.00 | M91: 0 | N91: 0.00 | O91: 0.00 | P91: 0.00 | Q91: 0.00 | R91: 0.00 | S91: 0.00 | T91: 0.00 | U91: 0.00 | V91: 0.00 | W91: 0.00 | X91: 0.00 | Y91: 0.00 | Z91: 1,195,838.00 | AA91: 0.00
A92: 58 | B92: г. Кашин, ул. Ивана Тургенева, д. 3 | C92: 1,215,045.00 | D92: 0.00 | E92: 0.00 | F92: 0.00 | G92: 0.00 | H92: 0.00 | I92: 0.00 | J92: 0.00 | K92: 0 | L92: 0.00 | M92: 0 | N92: 0.00 | O92: 0.00 | P92: 0.00 | Q92: 0.00 | R92: 0.00 | S92: 0.00 | T92: 0.00 | U92: 0.00 | V92: 0.00 | W92: 0.00 | X92: 0.00 | Y92: 0.00 | Z92: 1,215,045.00 | AA92: 0.00
A93: 59 | B93: г. Кашин, ул. Ленина, д. 20 | C93: 1,191,236.00 | D93: 0.00 | E93: 0.00 | F93: 0.00 | G93: 0.00 | H93: 0.00 | I93: 0.00 | J93: 0.00 | K93: 0 | L93: 0.00 | M93: 0 | N93: 0.00 | O93: 0.00 | P93: 0.00 | Q93: 0.00 | R93: 0.00 | S93: 0.00 | T93: 0.00 | U93: 0.00 | V93: 0.00 | W93: 0.00 | X93: 0.00 | Y93: 0.00 | Z93: 1,191,236.00 | AA93: 0.00
A94: 60 | B94: г. Кашин, ул. Московская, д. 25 | C94: 1,230,002.00 | D94: 0.00 | E94: 0.00 | F94: 0.00 | G94: 0.00 | H94: 0.00 | I94: 0.00 | J94: 0.00 | K94: 0 | L94: 0.00 | M94: 0 | N94: 0.00 | O94: 0.00 | P94: 0.00 | Q94: 0.00 | R94: 0.00 | S94: 0.00 | T94: 0.00 | U94: 0.00 | V94: 0.00 | W94: 0.00 | X94: 0.00 | Y94: 0.00 | Z94: 1,230,002.00 | AA94: 0.00
A95: 61 | B95: г. Кашин, ул. Песочная, д. 11/6 | C95: 1,182,844.00 | D95: 0.00 | E95: 0.00 | F95: 0.00 | G95: 0.00 | H95: 0.00 | I95: 0.00 | J95: 0.00 | K95: 0 | L95: 0.00 | M95: 0 | N95: 0.00 | O95: 0.00 | P95: 0.00 | Q95: 0.00 | R95: 0.00 | S95: 0.00 | T95: 0.00 | U95: 0.00 | V95: 0.00 | W95: 0.00 | X95: 0.00 | Y95: 0.00 | Z95: 1,182,844.00 | AA95: 0.00
A96: 62 | B96: г. Кашин, ул. Песочная, д. 14/8 | C96: 1,271,553.00 | D96: 0.00 | E96: 0.00 | F96: 0.00 | G96: 0.00 | H96: 0.00 | I96: 0.00 | J96: 0.00 | K96: 0 | L96: 0.00 | M96: 0 | N96: 0.00 | O96: 0.00 | P96: 0.00 | Q96: 0.00 | R96: 0.00 | S96: 0.00 | T96: 0.00 | U96: 0.00 | V96: 0.00 | W96: 0.00 | X96: 0.00 | Y96: 0.00 | Z96: 1,271,553.00 | AA96: 0.00
A97: 63 | B97: г. Кашин, ул. Сад Тургенева, д. 5/5 | C97: 1,295,877.00 | D97: 0.00 | E97: 0.00 | F97: 0.00 | G97: 0.00 | H97: 0.00 | I97: 0.00 | J97: 0.00 | K97: 0 | L97: 0.00 | M97: 0 | N97: 0.00 | O97: 0.00 | P97: 0.00 | Q97: 0.00 | R97: 0.00 | S97: 0.00 | T97: 0.00 | U97: 0.00 | V97: 0.00 | W97: 0.00 | X97: 0.00 | Y97: 0.00 | Z97: 1,295,877.00 | AA97: 0.00
B98: Итого по МО Кесовогорский муниципальный округ | C98: =C99 -> 1,021,741.25 | D98: =D99 -> 947,527.25 | E98: 947,527.25 | F98: 0.00 | G98: 0.00 | H98: 0.00 | I98: 0.00 | J98: 0.00 | K98: 0.00 | L98: 0.00 | M98: 0.00 | N98: 0.00 | O98: 0.00 | P98: 0.00 | Q98: 0.00 | R98: 0.00 | S98: 0.00 | T98: 0.00 | U98: 0.00 | V98: 0.00 | W98: 0.00 | X98: 0.00 | Y98: 0.00 | Z98: 74,214.00 | AA98: 0.00
A99: 65 | B99: пгт Кесова Гора, ул. Старовокзальная, д. 4а | C99: =D99+N99+P99+R99+T99+X99+Z99 -> 1,021,741.25 | D99: =SUM(E99:J99) -> 947,527.25 | E99: 947,527.25 | F99: 0.00 | G99: 0.00 | H99: 0.00 | I99: 0.00 | J99: 0.00 | K99: 0 | L99: 0.00 | M99: 0 | N99: 0.00 | O99: 0.00 | P99: 0.00 | Q99: 0.00 | R99: 0.00 | S99: 0.00 | T99: 0.00 | U99: 0.00 | V99: 0.00 | W99: 0.00 | X99: 0.00 | Y99: 0.00 | Z99: 74,214.00 | AA99: 0.00
B100: Итого по МО Кимрский муниципальный округ | C100: =SUM(C101:C106) -> 42,147,210.33 | D100: =SUM(D101:D106) -> 0.00 | E100: 0.00 | F100: 0.00 | G100: 0.00 | H100: 0.00 | I100: 0.00 | J100: 0.00 | K100: 0.00 | L100: 0.00 | M100: 0.00 | N100: 0.00 | O100: 3,889.86 | P100: 33,072,109.39 | Q100: 0.00 | R100: 0.00 | S100: 1,523.35 | T100: 6,013,745.55 | U100: 0.00 | V100: 0.00 | W100: 0.00 | X100: 0.00 | Y100: 0.00 | Z100: 3,061,355.39 | AA100: 0.00
A101: 65 | B101: г. Кимры, ул. Володарского, д. 104а | C101: =D101+N101+P101+R101+T101+X101+Z101 -> 5,953,275.60 | D101: =SUM(E101:J101) -> 0.00 | E101: 0.00 | F101: 0.00 | G101: 0.00 | H101: 0.00 | I101: 0.00 | J101: 0.00 | K101: 0 | L101: 0.00 | M101: 0 | N101: 0.00 | O101: 649.35 | P101: 5,520,860.45 | Q101: 0.00 | R101: 0.00 | S101: 0.00 | T101: 0.00 | U101: 0.00 | V101: 0.00 | W101: 0.00 | X101: 0.00 | Y101: 0.00 | Z101: 432,415.15 | AA101: 0.00
A102: 66 | B102: г. Кимры, ул. Коммунистическая, д. 2/5 | C102: =D102+N102+P102+R102+T102+X102+Z102 -> 14,320,499.72 | D102: =SUM(E102:J102) -> 0.00 | E102: 0.00 | F102: 0.00 | G102: 0.00 | H102: 0.00 | I102: 0.00 | J102: 0.00 | K102: 0 | L102: 0.00 | M102: 0 | N102: 0.00 | O102: 1,562.00 | P102: 13,280,332.68 | Q102: 0.00 | R102: 0.00 | S102: 0.00 | T102: 0.00 | U102: 0.00 | V102: 0.00 | W102: 0.00 | X102: 0.00 | Y102: 0.00 | Z102: 1,040,167.04 | AA102: 0.00
A103: 67 | B103: г. Кимры, ул. Свободы, д. 4а | C103: 3,575,540.90 | D103: 0.00 | E103: 0.00 | F103: 0.00 | G103: 0.00 | H103: 0.00 | I103: 0.00 | J103: 0.00 | K103: 0 | L103: 0.00 | M103: 0 | N103: 0.00 | O103: 390.00 | P103: 3,315,832.10 | Q103: 0.00 | R103: 0.00 | S103: 0.00 | T103: 0.00 | U103: 0.00 | V103: 0.00 | W103: 0.00 | X103: 0.00 | Y103: 0.00 | Z103: 259,708.80 | AA103: 0.00
A104: 68 | B104: г. Кимры, ул. Станционная, д. 1 | C104: 8,131,238.42 | D104: 0.00 | E104: 0.00 | F104: 0.00 | G104: 0.00 | H104: 0.00 | I104: 0.00 | J104: 0.00 | K104: 0 | L104: 0.00 | M104: 0 | N104: 0.00 | O104: 886.91 | P104: 7,540,627.31 | Q104: 0.00 | R104: 0.00 | S104: 0.00 | T104: 0.00 | U104: 0.00 | V104: 0.00 | W104: 0.00 | X104: 0.00 | Y104: 0.00 | Z104: 590,611.11 | AA104: 0.00
A105: 69 | B105: г. Кимры, ул. Троицкая, д. 9/11 | C105: 6,484,765.37 | D105: 0.00 | E105: 0.00 | F105: 0.00 | G105: 0.00 | H105: 0.00 | I105: 0.00 | J105: 0.00 | K105: 0 | L105: 0.00 | M105: 0 | N105: 0.00 | O105: 0.00 | P105: 0.00 | Q105: 0.00 | R105: 0.00 | S105: 1523.35 | T105: 6,013,745.55 | U105: 0.00 | V105: 0.00 | W105: 0.00 | X105: 0.00 | Y105: 0.00 | Z105: 471,019.82 | AA105: 0.00
A106: 70 | B106: п. Белый Городок, ул. Школьная, д. 16 | C106: =D106+N106+P106+R106+T106+X106+Z106 -> 3,681,890.32 | D106: =SUM(E106:J106) -> 0.00 | E106: 0.00 | F106: 0.00 | G106: 0.00 | H106: 0.00 | I106: 0.00 | J106: 0.00 | K106: 0 | L106: 0.00 | M106: 0 | N106: 0.00 | O106: 401.60 | P106: 3,414,456.85 | Q106: 0.00 | R106: 0.00 | S106: 0.00 | T106: 0.00 | U106: 0.00 | V106: 0.00 | W106: 0.00 | X106: 0.00 | Y106: 0.00 | Z106: 267,433.47
B107: Конаковский район | C107: =C108+C120+C122+C117 -> 111,467,955.21 | D107: =D108+D120+D122+D117 -> 0.00 | E107: 0.00 | F107: 0.00 | G107: 0.00 | H107: 0.00 | I107: 0.00 | J107: 0.00 | K107: 0.00 | L107: 0.00 | M107: 0.00 | N107: 0.00 | O107: 8,731.83 | P107: 54,303,014.42 | Q107: 0.00 | R107: 0.00 | S107: 8,395.00 | T107: 33,141,033.85 | U107: 0.00 | V107: 0.00 | W107: 0.00 | X107: 0.00 | Y107: 0.00 | Z107: 8,096,455.80 | AA107: 0.00
B108: Итого по МО городское поселение город Конаково | C108: =SUM(C109:C116) -> 83,901,772.95 | D108: 0.00 | E108: 0.00 | F108: 0.00 | G108: 0.00 | H108: 0.00 | I108: 0.00 | J108: 0.00 | K108: 0 | L108: 0.00 | M108: 0 | N108: 0.00 | O108: 5,378.00 | P108: 28,739,097.08 | Q108: 0.00 | R108: 0.00 | S108: 8,395.00 | T108: 33,141,033.85 | U108: 0.00 | V108: 0.00 | W108: =SUM(W109:W116) -> 0.00 | X108: =SUM(X109:X116) -> 0.00 | Y108: =SUM(Y109:Y116) -> 0.00 | Z108: =SUM(Z109:Z116) -> 6,094,190.88 | AA108: =SUM(AA109:AA116) -> 0.00
A109: 71 | B109: г. Конаково, пр-т Ленина, д. 11 | C109: =D109+N109+P109+R109+T109+X109+Z109 -> 7,307,335.22 | D109: =SUM(E109:J109) -> 0.00 | E109: =SUM(E110:E120) -> 0.00 | F109: 0.00 | G109: 0.00 | H109: 0.00 | I109: 0.00 | J109: 0.00 | K109: 0 | L109: 0.00 | M109: 0 | N109: 0.00 | O109: 916.00 | P109: 6,776,568.18 | Q109: 0.00 | R109: 0.00 | S109: 0.00 | T109: 0.00 | U109: 0.00 | V109: 0.00 | W109: 0.00 | X109: 0.00 | Y109: 0.00 | Z109: 530,767.04 | AA109: 0.00
A110: 72 | B110: г. Конаково, пр-т Ленина, д. 12 | C110: =D110+N110+P110+R110+T110+X110+Z110+V110 -> 14,456,786.96 | D110: =SUM(E110:J110) -> 0.00 | E110: =SUM(E111:E121) -> 0.00 | F110: 0.00 | G110: 0.00 | H110: 0.00 | I110: 0.00 | J110: 0.00 | K110: 0 | L110: 0.00 | M110: 0 | N110: 0.00 | O110: 0.00 | P110: 0.00 | Q110: 0.00 | R110: 0.00 | S110: 2,847.00 | T110: 11,239,133.22 | U110: 477.00 | V110: 2,167,587.50 | W110: 0.00 | X110: 0.00 | Y110: 0.00 | Z110: 1,050,066.24 | AA110: 0.00
A111: 73 | B111: г. Конаково, ул. Васильковского, д. 5 | C111: =D111+N111+P111+R111+T111+X111+Z111+V111 -> 3,443,046.89 | D111: 0.00 | E111: =SUM(E112:E121) -> 0.00 | F111: 0.00 | G111: 0.00 | H111: 0.00 | I111: 0.00 | J111: 0.00 | K111: 0 | L111: 0.00 | M111: 0 | N111: 0.00 | O111: 0.00 | P111: 0.00 | Q111: 0.00 | R111: 0.00 | S111: 376.00 | T111: 1,484,339.34 | U111: 376.00 | V111: 1,708,622.43 | W111: 0.00 | X111: 0.00 | Y111: 0.00 | Z111: 250,085.12 | AA111: 0.00
A112: 74 | B112: г. Конаково, ул. Энергетиков, д. 17 | C112: 16,167,753.49 | D112: 0.00 | E112: =SUM(E113:E121) -> 0.00 | F112: 0.00 | G112: 0.00 | H112: 0.00 | I112: 0.00 | J112: 0.00 | K112: 0 | L112: 0.00 | M112: 0 | N112: 0.00 | O112: 1,025.00 | P112: 5,045,179.77 | Q112: 0.00 | R112: 0.00 | S112: 2,520.00 | T112: 9,948,231.72 | U112: 0.00 | V112: 0.00 | W112: 0.00 | X112: 0.00 | Y112: 0.00 | Z112: 1,174,342.00 | AA112: 0.00
A113: 75 | B113: г. Конаково, ул. Васильковского, д. 1а | C113: 13,296,021.50 | D113: 0.00 | E113: =SUM(E114:E121) -> 0.00 | F113: 0.00 | G113: 0.00 | H113: 0.00 | I113: 0.00 | J113: 0.00 | K113: 0 | L113: 0.00 | M113: 0 | N113: 0.00 | O113: 0.00 | P113: 0.00 | Q113: 0.00 | R113: 0.00 | S113: 1,452.00 | T113: 5,732,076.37 | U113: 1,452.00 | V113: 6,598,190.89 | W113: 0.00 | X113: 0.00 | Y113: 0.00 | Z113: 965,754.24 | AA113: 0.00
A114: 76 | B114: г. Конаково, ул. Горького, д. 3 | C114: 17,344,885.09 | D114: 0.00 | E114: =SUM(E115:E121) -> 0.00 | F114: 0.00 | G114: 0.00 | H114: 0.00 | I114: 0.00 | J114: 0.00 | K114: 0 | L114: 0.00 | M114: 0 | N114: 0.00 | O114: 1,197.60 | P114: 5,894,738.82 | Q114: 0.00 | R114: 0.00 | S114: 1,200.00 | T114: 4,737,253.20 | U114: 1,200.00 | V114: 5,453,050.32 | W114: 0.00 | X114: 0.00 | Y114: 0.00 | Z114: 1,259,842.75 | AA114: 0.00
A115: 77 | B115: г. Конаково, ул. Горького, д. 3а | C115: 8,476,311.62 | D115: 0.00 | E115: 0.00 | F115: 0.00 | G115: 0.00 | H115: 0.00 | I115: 0.00 | J115: 0.00 | K115: 0 | L115: 0.00 | M115: 0 | N115: 0.00 | O115: 1,597.00 | P115: 7,860,636.18 | Q115: 0.00 | R115: 0.00 | S115: 0.00 | T115: 0.00 | U115: 0.00 | V115: 0.00 | W115: 0.00 | X115: 0.00 | Y115: 0.00 | Z115: 615,675.44 | AA115: 0.00
A116: 78 | B116: г. Конаково, ул. Энергетиков, д. 28 | C116: 3,409,632.18 | D116: 0.00 | E116: =SUM(E120:E123) -> 0.00 | F116: 0.00 | G116: 0.00 | H116: 0.00 | I116: 0.00 | J116: 0.00 | K116: 0 | L116: 0.00 | M116: 0 | N116: 0.00 | O116: 642.40 | P116: 3,161,974.13 | Q116: 0.00 | R116: 0.00 | S116: 0.00 | T116: 0.00 | U116: 0.00 | V116: 0.00 | W116: 0.00 | X116: 0.00 | Y116: 0.00 | Z116: 247,658.05 | AA116: 0.00
B117: Итого по МО Городенское сельское поселение | C117: =C118+C119 -> 7,809,913.95 | D117: =D118+D119 -> 0.00 | E117: 0.00 | F117: 0.00 | G117: 0.00 | H117: 0.00 | I117: 0.00 | J117: 0.00 | K117: 0.00 | L117: 0.00 | M117: 0.00 | N117: 0.00 | O117: 979.00 | P117: 7,242,642.19 | Q117: 0.00 | R117: 0.00 | S117: 0.00 | T117: 0.00 | U117: 0.00 | V117: 0.00 | W117: 0.00 | X117: 0.00 | Y117: 0.00 | Z117: 567,271.76 | AA117: 0.00
A118: 79 | B118: с. Городня, ул. Садовая, д. 3 | C118: =D118+N118+P118+R118+T118+X118+Z118+V118 -> 3,645,690.17 | D118: =SUM(E118:J118) -> 0.00 | E118: 0.00 | F118: 0.00 | G118: 0.00 | H118: 0.00 | I118: 0.00 | J118: 0.00 | K118: 0 | L118: 0.00 | M118: 0 | N118: 0.00 | O118: 457.00 | P118: 3,380,886.09 | Q118: 0.00 | R118: 0.00 | S118: 0.00 | T118: 0.00 | U118: 0.00 | V118: 0.00 | W118: 0.00 | X118: 0.00 | Y118: 0.00 | Z118: 264,804.08 | AA118: 0.00
A119: 80 | B119: с. Городня, ул. Ленинградская, д. 187 | C119: 4,164,223.78 | D119: 0.00 | E119: 0.00 | F119: 0.00 | G119: 0.00 | H119: 0.00 | I119: 0.00 | J119: 0.00 | K119: 0 | L119: 0.00 | M119: 0 | N119: 0.00 | O119: 522.00 | P119: 3,861,756.10 | Q119: 0.00 | R119: 0.00 | S119: 0.00 | T119: 0.00 | U119: 0.00 | V119: 0.00 | W119: 0.00 | X119: 0.00 | Y119: 0.00 | Z119: 302,467.68 | AA119: 0.00
B120: Итого по МО городское поселение пос. Изоплит | C120: =C121 -> 10,268,220.03 | D120: =D121 -> 0.00 | E120: 0.00 | F120: 0.00 | G120: 0.00 | H120: 0.00 | I120: 0.00 | J120: 0.00 | K120: 0.00 | L120: 0.00 | M120: 0.00 | N120: 0.00 | O120: 1,120.00 | P120: 9,522,389.63 | Q120: 0.00 | R120: 0.00 | S120: 0.00 | T120: 0.00 | U120: 0.00 | V120: 0.00 | W120: 0.00 | X120: 0.00 | Y120: 0.00 | Z120: 745,830.40 | AA120: 0.00
A121: 81 | B121: пос. Изоплит, ул. Пионерская, д. 7 | C121: =D121+N121+P121+R121+T121+X121+Z121 -> 10,268,220.03 | D121: =SUM(E121:J121) -> 0.00 | E121: 0.00 | F121: 0.00 | G121: 0.00 | H121: 0.00 | I121: 0.00 | J121: 0.00 | K121: 0 | L121: 0.00 | M121: 0 | N121: 0.00 | O121: 1,120.00 | P121: 9,522,389.63 | Q121: 0.00 | R121: 0.00 | S121: 0.00 | T121: 0.00 | U121: 0.00 | V121: 0.00 | W121: 0.00 | X121: 0.00 | Y121: 0.00 | Z121: 745,830.40 | AA121: 0.00
B122: Итого по МО городское поселение пос. Радченко | C122: =C123 -> 9,488,048.28 | D122: =D123 -> 0.00 | E122: 0.00 | F122: 0.00 | G122: 0.00 | H122: 0.00 | I122: 0.00 | J122: 0.00 | K122: 0 | L122: 0.00 | M122: 0 | N122: 0.00 | O122: 1,254.83 | P122: 8,798,885.52 | Q122: 0.00 | R122: 0.00 | S122: 0.00 | T122: 0.00 | U122: 0.00 | V122: 0.00 | W122: 0.00 | X122: =X123 -> 0.00 | Y122: 0.00 | Z122: 689,162.76 | AA122: 0.00
A123: 82 | B123: пгт Радченко, д. 13 | C123: =D123+N123+P123+R123+T123+X123+Z123 -> 9,488,048.28 | D123: =SUM(E123:J123) -> 0.00 | E123: 0.00 | F123: 0.00 | G123: 0.00 | H123: 0.00 | I123: 0.00 | J123: 0.00 | K123: 0 | L123: 0.00 | M123: 0 | N123: 0.00 | O123: 1,254.83 | P123: 8,798,885.52 | Q123: 0.00 | R123: 0.00 | S123: 0.00 | T123: 0.00 | U123: 0.00 | V123: 0.00 | W123: 0.00 | X123: 0.00 | Y123: 0.00 | Z123: 689,162.76 | AA123: 0.00
B124: Краснохолмский муниципальный округ | C124: =C125 -> 3,460,390.15 | D124: =D125 -> 0.00 | E124: 0.00 | F124: 0.00 | G124: 0.00 | H124: 0.00 | I124: 0.00 | J124: 0.00 | K124: 0.00 | L124: 0.00 | M124: 0.00 | N124: 0.00 | O124: 377.44 | P124: 3,209,045.31 | Q124: 0.00 | R124: 0.00 | S124: 0.00 | T124: 0.00 | U124: 0.00 | V124: 0.00 | W124: 0.00 | X124: 0.00 | Y124: 0.00 | Z124: 251,344.84 | AA124: 0.00
A125: 83 | B125: г. Красный Холм, пер. Свободы Малый, д. 15 | C125: =D125+N125+P125+R125+T125+X125+Z125 -> 3,460,390.15 | D125: =SUM(E125:J125) -> 0.00 | E125: 0.00 | F125: 0.00 | G125: 0.00 | H125: 0.00 | I125: 0.00 | J125: 0.00 | K125: 0 | L125: 0.00 | M125: 0 | N125: 0.00 | O125: 377.44 | P125: 3,209,045.31 | Q125: 0.00 | R125: 0.00 | S125: 0.00 | T125: 0.00 | U125: 0.00 | V125: 0.00 | W125: 0.00 | X125: 0.00 | Y125: 0.00 | Z125: 251,344.84 | AA125: 0.00
B126: Кувшиновский район | C126: =C127 -> 3,386,423.36 | D126: =D127 -> 0.00 | E126: 0.00 | F126: 0.00 | G126: 0.00 | H126: 0.00 | I126: 0.00 | J126: 0.00 | K126: 0 | L126: 0.00 | M126: 0 | N126: 0.00 | O126: 424.50 | P126: 3,140,451.08 | Q126: 0.00 | R126: 0.00 | S126: 0.00 | T126: 0.00 | U126: 0.00 | V126: 0.00 | W126: 0.00 | X126: 0.00 | Y126: 0.00 | Z126: 245,972.28 | AA126: 0.00
B127: Итого по МО городское поселение город Кувшиново | C127: =C128 -> 3,386,423.36 | D127: =D128 -> 0.00 | E127: 0.00 | F127: 0.00 | G127: 0.00 | H127: 0.00 | I127: 0.00 | J127: 0.00 | K127: 0 | L127: 0.00 | M127: 0 | N127: 0.00 | O127: 424.50 | P127: 3,140,451.08 | Q127: 0.00 | R127: 0.00 | S127: 0.00 | T127: 0.00 | U127: 0.00 | V127: 0.00 | W127: 0.00 | X127: 0.00 | Y127: 0.00 | Z127: 245,972.28 | AA127: 0.00
A128: 84 | B128: ул. Маяковского, д. 20 | C128: =D128+N128+P128+R128+T128+X128+Z128 -> 3,386,423.36 | D128: =SUM(E128:J128) -> 0.00 | E128: 0.00 | F128: 0.00 | G128: 0.00 | H128: 0.00 | I128: 0.00 | J128: 0.00 | K128: 0 | L128: 0.00 | M128: 0 | N128: 0.00 | O128: 424.50 | P128: 3,140,451.08 | Q128: 0.00 | R128: 0.00 | S128: 0.00 | T128: 0.00 | U128: 0.00 | V128: 0.00 | W128: 0.00 | X128: 0.00 | Y128: 0.00 | Z128: 245,972.28 | AA128: 0.00
B129: Лихославльский муниципальный округ | C129: =SUM(C130:C132) -> 19,646,255.00 | D129: 1,590,016.96 | E129: 358,536.94 | F129: 953,708.25 | G129: 277,771.77 | H129: 0.00 | I129: 0.00 | J129: 0.00 | K129: 0.00 | L129: 0.00 | M129: 0.00 | N129: 0.00 | O129: 984.00 | P129: 7,279,632.20 | Q129: 0.00 | R129: 0.00 | S129: 1,001.00 | T129: 4,346,429.81 | U129: 0.00 | V129: 0.00 | W129: =SUM(W130:W132) -> 0.00 | X129: =SUM(X130:X132) -> 0.00 | Y129: =SUM(Y130:Y132) -> 0.00 | Z129: =SUM(Z130:Z132) -> 1,427,002.36 | AA129: =SUM(AA130:AA132) -> 0.00
A130: 85 | B130: г. Лихославль, ул. Вагжанова, д. 6а | C130: =D130+P130+R130+T130+Z130+L130+V130 -> 10,081,900.60 | D130: =E130+F130+G130+H130+I130+J130 -> 0.00 | E130: 0.00 | F130: 0.00 | G130: 0.00 | H130: 0.00 | I130: 0.00 | J130: 0.00 | K130: 0 | L130: 0.00 | M130: 0 | N130: 0.00 | O130: 0.00 | P130: 0.00 | Q130: 0.00 | R130: 0.00 | S130: 1,001.00 | T130: 4,346,429.81 | U130: 1,001.00 | V130: 5,003,173.67 | W130: 0.00 | X130: 0.00 | Y130: 0.00 | Z130: 732,297.12 | AA130: 0.00
A131: 86 | B131: г. Лихославль, ул. Вагжанова, д. 10 | C131: =D131+P131+R131+T131+Z131+L131+V131 -> 1,714,553.24 | D131: =E131+F131+G131+H131+I131+J131 -> 1,590,016.96 | E131: 358,536.94 | F131: 953,708.25 | G131: 277,771.77 | H131: 0.00 | I131: 0.00 | J131: 0.00 | K131: 0 | L131: 0.00 | M131: 0 | N131: 0.00 | O131: 0.00 | P131: 0.00 | Q131: 0.00 | R131: 0.00 | S131: 0.00 | T131: 0.00 | U131: 0.00 | V131: 0.00 | W131: 0.00 | X131: 0.00 | Y131: 0.00 | Z131: 124,536.28 | AA131: 0.00
A132: 87 | B132: г. Лихославль, ул. Первомайская, д. 3 | C132: 7,849,801.16 | D132: 0.00 | E132: 0.00 | F132: 0.00 | G132: 0.00 | H132: 0.00 | I132: 0.00 | J132: 0.00 | K132: 0 | L132: 0.00 | M132: 0 | N132: 0.00 | O132: 984.00 | P132: 7,279,632.20 | Q132: 0.00 | R132: 0.00 | S132: 0.00 | T132: 0.00 | U132: 0.00 | V132: 0.00 | W132: 0.00 | X132: 0.00 | Y132: 0.00 | Z132: 570,168.96 | AA132: 0.00
B133: Итого по МО Нелидовский городской округ | C133: =C134+C135 -> 10,897,874.88 | D133: =D134+D135 -> 0.00 | E133: 0.00 | F133: 0.00 | G133: 0.00 | H133: 0.00 | I133: 0.00 | J133: 0.00 | K133: 0.00 | L133: 0.00 | M133: 0.00 | N133: 0.00 | O133: 1,799.03 | P133: 10,471,764.30 | Q133: 0.00 | R133: 0.00 | S133: 0.00 | T133: 0.00 | U133: 0.00 | V133: 0.00 | W133: 0.00 | X133: 0.00 | Y133: 0.00 | Z133: 426,110.58 | AA133: 0.00
A134: 88 | B134: г. Нелидово, ул. Нахимова, д. 11 | C134: =D134+N134+P134+R134+T134+X134+Z134 -> 3,764,706.35 | D134: =SUM(E134:J134) -> 0.00 | E134: =([1]база!E351-(([1]база!E351*8)/110.14)) -> 0.00 | F134: =([1]база!F351-(([1]база!F351*8)/110.14)) -> 0.00 | G134: =([1]база!G351-(([1]база!G351*8)/110.14)) -> 0.00 | H134: =([1]база!H351-(([1]база!H351*8)/110.14)) -> 0.00 | I134: =([1]база!I351-(([1]база!I351*8)/110.14)) -> 0.00 | J134: =([1]база!J351-(([1]база!J351*8)/110.14)) -> 0.00 | K134: 0 | L134: 0.00 | M134: 0 | N134: =([1]база!L351-([1]база!L351*8)/110.14) -> 0.00 | O134: 978.00 | P134: 3,491,257.55 | Q134: 0.00 | R134: =([1]база!P351-([1]база!P351*8)/110.14) -> 0.00 | S134: 0.00 | T134: =([1]база!R351-([1]база!R351*8)/110.14) -> 0.00 | U134: 0.00 | V134: 0.00 | W134: 0.00 | X134: =([1]база!T351-([1]база!T351*8)/110.14) -> 0.00 | Y134: 0.00 | Z134: 273,448.80 | AA134: 0.00
A135: 89 | B135: г. Нелидово, ул. Матросова, д. 36/44 | C135: =D135+N135+P135+R135+T135+X135+Z135 -> 7,133,168.53 | D135: =SUM(E135:J135) -> 0.00 | E135: =([1]база!E352-(([1]база!E352*8)/110.14)) -> 0.00 | F135: =([1]база!F352-(([1]база!F352*8)/110.14)) -> 0.00 | G135: =([1]база!G352-(([1]база!G352*8)/110.14)) -> 0.00 | H135: =([1]база!H352-(([1]база!H352*8)/110.14)) -> 0.00 | I135: =([1]база!I352-(([1]база!I352*8)/110.14)) -> 0.00 | J135: =([1]база!J352-(([1]база!J352*8)/110.14)) -> 0.00 | K135: 0 | L135: 0.00 | M135: 0 | N135: =([1]база!L352-([1]база!L352*8)/110.14) -> 0.00 | O135: 821.03 | P135: 6,980,506.75 | Q135: 0.00 | R135: =([1]база!P352-([1]база!P352*8)/110.14) -> 0.00 | S135: 0.00 | T135: =([1]база!R352-([1]база!R352*8)/110.14) -> 0.00 | U135: 0.00 | V135: 0.00 | W135: 0.00 | X135: =([1]база!T352-([1]база!T352*8)/110.14) -> 0.00 | Y135: 0.00 | Z135: 152,661.78 | AA135: 0.00
B136: Оленинский муниципальный округ | C136: =SUM(C137:C157) -> 4,141,657.00 | D136: =SUM(D137:D157) -> 1,688,694.00 | E136: 270,985.00 | F136: 796,303.00 | G136: 0.00 | H136: 264,124.00 | I136: 0.00 | J136: 357,282.00 | K136: 0 | L136: 0.00 | M136: 0 | N136: 0.00 | O136: 621.00 | P136: 914,733.00 | Q136: 0.00 | R136: 0.00 | S136: 0.00 | T136: 0.00 | U136: 0.00 | V136: 0.00 | W136: 397.40 | X136: 576,230.00 | Y136: 0.00 | Z136: 962,000.00 | AA136: 0.00
A137: 90 | B137: пгт Оленино, ул. Кузьмина, д. 91 | C137: =D137+N137+P137+R137+T137+X137+Z137 -> 327,980.00 | D137: =SUM(E137:J137) -> 327,980.00 | E137: 0.00 | F137: 327,980.00 | G137: 0.00 | H137: 0.00 | I137: 0.00 | J137: 0.00 | K137: 0 | L137: 0.00 | M137: 0 | N137: 0.00 | O137: 0.00 | P137: 0.00 | Q137: 0.00 | R137: 0.00 | S137: 0.00 | T137: 0.00 | U137: 0.00 | V137: 0.00 | W137: 0.00 | X137: 0.00 | Y137: 0.00 | Z137: 0.00 | AA137: 0.00
A138: 91 | B138: пгт Оленино, ул. Октябрьская, д. 14 | C138: =D138+N138+P138+R138+T138+X138+Z138 -> 127,310.00 | D138: =SUM(E138:J138) -> 0.00 | E138: 0.00 | F138: 0.00 | G138: 0.00 | H138: 0.00 | I138: 0.00 | J138: 0.00 | K138: 0 | L138: 0.00 | M138: 0 | N138: 0.00 | O138: 0.00 | P138: 0.00 | Q138: 0.00 | R138: 0.00 | S138: 0.00 | T138: 0.00 | U138: 0.00 | V138: 0.00 | W138: 87.80 | X138: 127,310.00 | Y138: 0.00 | Z138: 0.00 | AA138: 0.00
A139: 92 | B139: пгт Оленино, ул. Октябрьская, д. 26 | C139: 264,124.00 | D139: 264,124.00 | E139: 0.00 | F139: 0.00 | G139: 0.00 | H139: 264,124.00 | I139: 0.00 | J139: 0.00 | K139: 0 | L139: 0.00 | M139: 0 | N139: 0.00 | O139: 0.00 | P139: 0.00 | Q139: 0.00 | R139: 0.00 | S139: 0.00 | T139: 0.00 | U139: 0.00 | V139: 0.00 | W139: 0.00 | X139: 0.00 | Y139: 0.00 | Z139: 0.00 | AA139: 0.00
A140: 93 | B140: пгт Оленино, ул. Чехова, д. 17 | C140: 175,068.00 | D140: 175,068.00 | E140: 0.00 | F140: 0.00 | G140: 0.00 | H140: 0.00 | I140: 0.00 | J140: 175,068.00 | K140: 0 | L140: 0.00 | M140: 0 | N140: 0.00 | O140: 0.00 | P140: 0.00 | Q140: 0.00 | R140: 0.00 | S140: 0.00 | T140: 0.00 | U140: 0.00 | V140: 0.00 | W140: 0.00 | X140: 0.00 | Y140: 0.00 | Z140: 0.00 | AA140: 0.00
A141: 94 | B141: пгт Оленино, ул. Чехова, д. 22 | C141: 182,214.00 | D141: 182,214.00 | E141: 0.00 | F141: 0.00 | G141: 0.00 | H141: 0.00 | I141: 0.00 | J141: 182,214.00 | K141: 0 | L141: 0.00 | M141: 0 | N141: 0.00 | O141: 0.00 | P141: 0.00 | Q141: 0.00 | R141: 0.00 | S141: 0.00 | T141: 0.00 | U141: 0.00 | V141: 0.00 | W141: 0.00 | X141: 0.00 | Y141: 0.00 | Z141: 0.00 | AA141: 0.00
A142: 95 | B142: пгт Оленино, ул. Пионерская, д. 2 | C142: 62,000.00 | D142: 0.00 | E142: 0.00 | F142: 0.00 | G142: 0.00 | H142: 0.00 | I142: 0.00 | J142: 0.00 | K142: 0 | L142: 0.00 | M142: 0 | N142: 0.00 | O142: 0.00 | P142: 0.00 | Q142: 0.00 | R142: 0.00 | S142: 0.00 | T142: 0.00 | U142: 0.00 | V142: 0.00 | W142: 0.00 | X142: 0.00 | Y142: 0.00 | Z142: 62,000.00 | AA142: 0.00
A143: 96 | B143: пгт Оленино, ул. Пионерская, д. 3 | C143: 62,000.00 | D143: 0.00 | E143: 0.00 | F143: 0.00 | G143: 0.00 | H143: 0.00 | I143: 0.00 | J143: 0.00 | K143: 0 | L143: 0.00 | M143: 0 | N143: 0.00 | O143: 0.00 | P143: 0.00 | Q143: 0.00 | R143: 0.00 | S143: 0.00 | T143: 0.00 | U143: 0.00 | V143: 0.00 | W143: 0.00 | X143: 0.00 | Y143: 0.00 | Z143: 62,000.00 | AA143: 0.00
A144: 97 | B144: пгт Оленино, ул. Пионерская, д. 4 | C144: 318,425.00 | D144: 0.00 | E144: 0.00 | F144: 0.00 | G144: 0.00 | H144: 0.00 | I144: 0.00 | J144: 0.00 | K144: 0 | L144: 0.00 | M144: 0 | N144: 0.00 | O144: 0.00 | P144: 0.00 | Q144: 0.00 | R144: 0.00 | S144: 0.00 | T144: 0.00 | U144: 0.00 | V144: 0.00 | W144: 166.50 | X144: 241,425.00 | Y144: 0.00 | Z144: 77,000.00 | AA144: 0.00
A145: 98 | B145: пгт Оленино, ул. Пионерская, д. 4а | C145: =D145+N145+P145+R145+T145+X145+Z145 -> 205,000.00 | D145: =SUM(E145:J145) -> 0.00 | E145: 0.00 | F145: 0.00 | G145: 0.00 | H145: 0.00 | I145: 0.00 | J145: 0.00 | K145: 0 | L145: 0.00 | M145: 0 | N145: 0.00 | O145: 0.00 | P145: 0.00 | Q145: 0.00 | R145: 0.00 | S145: 0.00 | T145: 0.00 | U145: 0.00 | V145: 0.00 | W145: 0.00 | X145: 0.00 | Y145: 0.00 | Z145: 205000.00 | AA145: 0.00
A146: 99 | B146: пгт Оленино, ул. Пионерская, д. 5 | C146: =D146+N146+P146+R146+T146+X146+Z146 -> 530,323.00 | D146: =SUM(E146:J146) -> 468,323.00 | E146: 0.00 | F146: 468323.00 | G146: 0.00 | H146: 0.00 | I146: 0.00 | J146: 0.00 | K146: 0 | L146: 0.00 | M146: 0 | N146: 0.00 | O146: 0.00 | P146: 0.00 | Q146: 0.00 | R146: 0.00 | S146: 0.00 | T146: 0.00 | U146: 0.00 | V146: 0.00 | W146: 0.00 | X146: 0.00 | Y146: 0.00 | Z146: 62000.00 | AA146: 0.00
A147: 100 | B147: пгт Оленино, ул. Пионерская, д. 7 | C147: =D147+N147+P147+R147+T147+X147+Z147 -> 336,985.00 | D147: 270,985.00 | E147: 270985.00 | F147: 0.00 | G147: 0.00 | H147: 0.00 | I147: 0.00 | J147: 0.00 | K147: 0 | L147: 0.00 | M147: 0 | N147: 0.00 | O147: 0.00 | P147: 0.00 | Q147: 0.00 | R147: 0.00 | S147: 0.00 | T147: 0.00 | U147: 0.00 | V147: 0.00 | W147: 0.00 | X147: 0.00 | Y147: 0.00 | Z147: 66000.00 | AA147: 0.00
A148: 101 | B148: пгт Оленино, ул. Пионерская, д. 8 | C148: 81,000.00 | D148: 0.00 | E148: 0.00 | F148: 0.00 | G148: 0.00 | H148: 0.00 | I148: 0.00 | J148: 0.00 | K148: 0 | L148: 0.00 | M148: 0 | N148: 0.00 | O148: 0.00 | P148: 0.00 | Q148: 0.00 | R148: 0.00 | S148: 0.00 | T148: 0.00 | U148: 0.00 | V148: 0.00 | W148: 0.00 | X148: 0.00 | Y148: 0.00 | Z148: 81000.00 | AA148: 0.00
A149: 102 | B149: пгт Оленино, ул. Пионерская, д. 9 | C149: 47,000.00 | D149: 0.00 | E149: 0.00 | F149: 0.00 | G149: 0.00 | H149: 0.00 | I149: 0.00 | J149: 0.00 | K149: 0 | L149: 0.00 | M149: 0 | N149: 0.00 | O149: 0.00 | P149: 0.00 | Q149: 0.00 | R149: 0.00 | S149: 0.00 | T149: 0.00 | U149: 0.00 | V149: 0.00 | W149: 0.00 | X149: 0.00 | Y149: 0.00 | Z149: 47,000.00 | AA149: 0.00
A150: 103 | B150: пгт Оленино, ул. Пионерская, д. 10 | C150: 47,000.00 | D150: 0.00 | E150: 0.00 | F150: 0.00 | G150: 0.00 | H150: 0.00 | I150: 0.00 | J150: 0.00 | K150: 0 | L150: 0.00 | M150: 0 | N150: 0.00 | O150: 0.00 | P150: 0.00 | Q150: 0.00 | R150: 0.00 | S150: 0.00 | T150: 0.00 | U150: 0.00 | V150: 0.00 | W150: 0.00 | X150: 0.00 | Y150: 0.00 | Z150: 47,000.00 | AA150: 0.00
A151: 104 | B151: пгт Оленино, ул. Пионерская, д. 12 | C151: =D151+N151+P151+R151+T151+X151+Z151 -> 66,000.00 | D151: =SUM(E151:J151) -> 0.00 | E151: 0.00 | F151: 0.00 | G151: 0.00 | H151: 0.00 | I151: 0.00 | J151: 0.00 | K151: 0 | L151: 0.00 | M151: 0 | N151: 0.00 | O151: 0.00 | P151: 0.00 | Q151: 0.00 | R151: 0.00 | S151: 0.00 | T151: 0.00 | U151: 0.00 | V151: 0.00 | W151: 0.00 | X151: 0.00 | Y151: 0.00 | Z151: 66,000.00 | AA151: 0.00
A152: 105 | B152: пгт Оленино, ул. Строителей, д. 1 | C152: 39,000.00 | D152: 0.00 | E152: 0.00 | F152: 0.00 | G152: 0.00 | H152: 0.00 | I152: 0.00 | J152: 0.00 | K152: 0 | L152: 0.00 | M152: 0 | N152: 0.00 | O152: 0.00 | P152: 0.00 | Q152: 0.00 | R152: 0.00 | S152: 0.00 | T152: 0.00 | U152: 0.00 | V152: 0.00 | W152: 0.00 | X152: 0.00 | Y152: 0.00 | Z152: 39,000.00 | AA152: 0.00
A153: 106 | B153: пгт Оленино, ул. Строителей, д. 2а | C153: 39,000.00 | D153: 0.00 | E153: 0.00 | F153: 0.00 | G153: 0.00 | H153: 0.00 | I153: 0.00 | J153: 0.00 | K153: 0 | L153: 0.00 | M153: 0 | N153: 0.00 | O153: 0.00 | P153: 0.00 | Q153: 0.00 | R153: 0.00 | S153: 0.00 | T153: 0.00 | U153: 0.00 | V153: 0.00 | W153: 0.00 | X153: 0.00 | Y153: 0.00 | Z153: 39,000.00 | AA153: 0.00
A154: 107 | B154: пгт Оленино, ул. Строителей, д. 7 | C154: 47,000.00 | D154: 0.00 | E154: 0.00 | F154: 0.00 | G154: 0.00 | H154: 0.00 | I154: 0.00 | J154: 0.00 | K154: 0 | L154: 0.00 | M154: 0 | N154: 0.00 | O154: 0.00 | P154: 0.00 | Q154: 0.00 | R154: 0.00 | S154: 0.00 | T154: 0.00 | U154: 0.00 | V154: 0.00 | W154: 0.00 | X154: 0.00 | Y154: 0.00 | Z154: 47,000.00 | AA154: 0.00
A155: 108 | B155: пгт Оленино, ул. Строителей, д. 9 | C155: 62,000.00 | D155: 0.00 | E155: 0.00 | F155: 0.00 | G155: 0.00 | H155: 0.00 | I155: 0.00 | J155: 0.00 | K155: 0 | L155: 0.00 | M155: 0 | N155: 0.00 | O155: 0.00 | P155: 0.00 | Q155: 0.00 | R155: 0.00 | S155: 0.00 | T155: 0.00 | U155: 0.00 | V155: 0.00 | W155: 0.00 | X155: 0.00 | Y155: 0.00 | Z155: 62,000.00 | AA155: 0.00
A156: 109 | B156: п. Мирный, ул. Советская, д. 3 | C156: 914,733.00 | D156: 0.00 | E156: 0.00 | F156: 0.00 | G156: 0,00 | H156: 0.00 | I156: 0.00 | J156: 0.00 | K156: 0 | L156: 0.00 | M156: 0 | N156: 0.00 | O156: 621.00 | P156: 914733.00 | Q156: 0.00 | R156: 0.00 | S156: 0.00 | T156: 0.00 | U156: 0.00 | V156: 0.00 | W156: 0.00 | X156: 0.00 | Y156: 0.00 | Z156: 0.00 | AA156: 0.00
A157: 110 | B157: п. Мирный, ул. Строителей, д. 26 | C157: 207,495.00 | D157: 0.00 | E157: 0.00 | F157: 0.00 | G157: 0.00 | H157: 0.00 | I157: 0.00 | J157: 0.00 | K157: 0 | L157: 0.00 | M157: 0 | N157: 0.00 | O157: 0.00 | P157: 0.00 | Q157: 0.00 | R157: 0.00 | S157: 0.00 | T157: 0.00 | U157: 0.00 | V157: 0.00 | W157: 143.10 | X157: 207,495.00 | Y157: 0.00 | Z157: 0.00 | AA157: 0.00
B158: Итого по МО Осташковский городской округ | C158: =SUM(C159:C167) -> 58,020,979.92 | D158: =SUM(D159:D167) -> 3,144,257.33 | E158: 3,144,257.33 | F158: 0.00 | G158: 0.00 | H158: 0.00 | I158: 0.00 | J158: 0.00 | K158: 0 | L158: 0.00 | M158: 0 | N158: 0.00 | O158: 8,801.00 | P158: 43,319,636.21 | Q158: 0.00 | R158: 0.00 | S158: 1,860.00 | T158: 7,342,742.46 | U158: 0.00 | V158: 0.00 | W158: 0.00 | X158: 0.00 | Y158: 0.00 | Z158: 4,214,343.92 | AA158: 0.00
A159: 111 | B159: г. Осташков, пер. Льва Толстого, д. 1Б | C159: =D159+N159+P159+R159+T159+X159+Z159+L159 -> 2,997,228.03 | D159: =SUM(E159:J159) -> 0.00 | E159: 0.00 | F159: 0.00 | G159: 0.00 | H159: 0.00 | I159: 0.00 | J159: 0.00 | K159: 0 | L159: 0.00 | M159: 0 | N159: 0.00 | O159: 564.70 | P159: 2,779,524.89 | Q159: 0.00 | R159: 0.00 | S159: 0.00 | T159: 0.00 | U159: 0.00 | V159: 0.00 | W159: 0.00 | X159: 0.00 | Y159: 0.00 | Z159: 217,703.14 | AA159: 0.00
A160: 112 | B160: нп т/б Сокол, д. 20 | C160: =D160+N160+P160+R160+T160+X160+Z160+L160 -> 2,706,899.77 | D160: =SUM(E160:J160) -> 0.00 | E160: 0.00 | F160: 0.00 | G160: 0.00 | H160: 0.00 | I160: 0.00 | J160: 0.00 | K160: 0 | L160: 0.00 | M160: 0 | N160: 0.00 | O160: 510.00 | P160: 2,510,284.57 | Q160: 0.00 | R160: 0.00 | S160: 0.00 | T160: 0.00 | U160: 0.00 | V160: 0.00 | W160: 0.00 | X160: 0.00 | Y160: 0.00 | Z160: 196,615.20 | AA160: 0.00
A161: 113 | B161: г. Осташков, ул. Володарского, д. 177 | C161: 11,676,822.52 | D161: 0.00 | E161: 0.00 | F161: 0.00 | G161: 0.00 | H161: 0.00 | I161: 0.00 | J161: 0.00 | K161: 0 | L161: 0.00 | M161: 0 | N161: 0.00 | O161: 2,200.00 | P161: 10,828,678.52 | Q161: 0.00 | R161: 0.00 | S161: 0.00 | T161: 0.00 | U161: 0.00 | V161: 0.00 | W161: 0.00 | X161: 0.00 | Y161: 0.00 | Z161: 848,144.00 | AA161: 0.00
A162: 114 | B162: г. Осташков, нп Микрорайон, д. 18 | C162: 11,092,981.39 | D162: 0.00 | E162: 0.00 | F162: 0.00 | G162: 0.00 | H162: 0.00 | I162: 0.00 | J162: 0.00 | K162: 0 | L162: 0.00 | M162: 0 | N162: 0.00 | O162: 2,090.00 | P162: 10,287,244.59 | Q162: 0.00 | R162: 0.00 | S162: 0.00 | T162: 0.00 | U162: 0.00 | V162: 0.00 | W162: 0.00 | X162: 0.00 | Y162: 0.00 | Z162: 805,736.80 | AA162: 0.00
A163: 115 | B163: г. Осташков, пр-т Гвардейский, д. 1 | C163: 10,084,528.54 | D163: 0.00 | E163: 0.00 | F163: 0.00 | G163: 0.00 | H163: 0.00 | I163: 0.00 | J163: 0.00 | K163: 0 | L163: 0.00 | M163: 0 | N163: 0.00 | O163: 1,900.00 | P163: 9,352,040.54 | Q163: 0.00 | R163: 0.00 | S163: 0.00 | T163: 0.00 | U163: 0.00 | V163: 0.00 | W163: 0.00 | X163: 0.00 | Y163: 0.00 | Z163: 732,488.00 | AA163: 0.00
A164: 116 | B164: г. Осташков, ул. Володарского, д. 179 | C164: 7,917,854.46 | D164: 0.00 | E164: 0.00 | F164: 0.00 | G164: 0.00 | H164: 0.00 | I164: 0.00 | J164: 0.00 | K164: 0 | L164: 0.00 | M164: 0 | N164: 0.00 | O164: 0.00 | P164: 0.00 | Q164: 0.00 | R164: 0.00 | S164: 1,860.00 | T164: 7,342,742.46 | U164: 0.00 | V164: 0.00 | W164: 0.00 | X164: 0.00 | Y164: 0.00 | Z164: 575,112.00 | AA164: 0.00
A165: 117 | B165: г. Осташков, ул. Кузнечная, д. 51 | C165: =D165+N165+P165+R165+T165+X165+Z165+L165 -> 3,426,085.88 | D165: =SUM(E165:J165) -> 0.00 | E165: 0.00 | F165: 0.00 | G165: 0.00 | H165: 0.00 | I165: 0.00 | J165: 0.00 | K165: 0 | L165: 0.00 | M165: 0 | N165: 0.00 | O165: 645.50 | P165: 3,177,232.72 | Q165: 0.00 | R165: 0.00 | S165: 0.00 | T165: 0.00 | U165: 0.00 | V165: 0.00 | W165: 0.00 | X165: 0.00 | Y165: 0.00 | Z165: 248,853.16
A166: 118 | B166: г. Осташков, ул. Шевчука, д. 5 | C166: =D166+N166+P166+R166+T166+X166+Z166+L166 -> 3,390,527.73 | D166: =SUM(E166:J166) -> 3,144,257.33 | E166: 3,144,257.33 | F166: 0.00 | G166: 0.00 | H166: 0.00 | I166: 0.00 | J166: 0.00 | K166: 0 | L166: 0.00 | M166: 0 | N166: 0.00 | O166: 0.00 | P166: 0.00 | Q166: 0.00 | R166: 0.00 | S166: 0.00 | T166: 0.00 | U166: 0.00 | V166: 0.00 | W166: 0.00 | X166: 0.00 | Y166: 0.00 | Z166: 246,270.40 | AA166: 0.00
A167: 119 | B167: г. Осташков, ул. Рябочкина, д. 38А | C167: 4,728,051.60 | D167: 0.00 | E167: 0.00 | F167: 0.00 | G167: 0.00 | H167: 0.00 | I167: 0.00 | J167: 0.00 | K167: 0 | L167: 0.00 | M167: 0 | N167: 0.00 | O167: 890.80 | P167: 4,384,630.38 | Q167: 0.00 | R167: 0.00 | S167: 0.00 | T167: 0.00 | U167: 0.00 | V167: 0.00 | W167: 0.00 | X167: 0.00 | Y167: 0.00 | Z167: 343,421.22 | AA167: 0.00
B168: Итого по МО Ржевский муниципальный округ | C168: =SUM(C169:C180) -> 59,203,369.72 | D168: 0.00 | E168: 0.00 | F168: 0.00 | G168: 0.00 | H168: 0.00 | I168: 0.00 | J168: 0.00 | K168: 0.00 | L168: 0.00 | M168: 4.00 | N168: 11,352,211.39 | O168: 3,913.60 | P168: 26,181,240.19 | Q168: 0.00 | R168: 0.00 | S168: 4,399.94 | T168: 17,369,691.54 | U168: 0.00 | V168: 0.00 | W168: 0.00 | X168: 0.00 | Y168: 0.00 | Z168: 4,300,226.60 | AA168: 0.00
A169: 120 | B169: г.Ржев, ул.Мира, д. 4 | C169: =D169+N169+P169+R169+T169+X169+Z169 -> 5,959,675.40 | D169: =SUM(E169:J169) -> 0.00 | E169: 0.00 | F169: 0.00 | G169: 0.00 | H169: 0.00 | I169: 0.00 | J169: 0.00 | K169: 0 | L169: 0.00 | M169: 0 | N169: 0.00 | O169: 0.00 | P169: 0.00 | Q169: 0.00 | R169: 0.00 | S169: 1,400.00 | T169: 5,526,795.40 | U169: 0.00 | V169: 0.00 | W169: 0.00 | X169: 0.00 | Y169: 0.00 | Z169: 432,880.00 | AA169: 0.00
A170: 121 | B170: г.Ржев, ул.Мира, д. 10 | C170: =D170+N170+P170+R170+T170+X170+Z170 -> 10,032,307.98 | D170: =SUM(E170:J170) -> 0.00 | E170: 0.00 | F170: 0.00 | G170: 0.00 | H170: 0.00 | I170: 0.00 | J170: 0.00 | K170: 0 | L170: 0.00 | M170: 0 | N170: 0.00 | O170: 860.00 | P170: 7,311,834.90 | Q170: 0.00 | R170: 0.00 | S170: 504.54 | T170: 1,991,778.11 | U170: 0.00 | V170: 0.00 | W170: 0.00 | X170: 0.00 | Y170: 0.00 | Z170: 728,694.97 | AA170: 0.00
A171: 122 | B171: г.Ржев, ул.Разина, д. 3 | C171: 3,270,571.83 | D171: 0.00 | E171: 0.00 | F171: 0.00 | G171: 0.00 | H171: 0.00 | I171: 0.00 | J171: 0.00 | K171: 0 | L171: 0.00 | M171: 0 | N171: 0.00 | O171: 616.20 | P171: 3,033,014.41 | Q171: 0.00 | R171: 0.00 | S171: 0.00 | T171: 0.00 | U171: 0.00 | V171: 0.00 | W171: 0.00 | X171: 0.00 | Y171: 0.00 | Z171: 237,557.42 | AA171: 0.00
A172: 123 | B172: г.Ржев, ул.Б.Спасская, д.41/65 | C172: 5,552,714.71 | D172: 0.00 | E172: 0.00 | F172: 0.00 | G172: 0.00 | H172: 0.00 | I172: 0.00 | J172: 0.00 | K172: 0 | L172: 0.00 | M172: 0 | N172: 0.00 | O172: 0.00 | P172: 0.00 | Q172: 0.00 | R172: 0.00 | S172: 1,304.40 | T172: 5,149,394.23 | U172: 0.00 | V172: 0.00 | W172: 0.00 | X172: 0.00 | Y172: 0.00 | Z172: 403,320.48 | AA172: 0.00
A173: 124 | B173: г.Ржев, ул.Б.Спасская, д.50/70 | C173: 5,051,597.53 | D173: 0.00 | E173: 0.00 | F173: 0.00 | G173: 0.00 | H173: 0.00 | I173: 0.00 | J173: 0.00 | K173: 0 | L173: 0.00 | M173: 0 | N173: 0.00 | O173: 551.00 | P173: 4,684,675.61 | Q173: 0.00 | R173: 0.00 | S173: 0.00 | T173: 0.00 | U173: 0.00 | V173: 0.00 | W173: 0.00 | X173: 0.00 | Y173: 0.00 | Z173: 366,921.92 | AA173: 0.00
A174: 125 | B174: г.Ржев, ул.Косарова, д.49 | C174: 7,244,937.61 | D174: 0.00 | E174: 0.00 | F174: 0.00 | G174: 0.00 | H174: 0.00 | I174: 0.00 | J174: 0.00 | K174: 0 | L174: 0.00 | M174: 0 | N174: 0.00 | O174: 1,365.00 | P174: 6,718,702.81 | Q174: 0.00 | R174: 0.00 | S174: 0.00 | T174: 0.00 | U174: 0.00 | V174: 0.00 | W174: 0.00 | X174: 0.00 | Y174: 0.00 | Z174: 526,234.80 | AA174: 0.00
A175: 126 | B175: г.Ржев, ул.Калинина, д.53 | C175: 3,333,137.57 | D175: 0.00 | E175: 0.00 | F175: 0.00 | G175: 0.00 | H175: 0.00 | I175: 0.00 | J175: 0.00 | K175: 0 | L175: 0.00 | M175: 0 | N175: 0.00 | O175: 363.56 | P175: 3,091,035.69 | Q175: 0.00 | R175: 0.00 | S175: 0.00 | T175: 0.00 | U175: 0.00 | V175: 0.00 | W175: 0.00 | X175: 0.00 | Y175: 0.00 | Z175: 242,101.88 | AA175: 0.00
A176: 127 | B176: г.Ржев, ул.Краностроителей, д.1 | C176: 3,077,746.65 | D176: 0.00 | E176: 0.00 | F176: 0.00 | G176: 0.00 | H176: 0.00 | I176: 0.00 | J176: 0.00 | K176: 0 | L176: 0.00 | M176: 0 | N176: 0.00 | O176: 0.00 | P176: 0.00 | Q176: 0.00 | R176: 0.00 | S176: 723.00 | T176: 2,854,195.05 | U176: 0.00 | V176: 0.00 | W176: 0.00 | X176: 0.00 | Y176: 0.00 | Z176: 223,551.60 | AA176: 0.00
A177: 128 | B177: г.Ржев, Торопецкий тр., д. 2а/21 | C177: 1,992,234.35 | D177: 0.00 | E177: 0.00 | F177: 0.00 | G177: 0.00 | H177: 0.00 | I177: 0.00 | J177: 0.00 | K177: 0 | L177: 0.00 | M177: 0 | N177: 0.00 | O177: 0.00 | P177: 0.00 | Q177: 0.00 | R177: 0.00 | S177: 468.00 | T177: 1,847,528.75 | U177: 0.00 | V177: 0.00 | W177: 0.00 | X177: 0.00 | Y177: 0.00 | Z177: 144,705.60 | AA177: 0.00
A178: 129 | B178: г.Ржев, Красноармейская наб., д. 30/1 | C178: 1,447,085.58 | D178: 0.00 | E178: 0.00 | F178: 0.00 | G178: 0.00 | H178: 0.00 | I178: 0.00 | J178: 0.00 | K178: 0 | L178: 0.00 | M178: 0 | N178: 0.00 | O178: 157.84 | P178: 1,341,976.77 | Q178: 0.00 | R178: 0.00 | S178: 0.00 | T178: 0.00 | U178: 0.00 | V178: 0.00 | W178: 0.00 | X178: 0.00 | Y178: 0.00 | Z178: 105,108.81 | AA178: 0.00
A179: 130 | B179: г.Ржев, ул.Республиканская, д. 7б | C179: 3,060,340.13 | D179: 0.00 | E179: 0.00 | F179: 0.00 | G179: 0.00 | H179: 0.00 | I179: 0.00 | J179: 0.00 | K179: 0 | L179: 0.00 | M179: 1 | N179: 2838052.85 | O179: 0.00 | P179: 0.00 | Q179: 0.00 | R179: 0.00 | S179: 0.00 | T179: 0.00 | U179: 0.00 | V179: 0.00 | W179: 0.00 | X179: 0.00 | Y179: 0.00 | Z179: 222,287.28 | AA179: 0.00
A180: 131 | B180: г.Ржев, ул.Чкалова, д. 41 | C180: 9,181,020.38 | D180: 0.00 | E180: 0.00 | F180: 0.00 | G180: 0.00 | H180: 0.00 | I180: 0.00 | J180: 0.00 | K180: 0 | L180: 0.00 | M180: 3 | N180: 8514158.54 | O180: 0.00 | P180: 0.00 | Q180: 0.00 | R180: 0.00 | S180: 0.00 | T180: 0.00 | U180: 0.00 | V180: 0.00 | W180: 0.00 | X180: 0.00 | Y180: 0.00 | Z180: 666,861.84 | AA180: 0.00
B181: Сандовский муниципальный округ | C181: =C182 -> 1,018,891.44 | D181: =D182 -> 1,018,891.44 | E181: 0.00 | F181: 0.00 | G181: 0.00 | H181: 0.00 | I181: 0.00 | J181: 1,018,891.44 | K181: 0.00 | L181: 0.00 | M181: 0.00 | N181: 0.00 | O181: 0.00 | P181: 0.00 | Q181: 0.00 | R181: 0.00 | S181: 0.00 | T181: 0.00 | U181: 0.00 | V181: 0.00 | W181: 0.00 | X181: 0.00 | Y181: 0.00 | Z181: 0.00 | AA181: 0.00
A182: 132 | B182: п. Сандово, ул. Лесная, д. 3 | C182: =D182+N182+P182+R182+T182+X182+Z182 -> 1,018,891.44 | D182: =SUM(E182:J182) -> 1,018,891.44 | E182: 0.00 | F182: 0.00 | G182: 0.00 | H182: 0.00 | I182: 0.00 | J182: 1,018,891.44 | K182: 0 | L182: 0.00 | M182: 0 | N182: 0.00 | O182: 0.00 | P182: 0.00 | Q182: 0.00 | R182: 0.00 | S182: 0.00 | T182: 0.00 | U182: 0.00 | V182: 0.00 | W182: 0.00 | X182: 0.00 | Y182: 0.00 | Z182: 0.00 | AA182: 0.00
B183: Селижаровский муниципальный округ | C183: =C184+C185 -> 5,002,509.37 | D183: =D184+D185 -> 0.00 | E183: 0.00 | F183: 0.00 | G183: 0.00 | H183: 0.00 | I183: 0.00 | J183: 0.00 | K183: 0 | L183: 0.00 | M183: 0 | N183: 0.00 | O183: 693.00 | P183: 4,725,546.52 | Q183: 0.00 | R183: 0.00 | S183: 0.00 | T183: 0.00 | U183: 0.00 | V183: 0.00 | W183: 0.00 | X183: 0.00 | Y183: 0.00 | Z183: 276,962.85 | AA183: 0.00
A184: 133 | B184: пос. Селижарово, ул. Новая, д. 11 | C184: =D184+N184+P184+R184+T184+X184+Z184 -> 2,584,474.31 | D184: =SUM(E184:J184) -> 0.00 | E184: 0.00 | F184: 0.00 | G184: 0.00 | H184: 0.00 | I184: 0.00 | J184: 0.00 | K184: 0 | L184: 0.00 | M184: 0 | N184: 0.00 | O184: 330.00 | P184: 2,396,751.46 | Q184: 0.00 | R184: 0.00 | S184: 0.00 | T184: 0.00 | U184: 0.00 | V184: 0.00 | W184: 0.00 | X184: 0.00 | Y184: 0.00 | Z184: 187,722.85 | AA184: 0.00
A185: 134 | B185: пос. Селижарово, ул. Ленина, д. 29 | C185: =D185+N185+P185+R185+T185+X185+Z185 -> 2,418,035.06 | D185: =SUM(E185:J185) -> 0.00 | E185: 0.00 | F185: 0.00 | G185: 0.00 | H185: 0.00 | I185: 0.00 | J185: 0.00 | K185: 0 | L185: 0.00 | M185: 0 | N185: 0.00 | O185: 363.00 | P185: 2,328,795.06 | Q185: 0.00 | R185: 0.00 | S185: 0.00 | T185: 0.00 | U185: 0.00 | V185: 0.00 | W185: 0.00 | X185: 0.00 | Y185: 0.00 | Z185: 89,240.00 | AA185: 0.00
B186: Итого по МО Старицкий муниципальный округ | C186: =SUM(C187:C188) -> 6,654,419.57 | D186: 0.00 | E186: 0.00 | F186: 0.00 | G186: 0.00 | H186: 0.00 | I186: 0.00 | J186: 0.00 | K186: 0.00 | L186: 0.00 | M186: 0.00 | N186: 0.00 | O186: 629.20 | P186: 3,097,002.06 | Q186: 0.00 | R186: 0.00 | S186: 362.00 | T186: 1,429,071.38 | U186: 362.00 | V186: 1,645,003.51 | W186: 0.00 | X186: 0.00 | Y186: 0.00 | Z186: 483,342.62 | AA186: 0.00
A187: 135 | B187: г. Старица, ул. Карла Маркса, д. 60 | C187: =D187+N187+P187+R187+T187+X187+Z187+V187 -> 3,314,848.33 | D187: =SUM(E187:J187) -> 0.00 | E187: 0.00 | F187: 0.00 | G187: 0.00 | H187: 0.00 | I187: 0.00 | J187: 0.00 | K187: 0 | L187: 0.00 | M187: 0 | N187: 0.00 | O187: 0.00 | P187: 0.00 | Q187: 0.00 | R187: 0.00 | S187: 362.00 | T187: 1,429,071.38 | U187: 362.00 | V187: 1,645,003.51 | W187: 0.00 | X187: 0.00 | Y187: 0.00 | Z187: 240,773.44 | AA187: 0.00
A188: 136 | B188: г. Старица, ул. Коммунистическая, д. 40а | C188: =D188+N188+P188+R188+T188+X188+Z188+V188 -> 3,339,571.24 | D188: 0.00 | E188: 0.00 | F188: 0.00 | G188: 0.00 | H188: 0.00 | I188: 0.00 | J188: 0.00 | K188: 0 | L188: 0.00 | M188: 0 | N188: 0.00 | O188: 629.20 | P188: 3,097,002.06 | Q188: 0.00 | R188: 0.00 | S188: 0.00 | T188: 0.00 | U188: 0.00 | V188: 0.00 | W188: 0.00 | X188: 0.00 | Y188: 0.00 | Z188: 242,569.18 | AA188: 0.00
B189: Сонковский муниципальный округ | C189: =C190 -> 3,927,134.26 | D189: =D190 -> 0.00 | E189: 0.00 | F189: 0.00 | G189: 0.00 | H189: 0.00 | I189: 0.00 | J189: 0.00 | K189: 0.00 | L189: 0.00 | M189: 0.00 | N189: 0.00 | O189: 492.28 | P189: 3,641,887.54 | Q189: 0.00 | R189: 0.00 | S189: 0.00 | T189: 0.00 | U189: 0.00 | V189: 0.00 | W189: 0.00 | X189: 0.00 | Y189: 0.00 | Z189: 285,246.72 | AA189: 0.00
A190: 137 | B190: пос. Сонково, ул. Артамонова, д. 1а | C190: =D190+N190+P190+R190+T190+X190+Z190 -> 3,927,134.26 | D190: =SUM(E190:J190) -> 0.00 | E190: 0.00 | F190: 0.00 | G190: 0.00 | H190: 0.00 | I190: 0.00 | J190: 0.00 | K190: 0 | L190: 0.00 | M190: 0 | N190: 0.00 | O190: 492.28 | P190: 3,641,887.54 | Q190: 0.00 | R190: 0.00 | S190: 0.00 | T190: 0.00 | U190: 0.00 | V190: 0.00 | W190: 0.00 | X190: 0.00 | Y190: 0.00 | Z190: 285,246.72 | AA190: 0.00
B191: Спировский муниципальный округ | C191: =C192 -> 9,677,432.05 | D191: =D192 -> 0.00 | E191: 0.00 | F191: 0.00 | G191: 0.00 | H191: 0.00 | I191: 0.00 | J191: 0.00 | K191: 0.00 | L191: 0.00 | M191: 0.00 | N191: 0.00 | O191: 1,823.30 | P191: 8,974,513.43 | Q191: 0.00 | R191: 0.00 | S191: 0.00 | T191: 0.00 | U191: 0.00 | V191: 0.00 | W191: 0.00 | X191: 0.00 | Y191: 0.00 | Z191: 702,918.62 | AA191: 0.00
A192: 138 | B192: пос. Спирово, ул. Речная, д. 4 | C192: =D192+N192+P192+R192+T192+X192+Z192 -> 9,677,432.05 | D192: =SUM(E192:J192) -> 0.00 | E192: 0.00 | F192: 0.00 | G192: 0.00 | H192: 0.00 | I192: 0.00 | J192: 0.00 | K192: 0 | L192: 0.00 | M192: 0 | N192: 0.00 | O192: 1,823.30 | P192: 8,974,513.43 | Q192: 0.00 | R192: 0.00 | S192: 0.00 | T192: 0.00 | U192: 0.00 | V192: 0.00 | W192: 0.00 | X192: 0.00 | Y192: 0.00 | Z192: 702,918.62 | AA192: 0.00
B193: Торопецкий район | C193: =C194 -> 8,284,127.59 | D193: =D194 -> 0.00 | E193: 0.00 | F193: 0.00 | G193: 0.00 | H193: 0.00 | I193: 0.00 | J193: 0.00 | K193: 0 | L193: 0.00 | M193: 0 | N193: 0.00 | O193: 625.18 | P193: 5,315,363.88 | Q193: 0.00 | R193: 0.00 | S193: 599.60 | T193: 2,367,047.52 | U193: 0.00 | V193: 0.00 | W193: 0.00 | X193: 0.00 | Y193: 0.00 | Z193: 601,716.19 | AA193: 0.00
B194: Итого по МО городское поселение город Торопец | C194: =C195 -> 8,284,127.59 | D194: 0.00 | E194: 0.00 | F194: 0.00 | G194: 0.00 | H194: 0.00 | I194: 0.00 | J194: 0.00 | K194: 0.00 | L194: 0.00 | M194: 0.00 | N194: 0.00 | O194: 625.18 | P194: 5,315,363.88 | Q194: 0.00 | R194: 0.00 | S194: 599.60 | T194: 2,367,047.52 | U194: 0.00 | V194: 0.00 | W194: 0.00 | X194: 0.00 | Y194: 0.00 | Z194: 601,716.19 | AA194: 0.00
A195: 139 | B195: г. Торопец, ул. Советская, д. 2 | C195: =D195+N195+P195+R195+T195+X195+Z195 -> 8,284,127.59 | D195: =SUM(E195:J195) -> 0.00 | E195: 0.00 | F195: 0.00 | G195: 0.00 | H195: 0.00 | I195: 0.00 | J195: 0.00 | K195: 0 | L195: 0.00 | M195: 0 | N195: 0.00 | O195: 625.18 | P195: 5,315,363.88 | Q195: 0.00 | R195: 0.00 | S195: 599.60 | T195: 2,367,047.52 | U195: 0.00 | V195: 0.00 | W195: 0.00 | X195: 0.00 | Y195: 0.00 | Z195: 601,716.19 | AA195: 0.00
B196: Итого по МО Удомельский городской округ | C196: =SUM(C197:C199) -> 14,503,389.62 | D196: 0.00 | E196: 0.00 | F196: 0.00 | G196: 0.00 | H196: 0.00 | I196: 0.00 | J196: 0.00 | K196: 0 | L196: 0.00 | M196: 1 | N196: 2,838,052.85 | O196: 1,962.80 | P196: 10,611,885.55 | Q196: 0.00 | R196: 0.00 | S196: 0.00 | T196: 0.00 | U196: 0.00 | V196: 0.00 | W196: =SUM(W197:W199) -> 0.00 | X196: =SUM(X197:X199) -> 0.00 | Y196: 0.00 | Z196: =SUM(Z197:Z199) -> 1,053,451.22 | AA196: =SUM(AA197:AA199) -> 0.00
A197: 140 | B197: г. Удомля, пр-т Энергетиков, д. 6а | C197: =D197+N197+P197+R197+T197+X197+Z197 -> 3,762,059.91 | D197: =SUM(E197:J197) -> 0.00 | E197: 0.00 | F197: 0.00 | G197: 0.00 | H197: 0.00 | I197: 0.00 | J197: 0.00 | K197: 0 | L197: 0.00 | M197: 0 | N197: 0.00 | O197: 708.80 | P197: 3,488,803.33 | Q197: 0.00 | R197: 0.00 | S197: 0.00 | T197: 0.00 | U197: 0.00 | V197: 0.00 | W197: 0.00 | X197: 0.00 | Y197: 0.00 | Z197: 273,256.58 | AA197: 0.00
A198: 141 | B198: г. Удомля, ул. Вышневолоцкое шоссе, д. 6 | C198: =D198+N198+P198+R198+T198+X198+Z198 -> 3,063,337.04 | D198: =SUM(E198:J198) -> 0.00 | E198: 0.00 | F198: 0.00 | G198: 0.00 | H198: 0.00 | I198: 0.00 | J198: 0.00 | K198: 0 | L198: 0.00 | M198: 0 | N198: 0.00 | O198: 384.00 | P198: 2,840,832.08 | Q198: 0.00 | R198: 0.00 | S198: 0.00 | T198: 0.00 | U198: 0.00 | V198: 0.00 | W198: 0.00 | X198: 0.00 | Y198: 0.00 | Z198: 222,504.96 | AA198: 0.00
A199: 142 | B199: г. Удомля, ул. Автодорожная, д. 2/1 | C199: 7,677,992.67 | D199: 0.00 | E199: 0.00 | F199: 0.00 | G199: 0.00 | H199: 0.00 | I199: 0.00 | J199: 0.00 | K199: 0 | L199: 0.00 | M199: 1 | N199: 2,838,052.85 | O199: 870.00 | P199: 4,282,250.14 | Q199: 0.00 | R199: 0.00 | S199: 0.00 | T199: 0.00 | U199: 0.00 | V199: 0.00 | W199: 0.00 | X199: 0.00 | Y199: 0.00 | Z199: 557,689.68 | AA199: 0.00
A200: Начало проведения капитального ремонта – 2024 год 5
... 833 more rows

Sheet 67-73
A1: III. Планируемые показатели выполнения работ по капитальному ремонту многоквартирных домов
A2: № п/п | B2: Наименование муниципального образования Тверской области | C2: Общая площадь МКД, всего | D2: Количество жителей, зарегистрированных в МКД на дату утверждения краткосрочного плана | E2: Количество МКД | F2: Стоимость капитального ремонта
C4: кв. м | D4: чел. | E4: ед. | F4: руб.
A5: 1 | B5: 2 | C5: 3 | D5: 4 | E5: 5 | F5: 6
A6: Всего по Тверской области
B7: Всего по Тверской области | C7: =C9+C59+C95+C145 -> 1,649,107.93 | D7: =D9+D59+D95+D145 -> 57,365 | E7: =E9+E59+E95+E145 -> 823 | F7: =F9+F59+F95+F145 -> 3,748,694,209.91
A8: Начало проведения капитального ремонта – 2023 год
B9: Итого по Тверской области | C9: =C10+C11+C12+C13+C15+C16+C18+C19+C21+C22+C24+C32+C34+C36+C37+C42+C43+C45+C46+C47+C48+C49+C51+C52+C53+C54+C55+C57+C14+C23+C35+C50 -> 269,245.16 | D9: =D10+D11+D12+D13+D15+D16+D18+D19+D21+D22+D24+D32+D34+D36+D37+D42+D43+D45+D46+D47+D48+D49+D51+D52+D53+D54+D55+D57+D14+D23+D35+D50 -> 9,345.00 | E9: 142.00 | F9: 705,543,562.04
A10: 1 | B10: Итого по МО город Тверь | C10: ='2-38'!H17 -> 33,629.40 | D10: ='2-38'!K17 -> 1724 | E10: 10 | F10: ='2-38'!L17 -> 158,081,640.29
A11: 2 | B11: Итого по МО Вышневолоцкий городской округ | C11: ='2-38'!H28 -> 14,598.10 | D11: ='2-38'!K28 -> 530 | E11: 9 | F11: ='2-38'!L28 -> 28,532,348.18
A12: 3 | B12: Итого по МО город Торжок | C12: ='2-38'!H38 -> 1,124.10 | D12: ='2-38'!K38 -> 43 | E12: 1 | F12: ='2-38'!L38 -> 10,176,539.50
A13: 4 | B13: Итого по МО ЗАТО Озерный | C13: ='2-38'!H40 -> 7,962.70 | D13: ='2-38'!K40 -> 211 | E13: 3 | F13: ='2-38'!L40 -> 14,556,403.25
A14: 5 | B14: Итого по МО ЗАТО Солнечный | C14: ='2-38'!H44 -> 2,178.00 | D14: ='2-38'!K44 -> 49 | E14: 1 | F14: ='2-38'!L44 -> 1,588,224.31
A15: 6 | B15: Андреапольский муниципальный округ | C15: ='2-38'!H46 -> 1,094.80 | D15: ='2-38'!K46 -> 41 | E15: 1 | F15: ='2-38'!L46 -> 10,749,726.21
B16: Бежецкий район | C16: =C17 -> 7,455.10 | D16: =D17 -> 221 | E16: 4 | F16: 17,931,462.42
A17: 7 | B17: Итого по МО городское поселение город Бежецк | C17: ='2-38'!H49 -> 7,455.10 | D17: ='2-38'!K49 -> 221 | E17: 4 | F17: ='2-38'!L49 -> 17,931,462.42
A18: 8 | B18: Бельский муниципальный округ | C18: ='2-38'!H54 -> 1,581.50 | D18: ='2-38'!K54 -> 34 | E18: 2 | F18: ='2-38'!L54 -> 971,203.51
B19: Бологовский район | C19: =C20 -> 2,672.60 | D19: =D20 -> 101 | E19: =E20 -> 4 | F19: =F20 -> 11,562,294.28
A20: 9 | B20: Итого по МО городское поселение город Бологое | C20: ='2-38'!H58 -> 2,672.60 | D20: ='2-38'!K58 -> 101 | E20: 4 | F20: ='2-38'!L58 -> 11,562,294.28
A21: 10 | B21: Весьегонский муниципальный округ | C21: ='2-38'!H63 -> 2,514.60 | D21: ='2-38'!K63 -> 53 | E21: 3 | F21: ='2-38'!L63 -> 8,902,371.51
A22: 11 | B22: Западнодвинский муниципальный округ | C22: ='2-38'!H67 -> 1,530.10 | D22: ='2-38'!K67 -> 38 | E22: 1 | F22: ='2-38'!L67 -> 5,323,904.26
A23: 12 | B23: Зубцовский муниципальный округ | C23: ='2-38'!H69 -> 370.20 | D23: ='2-38'!K69 -> 21 | E23: 1 | F23: ='2-38'!L69 -> 2,387,361.16
B24: Калининский район | C24: =C25+C26+C27+C28+C30+C31+C29 -> 15,299.75 | D24: =D25+D26+D27+D28+D30+D31+D29 -> 678 | E24: =E25+E26+E27+E28+E30+E31+E29 -> 10 | F24: =F25+F26+F27+F28+F30+F31+F29 -> 33,600,535.26
A25: 13 | B25: Итого по МО городское поселение поселок Васильевский Мох | C25: ='2-38'!H72 -> 939.10 | D25: ='2-38'!K72 -> 42 | E25: 1 | F25: ='2-38'!L72 -> 9,443,095.21
A26: 14 | B26: Итого по МО Верхневолжское сельское поселение | C26: ='2-38'!H74 -> 1,640.30 | D26: ='2-38'!K74 -> 83 | E26: 3 | F26: ='2-38'!L74 -> 4,792,659.72
A27: 15 | B27: Итого по МО Заволжское сельское поселение | C27: ='2-38'!H78 -> 3,259.55 | D27: ='2-38'!K78 -> 132 | E27: 1 | F27: ='2-38'!L78 -> 4,284,863.10
A28: 16 | B28: Итого по МО Каблуковское сельское поселение | C28: ='2-38'!H80 -> 512.00 | D28: 35 | E28: 1 | F28: ='2-38'!L80 -> 1,831,138.08
A29: 17 | B29: Итого по МО Красногорское сельское поселение | C29: ='2-38'!H82 -> 437.10 | D29: ='2-38'!K82 -> 31 | E29: 1 | F29: ='2-38'!L82 -> 457,350.84
A30: 18 | B30: Итого по МО Медновское сельское поселение | C30: ='2-38'!H84 -> 2,509.60 | D30: ='2-38'!K84 -> 100 | E30: 1 | F30: ='2-38'!L84 -> 4,670,729.01
A31: 19 | B31: Итого по МО Эммаусское сельское поселение | C31: ='2-38'!H86 -> 6,002.10 | D31: ='2-38'!K86 -> 255 | E31: 2 | F31: ='2-38'!L86 -> 8,120,699.30
B32: Калязинский район | C32: =C33 -> 3,779.41 | D32: =D33 -> 152 | E32: =E33 -> 6 | F32: =F33 -> 30,135,392.18
A33: 20 | B33: Итого по МО городское поселение город Калязин | C33: ='2-38'!H90 -> 3,779.41 | D33: ='2-38'!K90 -> 152 | E33: 6 | F33: ='2-38'!L90 -> 30,135,392.18
A34: 21 | B34: Итого по МО Кашинский городской округ | C34: ='2-38'!H97 -> 2,548.20 | D34: ='2-38'!K97 -> 117 | E34: 7 | F34: ='2-38'!L97 -> 8,582,395.00
A35: 22 | B35: Итого по МО Кесовогорский муниципальный округ | C35: ='2-38'!H105 -> 976.50 | D35: ='2-38'!K105 -> 38 | E35: 1 | F35: ='2-38'!L105 -> 1,021,741.25
A36: 23 | B36: Итого по МО Кимрский муниципальный округ | C36: ='2-38'!H107 -> 12,672.90 | D36: ='2-38'!K107 -> 221 | E36: 6 | F36: ='2-38'!L107 -> 42,147,210.33
B37: Конаковский район | C37: =SUM(C38:C41) -> 50,855.60 | D37: =SUM(D38:D41) -> 1776 | E37: =SUM(E38:E41) -> 12 | F37: =SUM(F38:F41) -> 111,467,955.21
A38: 24 | B38: Итого по МО городское поселение город Конаково | C38: ='2-38'!H115 -> 42,010.60 | D38: ='2-38'!K115 -> 1469 | E38: 8 | F38: ='2-38'!L115 -> 83,901,772.95
A39: 25 | B39: Итого по МО Городенское сельское поселение | C39: ='2-38'!H126 -> 1,364.80 | D39: ='2-38'!K126 -> 59 | E39: 2 | F39: ='2-38'!L126 -> 7,809,913.95
A40: 26 | B40: Итого по МО городское поселение поселок Изоплит | C40: ='2-38'!H124 -> 2,517.10 | D40: ='2-38'!K124 -> 103 | E40: 1 | F40: ='2-38'!L124 -> 10,268,220.03
A41: 27 | B41: Итого по МО городское поселение поселок Радченко | C41: ='2-38'!H129 -> 4,963.10 | D41: ='2-38'!K129 -> 145 | E41: 1 | F41: ='2-38'!L129 -> 9,488,048.28
A42: 28 | B42: Краснохолмский муниципальный округ | C42: ='2-38'!H131 -> 380.00 | D42: ='2-38'!K131 -> 15 | E42: 1 | F42: ='2-38'!L131 -> 3,460,390.15
B43: Кувшиновский район | C43: =C44 -> 833.50 | D43: =D44 -> 18 | E43: 1 | F43: 3,386,423.36
A44: 29 | B44: Итого по МО городское поселение город Кувшиново | C44: ='2-38'!H134 -> 833.50 | D44: ='2-38'!K134 -> 18 | E44: 1 | F44: ='2-38'!L134 -> 3,386,423.36
A45: 30 | B45: Лихославльский муниципальный округ | C45: ='2-38'!H136 -> 5,752.60 | D45: ='2-38'!K136 -> 174 | E45: 3 | F45: ='2-38'!L136 -> 19,646,255.00
A46: 31 | B46: Итого по МО Нелидовский городской округ | C46: ='2-38'!H140 -> 1,575.79 | D46: ='2-38'!K140 -> 57 | E46: 2 | F46: ='2-38'!L140 -> 10,897,874.88
A47: 32 | B47: Оленинский муниципальный округ | C47: ='2-38'!H189 -> 21,449.00 | D47: ='2-38'!K189 -> 606 | E47: 21 | F47: ='2-38'!L189 -> 4,141,657.00
A48: 33 | B48: Итого по МО Осташковский городской округ | C48: ='2-38'!H143 -> 28,307.90 | D48: ='2-38'!K143 -> 880 | E48: 9 | F48: ='2-38'!L143 -> 58,020,979.92
A49: 34 | B49: Ржевский муниципальный округ | C49: ='2-38'!H153 -> 28,212.50 | D49: ='2-38'!K153 -> 851 | E49: 12 | F49: ='2-38'!L153 -> 59,203,369.72
A50: 35 | B50: Сандовский муниципальный округ | C50: ='2-38'!H166 -> 953.10 | D50: ='2-38'!K166 -> 36 | E50: 1 | F50: ='2-38'!L166 -> 1,018,891.44
A51: 36 | B51: Селижаровский муниципальный округ | C51: ='2-38'!H168 -> 867.60 | D51: ='2-38'!K168 -> 30 | E51: 2 | F51: ='2-38'!L168 -> 5,002,509.37
A52: 37 | B52: Сонковский муниципальный округ | C52: ='2-38'!H171 -> 790.20 | D52: ='2-38'!K171 -> 22 | E52: 1 | F52: ='2-38'!L171 -> 3,927,134.26
A53: 38 | B53: Спировский муниципальный округ | C53: ='2-38'!H173 -> 4,877.20 | D53: ='2-38'!K173 -> 133 | E53: 1 | F53: ='2-38'!L173 -> 9,677,432.05
A54: 39 | B54: Старицкий муниципальный округ | C54: ='2-38'!H175 -> 2,280.20 | D54: ='2-38'!K175 -> 161 | E54: 2 | F54: ='2-38'!L175 -> 6,654,419.57
B55: Торопецкий район | C55: =C56 -> 599.80 | D55: =D56 -> 9 | E55: 1 | F55: 8,284,127.59
A56: 40 | B56: Итого по МО городское поселение город Торопец | C56: ='2-38'!H179 -> 599.80 | D56: ='2-38'!K179 -> 9 | E56: 1 | F56: ='2-38'!L179 -> 8,284,127.59
A57: 41 | B57: Итого по МО Удомельский городской округ | C57: ='2-38'!H181 -> 9,522.21 | D57: ='2-38'!K181 -> 305 | E57: 3 | F57: ='2-38'!L181 -> 14,503,389.62
A58: Начало проведения капитального ремонта – 2024 год
B59: Итого по Тверской области | C59: =C60+C61+C62+C63+C64+C66+C67+C69+C70+C72+C73+C74+C77+C79+C80+C81+C85+C87+C89+C90+C91+C92+C93+C88+C65+C86 -> 176,060.67 | D59: =D60+D61+D62+D63+D64+D66+D67+D69+D70+D72+D73+D74+D77+D79+D80+D81+D85+D87+D89+D90+D91+D92+D93+D88+D65+D86 -> 6,732.00 | E59: 95.00 | F59: 626,456,376.28
A60: 1 | B60: Итого по МО город Тверь | C60: ='2-38'!H214 -> 36,018.90 | D60: ='2-38'!K214 -> 1631 | E60: 21 | F60: ='2-38'!L214 -> 223,177,973.09
A61: 2 | B61: Итого по МО Вышневолоцкий городской округ | C61: ='2-38'!H236 -> 6,018.20 | D61: ='2-38'!K236 -> 228 | E61: 8 | F61: ='2-38'!L236 -> 40,919,487.26
A62: 3 | B62: Итого по МО Ржевский муниципальный округ | C62: ='2-38'!H245 -> 16,862.60 | D62: ='2-38'!K245 -> 676 | E62: 7 | F62: ='2-38'!L245 -> 53,142,252.98
A63: 4 | B63: Итого по МО город Торжок | C63: ='2-38'!H253 -> 2,731.70 | D63: ='2-38'!K253 -> 78 | E63: 2 | F63: ='39-66'!C241 -> 16,524,105.95
A64: 5 | B64: Итого по МО ЗАТО Озерный | C64: ='2-38'!H256 -> 2,842.70 | D64: ='2-38'!K256 -> 126 | E64: 2 | F64: ='2-38'!L256 -> 10,868,333.24
A65: 6 | B65: Итого по МО ЗАТО Солнечный | C65: ='2-38'!H259 -> 5,399.40 | D65: ='2-38'!K259 -> 162 | E65: 2 | F65: ='2-38'!L259 -> 4,437,569.01
A66: 7 | B66: Андреапольский муниципальный округ | C66: ='2-38'!H262 -> 948.90 | D66: ='2-38'!K262 -> 26 | E66: 1 | F66: ='2-38'!L262 -> 6,667,741.72
B67: Бежецкий район | C67: =C68 -> 5,495.30 | D67: =D68 -> 227 | E67: 3 | F67: 18,720,983.87
A68: 8 | B68: Итого по МО городское поселение город Бежецк | C68: ='2-38'!H265 -> 5,495.30 | D68: ='2-38'!K265 -> 227 | E68: 3 | F68: ='2-38'!L265 -> 18,720,983.87
A69: 9 | B69: Бельский муниципальный округ | C69: ='2-38'!H269 -> 873.10 | D69: ='2-38'!K269 -> 31 | E69: 2 | F69: ='2-38'!L269 -> 815,494.40
B70: Бологовский район | C70: =C71 -> 1,313.40 | D70: =D71 -> 32 | E70: 1 | F70: 16,322,864.31
A71: 10 | B71: Итого по МО городское поселение город Бологое | C71: ='2-38'!H273 -> 1,313.40 | D71: ='2-38'!K273 -> 32 | E71: 1 | F71: ='2-38'!L273 -> 16,322,864.31
A72: 11 | B72: Жарковский муниципальный округ | C72: ='2-38'!H275 -> 2,003.40 | D72: ='2-38'!K275 -> 52 | E72: 1 | F72: ='2-38'!L275 -> 4,370,826.05
A73: 12 | B73: Западнодвинский муниципальный округ | C73: ='2-38'!H277 -> 1,587.90 | D73: ='2-38'!K277 -> 41 | E73: 1 | F73: ='2-38'!L277 -> 4,158,100.78
B74: Калининский район | C74: =C75+C76 -> 1,344.50 | D74: =D75+D76 -> 51.00 | E74: 2.00 | F74: 5,038,527.61
A75: 13 | B75: Итого по МО Верхневолжское сельское поселение | C75: ='2-38'!H280 -> 545.20 | D75: ='2-38'!K280 -> 21 | E75: 1 | F75: ='2-38'!L280 -> 2,119,864.58
A76: 14 | B76: Итого по МО Заволжское сельское поселение | C76: ='2-38'!H283 -> 799.30 | D76: ='2-38'!K282 -> 30 | E76: 1 | F76: ='2-38'!L283 -> 2,918,663.03
B77: Калязинский район | C77: =C78 -> 4,743.07 | D77: =D78 -> 177 | E77: =E78 -> 4 | F77: =F78 -> 11,257,596.64
A78: 15 | B78: Итого по МО городское поселение город Калязин | C78: ='2-38'!H285 -> 4,743.07 | D78: ='2-38'!K285 -> 177 | E78: 4 | F78: ='39-66'!C273 -> 11,257,596.64
A79: 16 | B79: Итого по МО Кашинский городской округ | C79: ='2-38'!H290 -> 5,619.90 | D79: ='2-38'!K290 -> 315 | E79: 5 | F79: ='2-38'!L290 -> 19,728,615.20
A80: 17 | B80: Кимрский муниципальный округ | C80: ='2-38'!H296 -> 1,609.00 | D80: ='2-38'!K296 -> 75 | E80: 3 | F80: ='2-38'!L296 -> 17,639,844.42
B81: Конаковский район | C81: =C82+C83+C84 -> 30,571.00 | D81: =D82+D83+D84 -> 991.00 | E81: 7.00 | F81: 68,185,265.25
A82: 18 | B82: Итого по МО городское поселение город Конаково | C82: ='2-38'!H301 -> 28,340.40 | D82: ='2-38'!K301 -> 918 | E82: 5 | F82: ='2-38'!L301 -> 54,908,170.20
A83: 19 | B83: Итого по МО городское поселение поселок Изоплит | C83: ='2-38'!H307 -> 607.80 | D83: ='2-38'!K307 -> 21 | E83: 1 | F83: ='2-38'!L307 -> 5,414,896.53
A84: 20 | B84: Итого по МО городское поселение поселок Козлово | C84: ='2-38'!H309 -> 1,622.80 | D84: ='2-38'!K309 -> 52 | E84: 1 | F84: ='2-38'!L309 -> 7,862,198.52
A85: 21 | B85: Лихославльский муниципальный округ | C85: ='2-38'!H311 -> 9,867.00 | D85: ='2-38'!K311 -> 352 | E85: 5 | F85: ='2-38'!L311 -> 20,358,302.16
A86: 22 | B86: Молоковский муниципальный округ | C86: ='2-38'!H317 -> 820.10 | D86: ='2-38'!K317 -> 32 | E86: 1 | F86: ='2-38'!L317 -> 3,062,646.46
A87: 23 | B87: Итого по МО Нелидовский городской округ | C87: ='2-38'!H319 -> 789.00 | D87: ='2-38'!K319 -> 16 | E87: 1 | F87: ='2-38'!L319 -> 4,385,584.43
A88: 24 | B88: Итого по МО Оленинский муниципальный округ | C88: ='2-38'!H346 -> 1,233.20 | D88: ='2-38'!K346 -> 39 | E88: 2 | F88: ='2-38'!L346 -> 832,000.00
A89: 25 | B89: Итого по МО Осташковский городской округ | C89: ='2-38'!H321 -> 15,645.90 | D89: ='2-38'!K321 -> 500 | E89: 4 | F89: ='2-38'!L321 -> 32,177,893.10
A90: 26 | B90: Селижаровский муниципальный округ | C90: ='2-38'!H326 -> 647.60 | D90: ='2-38'!K326 -> 19 | E90: 1 | F90: ='2-38'!L326 -> 4,982,764.66
A91: 27 | B91: Спировский муниципальный округ | C91: ='2-38'!H332 -> 841.00 | D91: ='2-38'!K332 -> 32 | E91: 1 | F91: ='2-38'!L332 -> 2,967,810.41
A92: 28 | B92: Старицкий муниципальный округ | C92: ='2-38'!H328 -> 2,623.40 | D92: ='2-38'!K328 -> 119 | E92: 3 | F92: ='2-38'!L328 -> 9,225,287.85
A93: 29 | B93: Итого по МО Удомельский городской округ | C93: ='2-38'!H334 -> 17,610.50 | D93: ='2-38'!K334 -> 704 | E93: 5 | F93: ='2-38'!L334 -> 26,488,505.43
A94: Начало проведения капитального ремонта – 2025 год
B95: Итого по Тверской области | C95: =C96+C97+C99+C100+C102+C103+C105+C106+C108+C109+C110+C111+C118+C120+C122+C128+C129+C131+C132+C134+C135+C137+C138+C139+C140+C141+C133+C101+C98+C121+C136 -> 206,384.38 | D95: =D96+D97+D99+D100+D102+D103+D105+D106+D108+D109+D110+D111+D118+D120+D122+D128+D129+D131+D132+D134+D135+D137+D138+D139+D140+D141+D133+D101+D98+D121+D136 -> 7,420.00 | E95: 96.00 | F95: 672,511,329.89
A96: 1 | B96: Итого по МО город Тверь | C96: ='2-38'!H352 -> 45,039.20 | D96: ='2-38'!K352 -> 1801 | E96: 17 | F96: ='2-38'!L352 -> 166,554,860.20
A97: 2 | B97: Итого по МО Вышневолоцкий городской округ | C97: ='2-38'!H370 -> 5,412.60 | D97: ='2-38'!K370 -> 182 | E97: 5 | F97: ='2-38'!L370 -> 38,996,940.15
A98: 3 | B98: Итого по МО Ржевский муниципальный округ | C98: ='2-38'!H376 -> 21,754.30 | D98: ='2-38'!K376 -> 703 | E98: 6 | F98: ='2-38'!L376 -> 50,076,551.32
A99: 4 | B99: Итого по МО город Торжок | C99: ='2-38'!H383 -> 2,279.20 | D99: ='2-38'!K383 -> 69 | E99: 4 | F99: ='2-38'!L383 -> 17,209,242.72
A100: 5 | B100: Итого по МО ЗАТО Озерный | C100: ='2-38'!H388 -> 4,596.50 | D100: ='2-38'!K388 -> 209 | E100: 1 | F100: ='2-38'!L388 -> 14,152,964.67
A101: 6 | B101: Итого по МО ЗАТО Солнечный | C101: ='2-38'!H390 -> 2,653.20 | D101: ='2-38'!K390 -> 70 | E101: 1 | F101: ='2-38'!L390 -> 2,284,818.39
A102: 7 | B102: Андреапольский муниципальный округ | C102: ='2-38'!H392 -> 1,699.20 | D102: ='2-38'!K392 -> 48 | E102: 2 | F102: ='2-38'!L392 -> 13,399,978.80
B103: Бежецкий район | C103: =C104 -> 4,390.40 | D103: =D104 -> 147.00 | E103: 2.00 | F103: 26,339,961.17
A104: 8 | B104: Итого по МО городское поселение город Бежецк | C104: ='2-38'!H396 -> 4,390.40 | D104: ='2-38'!K396 -> 147 | E104: 2 | F104: ='2-38'!L396 -> 26,339,961.17
A105: 9 | B105: Бельский муниципальный округ | C105: ='2-38'!H399 -> 1,844.30 | D105: ='2-38'!K399 -> 42 | E105: 1 | F105: ='2-38'!L399 -> 1,469,580.17
B106: Бологовский район | C106: =C107 -> 7,976.60 | D106: =D107 -> 242 | E106: 3 | F106: 23,904,968.27
A107: 10 | B107: Итого по МО городское поселение город Бологое | C107: ='2-38'!H402 -> 7,976.60 | D107: ='2-38'!K402 -> 242 | E107: 3 | F107: ='2-38'!L402 -> 23,904,968.27
A108: 11 | B108: Весьегонский муниципальный округ | C108: ='2-38'!H406 -> 537.40 | D108: ='2-38'!K406 -> 12 | E108: 1 | F108: ='2-38'!L406 -> 4,844,707.25
A109: 12 | B109: Жарковский муниципальный округ | C109: ='2-38'!H408 -> 491.90 | D109: ='2-38'!K408 -> 11 | E109: 1 | F109: ='2-38'!L408 -> 4,007,164.70
A110: 13 | B110: Западнодвинский муниципальный округ | C110: ='2-38'!H410 -> 571.80 | D110: ='2-38'!K410 -> 14 | E110: 1 | F110: ='2-38'!L410 -> 4,714,311.41
B111: Калининский район | C111: =C113+C114+C116+C115+C112+C117 -> 7,271.70 | D111: =D113+D114+D116+D115+D112+D117 -> 382.00 | E111: 5.00 | F111: 26,975,825.91
A112: 14 | B112: Итого по МО городское поселение поселок Васильевский Мох | C112: ='2-38'!H413 -> 1,603.40 | D112: ='2-38'!K413 -> 89 | E112: 1 | F112: ='2-38'!L413 -> 5,499,014.85
A113: 15 | B113: Итого по МО городское поселение поселок Орша | C113: ='2-38'!H415 -> 853.00 | D113: ='2-38'!K415 -> 36 | E113: 1 | F113: ='2-38'!L415 -> 7,059,401.27
A114: 16 | B114: Итого по МО Верхневолжское сельское поселение | C114: ='2-38'!H417 -> 545.00 | D114: ='2-38'!K417 -> 36 | E114: 1 | F114: ='2-38'!L417 -> 2,206,919.24
A115: 17 | B115: Итого по МО Заволжское сельское поселение
A116: 18 | B116: Итого по МО Красногорское сельское поселение | C116: ='2-38'!H419 -> 3,407.80 | D116: ='2-38'!K419 -> 167 | E116: 1 | F116: ='2-38'!L419 -> 6,046,377.93
A117: 19 | B117: Итого по МО Никулинское сельское поселение | C117: ='2-38'!H421 -> 862.50 | D117: ='2-38'!K421 -> 54 | E117: 1 | F117: ='2-38'!L421 -> 6,164,112.62
B118: Калязинский район | C118: =C119 -> 8,139.40 | D118: =D119 -> 260 | E118: 2 | F118: 12,776,900.84
A119: 20 | B119: Итого по МО городское поселение город Калязин | C119: ='2-38'!H424 -> 8,139.40 | D119: ='2-38'!K424 -> 260 | E119: 2 | F119: ='2-38'!L424 -> 12,776,900.84
A120: 21 | B120: Итого по МО Кашинский городской округ | C120: ='2-38'!H427 -> 6,196.60 | D120: ='2-38'!K427 -> 149 | E120: 4 | F120: ='2-38'!L427 -> 20,209,721.78
A121: 22 | B121: Итого по МО Кимрский муниципальный округ | C121: ='2-38'!H432 -> 3,598.60 | D121: ='2-38'!K432 -> 73 | E121: 4 | F121: ='2-38'!L432 -> 20,850,496.60
B122: Конаковский район | C122: =C123+C126+C127+C125+C124 -> 29,070.40 | D122: =D123+D126+D127+D125+D124 -> 1,123.00 | E122: 10.00 | F122: 72,935,585.96
A123: 23 | B123: Итого по МО городское поселение город Конаково | C123: ='2-38'!H438 -> 26,835.70 | D123: ='2-38'!K438 -> 983 | E123: 6 | F123: ='2-38'!L438 -> 58,289,329.66
A124: 24 | B124: Итого по МО Городенское сельское поселение | C124: ='2-38'!H445 -> 717.00 | D124: ='2-38'!K445 -> 74 | E124: 1 | F124: ='2-38'!L445 -> 4,434,126.26
